Workbook

Sheet Платоспроможність боржника (hidden)
B1: Категорія продукту | C1: Автокредит | G1: - обов'язкові поля
B3: Вартість об'єкту кредитування, грн | C3: 333333.3333 | G3: Схема погашення | H3: ануїтет
B4: Участь власними коштами, грн | C4: =C3*E4 -> 233333.3333 | D4: =C4/C3 -> 0.7 | E4: 0.7 | G4: % комісії за управління
B5: Сукупна заставна вартість об’єктів застави, грн | C5: 5000000 | G5: термін кредиту | H5: 60
G6: % ставки | H6: =Ануїтетна_графік_Авто!E2 -> 13.99
D7: =D6*1.7 -> 0 | E7: =D6+D5 -> 0 | G7: термін дії ставки, міс
B8: Бажана сума кредиту, грн | C8: =C3-C4 -> 100000 | G8: тип % ставки | H8: Фіксована
B9: Чи враховувати доходи інших членів родини? | C9: Ні
B10: Чи враховувати комісію за видачу до суми кредиту? | C10: Ні | D10: 3960 | H10: =H4*C3 -> 0
B11: Чи враховувати страховий платіж до суми кредиту? | C11: Ні | H11: =H4*C8 -> 0
B12: Чи враховувати платіж КАСКО до суми кредиту? | C12: Ні | E12: =800000/100 -> 8000
B13: Бажана сума кредиту з врахуванням платежів, грн | C13: =IF(C8=0,C3-C4+SUMIF(C10:C12,"Так",D10:D12),C8+SUMIF(C10:C12,"Так",D10:D12)) -> 100000 | E13: =E12*70 -> 560000
D16: =100000/70% -> 142857.1429
H17: Боржник | I17: Інші члени родини
C18: Боржник | G18: сімейний стан | H18: не одружений(на)
B19: В - задекларовані витрати на проживання | C19: 100 | G19: к-сть дітей | H19: 0
B20: Місце проживання | C20: м. Київ | G20: дата народження | H20: 35065
B21: Місце реєстрації | C21: м. Київ
B22: Місце знаходження нерухомості, яка придбавається | G22: Обов'язкові до заповнення всі клітинки (так/ні)
F23: Майновий стан | G23: Автомобіль
B24: Трудовий стаж за основним місцем праці, міс | C24: 24 | G24: Будинок
B25: Кількість днів прострочки | C25: 0 | G25: Земельна ділянка
G26: Квартира
G27: Інша власність
B29: БЗКРЕДО - сукупна сума кредитів боржника в АТ «КРЕДОБАНК» за продуктом | C29: 0
B30: БЗЗА - сукупна заборгованість за усіма відкритими (незавершеними) заявками боржника за продуктом | C30: 0
C32: Боржник | D32: Подружжя | E32: Інші члени родини
A33: Дохід у вигляді з/п | B33: Тип доходу
B34: Д - середньомісячна сума доходу у вигляді з/п | C34: 2000000
B35: А - аліменти за відповідний період
B36: n - фактична к-сть місяців, впродовж яких боржник отримував доходи у вигляді з/п (від 3-ьох до 6-ти міс)
A38: Дохід у вигляді пенсії | B38: ДП - сума доходу боржника у вигляді пенсії за останній міс
A40: Дохід у вигляді підприємницького доходу | B40: Вид підприємницької діяльності
B41: Д - середньомісячна сума доходу від діяльності ФОП
B42: П - середньомісячні податки повязані із діяльностю ФОП
B43: ЗВП - середньомісячні задекларовані витрати фізичної особи підприємця, пов'язані із веденням госп дія-сті
A45: Дохід у вигляді вкладу | B45: Д - середньомісячний дохід від вкладу (після оподаткування)
B46: СД - сума вкладу
A48: Дохід у вигляді дивідендів | B48: Д - середньомісячна сума доходу від дивідендів
B49: П - середньомісячні податки повязані із виплатою дивідендів
A51: Дохід у вигляді оренди, незалежної професійної діяльності, ін доходів | B51: Д - середньомісячна сума доходу від оренди, незалежної професійної діяльності, інших доходів (після оподаткування)
B52: ВОД - середньомісячні витрати, пов’язані з отриманням доходів від оренди, незалежної професійної діяльності, інших доходів
A54: Витрати | B54: ВФЗД - витрати за діючими кредитами | C54: 0
B55: ПВЗ - потенційні витрати за відкритими кредитними заявками в Банку | C55: 0
A58: Визначення динаміки доходів від підприємницької діяльності | B58: Квартал в якому клієнт звернувся за отриманням кредиту
B59: Річна сума доходу, отримана позичальником від п.д. за звітний рік, що передує поточному
B60: =IF(C58="II","Cума доходу, отриманого в поточному році за один квартал", IF(C58="III","Cума доходу, отриманого в поточному році за два квартали", IF(C58="IV","Cума доходу, отриманого в поточному році за три квартали","Річна сума доходу, отримана позичальником від п.д. за рік, що передує звітному"))) -> Річна сума доходу, отримана позичальником від п.д. за рік, що передує звітному
A63: Загальна сума заборгованості за усіма діючими кредитами в АТ "КРЕДОБАНК" | B63: Б1КРЕДО - сукупна заборгованість клієнта за усіма кредитами в АТ «КРЕДОБАНК» з урахуванням усієї суми встановлених кредитних лімітів
B64: Б1ПО - сукупна заборгованість усіх пов’язаних з клієнтом фізичних осіб за усіма кредитами в АТ «КРЕДОБАНК» з урахуванням усієї суми встановлених кредитних лімітів
B65: Б1ЗА - сукупна заборгованість, яку може отримати клієнт за усіма відкритими (незавершеними) заявками на отримання кредитів/встановлення кредитних лімітів в АТ «КРЕДОБАНК»
B66: Б1ЗАПО - сукупна заборгованість, яку можуть отримати пов’язані з клієнтом фізичні особи за усіма відкритими (незавершеними) заявками на отримання кредитів/встановлення кредитних лімітів в АТ «КРЕДОБАНК» | C66: 0
H74: Ануїтет | I74: Класика
B75: Розрахунок суми | G75: ОПК(1) | H75: =IF(OR(H6<>"",H5<>""),(Ануїтетна_графік_Іпотека!B16/1200*(1+Ануїтетна_графік_Іпотека!B16/1200)^H5)/(((1+Ануїтетна_графік_Іпотека!B16/1200)^H5)-1)+H4/100,0) -> 0.0232630668 | I75: =IF(OR(H6<>"",H5<>""),1/H5+Ануїтетна_графік_Іпотека!B16/100*31/360+H4/100,0) -> 0.02871361111
B76: ОПК ануїтет | C76: =MAX(H75:H78) -> 0.0232630668 | G76: ОПК(2) | H76: =IFERROR(IF(AND(H6<>"",H5<>"",H7<>"",I6<>""),(Ануїтетна_графік_Іпотека!C16/1200*(1+Ануїтетна_графік_Іпотека!C16/1200)^(H5-H7))/(((1+Ануїтетна_графік_Іпотека!C16/1200)^(H5-H7))-1)+H4/100,0),0) -> 0 | I76: =IF(AND(H6<>"",H5<>"",I6<>"",H7<>""),1/(H5-H7)+Ануїтетна_графік_Іпотека!C16/100*31/360+H4/100,0) -> 0
B77: ОПК класика | C77: =MAX(I75:I78) -> 0.02871361111 | G77: ОПК(3) | H77: =IFERROR(IF(AND(H6<>"",H5<>"",H7<>"",J6<>""),(Ануїтетна_графік_Іпотека!D16/1200*(1+Ануїтетна_графік_Іпотека!D16/1200)^(H5-H7-I7))/(((1+Ануїтетна_графік_Іпотека!D16/1200)^(H5-H7-I7))-1)+H4/100,0),0) -> 0 | I77: =IF(AND(H6<>"",H5<>"",J6<>"",I7<>""),1/(H5-H7-I7)+Ануїтетна_графік_Іпотека!D16/100*31/360+H4/100,0) -> 0
B78: ОПК | C78: =IF(H3="ануїтет",C76,C77) -> 0.0232630668 | G78: ОПК(4) | H78: =IFERROR(IF(AND(H6<>"",H5<>"",J7<>"",K6<>""),(Ануїтетна_графік_Іпотека!E16/1200*(1+Ануїтетна_графік_Іпотека!E16/1200)^(H5-H7-I7-J7))/(((1+Ануїтетна_графік_Іпотека!E16/1200)^(H5-H7-I7-J7))-1)+H4/100,0),0) -> 0 | I78: =IF(AND(H6<>"",H5<>"",K6<>"",J7<>""),1/(H5-H7-I7-J7)+Ануїтетна_графік_Іпотека!E16/100*31/360+H4/100,0) -> 0
A80: L1 | B80: ММСК | C80: =$H$91 -> 4000000 | G80: Константи
B81: ЗКП | C81: =C29+C30 -> 0
B82: L1 | C82: =MAX(C80-C81,0) -> 4000000 | G82: УВК ПР (%) | H82: =IF(AND(C1="Автокредит",C3<=1500000),30,IF(AND(C1="Автокредит",C3>1500000,C3<=2500000),40,IF(AND(C1="Автокредит",C3>2500000),50,IF(AND(C1="Іпотечний кредит",C3<=2500000),30,IF(AND(C1="Іпотечний кредит",C3>2500000,C3<=3000000),40,IF(AND(C1="Іпотечний кредит",C3>3000000),50,0)))))) -> 30 | I82: залежить від вартості об'єкту кредитування
G83: PTI | H83: 0.65
A84: L2 | B84: не застосовується | C84: Боржник | D84: Подружжя | E84: Інші члени родини | G84: КФН | H84: 1
B85: КВ - коефіцієнт витрат | C85: =IFERROR(VLOOKUP(C40,'коефіцієнт витрат'!B2:C6,2,),70%) -> 0.7 | D85: =IFERROR(VLOOKUP(D40,'коефіцієнт витрат'!B2:C6,2,),70%) -> 0.7 | E85: =IFERROR(VLOOKUP(E40,'коефіцієнт витрат'!B2:C6,2,),70%) -> 0.7 | G85: I | H85: 1.266
B86: СМД зарплата | C86: =IF(C33="Чистий дохід за мінусом податків",1,0.805)*C34-C35 -> 1610000 | D86: =IF(D33="Чистий дохід за мінусом податків",1,0.805)*D34-D35 -> 0 | E86: =IF(E33="Чистий дохід за мінусом податків",1,0.805)*E34-E35 -> 0 | G86: ПЗВ | H86: 1420.07
B87: СМД пенсія | C87: =C38 -> 0 | D87: =D38 -> 0 | E87: =E38 -> 0 | G87: МЛскз | H87: 4000000
B88: СМД підприємницький дохід | C88: =(C41-C42)-MAX(C85*(C41-C42),C43) -> 0 | D88: =(D41-D42)-MAX(D85*(D41-D42),D43) -> 0 | E88: =(E41-E42)-MAX(E85*(E41-E42),E43) -> 0 | G88: LTV | H88: =IF(AND(C1="Автокредит",C5<=1000000),0.7,IF(AND(C1="Автокредит",C5>1000000,C5<=2000000),0.6,IF(AND(C1="Автокредит",C5>2000000),0.5,0.8))) -> 0.5 | I88: залежить від категорії продукту і вартості забезпечення
B89: СМД вклад | C89: =C45 -> 0 | D89: =D45 -> 0 | E89: =E45 -> 0 | G89: Іс | H89: 1
B90: СМД дивіденди | C90: =C48-C49 -> 0 | D90: =D48-D49 -> 0 | E90: =E48-E49 -> 0 | G90: Івп | H90: 1
B91: СМД оренда | C91: =(C51-C52) -> 0 | D91: =(D51-D52) -> 0 | E91: =(E51-E52) -> 0 | G91: ММСК | H91: =IF(C1="Поточні потреби під заставу нерухомості",2000000,4000000) -> 4000000 | I91: залежить від категорії продукту і авансу
B92: СМД боржника/СМД подружжя | C92: =SUM(C86:C91) -> 1610000 | D92: =SUM(D86:D91) -> 0 | E92: =SUM(E86:E91) -> 0
B93: СМДС | C93: =C92+D92+IF(C9="Так",E92,0) -> 1610000
A95: L3 | B95: УВК ПР (%) | C95: =H82 -> 30
B96: УВК (%) | C96: =IF(C3<>"",C4/C3*100,0) -> 70
B97: L3 | C97: =IF(C1="Поточні потреби під заставу нерухомості",C82,IF(C96>C95,C3-C4+(D10+D11+D12)*H90,C3-(C3*C95/100)+(D10+D11+D12)*H90)) -> 103960
A99: L4 | B99: PTI | C99: =H83 -> 0.65
B100: ВФЗС | C100: =C54+D54+E54+C55+D55+E55 -> 0
B101: L4 | C101: =IF(C78<>0,(C99*C93-C100)/C78,0) -> 44985470.27
A103: L5 | B103: КФН | C103: =H84 -> 1
B104: I | C104: =H85 -> 1.266
B105: ПЗВ | C105: =H86 -> 1420.07
C106: Боржник | D106: Інші члени родини
B107: БВС | C107: =IF(C112<=4,VLOOKUP(C112,'Таблиця МП_БВС'!H:I,2,),IF(C112>4,'Таблиця МП_БВС'!$I$7+(C112-4)*C105,0)) -> 5120.17 | D107: =IF(D112<=4,VLOOKUP(D112,'Таблиця МП_БВС'!H:I,2,),IF(D112>4,'Таблиця МП_БВС'!$I$7+(D112-4)*C105,0)) -> 5120.17
B108: МП1 | C108: =IFERROR(VLOOKUP(C20,'Таблиця МП_БВС'!$B:$E,4,),1.33) -> 1.33 | D108: =IFERROR(VLOOKUP(D20,'Таблиця МП_БВС'!$B:$E,4,),1) -> 1
B109: МП2 | C109: =IFERROR(VLOOKUP(C21,'Таблиця МП_БВС'!$B:$E,4,),1.33) -> 1.33 | D109: =IFERROR(VLOOKUP(D21,'Таблиця МП_БВС'!$B:$E,4,),1) -> 1
B110: МП3 | C110: =IFERROR(VLOOKUP(C22,'Таблиця МП_БВС'!$B:$E,4,),1.33) -> 1.33 | D110: =IFERROR(VLOOKUP(C22,'Таблиця МП_БВС'!$B:$E,4,),1) -> 1
B111: МП | C111: =IF(C1="Автокредит",MAX(C108,C109),MAX(C108,C109,C110)) -> 1.33 | D111: =MAX(D108,D109,D110) -> 1
B112: m | C112: =1+IF(OR(H18="одружений(на)",H18="не зареєстрований шлюб"),1,0)+H19 -> 1 | D112: =1+IF(OR(I18="одружений(на)",I18="не зареєстрований шлюб"),1,0)+I19 -> 1
B113: ФВ | C113: =MAX(C19,C107*C111*$C$104) -> 8621.239843 | D113: =IF(C9="Так",MAX(D19,D107*D111*$C$104),0) -> 0
B114: L5 | C114: =IF(C78<>0,(C103*C93-C100-C113-D113)/C78,0) -> 68837818.07
A116: L6 | B116: не застосовується
A118: L7 | B118: МЛскз | C118: =H87 -> 4000000
B119: ЗКЗ | C119: =C63+C64+C65+C66 -> 0
B120: L7 | C120: =C118-C119 -> 4000000
A122: L8 | B122: ММСК | C122: =$H$91 -> 4000000
B124: L8 | C124: =IF(C123+H5*31<=C122,C80,0) -> 4000000
A126: L9 | B126: L9 | C126: =IF(C13=0,C3-C4+SUMIF(C10:C12,"Так",D10:D12),C13) -> 100000
A128: L10 | B128: не застосовується
A129: L11 | B129: не застосовується
A130: L12 | B130: не застосовується
A132: L13 | B132: LTV | C132: =H88 -> 0.5
B133: L13 | C133: =IF(C5>0,C132*C5,0) -> 2500000
B135: Доступна сума кредиту L | C135: =ROUNDDOWN(MAX(MIN(C82,C97,C101,C114,C120,C124,C126,C133),0)*H89,-2) -> 100000
B138: Розрахунок класу
A139: макс міс платіж | B139: ММП | C139: =IF(H3 = "класика",C135*C77,IF(AND(C1="Автокредит",H3 = "ануїтет"),ROUND(Ануїтетна_графік_Авто!C33,2),ROUND(Ануїтетна_графік_Іпотека!C33,2))) -> 21940
A140: витрати на проживання | B140: ФВкпп | C140: =IFERROR(MAX(C19,'Таблиця МП_БВС'!I4*MAX('Таблиця МП_БВС'!$E$3:$E$47)*H85),0) -> 8621.239843
A141: сер сук чистий дохід | B141: СДР | C141: =MAX(C92-C140-C54-C55,0) -> 1601378.76
A142: коеф платоспром | B142: КПП | C142: =IF(C92=0,0,C92/(C140+C54+C55+C139)) -> 52.68110876
A143: коеф витрат на обсл боргу | B143: КВБ | C143: =IF(C92=0,0,(C139+C54+C55)/C92) -> 0.01362732919
A144: коеф забезп | B144: КЗ | C144: =IF(C5=0,0,C135*(1+H6/100*31/360)/C5) -> 0.02024093889
A145: динаміка доходів від підприємницької діяльності | B145: Дмин | C145: =IF(C58="I",C59,C59/4) -> 0
B146: Дпоточ | C146: =IF(C58="I",C60, IF(C58="II",C60, IF(C58="III",C60/2, IF(C58="IV",C60/3,0)))) -> 0 | D146: Дмин-1
B147: Д | C147: =IF(OR(C145=0,C146=0),"Позич не здійснює п.д.",IF(C58="I",(C145/C146-1)*100%,(C146/C145-1)*100%)) -> Позич не здійснює п.д.
B149: Кількісні
A150: 1 | B150: КПП | C150: =IF(C142<=0.5,0,IF(C142<=1,600,IF(C142<=1.05,1000,IF(C142<=1.1,1200,IF(C142<=1.15,1400,1500))))) -> 1500
A151: 2 | B151: КЗ | C151: =IF(C144<0.5,1250,IF(C144<0.7,1000,IF(C144<0.8,750,IF(C144<1,500,IF(C144<1.3,250,0))))) -> 1250
A152: 3 | B152: КВБ | C152: =IF(C143<0.85,1000,IF(C143<0.9,800,IF(C143<0.95,600,IF(C143<1,400,200)))) -> 1000
A153: 4 | B153: СЧД | C153: =IF(C141>=C139,500,0) -> 500
B154: Якісні
A155: 5 | B155: Трудовий стаж за основним місцем праці | C155: =IF(C24<=35,84,IF(C24<=83,87,IF(C24<=195,92,98))) -> 84
A156: 6 | B156: Майновий стан | C156: =SUM(C157:C160) -> 87
B157: 1) | C157: =IF(AND(H23="так",H24="так",H25="ні",H26="ні",H27="ні"),81, IF(AND(H23="так",H24="так",H25="ні",H26="ні",H27="так"),81, IF(AND(H23="так",H24="ні",H25="ні",H26="ні",H27="так"),81, IF(AND(H23="так",H24="ні",H25="так",H26="ні",H27="ні"),81, IF(AND(H23="так",H24="так",H25="ні",H26="так",H27="ні"),81, IF(AND(H23="ні",H24="так",H25="ні",H26="так",H27="ні"),81, IF(AND(H23="ні",H24="так",H25="так",H26="так",H27="ні"),81, IF(AND(H23="ні",H24="так",H25="ні",H26="так",H27="так"),81,0)))))))) -> 0
B158: 2) | C158: =IF(AND(H23="так",H24="так",H25="так",H26="ні",H27="ні"),90, IF(AND(H23="ні",H24="так",H25="ні",H26="ні",H27="ні"),90, IF(AND(H23="так",H24="так",H25="так",H26="ні",H27="так"),90, IF(AND(H23="ні",H24="так",H25="ні",H26="ні",H27="так"),90, IF(AND(H23="ні",H24="ні",H25="так",H26="ні",H27="так"),90, IF(AND(H23="ні",H24="ні",H25="ні",H26="так",H27="ні"),90, IF(AND(H23="так",H24="ні",H25="так",H26="так",H27="так"),90,0))))))) -> 0
B159: 3) | C159: =IF(AND(H23="так",H24="ні",H25="ні",H26="ні",H27="ні"),87, IF(AND(H23="так",H24="так",H25="так",H26="так",H27="ні"),87, IF(AND(H23="так",H24="ні",H25="так",H26="так",H27="ні"),87, IF(AND(H23="так",H24="ні",H25="ні",H26="так",H27="так"),87, IF(AND(H23="ні",H24="ні",H25="так",H26="так",H27="ні"),87, IF(AND(H23="ні",H24="ні",H25="ні",H26="так",H27="так"),87, IF(AND(H23="так",H24="ні",H25="ні",H26="так",H27="ні"),87, IF(AND(H23="ні",H24="ні",H25="так",H26="ні",H27="ні"),87, IF(AND(H23="ні",H24="ні",H25="ні",H26="ні",H27="ні"),87, IF(AND(H23="",H24="",H25="",H26="",H27=""),87,0)))))))))) -> 87
B160: 4) | C160: =IF(AND(H23="так",H24="ні",H25="так",H26="ні",H27="так"),94, IF(AND(H23="ні",H24="так",H25="так",H26="ні",H27="ні"),94, IF(AND(H23="ні",H24="так",H25="так",H26="ні",H27="так"),94, IF(AND(H23="ні",H24="ні",H25="ні",H26="ні",H27="так"),94, IF(AND(H23="так",H24="так",H25="так",H26="так",H27="так"),94, IF(AND(H23="ні",H24="так",H25="так",H26="так",H27="так"),94, IF(AND(H23="ні",H24="ні",H25="так",H26="так",H27="так"),94,0))))))) -> 0
A161: 7 | B161: Вік | C161: =IF(DATEDIF(H20,TODAY(),"Y")<=25,87, IF(DATEDIF(H20,TODAY(),"Y")<=40,88, IF(DATEDIF(H20,TODAY(),"Y")<=48,89, IF(DATEDIF(H20,TODAY(),"Y")<=55,92,93)))) -> 88
A162: 8 | B162: Сімейний стан & Діти | C162: =SUM(C163:C165) -> 92
B163: 1) | C163: =IF(AND(H18="не одружений(на)",H19>0),92, IF(AND(H18="не одружений(на)",H19=0),92, IF(AND(H18="розлучений(на)",H19>0),92, IF(AND(H18="не зареєстрований шлюб",H19=0),92,0)))) -> 92
B164: 2) | C164: =IF(AND(H18="вдова/вдівець",H19=0),90, IF(AND(H18="одружений(на)",H19>0),90, IF(AND(H18="не зареєстрований шлюб",H19>0),90,0))) -> 0
B165: 3) | C165: =IF(AND(H18="вдова/вдівець",H19>0),88, IF(AND(H18="одружений(на)",H19=0),88, IF(AND(H18="розлучений(на)",H19=0),88,0))) -> 0
A166: 9 | B166: КД - кількість днів прострочки на момент розрахунку | C166: =IF(C25<=7,200,IF(C25<=30,100,IF(C25<=60,50,IF(C25<=90,25,0)))) -> 200
A167: 10 | B167: Динаміка доходів | C167: =IF(OR(C147>=10%,C147="Позич не здійснює п.д."),173, IF(AND(C147>=0%,C147<10%),100, IF(AND(C147>=-10%,C147<0%),20, IF(OR(AND(C145<=0,C146>0),AND(C146<0,C145>0)),50, IF(OR(C147<-10%,AND(C145<=0,C146<=0),AND(C145>0,C146<=0),AND(C146>0,C145<=0),AND(C146=0,C145>0),AND(C145=0,C146>0)),0,0))))) -> 173
A169: Інтегральна оцінка | B169: S | C169: =SUM(C150:C153)+MIN(0.3/0.7*SUM(C150:C153),C155+C156+C161+C162+C166+C167) -> 4974
B170: Показник 1 | C170: =IF(C169<1250,5,IF(C169<2000,4,IF(C169<3000,3,IF(C169<3500,2,1)))) -> 1
B171: Показник 2 | C171: =IF(C143<=0.5,1,IF(C143<=0.6,2,IF(C143<=0.7,3,IF(C143<=0.8,4,5)))) -> 1
B172: Показник 3 | C172: =IF(C25<=7,1,IF(C25<=30,2,IF(C25<=60,3,IF(C25<=90,4,5)))) -> 1
B174: Клас | C174: =IF(AND(H23="ні",H24="ні",H25="ні",H26="ні",H27="ні"),MAX(C170,C171,C172,2),MAX(C170,C171,C172)) -> 1

Sheet Ануїтетна_графік_Іпотека (hidden)
A1: Сума ануїтету | B1: =((E1*POWER(1+(E2/12),E3)*(E2/12)))/(POWER(1+(E2/12),E3)-1) -> 116583.3333 | C1: =PMT(E2/12,E3,-E1) -> 116583.3333 | D1: Сума кредиту | E1: ='Платоспроможність боржника'!C135 -> 100000 | H1: Дата формування: | J1: =TODAY() -> 45824 | O1: ІПОТЕКА
A2: Процентний платіж | B2: =E1*(E2/12) -> 116583.3333 | C2: =IPMT(E2/12,1,E3,-(E1)) -> 116583.3333 | D2: Ставка кредиту | E2: ='Платоспроможність боржника'!H6 -> 13.99 | F2: Відсоткові ставки на різні періоди | G2: Дата сплати | H2: Графік погашення кредиту
A3: Платіж по основній сумі | B3: =B1-B2 -> 0 | C3: =PPMT(E2/12,1,E3,-E1) -> 8.494434292e-16 | D3: Строк кредиту | E3: ='Платоспроможність боржника'!H5 -> 60 | H3: № платежу | I3: Розмір ануїтету | J3: Погашення суми кредиту | K3: Сплата відсотків | L3: Сплата щомісячної комісії | M3: Всього платежів | O3: Залишок заборгованості
A4: Дата розрахунку | C4: =TODAY() -> 45824 | D4: Комісія за управління | E4: ='Платоспроможність боржника'!H4/100*E1 -> 0 | F4: % | H4: 0 | I4: =IF($E$5="EUR","Євро",IF($E$5="USD","дол. США","грн.")) -> грн. | J4: =IF($E$5="EUR","Євро",IF($E$5="USD","дол. США","грн.")) -> грн. | K4: =IF($E$5="EUR","Євро",IF($E$5="USD","дол. США","грн.")) -> грн. | L4: грн. | M4: =IF($E$5="EUR","Євро",IF($E$5="USD","дол. США","грн.")) -> грн. | N4: грн. | O4: =E1 -> 100000
A5: Періодичність сплати (міс.) | B5: 1 | C5: 1 | D5: Валюта | E5: UAH | F5: =IF(G5="Всього:","",IF(AND(G5>$B$9,G5<=$B$10),$C$16,IF(AND(G5>$B$9,G5<=$B$11),$D$16,IF(AND(G5>$B$10,G5<=$B$14),$E$16,$B$16)))) -> 13.99 | G5: =IF(AND(DAY(C4)<=15,$B$7>DAY(C4)),DATE(YEAR(C4),MONTH(C4),IF($B$7<>"",DAY(IF($B$7>DAY(EOMONTH(C4,0)),EOMONTH(C4,0),$B$7)),DAY(1))),DATE(YEAR(C4),MONTH(C4)+1,IF($B$7<>"",DAY(IF($B$7>DAY(EOMONTH(C4,1)),EOMONTH(C4,1),$B$7)),DAY(1)))) -> 45839 | H5: =IF(H4>$E$8,"",H4+1) -> 1 | I5: =IF($G5="Всього:",SUM($I$4:I4),IF(AND(DAY($C$4)>=15,H5=1),K5+L5,$C$32)) -> 582.9166667 | J5: =IF($G5="Всього:",SUM($J$4:J4),IF(DAY(C4)>15,0,IF(I5-SUM(K5:L5)<0,0,I5-SUM(K5:L5)))) -> 0 | K5: =$E$1*F5*(G5-$C$4)/36000 -> 582.9166667 | L5: =$E$4 -> 0 | M5: =IF($E$5="UAH",J5+L5+K5,J5+K5) -> 582.9166667 | N5: =IF($E$5="UAH","",L5) ->  | O5: =O4-J5 -> 100000
A6: Сума ануїтету (грн.) | C6: =IF(E5="EUR",C1*E7,IF(E5="USD",C1*E6,C1)) -> 116583.3333 | F6: =IF(G6="Всього:","",IF(AND(G6>$B$9,G6<=$B$10),$C$16,IF(AND(G6>$B$9,G6<=$B$11),$D$16,IF(AND(G6>$B$10,G6<=$B$14),$E$16,$B$16)))) -> 13.99 | G6: =IF(H5=$E$8,"Всього:",IF($E$3+1=H6,$B$14,DATE(YEAR(G5),MONTH(G5)+1,IF($B$7<>"",DAY(IF($B$7>DAY(EOMONTH(G5,1)),EOMONTH(G5,1),$B$7)),DAY(1))))) -> 45870 | H6: =IF(H5>$E$8,"",H5+1) -> 2 | I6: =IF($G6="Всього:",SUM($I$4:I5),IF(AND(DAY($C$4)>=15,H6=1),K6+L6,$C$32)) -> 3804 | J6: =IF($G6="Всього:",SUM($J$4:J5),IF(I6-SUM(K6:L6)<0,0,I6-SUM(K6:L6))) -> 2599.305556 | K6: =IF(G6="Всього:",SUM($K$5:K5),IF(F6<>F5,(F6*O5/36000*(G6-CONCATENATE(DAY($C$4),".",MONTH(G5),".",YEAR(G5)))+(F5*O5/36000*(CONCATENATE(DAY($C$4),".",MONTH(G5),".",YEAR(G5))-G5))),F6*O5/36000*(G6-G5))) -> 1204.694444 | L6: =IF(G6="Всього:",SUM($L$5:L5),$E$4) -> 0 | M6: =IF(G6="Всього:",SUM($M$5:M5),IF($E$5="UAH",J6+L6+K6,J6+K6)) -> 3804 | N6: =IF(G6="Всього:",SUM($N$4:N5),IF($E$5="UAH","",L6)) ->  | O6: 97400.69444
A7: День оплати | B7: 1 | F7: 13.99 | G7: =IF(H6=$E$8,"Всього:",IF($E$3+1=H7,$B$14,DATE(YEAR(G6),MONTH(G6)+1,IF($B$7<>"",DAY(IF($B$7>DAY(EOMONTH(G6,1)),EOMONTH(G6,1),$B$7)),DAY(1))))) -> 45901 | H7: 3 | I7: =IF($G7="Всього:",SUM($I$4:I6),IF(AND(DAY($C$4)>=15,H7=1),K7+L7,$C$32)) -> 3804 | J7: =IF($G7="Всього:",SUM($J$4:J6),IF(I7-SUM(K7:L7)<0,0,I7-SUM(K7:L7))) -> 2630.619245 | K7: =IF(G7="Всього:",SUM($K$5:K6),IF(F7<>F6,(F7*O6/36000*(G7-CONCATENATE(DAY($C$4),".",MONTH(G6),".",YEAR(G6)))+(F6*O6/36000*(CONCATENATE(DAY($C$4),".",MONTH(G6),".",YEAR(G6))-G6))),F7*O6/36000*(G7-G6))) -> 1173.380755 | L7: =IF(G7="Всього:",SUM($L$5:L6),$E$4) -> 0 | M7: =IF(G7="Всього:",SUM($M$5:M6),IF($E$5="UAH",J7+L7+K7,J7+K7)) -> 3804 | N7: =IF(G7="Всього:",SUM($N$4:N6),IF($E$5="UAH","",L7)) ->  | O7: 94770.0752
A8: Дата початку дії ставки 1 | B8: =C4 -> 45824 | D8: Строк кредиту після 15 числа | E8: =IF(DAY(C4)>=15,E3+1,E3+1) -> 61 | F8: 13.99 | G8: 45931 | H8: 4 | I8: =IF($G8="Всього:",SUM($I$4:I7),IF(AND(DAY($C$4)>=15,H8=1),K8+L8,$C$32)) -> 3804 | J8: =IF($G8="Всього:",SUM($J$4:J7),IF(I8-SUM(K8:L8)<0,0,I8-SUM(K8:L8))) -> 2699.138873 | K8: =IF(G8="Всього:",SUM($K$5:K7),IF(F8<>F7,(F8*O7/36000*(G8-CONCATENATE(DAY($C$4),".",MONTH(G7),".",YEAR(G7)))+(F7*O7/36000*(CONCATENATE(DAY($C$4),".",MONTH(G7),".",YEAR(G7))-G7))),F8*O7/36000*(G8-G7))) -> 1104.861127 | L8: =IF(G8="Всього:",SUM($L$5:L7),$E$4) -> 0 | M8: =IF(G8="Всього:",SUM($M$5:M7),IF($E$5="UAH",J8+L8+K8,J8+K8)) -> 3804 | N8: =IF(G8="Всього:",SUM($N$4:N7),IF($E$5="UAH","",L8)) ->  | O8: 92070.93633
A9: Дата початку дії ставки 2 | B9: =IF('Платоспроможність боржника'!H7="",B14,EDATE($C$4,'Платоспроможність боржника'!$H$7)) -> 47649 | F9: 13.99 | G9: 45962 | H9: 5 | I9: =IF($G9="Всього:",SUM($I$4:I8),IF(AND(DAY($C$4)>=15,H9=1),K9+L9,$C$32)) -> 3804 | J9: =IF($G9="Всього:",SUM($J$4:J8),IF(I9-SUM(K9:L9)<0,0,I9-SUM(K9:L9))) -> 2694.826545 | K9: =IF(G9="Всього:",SUM($K$5:K8),IF(F9<>F8,(F9*O8/36000*(G9-CONCATENATE(DAY($C$4),".",MONTH(G8),".",YEAR(G8)))+(F8*O8/36000*(CONCATENATE(DAY($C$4),".",MONTH(G8),".",YEAR(G8))-G8))),F9*O8/36000*(G9-G8))) -> 1109.173455 | L9: =IF(G9="Всього:",SUM($L$5:L8),$E$4) -> 0 | M9: =IF(G9="Всього:",SUM($M$5:M8),IF($E$5="UAH",J9+L9+K9,J9+K9)) -> 3804 | N9: =IF(G9="Всього:",SUM($N$4:N8),IF($E$5="UAH","",L9)) ->  | O9: 89376.10978
A10: Дата початку дії ставки 3 | B10: =IF('Платоспроможність боржника'!I7="",B14,EDATE($C$4,'Платоспроможність боржника'!$H$7+'Платоспроможність боржника'!$I$7)) -> 47649 | F10: 13.99 | G10: 45992 | H10: 6 | I10: =IF($G10="Всього:",SUM($I$4:I9),IF(AND(DAY($C$4)>=15,H10=1),K10+L10,$C$32)) -> 3804 | J10: =IF($G10="Всього:",SUM($J$4:J9),IF(I10-SUM(K10:L10)<0,0,I10-SUM(K10:L10))) -> 2762.02352 | K10: =IF(G10="Всього:",SUM($K$5:K9),IF(F10<>F9,(F10*O9/36000*(G10-CONCATENATE(DAY($C$4),".",MONTH(G9),".",YEAR(G9)))+(F9*O9/36000*(CONCATENATE(DAY($C$4),".",MONTH(G9),".",YEAR(G9))-G9))),F10*O9/36000*(G10-G9))) -> 1041.97648 | L10: =IF(G10="Всього:",SUM($L$5:L9),$E$4) -> 0 | M10: =IF(G10="Всього:",SUM($M$5:M9),IF($E$5="UAH",J10+L10+K10,J10+K10)) -> 3804 | N10: =IF(G10="Всього:",SUM($N$4:N9),IF($E$5="UAH","",L10)) ->  | O10: 86614.08626
A11: Дата початку дії ставки 4 | B11: =IF('Платоспроможність боржника'!J7="",B14,EDATE($C$4,'Платоспроможність боржника'!$H$7+'Платоспроможність боржника'!$I$7+'Платоспроможність боржника'!$J$7)) -> 47649 | F11: 13.99 | G11: 46023 | H11: 7 | I11: =IF($G11="Всього:",SUM($I$4:I10),IF(AND(DAY($C$4)>=15,H11=1),K11+L11,$C$32)) -> 3804 | J11: =IF($G11="Всього:",SUM($J$4:J10),IF(I11-SUM(K11:L11)<0,0,I11-SUM(K11:L11))) -> 2760.564915 | K11: =IF(G11="Всього:",SUM($K$5:K10),IF(F11<>F10,(F11*O10/36000*(G11-CONCATENATE(DAY($C$4),".",MONTH(G10),".",YEAR(G10)))+(F10*O10/36000*(CONCATENATE(DAY($C$4),".",MONTH(G10),".",YEAR(G10))-G10))),F11*O10/36000*(G11-G10))) -> 1043.435085 | L11: =IF(G11="Всього:",SUM($L$5:L10),$E$4) -> 0 | M11: =IF(G11="Всього:",SUM($M$5:M10),IF($E$5="UAH",J11+L11+K11,J11+K11)) -> 3804 | N11: =IF(G11="Всього:",SUM($N$4:N10),IF($E$5="UAH","",L11)) ->  | O11: 83853.52135
F12: 13.99 | G12: 46054 | H12: 8 | I12: =IF($G12="Всього:",SUM($I$4:I11),IF(AND(DAY($C$4)>=15,H12=1),K12+L12,$C$32)) -> 3804 | J12: =IF($G12="Всього:",SUM($J$4:J11),IF(I12-SUM(K12:L12)<0,0,I12-SUM(K12:L12))) -> 2793.821287 | K12: =IF(G12="Всього:",SUM($K$5:K11),IF(F12<>F11,(F12*O11/36000*(G12-CONCATENATE(DAY($C$4),".",MONTH(G11),".",YEAR(G11)))+(F11*O11/36000*(CONCATENATE(DAY($C$4),".",MONTH(G11),".",YEAR(G11))-G11))),F12*O11/36000*(G12-G11))) -> 1010.178713 | L12: =IF(G12="Всього:",SUM($L$5:L11),$E$4) -> 0 | M12: =IF(G12="Всього:",SUM($M$5:M11),IF($E$5="UAH",J12+L12+K12,J12+K12)) -> 3804 | N12: =IF(G12="Всього:",SUM($N$4:N11),IF($E$5="UAH","",L12)) ->  | O12: 81059.70006
F13: 13.99 | G13: 46082 | H13: 9 | I13: =IF($G13="Всього:",SUM($I$4:I12),IF(AND(DAY($C$4)>=15,H13=1),K13+L13,$C$32)) -> 3804 | J13: =IF($G13="Всього:",SUM($J$4:J12),IF(I13-SUM(K13:L13)<0,0,I13-SUM(K13:L13))) -> 2921.980397 | K13: =IF(G13="Всього:",SUM($K$5:K12),IF(F13<>F12,(F13*O12/36000*(G13-CONCATENATE(DAY($C$4),".",MONTH(G12),".",YEAR(G12)))+(F12*O12/36000*(CONCATENATE(DAY($C$4),".",MONTH(G12),".",YEAR(G12))-G12))),F13*O12/36000*(G13-G12))) -> 882.019603 | L13: =IF(G13="Всього:",SUM($L$5:L12),$E$4) -> 0 | M13: =IF(G13="Всього:",SUM($M$5:M12),IF($E$5="UAH",J13+L13+K13,J13+K13)) -> 3804 | N13: =IF(G13="Всього:",SUM($N$4:N12),IF($E$5="UAH","",L13)) ->  | O13: 78137.71966
A14: Дата погашення кредиту | B14: =EDATE($C$4,$E$3)-1 -> 47649 | F14: 13.99 | G14: 46113 | H14: 10 | I14: =IF($G14="Всього:",SUM($I$4:I13),IF(AND(DAY($C$4)>=15,H14=1),K14+L14,$C$32)) -> 3804 | J14: =IF($G14="Всього:",SUM($J$4:J13),IF(I14-SUM(K14:L14)<0,0,I14-SUM(K14:L14))) -> 2862.679232 | K14: =IF(G14="Всього:",SUM($K$5:K13),IF(F14<>F13,(F14*O13/36000*(G14-CONCATENATE(DAY($C$4),".",MONTH(G13),".",YEAR(G13)))+(F13*O13/36000*(CONCATENATE(DAY($C$4),".",MONTH(G13),".",YEAR(G13))-G13))),F14*O13/36000*(G14-G13))) -> 941.3207678 | L14: =IF(G14="Всього:",SUM($L$5:L13),$E$4) -> 0 | M14: =IF(G14="Всього:",SUM($M$5:M13),IF($E$5="UAH",J14+L14+K14,J14+K14)) -> 3804 | N14: =IF(G14="Всього:",SUM($N$4:N13),IF($E$5="UAH","",L14)) ->  | O14: 75275.04043
F15: 13.99 | G15: 46143 | H15: 11 | I15: =IF($G15="Всього:",SUM($I$4:I14),IF(AND(DAY($C$4)>=15,H15=1),K15+L15,$C$32)) -> 3804 | J15: =IF($G15="Всього:",SUM($J$4:J14),IF(I15-SUM(K15:L15)<0,0,I15-SUM(K15:L15))) -> 2926.418487 | K15: =IF(G15="Всього:",SUM($K$5:K14),IF(F15<>F14,(F15*O14/36000*(G15-CONCATENATE(DAY($C$4),".",MONTH(G14),".",YEAR(G14)))+(F14*O14/36000*(CONCATENATE(DAY($C$4),".",MONTH(G14),".",YEAR(G14))-G14))),F15*O14/36000*(G15-G14))) -> 877.581513 | L15: =IF(G15="Всього:",SUM($L$5:L14),$E$4) -> 0 | M15: =IF(G15="Всього:",SUM($M$5:M14),IF($E$5="UAH",J15+L15+K15,J15+K15)) -> 3804 | N15: =IF(G15="Всього:",SUM($N$4:N14),IF($E$5="UAH","",L15)) ->  | O15: 72348.62194
A16: % ставки | B16: =IF(AND('Платоспроможність боржника'!H8="Змінна",'Платоспроможність боржника'!$H$5<=24),'Платоспроможність боржника'!H6+0.5,IF(AND('Платоспроможність боржника'!H8="Змінна",'Платоспроможність боржника'!$H$5>24,'Платоспроможність боржника'!$H$5<=60),'Платоспроможність боржника'!H6+1,IF(AND('Платоспроможність боржника'!H8="Змінна",'Платоспроможність боржника'!$H$5>60),'Платоспроможність боржника'!H6+2.5,'Платоспроможність боржника'!H6))) -> 13.99 | C16: =IF(AND('Платоспроможність боржника'!I8="Змінна",'Платоспроможність боржника'!$H$5<=24),'Платоспроможність боржника'!I6+0.5,IF(AND('Платоспроможність боржника'!I8="Змінна",'Платоспроможність боржника'!$H$5>24,'Платоспроможність боржника'!$H$5<=60),'Платоспроможність боржника'!I6+1,IF(AND('Платоспроможність боржника'!I8="Змінна",'Платоспроможність боржника'!$H$5>60),'Платоспроможність боржника'!I6+2.5,'Платоспроможність боржника'!I6))) -> 0 | D16: =IF(AND('Платоспроможність боржника'!J8="Змінна",'Платоспроможність боржника'!$H$5<=24),'Платоспроможність боржника'!J6+0.5,IF(AND('Платоспроможність боржника'!J8="Змінна",'Платоспроможність боржника'!$H$5>24,'Платоспроможність боржника'!$H$5<=60),'Платоспроможність боржника'!J6+1,IF(AND('Платоспроможність боржника'!J8="Змінна",'Платоспроможність боржника'!$H$5>60),'Платоспроможність боржника'!J6+2.5,'Платоспроможність боржника'!J6))) -> 0 | E16: =IF(AND('Платоспроможність боржника'!K8="Змінна",'Платоспроможність боржника'!$H$5<=24),'Платоспроможність боржника'!K6+0.5,IF(AND('Платоспроможність боржника'!K8="Змінна",'Платоспроможність боржника'!$H$5>24,'Платоспроможність боржника'!$H$5<=60),'Платоспроможність боржника'!K6+1,IF(AND('Платоспроможність боржника'!K8="Змінна",'Платоспроможність боржника'!$H$5>60),'Платоспроможність боржника'!K6+2.5,'Платоспроможність боржника'!K6))) -> 0 | F16: 13.99 | G16: 46174 | H16: 12 | I16: =IF($G16="Всього:",SUM($I$4:I15),IF(AND(DAY($C$4)>=15,H16=1),K16+L16,$C$32)) -> 3804 | J16: =IF($G16="Всього:",SUM($J$4:J15),IF(I16-SUM(K16:L16)<0,0,I16-SUM(K16:L16))) -> 2932.420171 | K16: =IF(G16="Всього:",SUM($K$5:K15),IF(F16<>F15,(F16*O15/36000*(G16-CONCATENATE(DAY($C$4),".",MONTH(G15),".",YEAR(G15)))+(F15*O15/36000*(CONCATENATE(DAY($C$4),".",MONTH(G15),".",YEAR(G15))-G15))),F16*O15/36000*(G16-G15))) -> 871.5798292 | L16: =IF(G16="Всього:",SUM($L$5:L15),$E$4) -> 0 | M16: =IF(G16="Всього:",SUM($M$5:M15),IF($E$5="UAH",J16+L16+K16,J16+K16)) -> 3804 | N16: =IF(G16="Всього:",SUM($N$4:N15),IF($E$5="UAH","",L16)) ->  | O16: 69416.20177
F17: 13.99 | G17: 46204 | H17: 13 | I17: =IF($G17="Всього:",SUM($I$4:I16),IF(AND(DAY($C$4)>=15,H17=1),K17+L17,$C$32)) -> 3804 | J17: =IF($G17="Всього:",SUM($J$4:J16),IF(I17-SUM(K17:L17)<0,0,I17-SUM(K17:L17))) -> 2994.722781 | K17: =IF(G17="Всього:",SUM($K$5:K16),IF(F17<>F16,(F17*O16/36000*(G17-CONCATENATE(DAY($C$4),".",MONTH(G16),".",YEAR(G16)))+(F16*O16/36000*(CONCATENATE(DAY($C$4),".",MONTH(G16),".",YEAR(G16))-G16))),F17*O16/36000*(G17-G16))) -> 809.277219 | L17: =IF(G17="Всього:",SUM($L$5:L16),$E$4) -> 0 | M17: =IF(G17="Всього:",SUM($M$5:M16),IF($E$5="UAH",J17+L17+K17,J17+K17)) -> 3804 | N17: =IF(G17="Всього:",SUM($N$4:N16),IF($E$5="UAH","",L17)) ->  | O17: 66421.47899
F18: 13.99 | G18: 46235 | H18: 14 | I18: =IF($G18="Всього:",SUM($I$4:I17),IF(AND(DAY($C$4)>=15,H18=1),K18+L18,$C$32)) -> 3804 | J18: =IF($G18="Всього:",SUM($J$4:J17),IF(I18-SUM(K18:L18)<0,0,I18-SUM(K18:L18))) -> 3003.824133 | K18: =IF(G18="Всього:",SUM($K$5:K17),IF(F18<>F17,(F18*O17/36000*(G18-CONCATENATE(DAY($C$4),".",MONTH(G17),".",YEAR(G17)))+(F17*O17/36000*(CONCATENATE(DAY($C$4),".",MONTH(G17),".",YEAR(G17))-G17))),F18*O17/36000*(G18-G17))) -> 800.1758673 | L18: =IF(G18="Всього:",SUM($L$5:L17),$E$4) -> 0 | M18: =IF(G18="Всього:",SUM($M$5:M17),IF($E$5="UAH",J18+L18+K18,J18+K18)) -> 3804 | N18: =IF(G18="Всього:",SUM($N$4:N17),IF($E$5="UAH","",L18)) ->  | O18: 63417.65486
F19: 13.99 | G19: 46266 | H19: 15 | I19: =IF($G19="Всього:",SUM($I$4:I18),IF(AND(DAY($C$4)>=15,H19=1),K19+L19,$C$32)) -> 3804 | J19: =IF($G19="Всього:",SUM($J$4:J18),IF(I19-SUM(K19:L19)<0,0,I19-SUM(K19:L19))) -> 3040.011035 | K19: =IF(G19="Всього:",SUM($K$5:K18),IF(F19<>F18,(F19*O18/36000*(G19-CONCATENATE(DAY($C$4),".",MONTH(G18),".",YEAR(G18)))+(F18*O18/36000*(CONCATENATE(DAY($C$4),".",MONTH(G18),".",YEAR(G18))-G18))),F19*O18/36000*(G19-G18))) -> 763.9889649 | L19: =IF(G19="Всього:",SUM($L$5:L18),$E$4) -> 0 | M19: =IF(G19="Всього:",SUM($M$5:M18),IF($E$5="UAH",J19+L19+K19,J19+K19)) -> 3804 | N19: =IF(G19="Всього:",SUM($N$4:N18),IF($E$5="UAH","",L19)) ->  | O19: 60377.64382
F20: 13.99 | G20: 46296 | H20: 16 | I20: =IF($G20="Всього:",SUM($I$4:I19),IF(AND(DAY($C$4)>=15,H20=1),K20+L20,$C$32)) -> 3804 | J20: =IF($G20="Всього:",SUM($J$4:J19),IF(I20-SUM(K20:L20)<0,0,I20-SUM(K20:L20))) -> 3100.097302 | K20: =IF(G20="Всього:",SUM($K$5:K19),IF(F20<>F19,(F20*O19/36000*(G20-CONCATENATE(DAY($C$4),".",MONTH(G19),".",YEAR(G19)))+(F19*O19/36000*(CONCATENATE(DAY($C$4),".",MONTH(G19),".",YEAR(G19))-G19))),F20*O19/36000*(G20-G19))) -> 703.9026976 | L20: =IF(G20="Всього:",SUM($L$5:L19),$E$4) -> 0 | M20: =IF(G20="Всього:",SUM($M$5:M19),IF($E$5="UAH",J20+L20+K20,J20+K20)) -> 3804 | N20: =IF(G20="Всього:",SUM($N$4:N19),IF($E$5="UAH","",L20)) ->  | O20: 57277.54652
F21: 13.99 | G21: 46327 | H21: 17 | I21: =IF($G21="Всього:",SUM($I$4:I20),IF(AND(DAY($C$4)>=15,H21=1),K21+L21,$C$32)) -> 3804 | J21: =IF($G21="Всього:",SUM($J$4:J20),IF(I21-SUM(K21:L21)<0,0,I21-SUM(K21:L21))) -> 3113.980579 | K21: =IF(G21="Всього:",SUM($K$5:K20),IF(F21<>F20,(F21*O20/36000*(G21-CONCATENATE(DAY($C$4),".",MONTH(G20),".",YEAR(G20)))+(F20*O20/36000*(CONCATENATE(DAY($C$4),".",MONTH(G20),".",YEAR(G20))-G20))),F21*O20/36000*(G21-G20))) -> 690.0194209 | L21: =IF(G21="Всього:",SUM($L$5:L20),$E$4) -> 0 | M21: =IF(G21="Всього:",SUM($M$5:M20),IF($E$5="UAH",J21+L21+K21,J21+K21)) -> 3804 | N21: =IF(G21="Всього:",SUM($N$4:N20),IF($E$5="UAH","",L21)) ->  | O21: 54163.56594
F22: 13.99 | G22: 46357 | H22: 18 | I22: =IF($G22="Всього:",SUM($I$4:I21),IF(AND(DAY($C$4)>=15,H22=1),K22+L22,$C$32)) -> 3804 | J22: =IF($G22="Всього:",SUM($J$4:J21),IF(I22-SUM(K22:L22)<0,0,I22-SUM(K22:L22))) -> 3172.543094 | K22: =IF(G22="Всього:",SUM($K$5:K21),IF(F22<>F21,(F22*O21/36000*(G22-CONCATENATE(DAY($C$4),".",MONTH(G21),".",YEAR(G21)))+(F21*O21/36000*(CONCATENATE(DAY($C$4),".",MONTH(G21),".",YEAR(G21))-G21))),F22*O21/36000*(G22-G21))) -> 631.4569063 | L22: =IF(G22="Всього:",SUM($L$5:L21),$E$4) -> 0 | M22: =IF(G22="Всього:",SUM($M$5:M21),IF($E$5="UAH",J22+L22+K22,J22+K22)) -> 3804 | N22: =IF(G22="Всього:",SUM($N$4:N21),IF($E$5="UAH","",L22)) ->  | O22: 50991.02285
F23: 13.99 | G23: 46388 | H23: 19 | I23: =IF($G23="Всього:",SUM($I$4:I22),IF(AND(DAY($C$4)>=15,H23=1),K23+L23,$C$32)) -> 3804 | J23: =IF($G23="Всього:",SUM($J$4:J22),IF(I23-SUM(K23:L23)<0,0,I23-SUM(K23:L23))) -> 3189.713981 | K23: =IF(G23="Всього:",SUM($K$5:K22),IF(F23<>F22,(F23*O22/36000*(G23-CONCATENATE(DAY($C$4),".",MONTH(G22),".",YEAR(G22)))+(F22*O22/36000*(CONCATENATE(DAY($C$4),".",MONTH(G22),".",YEAR(G22))-G22))),F23*O22/36000*(G23-G22))) -> 614.2860194 | L23: =IF(G23="Всього:",SUM($L$5:L22),$E$4) -> 0 | M23: =IF(G23="Всього:",SUM($M$5:M22),IF($E$5="UAH",J23+L23+K23,J23+K23)) -> 3804 | N23: =IF(G23="Всього:",SUM($N$4:N22),IF($E$5="UAH","",L23)) ->  | O23: 47801.30887
F24: 13.99 | G24: 46419 | H24: 20 | I24: =IF($G24="Всього:",SUM($I$4:I23),IF(AND(DAY($C$4)>=15,H24=1),K24+L24,$C$32)) -> 3804 | J24: =IF($G24="Всього:",SUM($J$4:J23),IF(I24-SUM(K24:L24)<0,0,I24-SUM(K24:L24))) -> 3228.140288 | K24: =IF(G24="Всього:",SUM($K$5:K23),IF(F24<>F23,(F24*O23/36000*(G24-CONCATENATE(DAY($C$4),".",MONTH(G23),".",YEAR(G23)))+(F23*O23/36000*(CONCATENATE(DAY($C$4),".",MONTH(G23),".",YEAR(G23))-G23))),F24*O23/36000*(G24-G23))) -> 575.8597123 | L24: =IF(G24="Всього:",SUM($L$5:L23),$E$4) -> 0 | M24: =IF(G24="Всього:",SUM($M$5:M23),IF($E$5="UAH",J24+L24+K24,J24+K24)) -> 3804 | N24: =IF(G24="Всього:",SUM($N$4:N23),IF($E$5="UAH","",L24)) ->  | O24: 44573.16858
F25: 13.99 | G25: 46447 | H25: 21 | I25: =IF($G25="Всього:",SUM($I$4:I24),IF(AND(DAY($C$4)>=15,H25=1),K25+L25,$C$32)) -> 3804 | J25: =IF($G25="Всього:",SUM($J$4:J24),IF(I25-SUM(K25:L25)<0,0,I25-SUM(K25:L25))) -> 3318.9944 | K25: =IF(G25="Всього:",SUM($K$5:K24),IF(F25<>F24,(F25*O24/36000*(G25-CONCATENATE(DAY($C$4),".",MONTH(G24),".",YEAR(G24)))+(F24*O24/36000*(CONCATENATE(DAY($C$4),".",MONTH(G24),".",YEAR(G24))-G24))),F25*O24/36000*(G25-G24))) -> 485.0055999 | L25: =IF(G25="Всього:",SUM($L$5:L24),$E$4) -> 0 | M25: =IF(G25="Всього:",SUM($M$5:M24),IF($E$5="UAH",J25+L25+K25,J25+K25)) -> 3804 | N25: =IF(G25="Всього:",SUM($N$4:N24),IF($E$5="UAH","",L25)) ->  | O25: 41254.17418
F26: 13.99 | G26: 46478 | H26: 22 | I26: =IF($G26="Всього:",SUM($I$4:I25),IF(AND(DAY($C$4)>=15,H26=1),K26+L26,$C$32)) -> 3804 | J26: =IF($G26="Всього:",SUM($J$4:J25),IF(I26-SUM(K26:L26)<0,0,I26-SUM(K26:L26))) -> 3307.013256 | K26: =IF(G26="Всього:",SUM($K$5:K25),IF(F26<>F25,(F26*O25/36000*(G26-CONCATENATE(DAY($C$4),".",MONTH(G25),".",YEAR(G25)))+(F25*O25/36000*(CONCATENATE(DAY($C$4),".",MONTH(G25),".",YEAR(G25))-G25))),F26*O25/36000*(G26-G25))) -> 496.9867444 | L26: =IF(G26="Всього:",SUM($L$5:L25),$E$4) -> 0 | M26: =IF(G26="Всього:",SUM($M$5:M25),IF($E$5="UAH",J26+L26+K26,J26+K26)) -> 3804 | N26: =IF(G26="Всього:",SUM($N$4:N25),IF($E$5="UAH","",L26)) ->  | O26: 37947.16092
F27: 13.99 | G27: 46508 | H27: 23 | I27: =IF($G27="Всього:",SUM($I$4:I26),IF(AND(DAY($C$4)>=15,H27=1),K27+L27,$C$32)) -> 3804 | J27: =IF($G27="Всього:",SUM($J$4:J26),IF(I27-SUM(K27:L27)<0,0,I27-SUM(K27:L27))) -> 3361.599349 | K27: =IF(G27="Всього:",SUM($K$5:K26),IF(F27<>F26,(F27*O26/36000*(G27-CONCATENATE(DAY($C$4),".",MONTH(G26),".",YEAR(G26)))+(F26*O26/36000*(CONCATENATE(DAY($C$4),".",MONTH(G26),".",YEAR(G26))-G26))),F27*O26/36000*(G27-G26))) -> 442.4006511 | L27: =IF(G27="Всього:",SUM($L$5:L26),$E$4) -> 0 | M27: =IF(G27="Всього:",SUM($M$5:M26),IF($E$5="UAH",J27+L27+K27,J27+K27)) -> 3804 | N27: =IF(G27="Всього:",SUM($N$4:N26),IF($E$5="UAH","",L27)) ->  | O27: 34585.56158
F28: 13.99 | G28: 46539 | H28: 24 | I28: =IF($G28="Всього:",SUM($I$4:I27),IF(AND(DAY($C$4)>=15,H28=1),K28+L28,$C$32)) -> 3804 | J28: =IF($G28="Всього:",SUM($J$4:J27),IF(I28-SUM(K28:L28)<0,0,I28-SUM(K28:L28))) -> 3387.349661 | K28: =IF(G28="Всього:",SUM($K$5:K27),IF(F28<>F27,(F28*O27/36000*(G28-CONCATENATE(DAY($C$4),".",MONTH(G27),".",YEAR(G27)))+(F27*O27/36000*(CONCATENATE(DAY($C$4),".",MONTH(G27),".",YEAR(G27))-G27))),F28*O27/36000*(G28-G27))) -> 416.6503389 | L28: =IF(G28="Всього:",SUM($L$5:L27),$E$4) -> 0 | M28: =IF(G28="Всього:",SUM($M$5:M27),IF($E$5="UAH",J28+L28+K28,J28+K28)) -> 3804 | N28: =IF(G28="Всього:",SUM($N$4:N27),IF($E$5="UAH","",L28)) ->  | O28: 31198.21191
F29: 13.99 | G29: 46569 | H29: 25 | I29: =IF($G29="Всього:",SUM($I$4:I28),IF(AND(DAY($C$4)>=15,H29=1),K29+L29,$C$32)) -> 3804 | J29: =IF($G29="Всього:",SUM($J$4:J28),IF(I29-SUM(K29:L29)<0,0,I29-SUM(K29:L29))) -> 3440.280846 | K29: =IF(G29="Всього:",SUM($K$5:K28),IF(F29<>F28,(F29*O28/36000*(G29-CONCATENATE(DAY($C$4),".",MONTH(G28),".",YEAR(G28)))+(F28*O28/36000*(CONCATENATE(DAY($C$4),".",MONTH(G28),".",YEAR(G28))-G28))),F29*O28/36000*(G29-G28))) -> 363.7191539 | L29: =IF(G29="Всього:",SUM($L$5:L28),$E$4) -> 0 | M29: =IF(G29="Всього:",SUM($M$5:M28),IF($E$5="UAH",J29+L29+K29,J29+K29)) -> 3804 | N29: =IF(G29="Всього:",SUM($N$4:N28),IF($E$5="UAH","",L29)) ->  | O29: 27757.93107
F30: 13.99 | G30: 46600 | H30: 26 | I30: =IF($G30="Всього:",SUM($I$4:I29),IF(AND(DAY($C$4)>=15,H30=1),K30+L30,$C$32)) -> 3804 | J30: =IF($G30="Всього:",SUM($J$4:J29),IF(I30-SUM(K30:L30)<0,0,I30-SUM(K30:L30))) -> 3469.601747 | K30: =IF(G30="Всього:",SUM($K$5:K29),IF(F30<>F29,(F30*O29/36000*(G30-CONCATENATE(DAY($C$4),".",MONTH(G29),".",YEAR(G29)))+(F29*O29/36000*(CONCATENATE(DAY($C$4),".",MONTH(G29),".",YEAR(G29))-G29))),F30*O29/36000*(G30-G29))) -> 334.3982535 | L30: =IF(G30="Всього:",SUM($L$5:L29),$E$4) -> 0 | M30: =IF(G30="Всього:",SUM($M$5:M29),IF($E$5="UAH",J30+L30+K30,J30+K30)) -> 3804 | N30: =IF(G30="Всього:",SUM($N$4:N29),IF($E$5="UAH","",L30)) ->  | O30: 24288.32932
F31: 13.99 | G31: 46631 | H31: 27 | I31: =IF($G31="Всього:",SUM($I$4:I30),IF(AND(DAY($C$4)>=15,H31=1),K31+L31,$C$32)) -> 3804 | J31: =IF($G31="Всього:",SUM($J$4:J30),IF(I31-SUM(K31:L31)<0,0,I31-SUM(K31:L31))) -> 3511.399846 | K31: =IF(G31="Всього:",SUM($K$5:K30),IF(F31<>F30,(F31*O30/36000*(G31-CONCATENATE(DAY($C$4),".",MONTH(G30),".",YEAR(G30)))+(F30*O30/36000*(CONCATENATE(DAY($C$4),".",MONTH(G30),".",YEAR(G30))-G30))),F31*O30/36000*(G31-G30))) -> 292.600154 | L31: =IF(G31="Всього:",SUM($L$5:L30),$E$4) -> 0 | M31: =IF(G31="Всього:",SUM($M$5:M30),IF($E$5="UAH",J31+L31+K31,J31+K31)) -> 3804 | N31: =IF(G31="Всього:",SUM($N$4:N30),IF($E$5="UAH","",L31)) ->  | O31: 20776.92948
A32: min | B32: 3803.956754 | C32: 3804 | D32: Ануїтет | F32: 13.99 | G32: 46661 | H32: 28 | I32: =IF($G32="Всього:",SUM($I$4:I31),IF(AND(DAY($C$4)>=15,H32=1),K32+L32,$C$32)) -> 3804 | J32: =IF($G32="Всього:",SUM($J$4:J31),IF(I32-SUM(K32:L32)<0,0,I32-SUM(K32:L32))) -> 3561.775631 | K32: =IF(G32="Всього:",SUM($K$5:K31),IF(F32<>F31,(F32*O31/36000*(G32-CONCATENATE(DAY($C$4),".",MONTH(G31),".",YEAR(G31)))+(F31*O31/36000*(CONCATENATE(DAY($C$4),".",MONTH(G31),".",YEAR(G31))-G31))),F32*O31/36000*(G32-G31))) -> 242.2243695 | L32: =IF(G32="Всього:",SUM($L$5:L31),$E$4) -> 0 | M32: =IF(G32="Всього:",SUM($M$5:M31),IF($E$5="UAH",J32+L32+K32,J32+K32)) -> 3804 | N32: =IF(G32="Всього:",SUM($N$4:N31),IF($E$5="UAH","",L32)) ->  | O32: 17215.15384
A33: max | B33: 3803.957116 | C33: 3804 | D33: Максимальна сума | F33: 13.99 | G33: 46692 | H33: 29 | I33: =IF($G33="Всього:",SUM($I$4:I32),IF(AND(DAY($C$4)>=15,H33=1),K33+L33,$C$32)) -> 3804 | J33: =IF($G33="Всього:",SUM($J$4:J32),IF(I33-SUM(K33:L33)<0,0,I33-SUM(K33:L33))) -> 3596.609998 | K33: =IF(G33="Всього:",SUM($K$5:K32),IF(F33<>F32,(F33*O32/36000*(G33-CONCATENATE(DAY($C$4),".",MONTH(G32),".",YEAR(G32)))+(F32*O32/36000*(CONCATENATE(DAY($C$4),".",MONTH(G32),".",YEAR(G32))-G32))),F33*O32/36000*(G33-G32))) -> 207.390002 | L33: =IF(G33="Всього:",SUM($L$5:L32),$E$4) -> 0 | M33: =IF(G33="Всього:",SUM($M$5:M32),IF($E$5="UAH",J33+L33+K33,J33+K33)) -> 3804 | N33: =IF(G33="Всього:",SUM($N$4:N32),IF($E$5="UAH","",L33)) ->  | O33: 13618.54385
A34: Останній платіж | B34: 3795.215863 | F34: 13.99 | G34: 46722 | H34: 30 | I34: =IF($G34="Всього:",SUM($I$4:I33),IF(AND(DAY($C$4)>=15,H34=1),K34+L34,$C$32)) -> 3804 | J34: =IF($G34="Всього:",SUM($J$4:J33),IF(I34-SUM(K34:L34)<0,0,I34-SUM(K34:L34))) -> 3645.230476 | K34: =IF(G34="Всього:",SUM($K$5:K33),IF(F34<>F33,(F34*O33/36000*(G34-CONCATENATE(DAY($C$4),".",MONTH(G33),".",YEAR(G33)))+(F33*O33/36000*(CONCATENATE(DAY($C$4),".",MONTH(G33),".",YEAR(G33))-G33))),F34*O33/36000*(G34-G33))) -> 158.7695237 | L34: =IF(G34="Всього:",SUM($L$5:L33),$E$4) -> 0 | M34: =IF(G34="Всього:",SUM($M$5:M33),IF($E$5="UAH",J34+L34+K34,J34+K34)) -> 3804 | N34: =IF(G34="Всього:",SUM($N$4:N33),IF($E$5="UAH","",L34)) ->  | O34: 9973.31337
F35: 13.99 | G35: 46753 | H35: 31 | I35: =IF($G35="Всього:",SUM($I$4:I34),IF(AND(DAY($C$4)>=15,H35=1),K35+L35,$C$32)) -> 3804 | J35: =IF($G35="Всього:",SUM($J$4:J34),IF(I35-SUM(K35:L35)<0,0,I35-SUM(K35:L35))) -> 3683.852048 | K35: =IF(G35="Всього:",SUM($K$5:K34),IF(F35<>F34,(F35*O34/36000*(G35-CONCATENATE(DAY($C$4),".",MONTH(G34),".",YEAR(G34)))+(F34*O34/36000*(CONCATENATE(DAY($C$4),".",MONTH(G34),".",YEAR(G34))-G34))),F35*O34/36000*(G35-G34))) -> 120.1479521 | L35: =IF(G35="Всього:",SUM($L$5:L34),$E$4) -> 0 | M35: =IF(G35="Всього:",SUM($M$5:M34),IF($E$5="UAH",J35+L35+K35,J35+K35)) -> 3804 | N35: =IF(G35="Всього:",SUM($N$4:N34),IF($E$5="UAH","",L35)) ->  | O35: 6289.461323
F36: 13.99 | G36: 46784 | H36: 32 | I36: =IF($G36="Всього:",SUM($I$4:I35),IF(AND(DAY($C$4)>=15,H36=1),K36+L36,$C$32)) -> 3804 | J36: =IF($G36="Всього:",SUM($J$4:J35),IF(I36-SUM(K36:L36)<0,0,I36-SUM(K36:L36))) -> 3728.231209 | K36: =IF(G36="Всього:",SUM($K$5:K35),IF(F36<>F35,(F36*O35/36000*(G36-CONCATENATE(DAY($C$4),".",MONTH(G35),".",YEAR(G35)))+(F35*O35/36000*(CONCATENATE(DAY($C$4),".",MONTH(G35),".",YEAR(G35))-G35))),F36*O35/36000*(G36-G35))) -> 75.76879114 | L36: =IF(G36="Всього:",SUM($L$5:L35),$E$4) -> 0 | M36: =IF(G36="Всього:",SUM($M$5:M35),IF($E$5="UAH",J36+L36+K36,J36+K36)) -> 3804 | N36: =IF(G36="Всього:",SUM($N$4:N35),IF($E$5="UAH","",L36)) ->  | O36: 2561.230114
F37: 13.99 | G37: 46813 | H37: 33 | I37: =IF($G37="Всього:",SUM($I$4:I36),IF(AND(DAY($C$4)>=15,H37=1),K37+L37,$C$32)) -> 3804 | J37: =IF($G37="Всього:",SUM($J$4:J36),IF(I37-SUM(K37:L37)<0,0,I37-SUM(K37:L37))) -> 3775.135648 | K37: =IF(G37="Всього:",SUM($K$5:K36),IF(F37<>F36,(F37*O36/36000*(G37-CONCATENATE(DAY($C$4),".",MONTH(G36),".",YEAR(G36)))+(F36*O36/36000*(CONCATENATE(DAY($C$4),".",MONTH(G36),".",YEAR(G36))-G36))),F37*O36/36000*(G37-G36))) -> 28.86435193 | L37: =IF(G37="Всього:",SUM($L$5:L36),$E$4) -> 0 | M37: =IF(G37="Всього:",SUM($M$5:M36),IF($E$5="UAH",J37+L37+K37,J37+K37)) -> 3804 | N37: =IF(G37="Всього:",SUM($N$4:N36),IF($E$5="UAH","",L37)) ->  | O37: -1213.905534
F38: 13.99 | G38: 46844 | H38: 34 | I38: =IF($G38="Всього:",SUM($I$4:I37),IF(AND(DAY($C$4)>=15,H38=1),K38+L38,$C$32)) -> 3804 | J38: =IF($G38="Всього:",SUM($J$4:J37),IF(I38-SUM(K38:L38)<0,0,I38-SUM(K38:L38))) -> 3818.623853 | K38: =IF(G38="Всього:",SUM($K$5:K37),IF(F38<>F37,(F38*O37/36000*(G38-CONCATENATE(DAY($C$4),".",MONTH(G37),".",YEAR(G37)))+(F37*O37/36000*(CONCATENATE(DAY($C$4),".",MONTH(G37),".",YEAR(G37))-G37))),F38*O37/36000*(G38-G37))) -> -14.62385253 | L38: =IF(G38="Всього:",SUM($L$5:L37),$E$4) -> 0 | M38: =IF(G38="Всього:",SUM($M$5:M37),IF($E$5="UAH",J38+L38+K38,J38+K38)) -> 3804 | N38: =IF(G38="Всього:",SUM($N$4:N37),IF($E$5="UAH","",L38)) ->  | O38: -5032.529387
F39: 13.99 | G39: 46874 | H39: 35 | I39: =IF($G39="Всього:",SUM($I$4:I38),IF(AND(DAY($C$4)>=15,H39=1),K39+L39,$C$32)) -> 3804 | J39: =IF($G39="Всього:",SUM($J$4:J38),IF(I39-SUM(K39:L39)<0,0,I39-SUM(K39:L39))) -> 3862.670905 | K39: =IF(G39="Всього:",SUM($K$5:K38),IF(F39<>F38,(F39*O38/36000*(G39-CONCATENATE(DAY($C$4),".",MONTH(G38),".",YEAR(G38)))+(F38*O38/36000*(CONCATENATE(DAY($C$4),".",MONTH(G38),".",YEAR(G38))-G38))),F39*O38/36000*(G39-G38))) -> -58.6709051 | L39: =IF(G39="Всього:",SUM($L$5:L38),$E$4) -> 0 | M39: =IF(G39="Всього:",SUM($M$5:M38),IF($E$5="UAH",J39+L39+K39,J39+K39)) -> 3804 | N39: =IF(G39="Всього:",SUM($N$4:N38),IF($E$5="UAH","",L39)) ->  | O39: -8895.200292
F40: 13.99 | G40: 46905 | H40: 36 | I40: =IF($G40="Всього:",SUM($I$4:I39),IF(AND(DAY($C$4)>=15,H40=1),K40+L40,$C$32)) -> 3804 | J40: =IF($G40="Всього:",SUM($J$4:J39),IF(I40-SUM(K40:L40)<0,0,I40-SUM(K40:L40))) -> 3911.159984 | K40: =IF(G40="Всього:",SUM($K$5:K39),IF(F40<>F39,(F40*O39/36000*(G40-CONCATENATE(DAY($C$4),".",MONTH(G39),".",YEAR(G39)))+(F39*O39/36000*(CONCATENATE(DAY($C$4),".",MONTH(G39),".",YEAR(G39))-G39))),F40*O39/36000*(G40-G39))) -> -107.1599837 | L40: =IF(G40="Всього:",SUM($L$5:L39),$E$4) -> 0 | M40: =IF(G40="Всього:",SUM($M$5:M39),IF($E$5="UAH",J40+L40+K40,J40+K40)) -> 3804 | N40: =IF(G40="Всього:",SUM($N$4:N39),IF($E$5="UAH","",L40)) ->  | O40: -12806.36028
F41: 13.99 | G41: 46935 | H41: 37 | I41: =IF($G41="Всього:",SUM($I$4:I40),IF(AND(DAY($C$4)>=15,H41=1),K41+L41,$C$32)) -> 3804 | J41: =IF($G41="Всього:",SUM($J$4:J40),IF(I41-SUM(K41:L41)<0,0,I41-SUM(K41:L41))) -> 3953.300817 | K41: =IF(G41="Всього:",SUM($K$5:K40),IF(F41<>F40,(F41*O40/36000*(G41-CONCATENATE(DAY($C$4),".",MONTH(G40),".",YEAR(G40)))+(F40*O40/36000*(CONCATENATE(DAY($C$4),".",MONTH(G40),".",YEAR(G40))-G40))),F41*O40/36000*(G41-G40))) -> -149.3008169 | L41: =IF(G41="Всього:",SUM($L$5:L40),$E$4) -> 0 | M41: =IF(G41="Всього:",SUM($M$5:M40),IF($E$5="UAH",J41+L41+K41,J41+K41)) -> 3804 | N41: =IF(G41="Всього:",SUM($N$4:N40),IF($E$5="UAH","",L41)) ->  | O41: -16759.66109
F42: 13.99 | G42: 46966 | H42: 38 | I42: =IF($G42="Всього:",SUM($I$4:I41),IF(AND(DAY($C$4)>=15,H42=1),K42+L42,$C$32)) -> 3804 | J42: =IF($G42="Всього:",SUM($J$4:J41),IF(I42-SUM(K42:L42)<0,0,I42-SUM(K42:L42))) -> 4005.902706 | K42: =IF(G42="Всього:",SUM($K$5:K41),IF(F42<>F41,(F42*O41/36000*(G42-CONCATENATE(DAY($C$4),".",MONTH(G41),".",YEAR(G41)))+(F41*O41/36000*(CONCATENATE(DAY($C$4),".",MONTH(G41),".",YEAR(G41))-G41))),F42*O41/36000*(G42-G41))) -> -201.9027061 | L42: =IF(G42="Всього:",SUM($L$5:L41),$E$4) -> 0 | M42: =IF(G42="Всього:",SUM($M$5:M41),IF($E$5="UAH",J42+L42+K42,J42+K42)) -> 3804 | N42: =IF(G42="Всього:",SUM($N$4:N41),IF($E$5="UAH","",L42)) ->  | O42: -20765.5638
F43: 13.99 | G43: 46997 | H43: 39 | I43: =IF($G43="Всього:",SUM($I$4:I42),IF(AND(DAY($C$4)>=15,H43=1),K43+L43,$C$32)) -> 3804 | J43: =IF($G43="Всього:",SUM($J$4:J42),IF(I43-SUM(K43:L43)<0,0,I43-SUM(K43:L43))) -> 4054.161593 | K43: =IF(G43="Всього:",SUM($K$5:K42),IF(F43<>F42,(F43*O42/36000*(G43-CONCATENATE(DAY($C$4),".",MONTH(G42),".",YEAR(G42)))+(F42*O42/36000*(CONCATENATE(DAY($C$4),".",MONTH(G42),".",YEAR(G42))-G42))),F43*O42/36000*(G43-G42))) -> -250.1615934 | L43: =IF(G43="Всього:",SUM($L$5:L42),$E$4) -> 0 | M43: =IF(G43="Всього:",SUM($M$5:M42),IF($E$5="UAH",J43+L43+K43,J43+K43)) -> 3804 | N43: =IF(G43="Всього:",SUM($N$4:N42),IF($E$5="UAH","",L43)) ->  | O43: -24819.72539
F44: 13.99 | G44: 47027 | H44: 40 | I44: =IF($G44="Всього:",SUM($I$4:I43),IF(AND(DAY($C$4)>=15,H44=1),K44+L44,$C$32)) -> 3804 | J44: =IF($G44="Всього:",SUM($J$4:J43),IF(I44-SUM(K44:L44)<0,0,I44-SUM(K44:L44))) -> 4093.356632 | K44: =IF(G44="Всього:",SUM($K$5:K43),IF(F44<>F43,(F44*O43/36000*(G44-CONCATENATE(DAY($C$4),".",MONTH(G43),".",YEAR(G43)))+(F43*O43/36000*(CONCATENATE(DAY($C$4),".",MONTH(G43),".",YEAR(G43))-G43))),F44*O43/36000*(G44-G43))) -> -289.3566319 | L44: =IF(G44="Всього:",SUM($L$5:L43),$E$4) -> 0 | M44: =IF(G44="Всього:",SUM($M$5:M43),IF($E$5="UAH",J44+L44+K44,J44+K44)) -> 3804 | N44: =IF(G44="Всього:",SUM($N$4:N43),IF($E$5="UAH","",L44)) ->  | O44: -28913.08202
F45: 13.99 | G45: 47058 | H45: 41 | I45: =IF($G45="Всього:",SUM($I$4:I44),IF(AND(DAY($C$4)>=15,H45=1),K45+L45,$C$32)) -> 3804 | J45: =IF($G45="Всього:",SUM($J$4:J44),IF(I45-SUM(K45:L45)<0,0,I45-SUM(K45:L45))) -> 4152.314293 | K45: =IF(G45="Всього:",SUM($K$5:K44),IF(F45<>F44,(F45*O44/36000*(G45-CONCATENATE(DAY($C$4),".",MONTH(G44),".",YEAR(G44)))+(F44*O44/36000*(CONCATENATE(DAY($C$4),".",MONTH(G44),".",YEAR(G44))-G44))),F45*O44/36000*(G45-G44))) -> -348.3142929 | L45: =IF(G45="Всього:",SUM($L$5:L44),$E$4) -> 0 | M45: =IF(G45="Всього:",SUM($M$5:M44),IF($E$5="UAH",J45+L45+K45,J45+K45)) -> 3804 | N45: =IF(G45="Всього:",SUM($N$4:N44),IF($E$5="UAH","",L45)) ->  | O45: -33065.39632
F46: 13.99 | G46: 47088 | H46: 42 | I46: =IF($G46="Всього:",SUM($I$4:I45),IF(AND(DAY($C$4)>=15,H46=1),K46+L46,$C$32)) -> 3804 | J46: =IF($G46="Всього:",SUM($J$4:J45),IF(I46-SUM(K46:L46)<0,0,I46-SUM(K46:L46))) -> 4189.487412 | K46: =IF(G46="Всього:",SUM($K$5:K45),IF(F46<>F45,(F46*O45/36000*(G46-CONCATENATE(DAY($C$4),".",MONTH(G45),".",YEAR(G45)))+(F45*O45/36000*(CONCATENATE(DAY($C$4),".",MONTH(G45),".",YEAR(G45))-G45))),F46*O45/36000*(G46-G45))) -> -385.4874121 | L46: =IF(G46="Всього:",SUM($L$5:L45),$E$4) -> 0 | M46: =IF(G46="Всього:",SUM($M$5:M45),IF($E$5="UAH",J46+L46+K46,J46+K46)) -> 3804 | N46: =IF(G46="Всього:",SUM($N$4:N45),IF($E$5="UAH","",L46)) ->  | O46: -37254.88373
F47: 13.99 | G47: 47119 | H47: 43 | I47: =IF($G47="Всього:",SUM($I$4:I46),IF(AND(DAY($C$4)>=15,H47=1),K47+L47,$C$32)) -> 3804 | J47: =IF($G47="Всього:",SUM($J$4:J46),IF(I47-SUM(K47:L47)<0,0,I47-SUM(K47:L47))) -> 4252.807515 | K47: =IF(G47="Всього:",SUM($K$5:K46),IF(F47<>F46,(F47*O46/36000*(G47-CONCATENATE(DAY($C$4),".",MONTH(G46),".",YEAR(G46)))+(F46*O46/36000*(CONCATENATE(DAY($C$4),".",MONTH(G46),".",YEAR(G46))-G46))),F47*O46/36000*(G47-G46))) -> -448.8075146 | L47: =IF(G47="Всього:",SUM($L$5:L46),$E$4) -> 0 | M47: =IF(G47="Всього:",SUM($M$5:M46),IF($E$5="UAH",J47+L47+K47,J47+K47)) -> 3804 | N47: =IF(G47="Всього:",SUM($N$4:N46),IF($E$5="UAH","",L47)) ->  | O47: -41507.69124
F48: 13.99 | G48: 47150 | H48: 44 | I48: =IF($G48="Всього:",SUM($I$4:I47),IF(AND(DAY($C$4)>=15,H48=1),K48+L48,$C$32)) -> 3804 | J48: =IF($G48="Всього:",SUM($J$4:J47),IF(I48-SUM(K48:L48)<0,0,I48-SUM(K48:L48))) -> 4304.04085 | K48: =IF(G48="Всього:",SUM($K$5:K47),IF(F48<>F47,(F48*O47/36000*(G48-CONCATENATE(DAY($C$4),".",MONTH(G47),".",YEAR(G47)))+(F47*O47/36000*(CONCATENATE(DAY($C$4),".",MONTH(G47),".",YEAR(G47))-G47))),F48*O47/36000*(G48-G47))) -> -500.0408504 | L48: =IF(G48="Всього:",SUM($L$5:L47),$E$4) -> 0 | M48: =IF(G48="Всього:",SUM($M$5:M47),IF($E$5="UAH",J48+L48+K48,J48+K48)) -> 3804 | N48: =IF(G48="Всього:",SUM($N$4:N47),IF($E$5="UAH","",L48)) ->  | O48: -45811.73209
F49: 13.99 | G49: 47178 | H49: 45 | I49: =IF($G49="Всього:",SUM($I$4:I48),IF(AND(DAY($C$4)>=15,H49=1),K49+L49,$C$32)) -> 3804 | J49: =IF($G49="Всього:",SUM($J$4:J48),IF(I49-SUM(K49:L49)<0,0,I49-SUM(K49:L49))) -> 4302.482547 | K49: =IF(G49="Всього:",SUM($K$5:K48),IF(F49<>F48,(F49*O48/36000*(G49-CONCATENATE(DAY($C$4),".",MONTH(G48),".",YEAR(G48)))+(F48*O48/36000*(CONCATENATE(DAY($C$4),".",MONTH(G48),".",YEAR(G48))-G48))),F49*O48/36000*(G49-G48))) -> -498.4825471 | L49: =IF(G49="Всього:",SUM($L$5:L48),$E$4) -> 0 | M49: =IF(G49="Всього:",SUM($M$5:M48),IF($E$5="UAH",J49+L49+K49,J49+K49)) -> 3804 | N49: =IF(G49="Всього:",SUM($N$4:N48),IF($E$5="UAH","",L49)) ->  | O49: -50114.21464
F50: 13.99 | G50: 47209 | H50: 46 | I50: =IF($G50="Всього:",SUM($I$4:I49),IF(AND(DAY($C$4)>=15,H50=1),K50+L50,$C$32)) -> 3804 | J50: =IF($G50="Всього:",SUM($J$4:J49),IF(I50-SUM(K50:L50)<0,0,I50-SUM(K50:L50))) -> 4407.72316 | K50: =IF(G50="Всього:",SUM($K$5:K49),IF(F50<>F49,(F50*O49/36000*(G50-CONCATENATE(DAY($C$4),".",MONTH(G49),".",YEAR(G49)))+(F49*O49/36000*(CONCATENATE(DAY($C$4),".",MONTH(G49),".",YEAR(G49))-G49))),F50*O49/36000*(G50-G49))) -> -603.7231597 | L50: =IF(G50="Всього:",SUM($L$5:L49),$E$4) -> 0 | M50: =IF(G50="Всього:",SUM($M$5:M49),IF($E$5="UAH",J50+L50+K50,J50+K50)) -> 3804 | N50: =IF(G50="Всього:",SUM($N$4:N49),IF($E$5="UAH","",L50)) ->  | O50: -54521.9378
F51: 13.99 | G51: 47239 | H51: 47 | I51: =IF($G51="Всього:",SUM($I$4:I50),IF(AND(DAY($C$4)>=15,H51=1),K51+L51,$C$32)) -> 3804 | J51: =IF($G51="Всього:",SUM($J$4:J50),IF(I51-SUM(K51:L51)<0,0,I51-SUM(K51:L51))) -> 4439.634925 | K51: =IF(G51="Всього:",SUM($K$5:K50),IF(F51<>F50,(F51*O50/36000*(G51-CONCATENATE(DAY($C$4),".",MONTH(G50),".",YEAR(G50)))+(F50*O50/36000*(CONCATENATE(DAY($C$4),".",MONTH(G50),".",YEAR(G50))-G50))),F51*O50/36000*(G51-G50))) -> -635.6349249 | L51: =IF(G51="Всього:",SUM($L$5:L50),$E$4) -> 0 | M51: =IF(G51="Всього:",SUM($M$5:M50),IF($E$5="UAH",J51+L51+K51,J51+K51)) -> 3804 | N51: =IF(G51="Всього:",SUM($N$4:N50),IF($E$5="UAH","",L51)) ->  | O51: -58961.57273
F52: 13.99 | G52: 47270 | H52: 48 | I52: =IF($G52="Всього:",SUM($I$4:I51),IF(AND(DAY($C$4)>=15,H52=1),K52+L52,$C$32)) -> 3804 | J52: =IF($G52="Всього:",SUM($J$4:J51),IF(I52-SUM(K52:L52)<0,0,I52-SUM(K52:L52))) -> 4514.306791 | K52: =IF(G52="Всього:",SUM($K$5:K51),IF(F52<>F51,(F52*O51/36000*(G52-CONCATENATE(DAY($C$4),".",MONTH(G51),".",YEAR(G51)))+(F51*O51/36000*(CONCATENATE(DAY($C$4),".",MONTH(G51),".",YEAR(G51))-G51))),F52*O51/36000*(G52-G51))) -> -710.306791 | L52: =IF(G52="Всього:",SUM($L$5:L51),$E$4) -> 0 | M52: =IF(G52="Всього:",SUM($M$5:M51),IF($E$5="UAH",J52+L52+K52,J52+K52)) -> 3804 | N52: =IF(G52="Всього:",SUM($N$4:N51),IF($E$5="UAH","",L52)) ->  | O52: -63475.87952
F53: 13.99 | G53: 47300 | H53: 49 | I53: =IF($G53="Всього:",SUM($I$4:I52),IF(AND(DAY($C$4)>=15,H53=1),K53+L53,$C$32)) -> 3804 | J53: =IF($G53="Всього:",SUM($J$4:J52),IF(I53-SUM(K53:L53)<0,0,I53-SUM(K53:L53))) -> 4544.022962 | K53: =IF(G53="Всього:",SUM($K$5:K52),IF(F53<>F52,(F53*O52/36000*(G53-CONCATENATE(DAY($C$4),".",MONTH(G52),".",YEAR(G52)))+(F52*O52/36000*(CONCATENATE(DAY($C$4),".",MONTH(G52),".",YEAR(G52))-G52))),F53*O52/36000*(G53-G52))) -> -740.022962 | L53: =IF(G53="Всього:",SUM($L$5:L52),$E$4) -> 0 | M53: =IF(G53="Всього:",SUM($M$5:M52),IF($E$5="UAH",J53+L53+K53,J53+K53)) -> 3804 | N53: =IF(G53="Всього:",SUM($N$4:N52),IF($E$5="UAH","",L53)) ->  | O53: -68019.90248
F54: 13.99 | G54: 47331 | H54: 50 | I54: =IF($G54="Всього:",SUM($I$4:I53),IF(AND(DAY($C$4)>=15,H54=1),K54+L54,$C$32)) -> 3804 | J54: =IF($G54="Всього:",SUM($J$4:J53),IF(I54-SUM(K54:L54)<0,0,I54-SUM(K54:L54))) -> 4623.431986 | K54: =IF(G54="Всього:",SUM($K$5:K53),IF(F54<>F53,(F54*O53/36000*(G54-CONCATENATE(DAY($C$4),".",MONTH(G53),".",YEAR(G53)))+(F53*O53/36000*(CONCATENATE(DAY($C$4),".",MONTH(G53),".",YEAR(G53))-G53))),F54*O53/36000*(G54-G53))) -> -819.4319863 | L54: =IF(G54="Всього:",SUM($L$5:L53),$E$4) -> 0 | M54: =IF(G54="Всього:",SUM($M$5:M53),IF($E$5="UAH",J54+L54+K54,J54+K54)) -> 3804 | N54: =IF(G54="Всього:",SUM($N$4:N53),IF($E$5="UAH","",L54)) ->  | O54: -72643.33446
F55: 13.99 | G55: 47362 | H55: 51 | I55: =IF($G55="Всього:",SUM($I$4:I54),IF(AND(DAY($C$4)>=15,H55=1),K55+L55,$C$32)) -> 3804 | J55: =IF($G55="Всього:",SUM($J$4:J54),IF(I55-SUM(K55:L55)<0,0,I55-SUM(K55:L55))) -> 4679.130215 | K55: =IF(G55="Всього:",SUM($K$5:K54),IF(F55<>F54,(F55*O54/36000*(G55-CONCATENATE(DAY($C$4),".",MONTH(G54),".",YEAR(G54)))+(F54*O54/36000*(CONCATENATE(DAY($C$4),".",MONTH(G54),".",YEAR(G54))-G54))),F55*O54/36000*(G55-G54))) -> -875.1302146 | L55: =IF(G55="Всього:",SUM($L$5:L54),$E$4) -> 0 | M55: =IF(G55="Всього:",SUM($M$5:M54),IF($E$5="UAH",J55+L55+K55,J55+K55)) -> 3804 | N55: =IF(G55="Всього:",SUM($N$4:N54),IF($E$5="UAH","",L55)) ->  | O55: -77322.46468
F56: 13.99 | G56: 47392 | H56: 52 | I56: =IF($G56="Всього:",SUM($I$4:I55),IF(AND(DAY($C$4)>=15,H56=1),K56+L56,$C$32)) -> 3804 | J56: =IF($G56="Всього:",SUM($J$4:J55),IF(I56-SUM(K56:L56)<0,0,I56-SUM(K56:L56))) -> 4705.451067 | K56: =IF(G56="Всього:",SUM($K$5:K55),IF(F56<>F55,(F56*O55/36000*(G56-CONCATENATE(DAY($C$4),".",MONTH(G55),".",YEAR(G55)))+(F55*O55/36000*(CONCATENATE(DAY($C$4),".",MONTH(G55),".",YEAR(G55))-G55))),F56*O55/36000*(G56-G55))) -> -901.4510674 | L56: =IF(G56="Всього:",SUM($L$5:L55),$E$4) -> 0 | M56: =IF(G56="Всього:",SUM($M$5:M55),IF($E$5="UAH",J56+L56+K56,J56+K56)) -> 3804 | N56: =IF(G56="Всього:",SUM($N$4:N55),IF($E$5="UAH","",L56)) ->  | O56: -82027.91575
F57: 13.99 | G57: 47423 | H57: 53 | I57: =IF($G57="Всього:",SUM($I$4:I56),IF(AND(DAY($C$4)>=15,H57=1),K57+L57,$C$32)) -> 3804 | J57: =IF($G57="Всього:",SUM($J$4:J56),IF(I57-SUM(K57:L57)<0,0,I57-SUM(K57:L57))) -> 4792.185744 | K57: =IF(G57="Всього:",SUM($K$5:K56),IF(F57<>F56,(F57*O56/36000*(G57-CONCATENATE(DAY($C$4),".",MONTH(G56),".",YEAR(G56)))+(F56*O56/36000*(CONCATENATE(DAY($C$4),".",MONTH(G56),".",YEAR(G56))-G56))),F57*O56/36000*(G57-G56))) -> -988.1857439 | L57: =IF(G57="Всього:",SUM($L$5:L56),$E$4) -> 0 | M57: =IF(G57="Всього:",SUM($M$5:M56),IF($E$5="UAH",J57+L57+K57,J57+K57)) -> 3804 | N57: =IF(G57="Всього:",SUM($N$4:N56),IF($E$5="UAH","",L57)) ->  | O57: -86820.10149
F58: 13.99 | G58: 47453 | H58: 54 | I58: =IF($G58="Всього:",SUM($I$4:I57),IF(AND(DAY($C$4)>=15,H58=1),K58+L58,$C$32)) -> 3804 | J58: =IF($G58="Всього:",SUM($J$4:J57),IF(I58-SUM(K58:L58)<0,0,I58-SUM(K58:L58))) -> 4816.177683 | K58: =IF(G58="Всього:",SUM($K$5:K57),IF(F58<>F57,(F58*O57/36000*(G58-CONCATENATE(DAY($C$4),".",MONTH(G57),".",YEAR(G57)))+(F57*O57/36000*(CONCATENATE(DAY($C$4),".",MONTH(G57),".",YEAR(G57))-G57))),F58*O57/36000*(G58-G57))) -> -1012.177683 | L58: =IF(G58="Всього:",SUM($L$5:L57),$E$4) -> 0 | M58: =IF(G58="Всього:",SUM($M$5:M57),IF($E$5="UAH",J58+L58+K58,J58+K58)) -> 3804 | N58: =IF(G58="Всього:",SUM($N$4:N57),IF($E$5="UAH","",L58)) ->  | O58: -91636.27917
F59: 13.99 | G59: 47484 | H59: 55 | I59: =IF($G59="Всього:",SUM($I$4:I58),IF(AND(DAY($C$4)>=15,H59=1),K59+L59,$C$32)) -> 3804 | J59: =IF($G59="Всього:",SUM($J$4:J58),IF(I59-SUM(K59:L59)<0,0,I59-SUM(K59:L59))) -> 4907.937164 | K59: =IF(G59="Всього:",SUM($K$5:K58),IF(F59<>F58,(F59*O58/36000*(G59-CONCATENATE(DAY($C$4),".",MONTH(G58),".",YEAR(G58)))+(F58*O58/36000*(CONCATENATE(DAY($C$4),".",MONTH(G58),".",YEAR(G58))-G58))),F59*O58/36000*(G59-G58))) -> -1103.937164 | L59: =IF(G59="Всього:",SUM($L$5:L58),$E$4) -> 0 | M59: =IF(G59="Всього:",SUM($M$5:M58),IF($E$5="UAH",J59+L59+K59,J59+K59)) -> 3804 | N59: =IF(G59="Всього:",SUM($N$4:N58),IF($E$5="UAH","",L59)) ->  | O59: -96544.21634
F60: 13.99 | G60: 47515 | H60: 56 | I60: =IF($G60="Всього:",SUM($I$4:I59),IF(AND(DAY($C$4)>=15,H60=1),K60+L60,$C$32)) -> 3804 | J60: =IF($G60="Всього:",SUM($J$4:J59),IF(I60-SUM(K60:L60)<0,0,I60-SUM(K60:L60))) -> 4967.062811 | K60: =IF(G60="Всього:",SUM($K$5:K59),IF(F60<>F59,(F60*O59/36000*(G60-CONCATENATE(DAY($C$4),".",MONTH(G59),".",YEAR(G59)))+(F59*O59/36000*(CONCATENATE(DAY($C$4),".",MONTH(G59),".",YEAR(G59))-G59))),F60*O59/36000*(G60-G59))) -> -1163.062811 | L60: =IF(G60="Всього:",SUM($L$5:L59),$E$4) -> 0 | M60: =IF(G60="Всього:",SUM($M$5:M59),IF($E$5="UAH",J60+L60+K60,J60+K60)) -> 3804 | N60: =IF(G60="Всього:",SUM($N$4:N59),IF($E$5="UAH","",L60)) ->  | O60: -101511.2791
F61: 13.99 | G61: 47543 | H61: 57 | I61: =IF($G61="Всього:",SUM($I$4:I60),IF(AND(DAY($C$4)>=15,H61=1),K61+L61,$C$32)) -> 3804 | J61: =IF($G61="Всього:",SUM($J$4:J60),IF(I61-SUM(K61:L61)<0,0,I61-SUM(K61:L61))) -> 4908.555507 | K61: =IF(G61="Всього:",SUM($K$5:K60),IF(F61<>F60,(F61*O60/36000*(G61-CONCATENATE(DAY($C$4),".",MONTH(G60),".",YEAR(G60)))+(F60*O60/36000*(CONCATENATE(DAY($C$4),".",MONTH(G60),".",YEAR(G60))-G60))),F61*O60/36000*(G61-G60))) -> -1104.555507 | L61: =IF(G61="Всього:",SUM($L$5:L60),$E$4) -> 0 | M61: =IF(G61="Всього:",SUM($M$5:M60),IF($E$5="UAH",J61+L61+K61,J61+K61)) -> 3804 | N61: =IF(G61="Всього:",SUM($N$4:N60),IF($E$5="UAH","",L61)) ->  | O61: -106419.8347
F62: 13.99 | G62: 47574 | H62: 58 | I62: =IF($G62="Всього:",SUM($I$4:I61),IF(AND(DAY($C$4)>=15,H62=1),K62+L62,$C$32)) -> 3804 | J62: =IF($G62="Всього:",SUM($J$4:J61),IF(I62-SUM(K62:L62)<0,0,I62-SUM(K62:L62))) -> 5086.033836 | K62: =IF(G62="Всього:",SUM($K$5:K61),IF(F62<>F61,(F62*O61/36000*(G62-CONCATENATE(DAY($C$4),".",MONTH(G61),".",YEAR(G61)))+(F61*O61/36000*(CONCATENATE(DAY($C$4),".",MONTH(G61),".",YEAR(G61))-G61))),F62*O61/36000*(G62-G61))) -> -1282.033836 | L62: =IF(G62="Всього:",SUM($L$5:L61),$E$4) -> 0 | M62: =IF(G62="Всього:",SUM($M$5:M61),IF($E$5="UAH",J62+L62+K62,J62+K62)) -> 3804 | N62: =IF(G62="Всього:",SUM($N$4:N61),IF($E$5="UAH","",L62)) ->  | O62: -111505.8685
F63: 13.99 | G63: 47604 | H63: 59 | I63: =IF($G63="Всього:",SUM($I$4:I62),IF(AND(DAY($C$4)>=15,H63=1),K63+L63,$C$32)) -> 3804 | J63: =IF($G63="Всього:",SUM($J$4:J62),IF(I63-SUM(K63:L63)<0,0,I63-SUM(K63:L63))) -> 5103.972584 | K63: =IF(G63="Всього:",SUM($K$5:K62),IF(F63<>F62,(F63*O62/36000*(G63-CONCATENATE(DAY($C$4),".",MONTH(G62),".",YEAR(G62)))+(F62*O62/36000*(CONCATENATE(DAY($C$4),".",MONTH(G62),".",YEAR(G62))-G62))),F63*O62/36000*(G63-G62))) -> -1299.972584 | L63: =IF(G63="Всього:",SUM($L$5:L62),$E$4) -> 0 | M63: =IF(G63="Всього:",SUM($M$5:M62),IF($E$5="UAH",J63+L63+K63,J63+K63)) -> 3804 | N63: =IF(G63="Всього:",SUM($N$4:N62),IF($E$5="UAH","",L63)) ->  | O63: -116609.8411
F64: 13.99 | G64: 47635 | H64: 60 | I64: =IF($G64="Всього:",SUM($I$4:I63),IF(AND(DAY($C$4)>=15,H64=1),K64+L64,$C$32)) -> 3804 | J64: =IF($G64="Всього:",SUM($J$4:J63),IF(I64-SUM(K64:L64)<0,0,I64-SUM(K64:L64))) -> 5208.792277 | K64: =IF(G64="Всього:",SUM($K$5:K63),IF(F64<>F63,(F64*O63/36000*(G64-CONCATENATE(DAY($C$4),".",MONTH(G63),".",YEAR(G63)))+(F63*O63/36000*(CONCATENATE(DAY($C$4),".",MONTH(G63),".",YEAR(G63))-G63))),F64*O63/36000*(G64-G63))) -> -1404.792277 | L64: =IF(G64="Всього:",SUM($L$5:L63),$E$4) -> 0 | M64: =IF(G64="Всього:",SUM($M$5:M63),IF($E$5="UAH",J64+L64+K64,J64+K64)) -> 3804 | N64: =IF(G64="Всього:",SUM($N$4:N63),IF($E$5="UAH","",L64)) ->  | O64: -121818.6334
F65: 13.99 | G65: 47649 | H65: 61 | I65: =IF($G65="Всього:",SUM($I$4:I64),IF(AND(DAY($C$4)>=15,H65=1),K65+L65,$C$32)) -> 3804 | J65: =IF($G65="Всього:",SUM($J$4:J64),IF(I65-SUM(K65:L65)<0,0,I65-SUM(K65:L65))) -> 4466.761042 | K65: =IF(G65="Всього:",SUM($K$5:K64),IF(F65<>F64,(F65*O64/36000*(G65-CONCATENATE(DAY($C$4),".",MONTH(G64),".",YEAR(G64)))+(F64*O64/36000*(CONCATENATE(DAY($C$4),".",MONTH(G64),".",YEAR(G64))-G64))),F65*O64/36000*(G65-G64))) -> -662.7610425 | L65: =IF(G65="Всього:",SUM($L$5:L64),$E$4) -> 0 | M65: =IF(G65="Всього:",SUM($M$5:M64),IF($E$5="UAH",J65+L65+K65,J65+K65)) -> 3804 | N65: =IF(G65="Всього:",SUM($N$4:N64),IF($E$5="UAH","",L65)) ->  | O65: -126285.3944
G66: Всього: | H66: 62 | I66: =IF($G66="Всього:",SUM($I$4:I65),IF(AND(DAY($C$4)>=15,H66=1),K66+L66,$C$32)) -> 228822.9167 | J66: =IF($G66="Всього:",SUM($J$4:J65),IF(I66-SUM(K66:L66)<0,0,I66-SUM(K66:L66))) -> 226285.3944 | K66: =IF(G66="Всього:",SUM($K$5:K65),IF(F66<>F65,(F66*O65/36000*(G66-CONCATENATE(DAY($C$4),".",MONTH(G65),".",YEAR(G65)))+(F65*O65/36000*(CONCATENATE(DAY($C$4),".",MONTH(G65),".",YEAR(G65))-G65))),F66*O65/36000*(G66-G65))) -> 2537.522271 | L66: =IF(G66="Всього:",SUM($L$5:L65),$E$4) -> 0 | M66: =IF(G66="Всього:",SUM($M$5:M65),IF($E$5="UAH",J66+L66+K66,J66+K66)) -> 228822.9167 | N66: =IF(G66="Всього:",SUM($N$4:N65),IF($E$5="UAH","",L66)) -> 0 | O66: -352570.7888
I67: =IF($G67="Всього:",SUM($I$4:I66),IF(AND(DAY($C$4)>=15,H67=1),K67+L67,$C$32)) ->  | J67: =IF($G67="Всього:",SUM($J$4:J66),IF(I67-SUM(K67:L67)<0,0,I67-SUM(K67:L67))) ->  | K67: =IF(G67="Всього:",SUM($K$5:K66),IF(F67<>F66,(F67*O66/36000*(G67-CONCATENATE(DAY($C$4),".",MONTH(G66),".",YEAR(G66)))+(F66*O66/36000*(CONCATENATE(DAY($C$4),".",MONTH(G66),".",YEAR(G66))-G66))),F67*O66/36000*(G67-G66))) ->  | L67: =IF(G67="Всього:",SUM($L$5:L66),$E$4) ->  | M67: =IF(G67="Всього:",SUM($M$5:M66),IF($E$5="UAH",J67+L67+K67,J67+K67)) ->  | N67: =IF(G67="Всього:",SUM($N$4:N66),IF($E$5="UAH","",L67)) -> 
I68: =IF($G68="Всього:",SUM($I$4:I67),IF(AND(DAY($C$4)>=15,H68=1),K68+L68,$C$32)) ->  | J68: =IF($G68="Всього:",SUM($J$4:J67),IF(I68-SUM(K68:L68)<0,0,I68-SUM(K68:L68))) ->  | K68: =IF(G68="Всього:",SUM($K$5:K67),IF(F68<>F67,(F68*O67/36000*(G68-CONCATENATE(DAY($C$4),".",MONTH(G67),".",YEAR(G67)))+(F67*O67/36000*(CONCATENATE(DAY($C$4),".",MONTH(G67),".",YEAR(G67))-G67))),F68*O67/36000*(G68-G67))) ->  | L68: =IF(G68="Всього:",SUM($L$5:L67),$E$4) ->  | M68: =IF(G68="Всього:",SUM($M$5:M67),IF($E$5="UAH",J68+L68+K68,J68+K68)) ->  | N68: =IF(G68="Всього:",SUM($N$4:N67),IF($E$5="UAH","",L68)) -> 
I69: =IF($G69="Всього:",SUM($I$4:I68),IF(AND(DAY($C$4)>=15,H69=1),K69+L69,$C$32)) ->  | J69: =IF($G69="Всього:",SUM($J$4:J68),IF(I69-SUM(K69:L69)<0,0,I69-SUM(K69:L69))) ->  | K69: =IF(G69="Всього:",SUM($K$5:K68),IF(F69<>F68,(F69*O68/36000*(G69-CONCATENATE(DAY($C$4),".",MONTH(G68),".",YEAR(G68)))+(F68*O68/36000*(CONCATENATE(DAY($C$4),".",MONTH(G68),".",YEAR(G68))-G68))),F69*O68/36000*(G69-G68))) ->  | L69: =IF(G69="Всього:",SUM($L$5:L68),$E$4) ->  | M69: =IF(G69="Всього:",SUM($M$5:M68),IF($E$5="UAH",J69+L69+K69,J69+K69)) ->  | N69: =IF(G69="Всього:",SUM($N$4:N68),IF($E$5="UAH","",L69)) ->  | O69: =O68-J69 -> 
F70: =IF(G70="Всього:","",IF(AND(G70>$B$9,G70<=$B$10),$C$16,IF(AND(G70>$B$9,G70<=$B$11),$D$16,IF(AND(G70>$B$10,G70<=$B$14),$E$16,$B$16)))) ->  | H70: =IF(H69>$E$8,"",H69+1) ->  | I70: =IF($G70="Всього:",SUM($I$4:I69),IF(AND(DAY($C$4)>=15,H70=1),K70+L70,$C$32)) ->  | J70: =IF($G70="Всього:",SUM($J$4:J69),IF(I70-SUM(K70:L70)<0,0,I70-SUM(K70:L70))) ->  | K70: =IF(G70="Всього:",SUM($K$5:K69),IF(F70<>F69,(F70*O69/36000*(G70-CONCATENATE(DAY($C$4),".",MONTH(G69),".",YEAR(G69)))+(F69*O69/36000*(CONCATENATE(DAY($C$4),".",MONTH(G69),".",YEAR(G69))-G69))),F70*O69/36000*(G70-G69))) ->  | L70: =IF(G70="Всього:",SUM($L$5:L69),$E$4) ->  | M70: =IF(G70="Всього:",SUM($M$5:M69),IF($E$5="UAH",J70+L70+K70,J70+K70)) ->  | N70: =IF(G70="Всього:",SUM($N$4:N69),IF($E$5="UAH","",L70)) -> 
G71: =IF(H70=$E$8,"Всього:",IF($E$3+1=H71,$B$14,DATE(YEAR(G70),MONTH(G70)+1,IF($B$7<>"",DAY(IF($B$7>DAY(EOMONTH(G70,1)),EOMONTH(G70,1),$B$7)),DAY(1))))) ->  | I71: =IF($G71="Всього:",SUM($I$4:I70),IF(AND(DAY($C$4)>=15,H71=1),K71+L71,$C$32)) ->  | J71: =IF($G71="Всього:",SUM($J$4:J70),IF(I71-SUM(K71:L71)<0,0,I71-SUM(K71:L71))) ->  | K71: =IF(G71="Всього:",SUM($K$5:K70),IF(F71<>F70,(F71*O70/36000*(G71-CONCATENATE(DAY($C$4),".",MONTH(G70),".",YEAR(G70)))+(F70*O70/36000*(CONCATENATE(DAY($C$4),".",MONTH(G70),".",YEAR(G70))-G70))),F71*O70/36000*(G71-G70))) ->  | L71: =IF(G71="Всього:",SUM($L$5:L70),$E$4) ->  | M71: =IF(G71="Всього:",SUM($M$5:M70),IF($E$5="UAH",J71+L71+K71,J71+K71)) ->  | N71: =IF(G71="Всього:",SUM($N$4:N70),IF($E$5="UAH","",L71)) -> 
I72: =IF($G72="Всього:",SUM($I$4:I71),IF(AND(DAY($C$4)>=15,H72=1),K72+L72,$C$32)) ->  | J72: =IF($G72="Всього:",SUM($J$4:J71),IF(I72-SUM(K72:L72)<0,0,I72-SUM(K72:L72))) ->  | K72: =IF(G72="Всього:",SUM($K$5:K71),IF(F72<>F71,(F72*O71/36000*(G72-CONCATENATE(DAY($C$4),".",MONTH(G71),".",YEAR(G71)))+(F71*O71/36000*(CONCATENATE(DAY($C$4),".",MONTH(G71),".",YEAR(G71))-G71))),F72*O71/36000*(G72-G71))) ->  | L72: =IF(G72="Всього:",SUM($L$5:L71),$E$4) ->  | M72: =IF(G72="Всього:",SUM($M$5:M71),IF($E$5="UAH",J72+L72+K72,J72+K72)) ->  | N72: =IF(G72="Всього:",SUM($N$4:N71),IF($E$5="UAH","",L72)) -> 
I73: =IF($G73="Всього:",SUM($I$4:I72),IF(AND(DAY($C$4)>=15,H73=1),K73+L73,$C$32)) ->  | J73: =IF($G73="Всього:",SUM($J$4:J72),IF(I73-SUM(K73:L73)<0,0,I73-SUM(K73:L73))) ->  | K73: =IF(G73="Всього:",SUM($K$5:K72),IF(F73<>F72,(F73*O72/36000*(G73-CONCATENATE(DAY($C$4),".",MONTH(G72),".",YEAR(G72)))+(F72*O72/36000*(CONCATENATE(DAY($C$4),".",MONTH(G72),".",YEAR(G72))-G72))),F73*O72/36000*(G73-G72))) ->  | L73: =IF(G73="Всього:",SUM($L$5:L72),$E$4) ->  | M73: =IF(G73="Всього:",SUM($M$5:M72),IF($E$5="UAH",J73+L73+K73,J73+K73)) ->  | N73: =IF(G73="Всього:",SUM($N$4:N72),IF($E$5="UAH","",L73)) -> 
I74: =IF($G74="Всього:",SUM($I$4:I73),IF(AND(DAY($C$4)>=15,H74=1),K74+L74,$C$32)) ->  | J74: =IF($G74="Всього:",SUM($J$4:J73),IF(I74-SUM(K74:L74)<0,0,I74-SUM(K74:L74))) ->  | K74: =IF(G74="Всього:",SUM($K$5:K73),IF(F74<>F73,(F74*O73/36000*(G74-CONCATENATE(DAY($C$4),".",MONTH(G73),".",YEAR(G73)))+(F73*O73/36000*(CONCATENATE(DAY($C$4),".",MONTH(G73),".",YEAR(G73))-G73))),F74*O73/36000*(G74-G73))) ->  | L74: =IF(G74="Всього:",SUM($L$5:L73),$E$4) ->  | M74: =IF(G74="Всього:",SUM($M$5:M73),IF($E$5="UAH",J74+L74+K74,J74+K74)) ->  | N74: =IF(G74="Всього:",SUM($N$4:N73),IF($E$5="UAH","",L74)) -> 
I75: =IF($G75="Всього:",SUM($I$4:I74),IF(AND(DAY($C$4)>=15,H75=1),K75+L75,$C$32)) ->  | J75: =IF($G75="Всього:",SUM($J$4:J74),IF(I75-SUM(K75:L75)<0,0,I75-SUM(K75:L75))) ->  | K75: =IF(G75="Всього:",SUM($K$5:K74),IF(F75<>F74,(F75*O74/36000*(G75-CONCATENATE(DAY($C$4),".",MONTH(G74),".",YEAR(G74)))+(F74*O74/36000*(CONCATENATE(DAY($C$4),".",MONTH(G74),".",YEAR(G74))-G74))),F75*O74/36000*(G75-G74))) ->  | L75: =IF(G75="Всього:",SUM($L$5:L74),$E$4) ->  | M75: =IF(G75="Всього:",SUM($M$5:M74),IF($E$5="UAH",J75+L75+K75,J75+K75)) ->  | N75: =IF(G75="Всього:",SUM($N$4:N74),IF($E$5="UAH","",L75)) -> 
I76: =IF($G76="Всього:",SUM($I$4:I75),IF(AND(DAY($C$4)>=15,H76=1),K76+L76,$C$32)) ->  | J76: =IF($G76="Всього:",SUM($J$4:J75),IF(I76-SUM(K76:L76)<0,0,I76-SUM(K76:L76))) ->  | K76: =IF(G76="Всього:",SUM($K$5:K75),IF(F76<>F75,(F76*O75/36000*(G76-CONCATENATE(DAY($C$4),".",MONTH(G75),".",YEAR(G75)))+(F75*O75/36000*(CONCATENATE(DAY($C$4),".",MONTH(G75),".",YEAR(G75))-G75))),F76*O75/36000*(G76-G75))) ->  | L76: =IF(G76="Всього:",SUM($L$5:L75),$E$4) ->  | M76: =IF(G76="Всього:",SUM($M$5:M75),IF($E$5="UAH",J76+L76+K76,J76+K76)) ->  | N76: =IF(G76="Всього:",SUM($N$4:N75),IF($E$5="UAH","",L76)) -> 
I77: =IF($G77="Всього:",SUM($I$4:I76),IF(AND(DAY($C$4)>=15,H77=1),K77+L77,$C$32)) ->  | J77: =IF($G77="Всього:",SUM($J$4:J76),IF(I77-SUM(K77:L77)<0,0,I77-SUM(K77:L77))) ->  | K77: =IF(G77="Всього:",SUM($K$5:K76),IF(F77<>F76,(F77*O76/36000*(G77-CONCATENATE(DAY($C$4),".",MONTH(G76),".",YEAR(G76)))+(F76*O76/36000*(CONCATENATE(DAY($C$4),".",MONTH(G76),".",YEAR(G76))-G76))),F77*O76/36000*(G77-G76))) ->  | L77: =IF(G77="Всього:",SUM($L$5:L76),$E$4) ->  | M77: =IF(G77="Всього:",SUM($M$5:M76),IF($E$5="UAH",J77+L77+K77,J77+K77)) ->  | N77: =IF(G77="Всього:",SUM($N$4:N76),IF($E$5="UAH","",L77)) -> 
I78: =IF($G78="Всього:",SUM($I$4:I77),IF(AND(DAY($C$4)>=15,H78=1),K78+L78,$C$32)) ->  | J78: =IF($G78="Всього:",SUM($J$4:J77),IF(I78-SUM(K78:L78)<0,0,I78-SUM(K78:L78))) ->  | K78: =IF(G78="Всього:",SUM($K$5:K77),IF(F78<>F77,(F78*O77/36000*(G78-CONCATENATE(DAY($C$4),".",MONTH(G77),".",YEAR(G77)))+(F77*O77/36000*(CONCATENATE(DAY($C$4),".",MONTH(G77),".",YEAR(G77))-G77))),F78*O77/36000*(G78-G77))) ->  | L78: =IF(G78="Всього:",SUM($L$5:L77),$E$4) ->  | M78: =IF(G78="Всього:",SUM($M$5:M77),IF($E$5="UAH",J78+L78+K78,J78+K78)) ->  | N78: =IF(G78="Всього:",SUM($N$4:N77),IF($E$5="UAH","",L78)) -> 
I79: =IF($G79="Всього:",SUM($I$4:I78),IF(AND(DAY($C$4)>=15,H79=1),K79+L79,$C$32)) ->  | J79: =IF($G79="Всього:",SUM($J$4:J78),IF(I79-SUM(K79:L79)<0,0,I79-SUM(K79:L79))) ->  | K79: =IF(G79="Всього:",SUM($K$5:K78),IF(F79<>F78,(F79*O78/36000*(G79-CONCATENATE(DAY($C$4),".",MONTH(G78),".",YEAR(G78)))+(F78*O78/36000*(CONCATENATE(DAY($C$4),".",MONTH(G78),".",YEAR(G78))-G78))),F79*O78/36000*(G79-G78))) ->  | L79: =IF(G79="Всього:",SUM($L$5:L78),$E$4) ->  | M79: =IF(G79="Всього:",SUM($M$5:M78),IF($E$5="UAH",J79+L79+K79,J79+K79)) ->  | N79: =IF(G79="Всього:",SUM($N$4:N78),IF($E$5="UAH","",L79)) -> 
I80: =IF($G80="Всього:",SUM($I$4:I79),IF(AND(DAY($C$4)>=15,H80=1),K80+L80,$C$32)) ->  | J80: =IF($G80="Всього:",SUM($J$4:J79),IF(I80-SUM(K80:L80)<0,0,I80-SUM(K80:L80))) ->  | K80: =IF(G80="Всього:",SUM($K$5:K79),IF(F80<>F79,(F80*O79/36000*(G80-CONCATENATE(DAY($C$4),".",MONTH(G79),".",YEAR(G79)))+(F79*O79/36000*(CONCATENATE(DAY($C$4),".",MONTH(G79),".",YEAR(G79))-G79))),F80*O79/36000*(G80-G79))) ->  | L80: =IF(G80="Всього:",SUM($L$5:L79),$E$4) ->  | M80: =IF(G80="Всього:",SUM($M$5:M79),IF($E$5="UAH",J80+L80+K80,J80+K80)) ->  | N80: =IF(G80="Всього:",SUM($N$4:N79),IF($E$5="UAH","",L80)) -> 
I81: =IF($G81="Всього:",SUM($I$4:I80),IF(AND(DAY($C$4)>=15,H81=1),K81+L81,$C$32)) ->  | J81: =IF($G81="Всього:",SUM($J$4:J80),IF(I81-SUM(K81:L81)<0,0,I81-SUM(K81:L81))) ->  | K81: =IF(G81="Всього:",SUM($K$5:K80),IF(F81<>F80,(F81*O80/36000*(G81-CONCATENATE(DAY($C$4),".",MONTH(G80),".",YEAR(G80)))+(F80*O80/36000*(CONCATENATE(DAY($C$4),".",MONTH(G80),".",YEAR(G80))-G80))),F81*O80/36000*(G81-G80))) ->  | L81: =IF(G81="Всього:",SUM($L$5:L80),$E$4) ->  | M81: =IF(G81="Всього:",SUM($M$5:M80),IF($E$5="UAH",J81+L81+K81,J81+K81)) ->  | N81: =IF(G81="Всього:",SUM($N$4:N80),IF($E$5="UAH","",L81)) -> 
I82: =IF($G82="Всього:",SUM($I$4:I81),IF(AND(DAY($C$4)>=15,H82=1),K82+L82,$C$32)) ->  | J82: =IF($G82="Всього:",SUM($J$4:J81),IF(I82-SUM(K82:L82)<0,0,I82-SUM(K82:L82))) ->  | K82: =IF(G82="Всього:",SUM($K$5:K81),IF(F82<>F81,(F82*O81/36000*(G82-CONCATENATE(DAY($C$4),".",MONTH(G81),".",YEAR(G81)))+(F81*O81/36000*(CONCATENATE(DAY($C$4),".",MONTH(G81),".",YEAR(G81))-G81))),F82*O81/36000*(G82-G81))) ->  | L82: =IF(G82="Всього:",SUM($L$5:L81),$E$4) ->  | M82: =IF(G82="Всього:",SUM($M$5:M81),IF($E$5="UAH",J82+L82+K82,J82+K82)) ->  | N82: =IF(G82="Всього:",SUM($N$4:N81),IF($E$5="UAH","",L82)) -> 
I83: =IF($G83="Всього:",SUM($I$4:I82),IF(AND(DAY($C$4)>=15,H83=1),K83+L83,$C$32)) ->  | J83: =IF($G83="Всього:",SUM($J$4:J82),IF(I83-SUM(K83:L83)<0,0,I83-SUM(K83:L83))) ->  | K83: =IF(G83="Всього:",SUM($K$5:K82),IF(F83<>F82,(F83*O82/36000*(G83-CONCATENATE(DAY($C$4),".",MONTH(G82),".",YEAR(G82)))+(F82*O82/36000*(CONCATENATE(DAY($C$4),".",MONTH(G82),".",YEAR(G82))-G82))),F83*O82/36000*(G83-G82))) ->  | L83: =IF(G83="Всього:",SUM($L$5:L82),$E$4) ->  | M83: =IF(G83="Всього:",SUM($M$5:M82),IF($E$5="UAH",J83+L83+K83,J83+K83)) ->  | N83: =IF(G83="Всього:",SUM($N$4:N82),IF($E$5="UAH","",L83)) -> 
I84: =IF($G84="Всього:",SUM($I$4:I83),IF(AND(DAY($C$4)>=15,H84=1),K84+L84,$C$32)) ->  | J84: =IF($G84="Всього:",SUM($J$4:J83),IF(I84-SUM(K84:L84)<0,0,I84-SUM(K84:L84))) ->  | K84: =IF(G84="Всього:",SUM($K$5:K83),IF(F84<>F83,(F84*O83/36000*(G84-CONCATENATE(DAY($C$4),".",MONTH(G83),".",YEAR(G83)))+(F83*O83/36000*(CONCATENATE(DAY($C$4),".",MONTH(G83),".",YEAR(G83))-G83))),F84*O83/36000*(G84-G83))) ->  | L84: =IF(G84="Всього:",SUM($L$5:L83),$E$4) ->  | M84: =IF(G84="Всього:",SUM($M$5:M83),IF($E$5="UAH",J84+L84+K84,J84+K84)) ->  | N84: =IF(G84="Всього:",SUM($N$4:N83),IF($E$5="UAH","",L84)) -> 
I85: =IF($G85="Всього:",SUM($I$4:I84),IF(AND(DAY($C$4)>=15,H85=1),K85+L85,$C$32)) ->  | J85: =IF($G85="Всього:",SUM($J$4:J84),IF(I85-SUM(K85:L85)<0,0,I85-SUM(K85:L85))) ->  | K85: =IF(G85="Всього:",SUM($K$5:K84),IF(F85<>F84,(F85*O84/36000*(G85-CONCATENATE(DAY($C$4),".",MONTH(G84),".",YEAR(G84)))+(F84*O84/36000*(CONCATENATE(DAY($C$4),".",MONTH(G84),".",YEAR(G84))-G84))),F85*O84/36000*(G85-G84))) ->  | L85: =IF(G85="Всього:",SUM($L$5:L84),$E$4) ->  | M85: =IF(G85="Всього:",SUM($M$5:M84),IF($E$5="UAH",J85+L85+K85,J85+K85)) ->  | N85: =IF(G85="Всього:",SUM($N$4:N84),IF($E$5="UAH","",L85)) -> 
I86: =IF($G86="Всього:",SUM($I$4:I85),IF(AND(DAY($C$4)>=15,H86=1),K86+L86,$C$32)) ->  | J86: =IF($G86="Всього:",SUM($J$4:J85),IF(I86-SUM(K86:L86)<0,0,I86-SUM(K86:L86))) ->  | K86: =IF(G86="Всього:",SUM($K$5:K85),IF(F86<>F85,(F86*O85/36000*(G86-CONCATENATE(DAY($C$4),".",MONTH(G85),".",YEAR(G85)))+(F85*O85/36000*(CONCATENATE(DAY($C$4),".",MONTH(G85),".",YEAR(G85))-G85))),F86*O85/36000*(G86-G85))) ->  | L86: =IF(G86="Всього:",SUM($L$5:L85),$E$4) ->  | M86: =IF(G86="Всього:",SUM($M$5:M85),IF($E$5="UAH",J86+L86+K86,J86+K86)) ->  | N86: =IF(G86="Всього:",SUM($N$4:N85),IF($E$5="UAH","",L86)) -> 
I87: =IF($G87="Всього:",SUM($I$4:I86),IF(AND(DAY($C$4)>=15,H87=1),K87+L87,$C$32)) ->  | J87: =IF($G87="Всього:",SUM($J$4:J86),IF(I87-SUM(K87:L87)<0,0,I87-SUM(K87:L87))) ->  | K87: =IF(G87="Всього:",SUM($K$5:K86),IF(F87<>F86,(F87*O86/36000*(G87-CONCATENATE(DAY($C$4),".",MONTH(G86),".",YEAR(G86)))+(F86*O86/36000*(CONCATENATE(DAY($C$4),".",MONTH(G86),".",YEAR(G86))-G86))),F87*O86/36000*(G87-G86))) ->  | L87: =IF(G87="Всього:",SUM($L$5:L86),$E$4) ->  | M87: =IF(G87="Всього:",SUM($M$5:M86),IF($E$5="UAH",J87+L87+K87,J87+K87)) ->  | N87: =IF(G87="Всього:",SUM($N$4:N86),IF($E$5="UAH","",L87)) -> 
I88: =IF($G88="Всього:",SUM($I$4:I87),IF(AND(DAY($C$4)>=15,H88=1),K88+L88,$C$32)) ->  | J88: =IF($G88="Всього:",SUM($J$4:J87),IF(I88-SUM(K88:L88)<0,0,I88-SUM(K88:L88))) ->  | K88: =IF(G88="Всього:",SUM($K$5:K87),IF(F88<>F87,(F88*O87/36000*(G88-CONCATENATE(DAY($C$4),".",MONTH(G87),".",YEAR(G87)))+(F87*O87/36000*(CONCATENATE(DAY($C$4),".",MONTH(G87),".",YEAR(G87))-G87))),F88*O87/36000*(G88-G87))) ->  | L88: =IF(G88="Всього:",SUM($L$5:L87),$E$4) ->  | M88: =IF(G88="Всього:",SUM($M$5:M87),IF($E$5="UAH",J88+L88+K88,J88+K88)) ->  | N88: =IF(G88="Всього:",SUM($N$4:N87),IF($E$5="UAH","",L88)) -> 
I89: 3795.215863 | J89: =IF($G89="Всього:",SUM($J$4:J88),IF(I89-SUM(K89:L89)<0,0,I89-SUM(K89:L89))) ->  | K89: =IF(G89="Всього:",SUM($K$5:K88),IF(F89<>F88,(F89*O88/36000*(G89-CONCATENATE(DAY($C$4),".",MONTH(G88),".",YEAR(G88)))+(F88*O88/36000*(CONCATENATE(DAY($C$4),".",MONTH(G88),".",YEAR(G88))-G88))),F89*O88/36000*(G89-G88))) ->  | L89: =IF(G89="Всього:",SUM($L$5:L88),$E$4) ->  | M89: =IF(G89="Всього:",SUM($M$5:M88),IF($E$5="UAH",J89+L89+K89,J89+K89)) ->  | N89: =IF(G89="Всього:",SUM($N$4:N88),IF($E$5="UAH","",L89)) -> 
I90: =IF($G90="Всього:",SUM($I$4:I89),IF(AND(DAY($C$4)>=15,H90=1),K90+L90,$C$32)) ->  | J90: =IF($G90="Всього:",SUM($J$4:J89),IF(I90-SUM(K90:L90)<0,0,I90-SUM(K90:L90))) ->  | K90: =IF(G90="Всього:",SUM($K$5:K89),IF(F90<>F89,(F90*O89/36000*(G90-CONCATENATE(DAY($C$4),".",MONTH(G89),".",YEAR(G89)))+(F89*O89/36000*(CONCATENATE(DAY($C$4),".",MONTH(G89),".",YEAR(G89))-G89))),F90*O89/36000*(G90-G89))) ->  | L90: =IF(G90="Всього:",SUM($L$5:L89),$E$4) ->  | M90: =IF(G90="Всього:",SUM($M$5:M89),IF($E$5="UAH",J90+L90+K90,J90+K90)) ->  | N90: =IF(G90="Всього:",SUM($N$4:N89),IF($E$5="UAH","",L90)) -> 
I91: =IF($G91="Всього:",SUM($I$4:I90),IF(AND(DAY($C$4)>=15,H91=1),K91+L91,$C$32)) ->  | J91: =IF($G91="Всього:",SUM($J$4:J90),IF(I91-SUM(K91:L91)<0,0,I91-SUM(K91:L91))) ->  | K91: =IF(G91="Всього:",SUM($K$5:K90),IF(F91<>F90,(F91*O90/36000*(G91-CONCATENATE(DAY($C$4),".",MONTH(G90),".",YEAR(G90)))+(F90*O90/36000*(CONCATENATE(DAY($C$4),".",MONTH(G90),".",YEAR(G90))-G90))),F91*O90/36000*(G91-G90))) ->  | L91: =IF(G91="Всього:",SUM($L$5:L90),$E$4) ->  | M91: =IF(G91="Всього:",SUM($M$5:M90),IF($E$5="UAH",J91+L91+K91,J91+K91)) ->  | N91: =IF(G91="Всього:",SUM($N$4:N90),IF($E$5="UAH","",L91)) -> 
I92: =IF($G92="Всього:",SUM($I$4:I91),IF(AND(DAY($C$4)>=15,H92=1),K92+L92,$C$32)) ->  | J92: =IF($G92="Всього:",SUM($J$4:J91),IF(I92-SUM(K92:L92)<0,0,I92-SUM(K92:L92))) ->  | K92: =IF(G92="Всього:",SUM($K$5:K91),IF(F92<>F91,(F92*O91/36000*(G92-CONCATENATE(DAY($C$4),".",MONTH(G91),".",YEAR(G91)))+(F91*O91/36000*(CONCATENATE(DAY($C$4),".",MONTH(G91),".",YEAR(G91))-G91))),F92*O91/36000*(G92-G91))) ->  | L92: =IF(G92="Всього:",SUM($L$5:L91),$E$4) ->  | M92: =IF(G92="Всього:",SUM($M$5:M91),IF($E$5="UAH",J92+L92+K92,J92+K92)) ->  | N92: =IF(G92="Всього:",SUM($N$4:N91),IF($E$5="UAH","",L92)) -> 
I93: =IF($G93="Всього:",SUM($I$4:I92),IF(AND(DAY($C$4)>=15,H93=1),K93+L93,$C$32)) ->  | J93: =IF($G93="Всього:",SUM($J$4:J92),IF(I93-SUM(K93:L93)<0,0,I93-SUM(K93:L93))) ->  | K93: =IF(G93="Всього:",SUM($K$5:K92),IF(F93<>F92,(F93*O92/36000*(G93-CONCATENATE(DAY($C$4),".",MONTH(G92),".",YEAR(G92)))+(F92*O92/36000*(CONCATENATE(DAY($C$4),".",MONTH(G92),".",YEAR(G92))-G92))),F93*O92/36000*(G93-G92))) ->  | L93: =IF(G93="Всього:",SUM($L$5:L92),$E$4) ->  | M93: =IF(G93="Всього:",SUM($M$5:M92),IF($E$5="UAH",J93+L93+K93,J93+K93)) ->  | N93: =IF(G93="Всього:",SUM($N$4:N92),IF($E$5="UAH","",L93)) -> 
I94: =IF($G94="Всього:",SUM($I$4:I93),IF(AND(DAY($C$4)>=15,H94=1),K94+L94,$C$32)) ->  | J94: =IF($G94="Всього:",SUM($J$4:J93),IF(I94-SUM(K94:L94)<0,0,I94-SUM(K94:L94))) ->  | K94: =IF(G94="Всього:",SUM($K$5:K93),IF(F94<>F93,(F94*O93/36000*(G94-CONCATENATE(DAY($C$4),".",MONTH(G93),".",YEAR(G93)))+(F93*O93/36000*(CONCATENATE(DAY($C$4),".",MONTH(G93),".",YEAR(G93))-G93))),F94*O93/36000*(G94-G93))) ->  | L94: =IF(G94="Всього:",SUM($L$5:L93),$E$4) ->  | M94: =IF(G94="Всього:",SUM($M$5:M93),IF($E$5="UAH",J94+L94+K94,J94+K94)) ->  | N94: =IF(G94="Всього:",SUM($N$4:N93),IF($E$5="UAH","",L94)) -> 
I95: =IF($G95="Всього:",SUM($I$4:I94),IF(AND(DAY($C$4)>=15,H95=1),K95+L95,$C$32)) ->  | J95: =IF($G95="Всього:",SUM($J$4:J94),IF(I95-SUM(K95:L95)<0,0,I95-SUM(K95:L95))) ->  | K95: =IF(G95="Всього:",SUM($K$5:K94),IF(F95<>F94,(F95*O94/36000*(G95-CONCATENATE(DAY($C$4),".",MONTH(G94),".",YEAR(G94)))+(F94*O94/36000*(CONCATENATE(DAY($C$4),".",MONTH(G94),".",YEAR(G94))-G94))),F95*O94/36000*(G95-G94))) ->  | L95: =IF(G95="Всього:",SUM($L$5:L94),$E$4) ->  | M95: =IF(G95="Всього:",SUM($M$5:M94),IF($E$5="UAH",J95+L95+K95,J95+K95)) ->  | N95: =IF(G95="Всього:",SUM($N$4:N94),IF($E$5="UAH","",L95)) -> 
I96: =IF($G96="Всього:",SUM($I$4:I95),IF(AND(DAY($C$4)>=15,H96=1),K96+L96,$C$32)) ->  | J96: =IF($G96="Всього:",SUM($J$4:J95),IF(I96-SUM(K96:L96)<0,0,I96-SUM(K96:L96))) ->  | K96: =IF(G96="Всього:",SUM($K$5:K95),IF(F96<>F95,(F96*O95/36000*(G96-CONCATENATE(DAY($C$4),".",MONTH(G95),".",YEAR(G95)))+(F95*O95/36000*(CONCATENATE(DAY($C$4),".",MONTH(G95),".",YEAR(G95))-G95))),F96*O95/36000*(G96-G95))) ->  | L96: =IF(G96="Всього:",SUM($L$5:L95),$E$4) ->  | M96: =IF(G96="Всього:",SUM($M$5:M95),IF($E$5="UAH",J96+L96+K96,J96+K96)) ->  | N96: =IF(G96="Всього:",SUM($N$4:N95),IF($E$5="UAH","",L96)) -> 
I97: =IF($G97="Всього:",SUM($I$4:I96),IF(AND(DAY($C$4)>=15,H97=1),K97+L97,$C$32)) ->  | J97: =IF($G97="Всього:",SUM($J$4:J96),IF(I97-SUM(K97:L97)<0,0,I97-SUM(K97:L97))) ->  | K97: =IF(G97="Всього:",SUM($K$5:K96),IF(F97<>F96,(F97*O96/36000*(G97-CONCATENATE(DAY($C$4),".",MONTH(G96),".",YEAR(G96)))+(F96*O96/36000*(CONCATENATE(DAY($C$4),".",MONTH(G96),".",YEAR(G96))-G96))),F97*O96/36000*(G97-G96))) ->  | L97: =IF(G97="Всього:",SUM($L$5:L96),$E$4) ->  | M97: =IF(G97="Всього:",SUM($M$5:M96),IF($E$5="UAH",J97+L97+K97,J97+K97)) ->  | N97: =IF(G97="Всього:",SUM($N$4:N96),IF($E$5="UAH","",L97)) -> 
I98: =IF($G98="Всього:",SUM($I$4:I97),IF(AND(DAY($C$4)>=15,H98=1),K98+L98,$C$32)) ->  | J98: =IF($G98="Всього:",SUM($J$4:J97),IF(I98-SUM(K98:L98)<0,0,I98-SUM(K98:L98))) ->  | K98: =IF(G98="Всього:",SUM($K$5:K97),IF(F98<>F97,(F98*O97/36000*(G98-CONCATENATE(DAY($C$4),".",MONTH(G97),".",YEAR(G97)))+(F97*O97/36000*(CONCATENATE(DAY($C$4),".",MONTH(G97),".",YEAR(G97))-G97))),F98*O97/36000*(G98-G97))) ->  | L98: =IF(G98="Всього:",SUM($L$5:L97),$E$4) ->  | M98: =IF(G98="Всього:",SUM($M$5:M97),IF($E$5="UAH",J98+L98+K98,J98+K98)) ->  | N98: =IF(G98="Всього:",SUM($N$4:N97),IF($E$5="UAH","",L98)) -> 
I99: =IF($G99="Всього:",SUM($I$4:I98),IF(AND(DAY($C$4)>=15,H99=1),K99+L99,$C$32)) ->  | J99: =IF($G99="Всього:",SUM($J$4:J98),IF(I99-SUM(K99:L99)<0,0,I99-SUM(K99:L99))) ->  | K99: =IF(G99="Всього:",SUM($K$5:K98),IF(F99<>F98,(F99*O98/36000*(G99-CONCATENATE(DAY($C$4),".",MONTH(G98),".",YEAR(G98)))+(F98*O98/36000*(CONCATENATE(DAY($C$4),".",MONTH(G98),".",YEAR(G98))-G98))),F99*O98/36000*(G99-G98))) ->  | L99: =IF(G99="Всього:",SUM($L$5:L98),$E$4) ->  | M99: =IF(G99="Всього:",SUM($M$5:M98),IF($E$5="UAH",J99+L99+K99,J99+K99)) ->  | N99: =IF(G99="Всього:",SUM($N$4:N98),IF($E$5="UAH","",L99)) -> 
I100: =IF($G100="Всього:",SUM($I$4:I99),IF(AND(DAY($C$4)>=15,H100=1),K100+L100,$C$32)) ->  | J100: =IF($G100="Всього:",SUM($J$4:J99),IF(I100-SUM(K100:L100)<0,0,I100-SUM(K100:L100))) ->  | K100: =IF(G100="Всього:",SUM($K$5:K99),IF(F100<>F99,(F100*O99/36000*(G100-CONCATENATE(DAY($C$4),".",MONTH(G99),".",YEAR(G99)))+(F99*O99/36000*(CONCATENATE(DAY($C$4),".",MONTH(G99),".",YEAR(G99))-G99))),F100*O99/36000*(G100-G99))) ->  | L100: =IF(G100="Всього:",SUM($L$5:L99),$E$4) ->  | M100: =IF(G100="Всього:",SUM($M$5:M99),IF($E$5="UAH",J100+L100+K100,J100+K100)) ->  | N100: =IF(G100="Всього:",SUM($N$4:N99),IF($E$5="UAH","",L100)) -> 
I101: =IF($G101="Всього:",SUM($I$4:I100),IF(AND(DAY($C$4)>=15,H101=1),K101+L101,$C$32)) ->  | J101: =IF($G101="Всього:",SUM($J$4:J100),IF(I101-SUM(K101:L101)<0,0,I101-SUM(K101:L101))) ->  | K101: =IF(G101="Всього:",SUM($K$5:K100),IF(F101<>F100,(F101*O100/36000*(G101-CONCATENATE(DAY($C$4),".",MONTH(G100),".",YEAR(G100)))+(F100*O100/36000*(CONCATENATE(DAY($C$4),".",MONTH(G100),".",YEAR(G100))-G100))),F101*O100/36000*(G101-G100))) ->  | L101: =IF(G101="Всього:",SUM($L$5:L100),$E$4) ->  | M101: =IF(G101="Всього:",SUM($M$5:M100),IF($E$5="UAH",J101+L101+K101,J101+K101)) ->  | N101: =IF(G101="Всього:",SUM($N$4:N100),IF($E$5="UAH","",L101)) -> 
I102: =IF($G102="Всього:",SUM($I$4:I101),IF(AND(DAY($C$4)>=15,H102=1),K102+L102,$C$32)) ->  | J102: =IF($G102="Всього:",SUM($J$4:J101),IF(I102-SUM(K102:L102)<0,0,I102-SUM(K102:L102))) ->  | K102: =IF(G102="Всього:",SUM($K$5:K101),IF(F102<>F101,(F102*O101/36000*(G102-CONCATENATE(DAY($C$4),".",MONTH(G101),".",YEAR(G101)))+(F101*O101/36000*(CONCATENATE(DAY($C$4),".",MONTH(G101),".",YEAR(G101))-G101))),F102*O101/36000*(G102-G101))) ->  | L102: =IF(G102="Всього:",SUM($L$5:L101),$E$4) ->  | M102: =IF(G102="Всього:",SUM($M$5:M101),IF($E$5="UAH",J102+L102+K102,J102+K102)) ->  | N102: =IF(G102="Всього:",SUM($N$4:N101),IF($E$5="UAH","",L102)) -> 
I103: =IF($G103="Всього:",SUM($I$4:I102),IF(AND(DAY($C$4)>=15,H103=1),K103+L103,$C$32)) ->  | J103: =IF($G103="Всього:",SUM($J$4:J102),IF(I103-SUM(K103:L103)<0,0,I103-SUM(K103:L103))) ->  | K103: =IF(G103="Всього:",SUM($K$5:K102),IF(F103<>F102,(F103*O102/36000*(G103-CONCATENATE(DAY($C$4),".",MONTH(G102),".",YEAR(G102)))+(F102*O102/36000*(CONCATENATE(DAY($C$4),".",MONTH(G102),".",YEAR(G102))-G102))),F103*O102/36000*(G103-G102))) ->  | L103: =IF(G103="Всього:",SUM($L$5:L102),$E$4) ->  | M103: =IF(G103="Всього:",SUM($M$5:M102),IF($E$5="UAH",J103+L103+K103,J103+K103)) ->  | N103: =IF(G103="Всього:",SUM($N$4:N102),IF($E$5="UAH","",L103)) -> 
I104: =IF($G104="Всього:",SUM($I$4:I103),IF(AND(DAY($C$4)>=15,H104=1),K104+L104,$C$32)) ->  | J104: =IF($G104="Всього:",SUM($J$4:J103),IF(I104-SUM(K104:L104)<0,0,I104-SUM(K104:L104))) ->  | K104: =IF(G104="Всього:",SUM($K$5:K103),IF(F104<>F103,(F104*O103/36000*(G104-CONCATENATE(DAY($C$4),".",MONTH(G103),".",YEAR(G103)))+(F103*O103/36000*(CONCATENATE(DAY($C$4),".",MONTH(G103),".",YEAR(G103))-G103))),F104*O103/36000*(G104-G103))) ->  | L104: =IF(G104="Всього:",SUM($L$5:L103),$E$4) ->  | M104: =IF(G104="Всього:",SUM($M$5:M103),IF($E$5="UAH",J104+L104+K104,J104+K104)) ->  | N104: =IF(G104="Всього:",SUM($N$4:N103),IF($E$5="UAH","",L104)) -> 
I105: =IF($G105="Всього:",SUM($I$4:I104),IF(AND(DAY($C$4)>=15,H105=1),K105+L105,$C$32)) ->  | J105: =IF($G105="Всього:",SUM($J$4:J104),IF(I105-SUM(K105:L105)<0,0,I105-SUM(K105:L105))) ->  | K105: =IF(G105="Всього:",SUM($K$5:K104),IF(F105<>F104,(F105*O104/36000*(G105-CONCATENATE(DAY($C$4),".",MONTH(G104),".",YEAR(G104)))+(F104*O104/36000*(CONCATENATE(DAY($C$4),".",MONTH(G104),".",YEAR(G104))-G104))),F105*O104/36000*(G105-G104))) ->  | L105: =IF(G105="Всього:",SUM($L$5:L104),$E$4) ->  | M105: =IF(G105="Всього:",SUM($M$5:M104),IF($E$5="UAH",J105+L105+K105,J105+K105)) ->  | N105: =IF(G105="Всього:",SUM($N$4:N104),IF($E$5="UAH","",L105)) -> 
I106: =IF($G106="Всього:",SUM($I$4:I105),IF(AND(DAY($C$4)>=15,H106=1),K106+L106,$C$32)) ->  | J106: =IF($G106="Всього:",SUM($J$4:J105),IF(I106-SUM(K106:L106)<0,0,I106-SUM(K106:L106))) ->  | K106: =IF(G106="Всього:",SUM($K$5:K105),IF(F106<>F105,(F106*O105/36000*(G106-CONCATENATE(DAY($C$4),".",MONTH(G105),".",YEAR(G105)))+(F105*O105/36000*(CONCATENATE(DAY($C$4),".",MONTH(G105),".",YEAR(G105))-G105))),F106*O105/36000*(G106-G105))) ->  | L106: =IF(G106="Всього:",SUM($L$5:L105),$E$4) ->  | M106: =IF(G106="Всього:",SUM($M$5:M105),IF($E$5="UAH",J106+L106+K106,J106+K106)) ->  | N106: =IF(G106="Всього:",SUM($N$4:N105),IF($E$5="UAH","",L106)) -> 
I107: =IF($G107="Всього:",SUM($I$4:I106),IF(AND(DAY($C$4)>=15,H107=1),K107+L107,$C$32)) ->  | J107: =IF($G107="Всього:",SUM($J$4:J106),IF(I107-SUM(K107:L107)<0,0,I107-SUM(K107:L107))) ->  | K107: =IF(G107="Всього:",SUM($K$5:K106),IF(F107<>F106,(F107*O106/36000*(G107-CONCATENATE(DAY($C$4),".",MONTH(G106),".",YEAR(G106)))+(F106*O106/36000*(CONCATENATE(DAY($C$4),".",MONTH(G106),".",YEAR(G106))-G106))),F107*O106/36000*(G107-G106))) ->  | L107: =IF(G107="Всього:",SUM($L$5:L106),$E$4) ->  | M107: =IF(G107="Всього:",SUM($M$5:M106),IF($E$5="UAH",J107+L107+K107,J107+K107)) ->  | N107: =IF(G107="Всього:",SUM($N$4:N106),IF($E$5="UAH","",L107)) -> 
I108: =IF($G108="Всього:",SUM($I$4:I107),IF(AND(DAY($C$4)>=15,H108=1),K108+L108,$C$32)) ->  | J108: =IF($G108="Всього:",SUM($J$4:J107),IF(I108-SUM(K108:L108)<0,0,I108-SUM(K108:L108))) ->  | K108: =IF(G108="Всього:",SUM($K$5:K107),IF(F108<>F107,(F108*O107/36000*(G108-CONCATENATE(DAY($C$4),".",MONTH(G107),".",YEAR(G107)))+(F107*O107/36000*(CONCATENATE(DAY($C$4),".",MONTH(G107),".",YEAR(G107))-G107))),F108*O107/36000*(G108-G107))) ->  | L108: =IF(G108="Всього:",SUM($L$5:L107),$E$4) ->  | M108: =IF(G108="Всього:",SUM($M$5:M107),IF($E$5="UAH",J108+L108+K108,J108+K108)) ->  | N108: =IF(G108="Всього:",SUM($N$4:N107),IF($E$5="UAH","",L108)) -> 
I109: =IF($G109="Всього:",SUM($I$4:I108),IF(AND(DAY($C$4)>=15,H109=1),K109+L109,$C$32)) ->  | J109: =IF($G109="Всього:",SUM($J$4:J108),IF(I109-SUM(K109:L109)<0,0,I109-SUM(K109:L109))) ->  | K109: =IF(G109="Всього:",SUM($K$5:K108),IF(F109<>F108,(F109*O108/36000*(G109-CONCATENATE(DAY($C$4),".",MONTH(G108),".",YEAR(G108)))+(F108*O108/36000*(CONCATENATE(DAY($C$4),".",MONTH(G108),".",YEAR(G108))-G108))),F109*O108/36000*(G109-G108))) ->  | L109: =IF(G109="Всього:",SUM($L$5:L108),$E$4) ->  | M109: =IF(G109="Всього:",SUM($M$5:M108),IF($E$5="UAH",J109+L109+K109,J109+K109)) ->  | N109: =IF(G109="Всього:",SUM($N$4:N108),IF($E$5="UAH","",L109)) -> 
I110: =IF($G110="Всього:",SUM($I$4:I109),IF(AND(DAY($C$4)>=15,H110=1),K110+L110,$C$32)) ->  | J110: =IF($G110="Всього:",SUM($J$4:J109),IF(I110-SUM(K110:L110)<0,0,I110-SUM(K110:L110))) ->  | K110: =IF(G110="Всього:",SUM($K$5:K109),IF(F110<>F109,(F110*O109/36000*(G110-CONCATENATE(DAY($C$4),".",MONTH(G109),".",YEAR(G109)))+(F109*O109/36000*(CONCATENATE(DAY($C$4),".",MONTH(G109),".",YEAR(G109))-G109))),F110*O109/36000*(G110-G109))) ->  | L110: =IF(G110="Всього:",SUM($L$5:L109),$E$4) ->  | M110: =IF(G110="Всього:",SUM($M$5:M109),IF($E$5="UAH",J110+L110+K110,J110+K110)) ->  | N110: =IF(G110="Всього:",SUM($N$4:N109),IF($E$5="UAH","",L110)) -> 
I111: =IF($G111="Всього:",SUM($I$4:I110),IF(AND(DAY($C$4)>=15,H111=1),K111+L111,$C$32)) ->  | J111: =IF($G111="Всього:",SUM($J$4:J110),IF(I111-SUM(K111:L111)<0,0,I111-SUM(K111:L111))) ->  | K111: =IF(G111="Всього:",SUM($K$5:K110),IF(F111<>F110,(F111*O110/36000*(G111-CONCATENATE(DAY($C$4),".",MONTH(G110),".",YEAR(G110)))+(F110*O110/36000*(CONCATENATE(DAY($C$4),".",MONTH(G110),".",YEAR(G110))-G110))),F111*O110/36000*(G111-G110))) ->  | L111: =IF(G111="Всього:",SUM($L$5:L110),$E$4) ->  | M111: =IF(G111="Всього:",SUM($M$5:M110),IF($E$5="UAH",J111+L111+K111,J111+K111)) ->  | N111: =IF(G111="Всього:",SUM($N$4:N110),IF($E$5="UAH","",L111)) -> 
I112: =IF($G112="Всього:",SUM($I$4:I111),IF(AND(DAY($C$4)>=15,H112=1),K112+L112,$C$32)) ->  | J112: =IF($G112="Всього:",SUM($J$4:J111),IF(I112-SUM(K112:L112)<0,0,I112-SUM(K112:L112))) ->  | K112: =IF(G112="Всього:",SUM($K$5:K111),IF(F112<>F111,(F112*O111/36000*(G112-CONCATENATE(DAY($C$4),".",MONTH(G111),".",YEAR(G111)))+(F111*O111/36000*(CONCATENATE(DAY($C$4),".",MONTH(G111),".",YEAR(G111))-G111))),F112*O111/36000*(G112-G111))) ->  | L112: =IF(G112="Всього:",SUM($L$5:L111),$E$4) ->  | M112: =IF(G112="Всього:",SUM($M$5:M111),IF($E$5="UAH",J112+L112+K112,J112+K112)) ->  | N112: =IF(G112="Всього:",SUM($N$4:N111),IF($E$5="UAH","",L112)) -> 
I113: =IF($G113="Всього:",SUM($I$4:I112),IF(AND(DAY($C$4)>=15,H113=1),K113+L113,$C$32)) ->  | J113: =IF($G113="Всього:",SUM($J$4:J112),IF(I113-SUM(K113:L113)<0,0,I113-SUM(K113:L113))) ->  | K113: =IF(G113="Всього:",SUM($K$5:K112),IF(F113<>F112,(F113*O112/36000*(G113-CONCATENATE(DAY($C$4),".",MONTH(G112),".",YEAR(G112)))+(F112*O112/36000*(CONCATENATE(DAY($C$4),".",MONTH(G112),".",YEAR(G112))-G112))),F113*O112/36000*(G113-G112))) ->  | L113: =IF(G113="Всього:",SUM($L$5:L112),$E$4) ->  | M113: =IF(G113="Всього:",SUM($M$5:M112),IF($E$5="UAH",J113+L113+K113,J113+K113)) ->  | N113: =IF(G113="Всього:",SUM($N$4:N112),IF($E$5="UAH","",L113)) -> 
I114: =IF($G114="Всього:",SUM($I$4:I113),IF(AND(DAY($C$4)>=15,H114=1),K114+L114,$C$32)) ->  | J114: =IF($G114="Всього:",SUM($J$4:J113),IF(I114-SUM(K114:L114)<0,0,I114-SUM(K114:L114))) ->  | K114: =IF(G114="Всього:",SUM($K$5:K113),IF(F114<>F113,(F114*O113/36000*(G114-CONCATENATE(DAY($C$4),".",MONTH(G113),".",YEAR(G113)))+(F113*O113/36000*(CONCATENATE(DAY($C$4),".",MONTH(G113),".",YEAR(G113))-G113))),F114*O113/36000*(G114-G113))) ->  | L114: =IF(G114="Всього:",SUM($L$5:L113),$E$4) ->  | M114: =IF(G114="Всього:",SUM($M$5:M113),IF($E$5="UAH",J114+L114+K114,J114+K114)) ->  | N114: =IF(G114="Всього:",SUM($N$4:N113),IF($E$5="UAH","",L114)) -> 
I115: =IF($G115="Всього:",SUM($I$4:I114),IF(AND(DAY($C$4)>=15,H115=1),K115+L115,$C$32)) ->  | J115: =IF($G115="Всього:",SUM($J$4:J114),IF(I115-SUM(K115:L115)<0,0,I115-SUM(K115:L115))) ->  | K115: =IF(G115="Всього:",SUM($K$5:K114),IF(F115<>F114,(F115*O114/36000*(G115-CONCATENATE(DAY($C$4),".",MONTH(G114),".",YEAR(G114)))+(F114*O114/36000*(CONCATENATE(DAY($C$4),".",MONTH(G114),".",YEAR(G114))-G114))),F115*O114/36000*(G115-G114))) ->  | L115: =IF(G115="Всього:",SUM($L$5:L114),$E$4) ->  | M115: =IF(G115="Всього:",SUM($M$5:M114),IF($E$5="UAH",J115+L115+K115,J115+K115)) ->  | N115: =IF(G115="Всього:",SUM($N$4:N114),IF($E$5="UAH","",L115)) -> 
I116: =IF($G116="Всього:",SUM($I$4:I115),IF(AND(DAY($C$4)>=15,H116=1),K116+L116,$C$32)) ->  | J116: =IF($G116="Всього:",SUM($J$4:J115),IF(I116-SUM(K116:L116)<0,0,I116-SUM(K116:L116))) ->  | K116: =IF(G116="Всього:",SUM($K$5:K115),IF(F116<>F115,(F116*O115/36000*(G116-CONCATENATE(DAY($C$4),".",MONTH(G115),".",YEAR(G115)))+(F115*O115/36000*(CONCATENATE(DAY($C$4),".",MONTH(G115),".",YEAR(G115))-G115))),F116*O115/36000*(G116-G115))) ->  | L116: =IF(G116="Всього:",SUM($L$5:L115),$E$4) ->  | M116: =IF(G116="Всього:",SUM($M$5:M115),IF($E$5="UAH",J116+L116+K116,J116+K116)) ->  | N116: =IF(G116="Всього:",SUM($N$4:N115),IF($E$5="UAH","",L116)) -> 
I117: =IF($G117="Всього:",SUM($I$4:I116),IF(AND(DAY($C$4)>=15,H117=1),K117+L117,$C$32)) ->  | J117: =IF($G117="Всього:",SUM($J$4:J116),IF(I117-SUM(K117:L117)<0,0,I117-SUM(K117:L117))) ->  | K117: =IF(G117="Всього:",SUM($K$5:K116),IF(F117<>F116,(F117*O116/36000*(G117-CONCATENATE(DAY($C$4),".",MONTH(G116),".",YEAR(G116)))+(F116*O116/36000*(CONCATENATE(DAY($C$4),".",MONTH(G116),".",YEAR(G116))-G116))),F117*O116/36000*(G117-G116))) ->  | L117: =IF(G117="Всього:",SUM($L$5:L116),$E$4) ->  | M117: =IF(G117="Всього:",SUM($M$5:M116),IF($E$5="UAH",J117+L117+K117,J117+K117)) ->  | N117: =IF(G117="Всього:",SUM($N$4:N116),IF($E$5="UAH","",L117)) -> 
I118: =IF($G118="Всього:",SUM($I$4:I117),IF(AND(DAY($C$4)>=15,H118=1),K118+L118,$C$32)) ->  | J118: =IF($G118="Всього:",SUM($J$4:J117),IF(I118-SUM(K118:L118)<0,0,I118-SUM(K118:L118))) ->  | K118: =IF(G118="Всього:",SUM($K$5:K117),IF(F118<>F117,(F118*O117/36000*(G118-CONCATENATE(DAY($C$4),".",MONTH(G117),".",YEAR(G117)))+(F117*O117/36000*(CONCATENATE(DAY($C$4),".",MONTH(G117),".",YEAR(G117))-G117))),F118*O117/36000*(G118-G117))) ->  | L118: =IF(G118="Всього:",SUM($L$5:L117),$E$4) ->  | M118: =IF(G118="Всього:",SUM($M$5:M117),IF($E$5="UAH",J118+L118+K118,J118+K118)) ->  | N118: =IF(G118="Всього:",SUM($N$4:N117),IF($E$5="UAH","",L118)) -> 
I119: =IF($G119="Всього:",SUM($I$4:I118),IF(AND(DAY($C$4)>=15,H119=1),K119+L119,$C$32)) ->  | J119: =IF($G119="Всього:",SUM($J$4:J118),IF(I119-SUM(K119:L119)<0,0,I119-SUM(K119:L119))) ->  | K119: =IF(G119="Всього:",SUM($K$5:K118),IF(F119<>F118,(F119*O118/36000*(G119-CONCATENATE(DAY($C$4),".",MONTH(G118),".",YEAR(G118)))+(F118*O118/36000*(CONCATENATE(DAY($C$4),".",MONTH(G118),".",YEAR(G118))-G118))),F119*O118/36000*(G119-G118))) ->  | L119: =IF(G119="Всього:",SUM($L$5:L118),$E$4) ->  | M119: =IF(G119="Всього:",SUM($M$5:M118),IF($E$5="UAH",J119+L119+K119,J119+K119)) ->  | N119: =IF(G119="Всього:",SUM($N$4:N118),IF($E$5="UAH","",L119)) -> 
I120: =IF($G120="Всього:",SUM($I$4:I119),IF(AND(DAY($C$4)>=15,H120=1),K120+L120,$C$32)) ->  | J120: =IF($G120="Всього:",SUM($J$4:J119),IF(I120-SUM(K120:L120)<0,0,I120-SUM(K120:L120))) ->  | K120: =IF(G120="Всього:",SUM($K$5:K119),IF(F120<>F119,(F120*O119/36000*(G120-CONCATENATE(DAY($C$4),".",MONTH(G119),".",YEAR(G119)))+(F119*O119/36000*(CONCATENATE(DAY($C$4),".",MONTH(G119),".",YEAR(G119))-G119))),F120*O119/36000*(G120-G119))) ->  | L120: =IF(G120="Всього:",SUM($L$5:L119),$E$4) ->  | M120: =IF(G120="Всього:",SUM($M$5:M119),IF($E$5="UAH",J120+L120+K120,J120+K120)) ->  | N120: =IF(G120="Всього:",SUM($N$4:N119),IF($E$5="UAH","",L120)) -> 
I121: =IF($G121="Всього:",SUM($I$4:I120),IF(AND(DAY($C$4)>=15,H121=1),K121+L121,$C$32)) ->  | J121: =IF($G121="Всього:",SUM($J$4:J120),IF(I121-SUM(K121:L121)<0,0,I121-SUM(K121:L121))) ->  | K121: =IF(G121="Всього:",SUM($K$5:K120),IF(F121<>F120,(F121*O120/36000*(G121-CONCATENATE(DAY($C$4),".",MONTH(G120),".",YEAR(G120)))+(F120*O120/36000*(CONCATENATE(DAY($C$4),".",MONTH(G120),".",YEAR(G120))-G120))),F121*O120/36000*(G121-G120))) ->  | L121: =IF(G121="Всього:",SUM($L$5:L120),$E$4) ->  | M121: =IF(G121="Всього:",SUM($M$5:M120),IF($E$5="UAH",J121+L121+K121,J121+K121)) ->  | N121: =IF(G121="Всього:",SUM($N$4:N120),IF($E$5="UAH","",L121)) -> 
I122: =IF($G122="Всього:",SUM($I$4:I121),IF(AND(DAY($C$4)>=15,H122=1),K122+L122,$C$32)) ->  | J122: =IF($G122="Всього:",SUM($J$4:J121),IF(I122-SUM(K122:L122)<0,0,I122-SUM(K122:L122))) ->  | K122: =IF(G122="Всього:",SUM($K$5:K121),IF(F122<>F121,(F122*O121/36000*(G122-CONCATENATE(DAY($C$4),".",MONTH(G121),".",YEAR(G121)))+(F121*O121/36000*(CONCATENATE(DAY($C$4),".",MONTH(G121),".",YEAR(G121))-G121))),F122*O121/36000*(G122-G121))) ->  | L122: =IF(G122="Всього:",SUM($L$5:L121),$E$4) ->  | M122: =IF(G122="Всього:",SUM($M$5:M121),IF($E$5="UAH",J122+L122+K122,J122+K122)) ->  | N122: =IF(G122="Всього:",SUM($N$4:N121),IF($E$5="UAH","",L122)) -> 
I123: =IF($G123="Всього:",SUM($I$4:I122),IF(AND(DAY($C$4)>=15,H123=1),K123+L123,$C$32)) ->  | J123: =IF($G123="Всього:",SUM($J$4:J122),IF(I123-SUM(K123:L123)<0,0,I123-SUM(K123:L123))) ->  | K123: =IF(G123="Всього:",SUM($K$5:K122),IF(F123<>F122,(F123*O122/36000*(G123-CONCATENATE(DAY($C$4),".",MONTH(G122),".",YEAR(G122)))+(F122*O122/36000*(CONCATENATE(DAY($C$4),".",MONTH(G122),".",YEAR(G122))-G122))),F123*O122/36000*(G123-G122))) ->  | L123: =IF(G123="Всього:",SUM($L$5:L122),$E$4) ->  | M123: =IF(G123="Всього:",SUM($M$5:M122),IF($E$5="UAH",J123+L123+K123,J123+K123)) ->  | N123: =IF(G123="Всього:",SUM($N$4:N122),IF($E$5="UAH","",L123)) -> 
I124: =IF($G124="Всього:",SUM($I$4:I123),IF(AND(DAY($C$4)>=15,H124=1),K124+L124,$C$32)) ->  | J124: =IF($G124="Всього:",SUM($J$4:J123),IF(I124-SUM(K124:L124)<0,0,I124-SUM(K124:L124))) ->  | K124: =IF(G124="Всього:",SUM($K$5:K123),IF(F124<>F123,(F124*O123/36000*(G124-CONCATENATE(DAY($C$4),".",MONTH(G123),".",YEAR(G123)))+(F123*O123/36000*(CONCATENATE(DAY($C$4),".",MONTH(G123),".",YEAR(G123))-G123))),F124*O123/36000*(G124-G123))) ->  | L124: =IF(G124="Всього:",SUM($L$5:L123),$E$4) ->  | M124: =IF(G124="Всього:",SUM($M$5:M123),IF($E$5="UAH",J124+L124+K124,J124+K124)) ->  | N124: =IF(G124="Всього:",SUM($N$4:N123),IF($E$5="UAH","",L124)) -> 
I125: =IF($G125="Всього:",SUM($I$4:I124),IF(AND(DAY($C$4)>=15,H125=1),K125+L125,$C$32)) ->  | J125: =IF($G125="Всього:",SUM($J$4:J124),IF(I125-SUM(K125:L125)<0,0,I125-SUM(K125:L125))) ->  | K125: =IF(G125="Всього:",SUM($K$5:K124),IF(F125<>F124,(F125*O124/36000*(G125-CONCATENATE(DAY($C$4),".",MONTH(G124),".",YEAR(G124)))+(F124*O124/36000*(CONCATENATE(DAY($C$4),".",MONTH(G124),".",YEAR(G124))-G124))),F125*O124/36000*(G125-G124))) ->  | L125: =IF(G125="Всього:",SUM($L$5:L124),$E$4) ->  | M125: =IF(G125="Всього:",SUM($M$5:M124),IF($E$5="UAH",J125+L125+K125,J125+K125)) ->  | N125: =IF(G125="Всього:",SUM($N$4:N124),IF($E$5="UAH","",L125)) -> 
I126: =IF($G126="Всього:",SUM($I$4:I125),IF(AND(DAY($C$4)>=15,H126=1),K126+L126,$C$32)) ->  | J126: =IF($G126="Всього:",SUM($J$4:J125),IF(I126-SUM(K126:L126)<0,0,I126-SUM(K126:L126))) ->  | K126: =IF(G126="Всього:",SUM($K$5:K125),IF(F126<>F125,(F126*O125/36000*(G126-CONCATENATE(DAY($C$4),".",MONTH(G125),".",YEAR(G125)))+(F125*O125/36000*(CONCATENATE(DAY($C$4),".",MONTH(G125),".",YEAR(G125))-G125))),F126*O125/36000*(G126-G125))) ->  | L126: =IF(G126="Всього:",SUM($L$5:L125),$E$4) ->  | M126: =IF(G126="Всього:",SUM($M$5:M125),IF($E$5="UAH",J126+L126+K126,J126+K126)) ->  | N126: =IF(G126="Всього:",SUM($N$4:N125),IF($E$5="UAH","",L126)) -> 
I127: =IF($G127="Всього:",SUM($I$4:I126),IF(AND(DAY($C$4)>=15,H127=1),K127+L127,$C$32)) ->  | J127: =IF($G127="Всього:",SUM($J$4:J126),IF(I127-SUM(K127:L127)<0,0,I127-SUM(K127:L127))) ->  | K127: =IF(G127="Всього:",SUM($K$5:K126),IF(F127<>F126,(F127*O126/36000*(G127-CONCATENATE(DAY($C$4),".",MONTH(G126),".",YEAR(G126)))+(F126*O126/36000*(CONCATENATE(DAY($C$4),".",MONTH(G126),".",YEAR(G126))-G126))),F127*O126/36000*(G127-G126))) ->  | L127: =IF(G127="Всього:",SUM($L$5:L126),$E$4) ->  | M127: =IF(G127="Всього:",SUM($M$5:M126),IF($E$5="UAH",J127+L127+K127,J127+K127)) ->  | N127: =IF(G127="Всього:",SUM($N$4:N126),IF($E$5="UAH","",L127)) -> 
I128: =IF($G128="Всього:",SUM($I$4:I127),IF(AND(DAY($C$4)>=15,H128=1),K128+L128,$C$32)) ->  | J128: =IF($G128="Всього:",SUM($J$4:J127),IF(I128-SUM(K128:L128)<0,0,I128-SUM(K128:L128))) ->  | K128: =IF(G128="Всього:",SUM($K$5:K127),IF(F128<>F127,(F128*O127/36000*(G128-CONCATENATE(DAY($C$4),".",MONTH(G127),".",YEAR(G127)))+(F127*O127/36000*(CONCATENATE(DAY($C$4),".",MONTH(G127),".",YEAR(G127))-G127))),F128*O127/36000*(G128-G127))) ->  | L128: =IF(G128="Всього:",SUM($L$5:L127),$E$4) ->  | M128: =IF(G128="Всього:",SUM($M$5:M127),IF($E$5="UAH",J128+L128+K128,J128+K128)) ->  | N128: =IF(G128="Всього:",SUM($N$4:N127),IF($E$5="UAH","",L128)) -> 
I129: =IF($G129="Всього:",SUM($I$4:I128),IF(AND(DAY($C$4)>=15,H129=1),K129+L129,$C$32)) ->  | J129: =IF($G129="Всього:",SUM($J$4:J128),IF(I129-SUM(K129:L129)<0,0,I129-SUM(K129:L129))) ->  | K129: =IF(G129="Всього:",SUM($K$5:K128),IF(F129<>F128,(F129*O128/36000*(G129-CONCATENATE(DAY($C$4),".",MONTH(G128),".",YEAR(G128)))+(F128*O128/36000*(CONCATENATE(DAY($C$4),".",MONTH(G128),".",YEAR(G128))-G128))),F129*O128/36000*(G129-G128))) ->  | L129: =IF(G129="Всього:",SUM($L$5:L128),$E$4) ->  | M129: =IF(G129="Всього:",SUM($M$5:M128),IF($E$5="UAH",J129+L129+K129,J129+K129)) ->  | N129: =IF(G129="Всього:",SUM($N$4:N128),IF($E$5="UAH","",L129)) -> 
I130: =IF($G130="Всього:",SUM($I$4:I129),IF(AND(DAY($C$4)>=15,H130=1),K130+L130,$C$32)) ->  | J130: =IF($G130="Всього:",SUM($J$4:J129),IF(I130-SUM(K130:L130)<0,0,I130-SUM(K130:L130))) ->  | K130: =IF(G130="Всього:",SUM($K$5:K129),IF(F130<>F129,(F130*O129/36000*(G130-CONCATENATE(DAY($C$4),".",MONTH(G129),".",YEAR(G129)))+(F129*O129/36000*(CONCATENATE(DAY($C$4),".",MONTH(G129),".",YEAR(G129))-G129))),F130*O129/36000*(G130-G129))) ->  | L130: =IF(G130="Всього:",SUM($L$5:L129),$E$4) ->  | M130: =IF(G130="Всього:",SUM($M$5:M129),IF($E$5="UAH",J130+L130+K130,J130+K130)) ->  | N130: =IF(G130="Всього:",SUM($N$4:N129),IF($E$5="UAH","",L130)) -> 
I131: =IF($G131="Всього:",SUM($I$4:I130),IF(AND(DAY($C$4)>=15,H131=1),K131+L131,$C$32)) ->  | J131: =IF($G131="Всього:",SUM($J$4:J130),IF(I131-SUM(K131:L131)<0,0,I131-SUM(K131:L131))) ->  | K131: =IF(G131="Всього:",SUM($K$5:K130),IF(F131<>F130,(F131*O130/36000*(G131-CONCATENATE(DAY($C$4),".",MONTH(G130),".",YEAR(G130)))+(F130*O130/36000*(CONCATENATE(DAY($C$4),".",MONTH(G130),".",YEAR(G130))-G130))),F131*O130/36000*(G131-G130))) ->  | L131: =IF(G131="Всього:",SUM($L$5:L130),$E$4) ->  | M131: =IF(G131="Всього:",SUM($M$5:M130),IF($E$5="UAH",J131+L131+K131,J131+K131)) ->  | N131: =IF(G131="Всього:",SUM($N$4:N130),IF($E$5="UAH","",L131)) -> 
I132: =IF($G132="Всього:",SUM($I$4:I131),IF(AND(DAY($C$4)>=15,H132=1),K132+L132,$C$32)) ->  | J132: =IF($G132="Всього:",SUM($J$4:J131),IF(I132-SUM(K132:L132)<0,0,I132-SUM(K132:L132))) ->  | K132: =IF(G132="Всього:",SUM($K$5:K131),IF(F132<>F131,(F132*O131/36000*(G132-CONCATENATE(DAY($C$4),".",MONTH(G131),".",YEAR(G131)))+(F131*O131/36000*(CONCATENATE(DAY($C$4),".",MONTH(G131),".",YEAR(G131))-G131))),F132*O131/36000*(G132-G131))) ->  | L132: =IF(G132="Всього:",SUM($L$5:L131),$E$4) ->  | M132: =IF(G132="Всього:",SUM($M$5:M131),IF($E$5="UAH",J132+L132+K132,J132+K132)) ->  | N132: =IF(G132="Всього:",SUM($N$4:N131),IF($E$5="UAH","",L132)) -> 
I133: =IF($G133="Всього:",SUM($I$4:I132),IF(AND(DAY($C$4)>=15,H133=1),K133+L133,$C$32)) ->  | J133: =IF($G133="Всього:",SUM($J$4:J132),IF(I133-SUM(K133:L133)<0,0,I133-SUM(K133:L133))) ->  | K133: =IF(G133="Всього:",SUM($K$5:K132),IF(F133<>F132,(F133*O132/36000*(G133-CONCATENATE(DAY($C$4),".",MONTH(G132),".",YEAR(G132)))+(F132*O132/36000*(CONCATENATE(DAY($C$4),".",MONTH(G132),".",YEAR(G132))-G132))),F133*O132/36000*(G133-G132))) ->  | L133: =IF(G133="Всього:",SUM($L$5:L132),$E$4) ->  | M133: =IF(G133="Всього:",SUM($M$5:M132),IF($E$5="UAH",J133+L133+K133,J133+K133)) ->  | N133: =IF(G133="Всього:",SUM($N$4:N132),IF($E$5="UAH","",L133)) ->  | O133: =O132-J133 -> 
F134: =IF(G134="Всього:","",IF(AND(G134>$B$9,G134<=$B$10),$C$16,IF(AND(G134>$B$9,G134<=$B$11),$D$16,IF(AND(G134>$B$10,G134<=$B$14),$E$16,$B$16)))) ->  | H134: =IF(H133>$E$8,"",H133+1) ->  | I134: =IF($G134="Всього:",SUM($I$4:I133),IF(AND(DAY($C$4)>=15,H134=1),K134+L134,$C$32)) ->  | J134: =IF($G134="Всього:",SUM($J$4:J133),IF(I134-SUM(K134:L134)<0,0,I134-SUM(K134:L134))) ->  | K134: =IF(G134="Всього:",SUM($K$5:K133),IF(F134<>F133,(F134*O133/36000*(G134-CONCATENATE(DAY($C$4),".",MONTH(G133),".",YEAR(G133)))+(F133*O133/36000*(CONCATENATE(DAY($C$4),".",MONTH(G133),".",YEAR(G133))-G133))),F134*O133/36000*(G134-G133))) ->  | L134: =IF(G134="Всього:",SUM($L$5:L133),$E$4) ->  | M134: =IF(G134="Всього:",SUM($M$5:M133),IF($E$5="UAH",J134+L134+K134,J134+K134)) ->  | N134: =IF(G134="Всього:",SUM($N$4:N133),IF($E$5="UAH","",L134)) -> 
G135: =IF(H134=$E$8,"Всього:",IF($E$3+1=H135,$B$14,DATE(YEAR(G134),MONTH(G134)+1,IF($B$7<>"",DAY(IF($B$7>DAY(EOMONTH(G134,1)),EOMONTH(G134,1),$B$7)),DAY(1))))) ->  | I135: =IF($G135="Всього:",SUM($I$4:I134),IF(AND(DAY($C$4)>=15,H135=1),K135+L135,$C$32)) ->  | J135: =IF($G135="Всього:",SUM($J$4:J134),IF(I135-SUM(K135:L135)<0,0,I135-SUM(K135:L135))) ->  | K135: =IF(G135="Всього:",SUM($K$5:K134),IF(F135<>F134,(F135*O134/36000*(G135-CONCATENATE(DAY($C$4),".",MONTH(G134),".",YEAR(G134)))+(F134*O134/36000*(CONCATENATE(DAY($C$4),".",MONTH(G134),".",YEAR(G134))-G134))),F135*O134/36000*(G135-G134))) ->  | L135: =IF(G135="Всього:",SUM($L$5:L134),$E$4) ->  | M135: =IF(G135="Всього:",SUM($M$5:M134),IF($E$5="UAH",J135+L135+K135,J135+K135)) ->  | N135: =IF(G135="Всього:",SUM($N$4:N134),IF($E$5="UAH","",L135)) -> 
I136: =IF($G136="Всього:",SUM($I$4:I135),IF(AND(DAY($C$4)>=15,H136=1),K136+L136,$C$32)) ->  | J136: =IF($G136="Всього:",SUM($J$4:J135),IF(I136-SUM(K136:L136)<0,0,I136-SUM(K136:L136))) ->  | K136: =IF(G136="Всього:",SUM($K$5:K135),IF(F136<>F135,(F136*O135/36000*(G136-CONCATENATE(DAY($C$4),".",MONTH(G135),".",YEAR(G135)))+(F135*O135/36000*(CONCATENATE(DAY($C$4),".",MONTH(G135),".",YEAR(G135))-G135))),F136*O135/36000*(G136-G135))) ->  | L136: =IF(G136="Всього:",SUM($L$5:L135),$E$4) ->  | M136: =IF(G136="Всього:",SUM($M$5:M135),IF($E$5="UAH",J136+L136+K136,J136+K136)) ->  | N136: =IF(G136="Всього:",SUM($N$4:N135),IF($E$5="UAH","",L136)) -> 
I137: =IF($G137="Всього:",SUM($I$4:I136),IF(AND(DAY($C$4)>=15,H137=1),K137+L137,$C$32)) ->  | J137: =IF($G137="Всього:",SUM($J$4:J136),IF(I137-SUM(K137:L137)<0,0,I137-SUM(K137:L137))) ->  | K137: =IF(G137="Всього:",SUM($K$5:K136),IF(F137<>F136,(F137*O136/36000*(G137-CONCATENATE(DAY($C$4),".",MONTH(G136),".",YEAR(G136)))+(F136*O136/36000*(CONCATENATE(DAY($C$4),".",MONTH(G136),".",YEAR(G136))-G136))),F137*O136/36000*(G137-G136))) ->  | L137: =IF(G137="Всього:",SUM($L$5:L136),$E$4) ->  | M137: =IF(G137="Всього:",SUM($M$5:M136),IF($E$5="UAH",J137+L137+K137,J137+K137)) ->  | N137: =IF(G137="Всього:",SUM($N$4:N136),IF($E$5="UAH","",L137)) -> 
I138: =IF($G138="Всього:",SUM($I$4:I137),IF(AND(DAY($C$4)>=15,H138=1),K138+L138,$C$32)) ->  | J138: =IF($G138="Всього:",SUM($J$4:J137),IF(I138-SUM(K138:L138)<0,0,I138-SUM(K138:L138))) ->  | K138: =IF(G138="Всього:",SUM($K$5:K137),IF(F138<>F137,(F138*O137/36000*(G138-CONCATENATE(DAY($C$4),".",MONTH(G137),".",YEAR(G137)))+(F137*O137/36000*(CONCATENATE(DAY($C$4),".",MONTH(G137),".",YEAR(G137))-G137))),F138*O137/36000*(G138-G137))) ->  | L138: =IF(G138="Всього:",SUM($L$5:L137),$E$4) ->  | M138: =IF(G138="Всього:",SUM($M$5:M137),IF($E$5="UAH",J138+L138+K138,J138+K138)) ->  | N138: =IF(G138="Всього:",SUM($N$4:N137),IF($E$5="UAH","",L138)) -> 
I139: =IF($G139="Всього:",SUM($I$4:I138),IF(AND(DAY($C$4)>=15,H139=1),K139+L139,$C$32)) ->  | J139: =IF($G139="Всього:",SUM($J$4:J138),IF(I139-SUM(K139:L139)<0,0,I139-SUM(K139:L139))) ->  | K139: =IF(G139="Всього:",SUM($K$5:K138),IF(F139<>F138,(F139*O138/36000*(G139-CONCATENATE(DAY($C$4),".",MONTH(G138),".",YEAR(G138)))+(F138*O138/36000*(CONCATENATE(DAY($C$4),".",MONTH(G138),".",YEAR(G138))-G138))),F139*O138/36000*(G139-G138))) ->  | L139: =IF(G139="Всього:",SUM($L$5:L138),$E$4) ->  | M139: =IF(G139="Всього:",SUM($M$5:M138),IF($E$5="UAH",J139+L139+K139,J139+K139)) ->  | N139: =IF(G139="Всього:",SUM($N$4:N138),IF($E$5="UAH","",L139)) -> 
I140: =IF($G140="Всього:",SUM($I$4:I139),IF(AND(DAY($C$4)>=15,H140=1),K140+L140,$C$32)) ->  | J140: =IF($G140="Всього:",SUM($J$4:J139),IF(I140-SUM(K140:L140)<0,0,I140-SUM(K140:L140))) ->  | K140: =IF(G140="Всього:",SUM($K$5:K139),IF(F140<>F139,(F140*O139/36000*(G140-CONCATENATE(DAY($C$4),".",MONTH(G139),".",YEAR(G139)))+(F139*O139/36000*(CONCATENATE(DAY($C$4),".",MONTH(G139),".",YEAR(G139))-G139))),F140*O139/36000*(G140-G139))) ->  | L140: =IF(G140="Всього:",SUM($L$5:L139),$E$4) ->  | M140: =IF(G140="Всього:",SUM($M$5:M139),IF($E$5="UAH",J140+L140+K140,J140+K140)) ->  | N140: =IF(G140="Всього:",SUM($N$4:N139),IF($E$5="UAH","",L140)) -> 
I141: =IF($G141="Всього:",SUM($I$4:I140),IF(AND(DAY($C$4)>=15,H141=1),K141+L141,$C$32)) ->  | J141: =IF($G141="Всього:",SUM($J$4:J140),IF(I141-SUM(K141:L141)<0,0,I141-SUM(K141:L141))) ->  | K141: =IF(G141="Всього:",SUM($K$5:K140),IF(F141<>F140,(F141*O140/36000*(G141-CONCATENATE(DAY($C$4),".",MONTH(G140),".",YEAR(G140)))+(F140*O140/36000*(CONCATENATE(DAY($C$4),".",MONTH(G140),".",YEAR(G140))-G140))),F141*O140/36000*(G141-G140))) ->  | L141: =IF(G141="Всього:",SUM($L$5:L140),$E$4) ->  | M141: =IF(G141="Всього:",SUM($M$5:M140),IF($E$5="UAH",J141+L141+K141,J141+K141)) ->  | N141: =IF(G141="Всього:",SUM($N$4:N140),IF($E$5="UAH","",L141)) -> 
I142: =IF($G142="Всього:",SUM($I$4:I141),IF(AND(DAY($C$4)>=15,H142=1),K142+L142,$C$32)) ->  | J142: =IF($G142="Всього:",SUM($J$4:J141),IF(I142-SUM(K142:L142)<0,0,I142-SUM(K142:L142))) ->  | K142: =IF(G142="Всього:",SUM($K$5:K141),IF(F142<>F141,(F142*O141/36000*(G142-CONCATENATE(DAY($C$4),".",MONTH(G141),".",YEAR(G141)))+(F141*O141/36000*(CONCATENATE(DAY($C$4),".",MONTH(G141),".",YEAR(G141))-G141))),F142*O141/36000*(G142-G141))) ->  | L142: =IF(G142="Всього:",SUM($L$5:L141),$E$4) ->  | M142: =IF(G142="Всього:",SUM($M$5:M141),IF($E$5="UAH",J142+L142+K142,J142+K142)) ->  | N142: =IF(G142="Всього:",SUM($N$4:N141),IF($E$5="UAH","",L142)) -> 
I143: =IF($G143="Всього:",SUM($I$4:I142),IF(AND(DAY($C$4)>=15,H143=1),K143+L143,$C$32)) ->  | J143: =IF($G143="Всього:",SUM($J$4:J142),IF(I143-SUM(K143:L143)<0,0,I143-SUM(K143:L143))) ->  | K143: =IF(G143="Всього:",SUM($K$5:K142),IF(F143<>F142,(F143*O142/36000*(G143-CONCATENATE(DAY($C$4),".",MONTH(G142),".",YEAR(G142)))+(F142*O142/36000*(CONCATENATE(DAY($C$4),".",MONTH(G142),".",YEAR(G142))-G142))),F143*O142/36000*(G143-G142))) ->  | L143: =IF(G143="Всього:",SUM($L$5:L142),$E$4) ->  | M143: =IF(G143="Всього:",SUM($M$5:M142),IF($E$5="UAH",J143+L143+K143,J143+K143)) ->  | N143: =IF(G143="Всього:",SUM($N$4:N142),IF($E$5="UAH","",L143)) -> 
I144: =IF($G144="Всього:",SUM($I$4:I143),IF(AND(DAY($C$4)>=15,H144=1),K144+L144,$C$32)) ->  | J144: =IF($G144="Всього:",SUM($J$4:J143),IF(I144-SUM(K144:L144)<0,0,I144-SUM(K144:L144))) ->  | K144: =IF(G144="Всього:",SUM($K$5:K143),IF(F144<>F143,(F144*O143/36000*(G144-CONCATENATE(DAY($C$4),".",MONTH(G143),".",YEAR(G143)))+(F143*O143/36000*(CONCATENATE(DAY($C$4),".",MONTH(G143),".",YEAR(G143))-G143))),F144*O143/36000*(G144-G143))) ->  | L144: =IF(G144="Всього:",SUM($L$5:L143),$E$4) ->  | M144: =IF(G144="Всього:",SUM($M$5:M143),IF($E$5="UAH",J144+L144+K144,J144+K144)) ->  | N144: =IF(G144="Всього:",SUM($N$4:N143),IF($E$5="UAH","",L144)) -> 
I145: =IF($G145="Всього:",SUM($I$4:I144),IF(AND(DAY($C$4)>=15,H145=1),K145+L145,$C$32)) ->  | J145: =IF($G145="Всього:",SUM($J$4:J144),IF(I145-SUM(K145:L145)<0,0,I145-SUM(K145:L145))) ->  | K145: =IF(G145="Всього:",SUM($K$5:K144),IF(F145<>F144,(F145*O144/36000*(G145-CONCATENATE(DAY($C$4),".",MONTH(G144),".",YEAR(G144)))+(F144*O144/36000*(CONCATENATE(DAY($C$4),".",MONTH(G144),".",YEAR(G144))-G144))),F145*O144/36000*(G145-G144))) ->  | L145: =IF(G145="Всього:",SUM($L$5:L144),$E$4) ->  | M145: =IF(G145="Всього:",SUM($M$5:M144),IF($E$5="UAH",J145+L145+K145,J145+K145)) ->  | N145: =IF(G145="Всього:",SUM($N$4:N144),IF($E$5="UAH","",L145)) -> 
I146: =IF($G146="Всього:",SUM($I$4:I145),IF(AND(DAY($C$4)>=15,H146=1),K146+L146,$C$32)) ->  | J146: =IF($G146="Всього:",SUM($J$4:J145),IF(I146-SUM(K146:L146)<0,0,I146-SUM(K146:L146))) ->  | K146: =IF(G146="Всього:",SUM($K$5:K145),IF(F146<>F145,(F146*O145/36000*(G146-CONCATENATE(DAY($C$4),".",MONTH(G145),".",YEAR(G145)))+(F145*O145/36000*(CONCATENATE(DAY($C$4),".",MONTH(G145),".",YEAR(G145))-G145))),F146*O145/36000*(G146-G145))) ->  | L146: =IF(G146="Всього:",SUM($L$5:L145),$E$4) ->  | M146: =IF(G146="Всього:",SUM($M$5:M145),IF($E$5="UAH",J146+L146+K146,J146+K146)) ->  | N146: =IF(G146="Всього:",SUM($N$4:N145),IF($E$5="UAH","",L146)) -> 
I147: =IF($G147="Всього:",SUM($I$4:I146),IF(AND(DAY($C$4)>=15,H147=1),K147+L147,$C$32)) ->  | J147: =IF($G147="Всього:",SUM($J$4:J146),IF(I147-SUM(K147:L147)<0,0,I147-SUM(K147:L147))) ->  | K147: =IF(G147="Всього:",SUM($K$5:K146),IF(F147<>F146,(F147*O146/36000*(G147-CONCATENATE(DAY($C$4),".",MONTH(G146),".",YEAR(G146)))+(F146*O146/36000*(CONCATENATE(DAY($C$4),".",MONTH(G146),".",YEAR(G146))-G146))),F147*O146/36000*(G147-G146))) ->  | L147: =IF(G147="Всього:",SUM($L$5:L146),$E$4) ->  | M147: =IF(G147="Всього:",SUM($M$5:M146),IF($E$5="UAH",J147+L147+K147,J147+K147)) ->  | N147: =IF(G147="Всього:",SUM($N$4:N146),IF($E$5="UAH","",L147)) -> 
I148: =IF($G148="Всього:",SUM($I$4:I147),IF(AND(DAY($C$4)>=15,H148=1),K148+L148,$C$32)) ->  | J148: =IF($G148="Всього:",SUM($J$4:J147),IF(I148-SUM(K148:L148)<0,0,I148-SUM(K148:L148))) ->  | K148: =IF(G148="Всього:",SUM($K$5:K147),IF(F148<>F147,(F148*O147/36000*(G148-CONCATENATE(DAY($C$4),".",MONTH(G147),".",YEAR(G147)))+(F147*O147/36000*(CONCATENATE(DAY($C$4),".",MONTH(G147),".",YEAR(G147))-G147))),F148*O147/36000*(G148-G147))) ->  | L148: =IF(G148="Всього:",SUM($L$5:L147),$E$4) ->  | M148: =IF(G148="Всього:",SUM($M$5:M147),IF($E$5="UAH",J148+L148+K148,J148+K148)) ->  | N148: =IF(G148="Всього:",SUM($N$4:N147),IF($E$5="UAH","",L148)) -> 
I149: =IF($G149="Всього:",SUM($I$4:I148),IF(AND(DAY($C$4)>=15,H149=1),K149+L149,$C$32)) ->  | J149: =IF($G149="Всього:",SUM($J$4:J148),IF(I149-SUM(K149:L149)<0,0,I149-SUM(K149:L149))) ->  | K149: =IF(G149="Всього:",SUM($K$5:K148),IF(F149<>F148,(F149*O148/36000*(G149-CONCATENATE(DAY($C$4),".",MONTH(G148),".",YEAR(G148)))+(F148*O148/36000*(CONCATENATE(DAY($C$4),".",MONTH(G148),".",YEAR(G148))-G148))),F149*O148/36000*(G149-G148))) ->  | L149: =IF(G149="Всього:",SUM($L$5:L148),$E$4) ->  | M149: =IF(G149="Всього:",SUM($M$5:M148),IF($E$5="UAH",J149+L149+K149,J149+K149)) ->  | N149: =IF(G149="Всього:",SUM($N$4:N148),IF($E$5="UAH","",L149)) -> 
I150: =IF($G150="Всього:",SUM($I$4:I149),IF(AND(DAY($C$4)>=15,H150=1),K150+L150,$C$32)) ->  | J150: =IF($G150="Всього:",SUM($J$4:J149),IF(I150-SUM(K150:L150)<0,0,I150-SUM(K150:L150))) ->  | K150: =IF(G150="Всього:",SUM($K$5:K149),IF(F150<>F149,(F150*O149/36000*(G150-CONCATENATE(DAY($C$4),".",MONTH(G149),".",YEAR(G149)))+(F149*O149/36000*(CONCATENATE(DAY($C$4),".",MONTH(G149),".",YEAR(G149))-G149))),F150*O149/36000*(G150-G149))) ->  | L150: =IF(G150="Всього:",SUM($L$5:L149),$E$4) ->  | M150: =IF(G150="Всього:",SUM($M$5:M149),IF($E$5="UAH",J150+L150+K150,J150+K150)) ->  | N150: =IF(G150="Всього:",SUM($N$4:N149),IF($E$5="UAH","",L150)) -> 
I151: =IF($G151="Всього:",SUM($I$4:I150),IF(AND(DAY($C$4)>=15,H151=1),K151+L151,$C$32)) ->  | J151: =IF($G151="Всього:",SUM($J$4:J150),IF(I151-SUM(K151:L151)<0,0,I151-SUM(K151:L151))) ->  | K151: =IF(G151="Всього:",SUM($K$5:K150),IF(F151<>F150,(F151*O150/36000*(G151-CONCATENATE(DAY($C$4),".",MONTH(G150),".",YEAR(G150)))+(F150*O150/36000*(CONCATENATE(DAY($C$4),".",MONTH(G150),".",YEAR(G150))-G150))),F151*O150/36000*(G151-G150))) ->  | L151: =IF(G151="Всього:",SUM($L$5:L150),$E$4) ->  | M151: =IF(G151="Всього:",SUM($M$5:M150),IF($E$5="UAH",J151+L151+K151,J151+K151)) ->  | N151: =IF(G151="Всього:",SUM($N$4:N150),IF($E$5="UAH","",L151)) -> 
I152: =IF($G152="Всього:",SUM($I$4:I151),IF(AND(DAY($C$4)>=15,H152=1),K152+L152,$C$32)) ->  | J152: =IF($G152="Всього:",SUM($J$4:J151),IF(I152-SUM(K152:L152)<0,0,I152-SUM(K152:L152))) ->  | K152: =IF(G152="Всього:",SUM($K$5:K151),IF(F152<>F151,(F152*O151/36000*(G152-CONCATENATE(DAY($C$4),".",MONTH(G151),".",YEAR(G151)))+(F151*O151/36000*(CONCATENATE(DAY($C$4),".",MONTH(G151),".",YEAR(G151))-G151))),F152*O151/36000*(G152-G151))) ->  | L152: =IF(G152="Всього:",SUM($L$5:L151),$E$4) ->  | M152: =IF(G152="Всього:",SUM($M$5:M151),IF($E$5="UAH",J152+L152+K152,J152+K152)) ->  | N152: =IF(G152="Всього:",SUM($N$4:N151),IF($E$5="UAH","",L152)) -> 
I153: =IF($G153="Всього:",SUM($I$4:I152),IF(AND(DAY($C$4)>=15,H153=1),K153+L153,$C$32)) ->  | J153: =IF($G153="Всього:",SUM($J$4:J152),IF(I153-SUM(K153:L153)<0,0,I153-SUM(K153:L153))) ->  | K153: =IF(G153="Всього:",SUM($K$5:K152),IF(F153<>F152,(F153*O152/36000*(G153-CONCATENATE(DAY($C$4),".",MONTH(G152),".",YEAR(G152)))+(F152*O152/36000*(CONCATENATE(DAY($C$4),".",MONTH(G152),".",YEAR(G152))-G152))),F153*O152/36000*(G153-G152))) ->  | L153: =IF(G153="Всього:",SUM($L$5:L152),$E$4) ->  | M153: =IF(G153="Всього:",SUM($M$5:M152),IF($E$5="UAH",J153+L153+K153,J153+K153)) ->  | N153: =IF(G153="Всього:",SUM($N$4:N152),IF($E$5="UAH","",L153)) -> 
I154: =IF($G154="Всього:",SUM($I$4:I153),IF(AND(DAY($C$4)>=15,H154=1),K154+L154,$C$32)) ->  | J154: =IF($G154="Всього:",SUM($J$4:J153),IF(I154-SUM(K154:L154)<0,0,I154-SUM(K154:L154))) ->  | K154: =IF(G154="Всього:",SUM($K$5:K153),IF(F154<>F153,(F154*O153/36000*(G154-CONCATENATE(DAY($C$4),".",MONTH(G153),".",YEAR(G153)))+(F153*O153/36000*(CONCATENATE(DAY($C$4),".",MONTH(G153),".",YEAR(G153))-G153))),F154*O153/36000*(G154-G153))) ->  | L154: =IF(G154="Всього:",SUM($L$5:L153),$E$4) ->  | M154: =IF(G154="Всього:",SUM($M$5:M153),IF($E$5="UAH",J154+L154+K154,J154+K154)) ->  | N154: =IF(G154="Всього:",SUM($N$4:N153),IF($E$5="UAH","",L154)) -> 
I155: =IF($G155="Всього:",SUM($I$4:I154),IF(AND(DAY($C$4)>=15,H155=1),K155+L155,$C$32)) ->  | J155: =IF($G155="Всього:",SUM($J$4:J154),IF(I155-SUM(K155:L155)<0,0,I155-SUM(K155:L155))) ->  | K155: =IF(G155="Всього:",SUM($K$5:K154),IF(F155<>F154,(F155*O154/36000*(G155-CONCATENATE(DAY($C$4),".",MONTH(G154),".",YEAR(G154)))+(F154*O154/36000*(CONCATENATE(DAY($C$4),".",MONTH(G154),".",YEAR(G154))-G154))),F155*O154/36000*(G155-G154))) ->  | L155: =IF(G155="Всього:",SUM($L$5:L154),$E$4) ->  | M155: =IF(G155="Всього:",SUM($M$5:M154),IF($E$5="UAH",J155+L155+K155,J155+K155)) ->  | N155: =IF(G155="Всього:",SUM($N$4:N154),IF($E$5="UAH","",L155)) -> 
I156: =IF($G156="Всього:",SUM($I$4:I155),IF(AND(DAY($C$4)>=15,H156=1),K156+L156,$C$32)) ->  | J156: =IF($G156="Всього:",SUM($J$4:J155),IF(I156-SUM(K156:L156)<0,0,I156-SUM(K156:L156))) ->  | K156: =IF(G156="Всього:",SUM($K$5:K155),IF(F156<>F155,(F156*O155/36000*(G156-CONCATENATE(DAY($C$4),".",MONTH(G155),".",YEAR(G155)))+(F155*O155/36000*(CONCATENATE(DAY($C$4),".",MONTH(G155),".",YEAR(G155))-G155))),F156*O155/36000*(G156-G155))) ->  | L156: =IF(G156="Всього:",SUM($L$5:L155),$E$4) ->  | M156: =IF(G156="Всього:",SUM($M$5:M155),IF($E$5="UAH",J156+L156+K156,J156+K156)) ->  | N156: =IF(G156="Всього:",SUM($N$4:N155),IF($E$5="UAH","",L156)) -> 
I157: =IF($G157="Всього:",SUM($I$4:I156),IF(AND(DAY($C$4)>=15,H157=1),K157+L157,$C$32)) ->  | J157: =IF($G157="Всього:",SUM($J$4:J156),IF(I157-SUM(K157:L157)<0,0,I157-SUM(K157:L157))) ->  | K157: =IF(G157="Всього:",SUM($K$5:K156),IF(F157<>F156,(F157*O156/36000*(G157-CONCATENATE(DAY($C$4),".",MONTH(G156),".",YEAR(G156)))+(F156*O156/36000*(CONCATENATE(DAY($C$4),".",MONTH(G156),".",YEAR(G156))-G156))),F157*O156/36000*(G157-G156))) ->  | L157: =IF(G157="Всього:",SUM($L$5:L156),$E$4) ->  | M157: =IF(G157="Всього:",SUM($M$5:M156),IF($E$5="UAH",J157+L157+K157,J157+K157)) ->  | N157: =IF(G157="Всього:",SUM($N$4:N156),IF($E$5="UAH","",L157)) -> 
I158: =IF($G158="Всього:",SUM($I$4:I157),IF(AND(DAY($C$4)>=15,H158=1),K158+L158,$C$32)) ->  | J158: =IF($G158="Всього:",SUM($J$4:J157),IF(I158-SUM(K158:L158)<0,0,I158-SUM(K158:L158))) ->  | K158: =IF(G158="Всього:",SUM($K$5:K157),IF(F158<>F157,(F158*O157/36000*(G158-CONCATENATE(DAY($C$4),".",MONTH(G157),".",YEAR(G157)))+(F157*O157/36000*(CONCATENATE(DAY($C$4),".",MONTH(G157),".",YEAR(G157))-G157))),F158*O157/36000*(G158-G157))) ->  | L158: =IF(G158="Всього:",SUM($L$5:L157),$E$4) ->  | M158: =IF(G158="Всього:",SUM($M$5:M157),IF($E$5="UAH",J158+L158+K158,J158+K158)) ->  | N158: =IF(G158="Всього:",SUM($N$4:N157),IF($E$5="UAH","",L158)) -> 
I159: =IF($G159="Всього:",SUM($I$4:I158),IF(AND(DAY($C$4)>=15,H159=1),K159+L159,$C$32)) ->  | J159: =IF($G159="Всього:",SUM($J$4:J158),IF(I159-SUM(K159:L159)<0,0,I159-SUM(K159:L159))) ->  | K159: =IF(G159="Всього:",SUM($K$5:K158),IF(F159<>F158,(F159*O158/36000*(G159-CONCATENATE(DAY($C$4),".",MONTH(G158),".",YEAR(G158)))+(F158*O158/36000*(CONCATENATE(DAY($C$4),".",MONTH(G158),".",YEAR(G158))-G158))),F159*O158/36000*(G159-G158))) ->  | L159: =IF(G159="Всього:",SUM($L$5:L158),$E$4) ->  | M159: =IF(G159="Всього:",SUM($M$5:M158),IF($E$5="UAH",J159+L159+K159,J159+K159)) ->  | N159: =IF(G159="Всього:",SUM($N$4:N158),IF($E$5="UAH","",L159)) -> 
I160: =IF($G160="Всього:",SUM($I$4:I159),IF(AND(DAY($C$4)>=15,H160=1),K160+L160,$C$32)) ->  | J160: =IF($G160="Всього:",SUM($J$4:J159),IF(I160-SUM(K160:L160)<0,0,I160-SUM(K160:L160))) ->  | K160: =IF(G160="Всього:",SUM($K$5:K159),IF(F160<>F159,(F160*O159/36000*(G160-CONCATENATE(DAY($C$4),".",MONTH(G159),".",YEAR(G159)))+(F159*O159/36000*(CONCATENATE(DAY($C$4),".",MONTH(G159),".",YEAR(G159))-G159))),F160*O159/36000*(G160-G159))) ->  | L160: =IF(G160="Всього:",SUM($L$5:L159),$E$4) ->  | M160: =IF(G160="Всього:",SUM($M$5:M159),IF($E$5="UAH",J160+L160+K160,J160+K160)) ->  | N160: =IF(G160="Всього:",SUM($N$4:N159),IF($E$5="UAH","",L160)) -> 
I161: =IF($G161="Всього:",SUM($I$4:I160),IF(AND(DAY($C$4)>=15,H161=1),K161+L161,$C$32)) ->  | J161: =IF($G161="Всього:",SUM($J$4:J160),IF(I161-SUM(K161:L161)<0,0,I161-SUM(K161:L161))) ->  | K161: =IF(G161="Всього:",SUM($K$5:K160),IF(F161<>F160,(F161*O160/36000*(G161-CONCATENATE(DAY($C$4),".",MONTH(G160),".",YEAR(G160)))+(F160*O160/36000*(CONCATENATE(DAY($C$4),".",MONTH(G160),".",YEAR(G160))-G160))),F161*O160/36000*(G161-G160))) ->  | L161: =IF(G161="Всього:",SUM($L$5:L160),$E$4) ->  | M161: =IF(G161="Всього:",SUM($M$5:M160),IF($E$5="UAH",J161+L161+K161,J161+K161)) ->  | N161: =IF(G161="Всього:",SUM($N$4:N160),IF($E$5="UAH","",L161)) -> 
I162: =IF($G162="Всього:",SUM($I$4:I161),IF(AND(DAY($C$4)>=15,H162=1),K162+L162,$C$32)) ->  | J162: =IF($G162="Всього:",SUM($J$4:J161),IF(I162-SUM(K162:L162)<0,0,I162-SUM(K162:L162))) ->  | K162: =IF(G162="Всього:",SUM($K$5:K161),IF(F162<>F161,(F162*O161/36000*(G162-CONCATENATE(DAY($C$4),".",MONTH(G161),".",YEAR(G161)))+(F161*O161/36000*(CONCATENATE(DAY($C$4),".",MONTH(G161),".",YEAR(G161))-G161))),F162*O161/36000*(G162-G161))) ->  | L162: =IF(G162="Всього:",SUM($L$5:L161),$E$4) ->  | M162: =IF(G162="Всього:",SUM($M$5:M161),IF($E$5="UAH",J162+L162+K162,J162+K162)) ->  | N162: =IF(G162="Всього:",SUM($N$4:N161),IF($E$5="UAH","",L162)) -> 
I163: =IF($G163="Всього:",SUM($I$4:I162),IF(AND(DAY($C$4)>=15,H163=1),K163+L163,$C$32)) ->  | J163: =IF($G163="Всього:",SUM($J$4:J162),IF(I163-SUM(K163:L163)<0,0,I163-SUM(K163:L163))) ->  | K163: =IF(G163="Всього:",SUM($K$5:K162),IF(F163<>F162,(F163*O162/36000*(G163-CONCATENATE(DAY($C$4),".",MONTH(G162),".",YEAR(G162)))+(F162*O162/36000*(CONCATENATE(DAY($C$4),".",MONTH(G162),".",YEAR(G162))-G162))),F163*O162/36000*(G163-G162))) ->  | L163: =IF(G163="Всього:",SUM($L$5:L162),$E$4) ->  | M163: =IF(G163="Всього:",SUM($M$5:M162),IF($E$5="UAH",J163+L163+K163,J163+K163)) ->  | N163: =IF(G163="Всього:",SUM($N$4:N162),IF($E$5="UAH","",L163)) -> 
I164: =IF($G164="Всього:",SUM($I$4:I163),IF(AND(DAY($C$4)>=15,H164=1),K164+L164,$C$32)) ->  | J164: =IF($G164="Всього:",SUM($J$4:J163),IF(I164-SUM(K164:L164)<0,0,I164-SUM(K164:L164))) ->  | K164: =IF(G164="Всього:",SUM($K$5:K163),IF(F164<>F163,(F164*O163/36000*(G164-CONCATENATE(DAY($C$4),".",MONTH(G163),".",YEAR(G163)))+(F163*O163/36000*(CONCATENATE(DAY($C$4),".",MONTH(G163),".",YEAR(G163))-G163))),F164*O163/36000*(G164-G163))) ->  | L164: =IF(G164="Всього:",SUM($L$5:L163),$E$4) ->  | M164: =IF(G164="Всього:",SUM($M$5:M163),IF($E$5="UAH",J164+L164+K164,J164+K164)) ->  | N164: =IF(G164="Всього:",SUM($N$4:N163),IF($E$5="UAH","",L164)) -> 
I165: =IF($G165="Всього:",SUM($I$4:I164),IF(AND(DAY($C$4)>=15,H165=1),K165+L165,$C$32)) ->  | J165: =IF($G165="Всього:",SUM($J$4:J164),IF(I165-SUM(K165:L165)<0,0,I165-SUM(K165:L165))) ->  | K165: =IF(G165="Всього:",SUM($K$5:K164),IF(F165<>F164,(F165*O164/36000*(G165-CONCATENATE(DAY($C$4),".",MONTH(G164),".",YEAR(G164)))+(F164*O164/36000*(CONCATENATE(DAY($C$4),".",MONTH(G164),".",YEAR(G164))-G164))),F165*O164/36000*(G165-G164))) ->  | L165: =IF(G165="Всього:",SUM($L$5:L164),$E$4) ->  | M165: =IF(G165="Всього:",SUM($M$5:M164),IF($E$5="UAH",J165+L165+K165,J165+K165)) ->  | N165: =IF(G165="Всього:",SUM($N$4:N164),IF($E$5="UAH","",L165)) -> 
I166: =IF($G166="Всього:",SUM($I$4:I165),IF(AND(DAY($C$4)>=15,H166=1),K166+L166,$C$32)) ->  | J166: =IF($G166="Всього:",SUM($J$4:J165),IF(I166-SUM(K166:L166)<0,0,I166-SUM(K166:L166))) ->  | K166: =IF(G166="Всього:",SUM($K$5:K165),IF(F166<>F165,(F166*O165/36000*(G166-CONCATENATE(DAY($C$4),".",MONTH(G165),".",YEAR(G165)))+(F165*O165/36000*(CONCATENATE(DAY($C$4),".",MONTH(G165),".",YEAR(G165))-G165))),F166*O165/36000*(G166-G165))) ->  | L166: =IF(G166="Всього:",SUM($L$5:L165),$E$4) ->  | M166: =IF(G166="Всього:",SUM($M$5:M165),IF($E$5="UAH",J166+L166+K166,J166+K166)) ->  | N166: =IF(G166="Всього:",SUM($N$4:N165),IF($E$5="UAH","",L166)) -> 
I167: =IF($G167="Всього:",SUM($I$4:I166),IF(AND(DAY($C$4)>=15,H167=1),K167+L167,$C$32)) ->  | J167: =IF($G167="Всього:",SUM($J$4:J166),IF(I167-SUM(K167:L167)<0,0,I167-SUM(K167:L167))) ->  | K167: =IF(G167="Всього:",SUM($K$5:K166),IF(F167<>F166,(F167*O166/36000*(G167-CONCATENATE(DAY($C$4),".",MONTH(G166),".",YEAR(G166)))+(F166*O166/36000*(CONCATENATE(DAY($C$4),".",MONTH(G166),".",YEAR(G166))-G166))),F167*O166/36000*(G167-G166))) ->  | L167: =IF(G167="Всього:",SUM($L$5:L166),$E$4) ->  | M167: =IF(G167="Всього:",SUM($M$5:M166),IF($E$5="UAH",J167+L167+K167,J167+K167)) ->  | N167: =IF(G167="Всього:",SUM($N$4:N166),IF($E$5="UAH","",L167)) -> 
I168: =IF($G168="Всього:",SUM($I$4:I167),IF(AND(DAY($C$4)>=15,H168=1),K168+L168,$C$32)) ->  | J168: =IF($G168="Всього:",SUM($J$4:J167),IF(I168-SUM(K168:L168)<0,0,I168-SUM(K168:L168))) ->  | K168: =IF(G168="Всього:",SUM($K$5:K167),IF(F168<>F167,(F168*O167/36000*(G168-CONCATENATE(DAY($C$4),".",MONTH(G167),".",YEAR(G167)))+(F167*O167/36000*(CONCATENATE(DAY($C$4),".",MONTH(G167),".",YEAR(G167))-G167))),F168*O167/36000*(G168-G167))) ->  | L168: =IF(G168="Всього:",SUM($L$5:L167),$E$4) ->  | M168: =IF(G168="Всього:",SUM($M$5:M167),IF($E$5="UAH",J168+L168+K168,J168+K168)) ->  | N168: =IF(G168="Всього:",SUM($N$4:N167),IF($E$5="UAH","",L168)) -> 
I169: =IF($G169="Всього:",SUM($I$4:I168),IF(AND(DAY($C$4)>=15,H169=1),K169+L169,$C$32)) ->  | J169: =IF($G169="Всього:",SUM($J$4:J168),IF(I169-SUM(K169:L169)<0,0,I169-SUM(K169:L169))) ->  | K169: =IF(G169="Всього:",SUM($K$5:K168),IF(F169<>F168,(F169*O168/36000*(G169-CONCATENATE(DAY($C$4),".",MONTH(G168),".",YEAR(G168)))+(F168*O168/36000*(CONCATENATE(DAY($C$4),".",MONTH(G168),".",YEAR(G168))-G168))),F169*O168/36000*(G169-G168))) ->  | L169: =IF(G169="Всього:",SUM($L$5:L168),$E$4) ->  | M169: =IF(G169="Всього:",SUM($M$5:M168),IF($E$5="UAH",J169+L169+K169,J169+K169)) ->  | N169: =IF(G169="Всього:",SUM($N$4:N168),IF($E$5="UAH","",L169)) -> 
I170: =IF($G170="Всього:",SUM($I$4:I169),IF(AND(DAY($C$4)>=15,H170=1),K170+L170,$C$32)) ->  | J170: =IF($G170="Всього:",SUM($J$4:J169),IF(I170-SUM(K170:L170)<0,0,I170-SUM(K170:L170))) ->  | K170: =IF(G170="Всього:",SUM($K$5:K169),IF(F170<>F169,(F170*O169/36000*(G170-CONCATENATE(DAY($C$4),".",MONTH(G169),".",YEAR(G169)))+(F169*O169/36000*(CONCATENATE(DAY($C$4),".",MONTH(G169),".",YEAR(G169))-G169))),F170*O169/36000*(G170-G169))) ->  | L170: =IF(G170="Всього:",SUM($L$5:L169),$E$4) ->  | M170: =IF(G170="Всього:",SUM($M$5:M169),IF($E$5="UAH",J170+L170+K170,J170+K170)) ->  | N170: =IF(G170="Всього:",SUM($N$4:N169),IF($E$5="UAH","",L170)) -> 
I171: =IF($G171="Всього:",SUM($I$4:I170),IF(AND(DAY($C$4)>=15,H171=1),K171+L171,$C$32)) ->  | J171: =IF($G171="Всього:",SUM($J$4:J170),IF(I171-SUM(K171:L171)<0,0,I171-SUM(K171:L171))) ->  | K171: =IF(G171="Всього:",SUM($K$5:K170),IF(F171<>F170,(F171*O170/36000*(G171-CONCATENATE(DAY($C$4),".",MONTH(G170),".",YEAR(G170)))+(F170*O170/36000*(CONCATENATE(DAY($C$4),".",MONTH(G170),".",YEAR(G170))-G170))),F171*O170/36000*(G171-G170))) ->  | L171: =IF(G171="Всього:",SUM($L$5:L170),$E$4) ->  | M171: =IF(G171="Всього:",SUM($M$5:M170),IF($E$5="UAH",J171+L171+K171,J171+K171)) ->  | N171: =IF(G171="Всього:",SUM($N$4:N170),IF($E$5="UAH","",L171)) -> 
I172: =IF($G172="Всього:",SUM($I$4:I171),IF(AND(DAY($C$4)>=15,H172=1),K172+L172,$C$32)) ->  | J172: =IF($G172="Всього:",SUM($J$4:J171),IF(I172-SUM(K172:L172)<0,0,I172-SUM(K172:L172))) ->  | K172: =IF(G172="Всього:",SUM($K$5:K171),IF(F172<>F171,(F172*O171/36000*(G172-CONCATENATE(DAY($C$4),".",MONTH(G171),".",YEAR(G171)))+(F171*O171/36000*(CONCATENATE(DAY($C$4),".",MONTH(G171),".",YEAR(G171))-G171))),F172*O171/36000*(G172-G171))) ->  | L172: =IF(G172="Всього:",SUM($L$5:L171),$E$4) ->  | M172: =IF(G172="Всього:",SUM($M$5:M171),IF($E$5="UAH",J172+L172+K172,J172+K172)) ->  | N172: =IF(G172="Всього:",SUM($N$4:N171),IF($E$5="UAH","",L172)) -> 
I173: =IF($G173="Всього:",SUM($I$4:I172),IF(AND(DAY($C$4)>=15,H173=1),K173+L173,$C$32)) ->  | J173: =IF($G173="Всього:",SUM($J$4:J172),IF(I173-SUM(K173:L173)<0,0,I173-SUM(K173:L173))) ->  | K173: =IF(G173="Всього:",SUM($K$5:K172),IF(F173<>F172,(F173*O172/36000*(G173-CONCATENATE(DAY($C$4),".",MONTH(G172),".",YEAR(G172)))+(F172*O172/36000*(CONCATENATE(DAY($C$4),".",MONTH(G172),".",YEAR(G172))-G172))),F173*O172/36000*(G173-G172))) ->  | L173: =IF(G173="Всього:",SUM($L$5:L172),$E$4) ->  | M173: =IF(G173="Всього:",SUM($M$5:M172),IF($E$5="UAH",J173+L173+K173,J173+K173)) ->  | N173: =IF(G173="Всього:",SUM($N$4:N172),IF($E$5="UAH","",L173)) -> 
I174: =IF($G174="Всього:",SUM($I$4:I173),IF(AND(DAY($C$4)>=15,H174=1),K174+L174,$C$32)) ->  | J174: =IF($G174="Всього:",SUM($J$4:J173),IF(I174-SUM(K174:L174)<0,0,I174-SUM(K174:L174))) ->  | K174: =IF(G174="Всього:",SUM($K$5:K173),IF(F174<>F173,(F174*O173/36000*(G174-CONCATENATE(DAY($C$4),".",MONTH(G173),".",YEAR(G173)))+(F173*O173/36000*(CONCATENATE(DAY($C$4),".",MONTH(G173),".",YEAR(G173))-G173))),F174*O173/36000*(G174-G173))) ->  | L174: =IF(G174="Всього:",SUM($L$5:L173),$E$4) ->  | M174: =IF(G174="Всього:",SUM($M$5:M173),IF($E$5="UAH",J174+L174+K174,J174+K174)) ->  | N174: =IF(G174="Всього:",SUM($N$4:N173),IF($E$5="UAH","",L174)) -> 
I175: =IF($G175="Всього:",SUM($I$4:I174),IF(AND(DAY($C$4)>=15,H175=1),K175+L175,$C$32)) ->  | J175: =IF($G175="Всього:",SUM($J$4:J174),IF(I175-SUM(K175:L175)<0,0,I175-SUM(K175:L175))) ->  | K175: =IF(G175="Всього:",SUM($K$5:K174),IF(F175<>F174,(F175*O174/36000*(G175-CONCATENATE(DAY($C$4),".",MONTH(G174),".",YEAR(G174)))+(F174*O174/36000*(CONCATENATE(DAY($C$4),".",MONTH(G174),".",YEAR(G174))-G174))),F175*O174/36000*(G175-G174))) ->  | L175: =IF(G175="Всього:",SUM($L$5:L174),$E$4) ->  | M175: =IF(G175="Всього:",SUM($M$5:M174),IF($E$5="UAH",J175+L175+K175,J175+K175)) ->  | N175: =IF(G175="Всього:",SUM($N$4:N174),IF($E$5="UAH","",L175)) -> 
I176: =IF($G176="Всього:",SUM($I$4:I175),IF(AND(DAY($C$4)>=15,H176=1),K176+L176,$C$32)) ->  | J176: =IF($G176="Всього:",SUM($J$4:J175),IF(I176-SUM(K176:L176)<0,0,I176-SUM(K176:L176))) ->  | K176: =IF(G176="Всього:",SUM($K$5:K175),IF(F176<>F175,(F176*O175/36000*(G176-CONCATENATE(DAY($C$4),".",MONTH(G175),".",YEAR(G175)))+(F175*O175/36000*(CONCATENATE(DAY($C$4),".",MONTH(G175),".",YEAR(G175))-G175))),F176*O175/36000*(G176-G175))) ->  | L176: =IF(G176="Всього:",SUM($L$5:L175),$E$4) ->  | M176: =IF(G176="Всього:",SUM($M$5:M175),IF($E$5="UAH",J176+L176+K176,J176+K176)) ->  | N176: =IF(G176="Всього:",SUM($N$4:N175),IF($E$5="UAH","",L176)) -> 
I177: =IF($G177="Всього:",SUM($I$4:I176),IF(AND(DAY($C$4)>=15,H177=1),K177+L177,$C$32)) ->  | J177: =IF($G177="Всього:",SUM($J$4:J176),IF(I177-SUM(K177:L177)<0,0,I177-SUM(K177:L177))) ->  | K177: =IF(G177="Всього:",SUM($K$5:K176),IF(F177<>F176,(F177*O176/36000*(G177-CONCATENATE(DAY($C$4),".",MONTH(G176),".",YEAR(G176)))+(F176*O176/36000*(CONCATENATE(DAY($C$4),".",MONTH(G176),".",YEAR(G176))-G176))),F177*O176/36000*(G177-G176))) ->  | L177: =IF(G177="Всього:",SUM($L$5:L176),$E$4) ->  | M177: =IF(G177="Всього:",SUM($M$5:M176),IF($E$5="UAH",J177+L177+K177,J177+K177)) ->  | N177: =IF(G177="Всього:",SUM($N$4:N176),IF($E$5="UAH","",L177)) -> 
I178: =IF($G178="Всього:",SUM($I$4:I177),IF(AND(DAY($C$4)>=15,H178=1),K178+L178,$C$32)) ->  | J178: =IF($G178="Всього:",SUM($J$4:J177),IF(I178-SUM(K178:L178)<0,0,I178-SUM(K178:L178))) ->  | K178: =IF(G178="Всього:",SUM($K$5:K177),IF(F178<>F177,(F178*O177/36000*(G178-CONCATENATE(DAY($C$4),".",MONTH(G177),".",YEAR(G177)))+(F177*O177/36000*(CONCATENATE(DAY($C$4),".",MONTH(G177),".",YEAR(G177))-G177))),F178*O177/36000*(G178-G177))) ->  | L178: =IF(G178="Всього:",SUM($L$5:L177),$E$4) ->  | M178: =IF(G178="Всього:",SUM($M$5:M177),IF($E$5="UAH",J178+L178+K178,J178+K178)) ->  | N178: =IF(G178="Всього:",SUM($N$4:N177),IF($E$5="UAH","",L178)) -> 
I179: =IF($G179="Всього:",SUM($I$4:I178),IF(AND(DAY($C$4)>=15,H179=1),K179+L179,$C$32)) ->  | J179: =IF($G179="Всього:",SUM($J$4:J178),IF(I179-SUM(K179:L179)<0,0,I179-SUM(K179:L179))) ->  | K179: =IF(G179="Всього:",SUM($K$5:K178),IF(F179<>F178,(F179*O178/36000*(G179-CONCATENATE(DAY($C$4),".",MONTH(G178),".",YEAR(G178)))+(F178*O178/36000*(CONCATENATE(DAY($C$4),".",MONTH(G178),".",YEAR(G178))-G178))),F179*O178/36000*(G179-G178))) ->  | L179: =IF(G179="Всього:",SUM($L$5:L178),$E$4) ->  | M179: =IF(G179="Всього:",SUM($M$5:M178),IF($E$5="UAH",J179+L179+K179,J179+K179)) ->  | N179: =IF(G179="Всього:",SUM($N$4:N178),IF($E$5="UAH","",L179)) -> 
I180: =IF($G180="Всього:",SUM($I$4:I179),IF(AND(DAY($C$4)>=15,H180=1),K180+L180,$C$32)) ->  | J180: =IF($G180="Всього:",SUM($J$4:J179),IF(I180-SUM(K180:L180)<0,0,I180-SUM(K180:L180))) ->  | K180: =IF(G180="Всього:",SUM($K$5:K179),IF(F180<>F179,(F180*O179/36000*(G180-CONCATENATE(DAY($C$4),".",MONTH(G179),".",YEAR(G179)))+(F179*O179/36000*(CONCATENATE(DAY($C$4),".",MONTH(G179),".",YEAR(G179))-G179))),F180*O179/36000*(G180-G179))) ->  | L180: =IF(G180="Всього:",SUM($L$5:L179),$E$4) ->  | M180: =IF(G180="Всього:",SUM($M$5:M179),IF($E$5="UAH",J180+L180+K180,J180+K180)) ->  | N180: =IF(G180="Всього:",SUM($N$4:N179),IF($E$5="UAH","",L180)) -> 
I181: =IF($G181="Всього:",SUM($I$4:I180),IF(AND(DAY($C$4)>=15,H181=1),K181+L181,$C$32)) ->  | J181: =IF($G181="Всього:",SUM($J$4:J180),IF(I181-SUM(K181:L181)<0,0,I181-SUM(K181:L181))) ->  | K181: =IF(G181="Всього:",SUM($K$5:K180),IF(F181<>F180,(F181*O180/36000*(G181-CONCATENATE(DAY($C$4),".",MONTH(G180),".",YEAR(G180)))+(F180*O180/36000*(CONCATENATE(DAY($C$4),".",MONTH(G180),".",YEAR(G180))-G180))),F181*O180/36000*(G181-G180))) ->  | L181: =IF(G181="Всього:",SUM($L$5:L180),$E$4) ->  | M181: =IF(G181="Всього:",SUM($M$5:M180),IF($E$5="UAH",J181+L181+K181,J181+K181)) ->  | N181: =IF(G181="Всього:",SUM($N$4:N180),IF($E$5="UAH","",L181)) -> 
I182: =IF($G182="Всього:",SUM($I$4:I181),IF(AND(DAY($C$4)>=15,H182=1),K182+L182,$C$32)) ->  | J182: =IF($G182="Всього:",SUM($J$4:J181),IF(I182-SUM(K182:L182)<0,0,I182-SUM(K182:L182))) ->  | K182: =IF(G182="Всього:",SUM($K$5:K181),IF(F182<>F181,(F182*O181/36000*(G182-CONCATENATE(DAY($C$4),".",MONTH(G181),".",YEAR(G181)))+(F181*O181/36000*(CONCATENATE(DAY($C$4),".",MONTH(G181),".",YEAR(G181))-G181))),F182*O181/36000*(G182-G181))) ->  | L182: =IF(G182="Всього:",SUM($L$5:L181),$E$4) ->  | M182: =IF(G182="Всього:",SUM($M$5:M181),IF($E$5="UAH",J182+L182+K182,J182+K182)) ->  | N182: =IF(G182="Всього:",SUM($N$4:N181),IF($E$5="UAH","",L182)) -> 
I183: =IF($G183="Всього:",SUM($I$4:I182),IF(AND(DAY($C$4)>=15,H183=1),K183+L183,$C$32)) ->  | J183: =IF($G183="Всього:",SUM($J$4:J182),IF(I183-SUM(K183:L183)<0,0,I183-SUM(K183:L183))) ->  | K183: =IF(G183="Всього:",SUM($K$5:K182),IF(F183<>F182,(F183*O182/36000*(G183-CONCATENATE(DAY($C$4),".",MONTH(G182),".",YEAR(G182)))+(F182*O182/36000*(CONCATENATE(DAY($C$4),".",MONTH(G182),".",YEAR(G182))-G182))),F183*O182/36000*(G183-G182))) ->  | L183: =IF(G183="Всього:",SUM($L$5:L182),$E$4) ->  | M183: =IF(G183="Всього:",SUM($M$5:M182),IF($E$5="UAH",J183+L183+K183,J183+K183)) ->  | N183: =IF(G183="Всього:",SUM($N$4:N182),IF($E$5="UAH","",L183)) -> 
I184: =IF($G184="Всього:",SUM($I$4:I183),IF(AND(DAY($C$4)>=15,H184=1),K184+L184,$C$32)) ->  | J184: =IF($G184="Всього:",SUM($J$4:J183),IF(I184-SUM(K184:L184)<0,0,I184-SUM(K184:L184))) ->  | K184: =IF(G184="Всього:",SUM($K$5:K183),IF(F184<>F183,(F184*O183/36000*(G184-CONCATENATE(DAY($C$4),".",MONTH(G183),".",YEAR(G183)))+(F183*O183/36000*(CONCATENATE(DAY($C$4),".",MONTH(G183),".",YEAR(G183))-G183))),F184*O183/36000*(G184-G183))) ->  | L184: =IF(G184="Всього:",SUM($L$5:L183),$E$4) ->  | M184: =IF(G184="Всього:",SUM($M$5:M183),IF($E$5="UAH",J184+L184+K184,J184+K184)) ->  | N184: =IF(G184="Всього:",SUM($N$4:N183),IF($E$5="UAH","",L184)) -> 
I185: =IF($G185="Всього:",SUM($I$4:I184),IF(AND(DAY($C$4)>=15,H185=1),K185+L185,$C$32)) ->  | J185: =IF($G185="Всього:",SUM($J$4:J184),IF(I185-SUM(K185:L185)<0,0,I185-SUM(K185:L185))) ->  | K185: =IF(G185="Всього:",SUM($K$5:K184),IF(F185<>F184,(F185*O184/36000*(G185-CONCATENATE(DAY($C$4),".",MONTH(G184),".",YEAR(G184)))+(F184*O184/36000*(CONCATENATE(DAY($C$4),".",MONTH(G184),".",YEAR(G184))-G184))),F185*O184/36000*(G185-G184))) ->  | L185: =IF(G185="Всього:",SUM($L$5:L184),$E$4) ->  | M185: =IF(G185="Всього:",SUM($M$5:M184),IF($E$5="UAH",J185+L185+K185,J185+K185)) ->  | N185: =IF(G185="Всього:",SUM($N$4:N184),IF($E$5="UAH","",L185)) -> 
I186: =IF($G186="Всього:",SUM($I$4:I185),IF(AND(DAY($C$4)>=15,H186=1),K186+L186,$C$32)) ->  | J186: =IF($G186="Всього:",SUM($J$4:J185),IF(I186-SUM(K186:L186)<0,0,I186-SUM(K186:L186))) ->  | K186: =IF(G186="Всього:",SUM($K$5:K185),IF(F186<>F185,(F186*O185/36000*(G186-CONCATENATE(DAY($C$4),".",MONTH(G185),".",YEAR(G185)))+(F185*O185/36000*(CONCATENATE(DAY($C$4),".",MONTH(G185),".",YEAR(G185))-G185))),F186*O185/36000*(G186-G185))) ->  | L186: =IF(G186="Всього:",SUM($L$5:L185),$E$4) ->  | M186: =IF(G186="Всього:",SUM($M$5:M185),IF($E$5="UAH",J186+L186+K186,J186+K186)) ->  | N186: =IF(G186="Всього:",SUM($N$4:N185),IF($E$5="UAH","",L186)) -> 
I187: =IF($G187="Всього:",SUM($I$4:I186),IF(AND(DAY($C$4)>=15,H187=1),K187+L187,$C$32)) ->  | J187: =IF($G187="Всього:",SUM($J$4:J186),IF(I187-SUM(K187:L187)<0,0,I187-SUM(K187:L187))) ->  | K187: =IF(G187="Всього:",SUM($K$5:K186),IF(F187<>F186,(F187*O186/36000*(G187-CONCATENATE(DAY($C$4),".",MONTH(G186),".",YEAR(G186)))+(F186*O186/36000*(CONCATENATE(DAY($C$4),".",MONTH(G186),".",YEAR(G186))-G186))),F187*O186/36000*(G187-G186))) ->  | L187: =IF(G187="Всього:",SUM($L$5:L186),$E$4) ->  | M187: =IF(G187="Всього:",SUM($M$5:M186),IF($E$5="UAH",J187+L187+K187,J187+K187)) ->  | N187: =IF(G187="Всього:",SUM($N$4:N186),IF($E$5="UAH","",L187)) -> 
I188: =IF($G188="Всього:",SUM($I$4:I187),IF(AND(DAY($C$4)>=15,H188=1),K188+L188,$C$32)) ->  | J188: =IF($G188="Всього:",SUM($J$4:J187),IF(I188-SUM(K188:L188)<0,0,I188-SUM(K188:L188))) ->  | K188: =IF(G188="Всього:",SUM($K$5:K187),IF(F188<>F187,(F188*O187/36000*(G188-CONCATENATE(DAY($C$4),".",MONTH(G187),".",YEAR(G187)))+(F187*O187/36000*(CONCATENATE(DAY($C$4),".",MONTH(G187),".",YEAR(G187))-G187))),F188*O187/36000*(G188-G187))) ->  | L188: =IF(G188="Всього:",SUM($L$5:L187),$E$4) ->  | M188: =IF(G188="Всього:",SUM($M$5:M187),IF($E$5="UAH",J188+L188+K188,J188+K188)) ->  | N188: =IF(G188="Всього:",SUM($N$4:N187),IF($E$5="UAH","",L188)) -> 
I189: =IF($G189="Всього:",SUM($I$4:I188),IF(AND(DAY($C$4)>=15,H189=1),K189+L189,$C$32)) ->  | J189: =IF($G189="Всього:",SUM($J$4:J188),IF(I189-SUM(K189:L189)<0,0,I189-SUM(K189:L189))) ->  | K189: =IF(G189="Всього:",SUM($K$5:K188),IF(F189<>F188,(F189*O188/36000*(G189-CONCATENATE(DAY($C$4),".",MONTH(G188),".",YEAR(G188)))+(F188*O188/36000*(CONCATENATE(DAY($C$4),".",MONTH(G188),".",YEAR(G188))-G188))),F189*O188/36000*(G189-G188))) ->  | L189: =IF(G189="Всього:",SUM($L$5:L188),$E$4) ->  | M189: =IF(G189="Всього:",SUM($M$5:M188),IF($E$5="UAH",J189+L189+K189,J189+K189)) ->  | N189: =IF(G189="Всього:",SUM($N$4:N188),IF($E$5="UAH","",L189)) -> 
I190: =IF($G190="Всього:",SUM($I$4:I189),IF(AND(DAY($C$4)>=15,H190=1),K190+L190,$C$32)) ->  | J190: =IF($G190="Всього:",SUM($J$4:J189),IF(I190-SUM(K190:L190)<0,0,I190-SUM(K190:L190))) ->  | K190: =IF(G190="Всього:",SUM($K$5:K189),IF(F190<>F189,(F190*O189/36000*(G190-CONCATENATE(DAY($C$4),".",MONTH(G189),".",YEAR(G189)))+(F189*O189/36000*(CONCATENATE(DAY($C$4),".",MONTH(G189),".",YEAR(G189))-G189))),F190*O189/36000*(G190-G189))) ->  | L190: =IF(G190="Всього:",SUM($L$5:L189),$E$4) ->  | M190: =IF(G190="Всього:",SUM($M$5:M189),IF($E$5="UAH",J190+L190+K190,J190+K190)) ->  | N190: =IF(G190="Всього:",SUM($N$4:N189),IF($E$5="UAH","",L190)) -> 
I191: =IF($G191="Всього:",SUM($I$4:I190),IF(AND(DAY($C$4)>=15,H191=1),K191+L191,$C$32)) ->  | J191: =IF($G191="Всього:",SUM($J$4:J190),IF(I191-SUM(K191:L191)<0,0,I191-SUM(K191:L191))) ->  | K191: =IF(G191="Всього:",SUM($K$5:K190),IF(F191<>F190,(F191*O190/36000*(G191-CONCATENATE(DAY($C$4),".",MONTH(G190),".",YEAR(G190)))+(F190*O190/36000*(CONCATENATE(DAY($C$4),".",MONTH(G190),".",YEAR(G190))-G190))),F191*O190/36000*(G191-G190))) ->  | L191: =IF(G191="Всього:",SUM($L$5:L190),$E$4) ->  | M191: =IF(G191="Всього:",SUM($M$5:M190),IF($E$5="UAH",J191+L191+K191,J191+K191)) ->  | N191: =IF(G191="Всього:",SUM($N$4:N190),IF($E$5="UAH","",L191)) -> 
I192: =IF($G192="Всього:",SUM($I$4:I191),IF(AND(DAY($C$4)>=15,H192=1),K192+L192,$C$32)) ->  | J192: =IF($G192="Всього:",SUM($J$4:J191),IF(I192-SUM(K192:L192)<0,0,I192-SUM(K192:L192))) ->  | K192: =IF(G192="Всього:",SUM($K$5:K191),IF(F192<>F191,(F192*O191/36000*(G192-CONCATENATE(DAY($C$4),".",MONTH(G191),".",YEAR(G191)))+(F191*O191/36000*(CONCATENATE(DAY($C$4),".",MONTH(G191),".",YEAR(G191))-G191))),F192*O191/36000*(G192-G191))) ->  | L192: =IF(G192="Всього:",SUM($L$5:L191),$E$4) ->  | M192: =IF(G192="Всього:",SUM($M$5:M191),IF($E$5="UAH",J192+L192+K192,J192+K192)) ->  | N192: =IF(G192="Всього:",SUM($N$4:N191),IF($E$5="UAH","",L192)) -> 
I193: =IF($G193="Всього:",SUM($I$4:I192),IF(AND(DAY($C$4)>=15,H193=1),K193+L193,$C$32)) ->  | J193: =IF($G193="Всього:",SUM($J$4:J192),IF(I193-SUM(K193:L193)<0,0,I193-SUM(K193:L193))) ->  | K193: =IF(G193="Всього:",SUM($K$5:K192),IF(F193<>F192,(F193*O192/36000*(G193-CONCATENATE(DAY($C$4),".",MONTH(G192),".",YEAR(G192)))+(F192*O192/36000*(CONCATENATE(DAY($C$4),".",MONTH(G192),".",YEAR(G192))-G192))),F193*O192/36000*(G193-G192))) ->  | L193: =IF(G193="Всього:",SUM($L$5:L192),$E$4) ->  | M193: =IF(G193="Всього:",SUM($M$5:M192),IF($E$5="UAH",J193+L193+K193,J193+K193)) ->  | N193: =IF(G193="Всього:",SUM($N$4:N192),IF($E$5="UAH","",L193)) -> 
I194: =IF($G194="Всього:",SUM($I$4:I193),IF(AND(DAY($C$4)>=15,H194=1),K194+L194,$C$32)) ->  | J194: =IF($G194="Всього:",SUM($J$4:J193),IF(I194-SUM(K194:L194)<0,0,I194-SUM(K194:L194))) ->  | K194: =IF(G194="Всього:",SUM($K$5:K193),IF(F194<>F193,(F194*O193/36000*(G194-CONCATENATE(DAY($C$4),".",MONTH(G193),".",YEAR(G193)))+(F193*O193/36000*(CONCATENATE(DAY($C$4),".",MONTH(G193),".",YEAR(G193))-G193))),F194*O193/36000*(G194-G193))) ->  | L194: =IF(G194="Всього:",SUM($L$5:L193),$E$4) ->  | M194: =IF(G194="Всього:",SUM($M$5:M193),IF($E$5="UAH",J194+L194+K194,J194+K194)) ->  | N194: =IF(G194="Всього:",SUM($N$4:N193),IF($E$5="UAH","",L194)) -> 
I195: =IF($G195="Всього:",SUM($I$4:I194),IF(AND(DAY($C$4)>=15,H195=1),K195+L195,$C$32)) ->  | J195: =IF($G195="Всього:",SUM($J$4:J194),IF(I195-SUM(K195:L195)<0,0,I195-SUM(K195:L195))) ->  | K195: =IF(G195="Всього:",SUM($K$5:K194),IF(F195<>F194,(F195*O194/36000*(G195-CONCATENATE(DAY($C$4),".",MONTH(G194),".",YEAR(G194)))+(F194*O194/36000*(CONCATENATE(DAY($C$4),".",MONTH(G194),".",YEAR(G194))-G194))),F195*O194/36000*(G195-G194))) ->  | L195: =IF(G195="Всього:",SUM($L$5:L194),$E$4) ->  | M195: =IF(G195="Всього:",SUM($M$5:M194),IF($E$5="UAH",J195+L195+K195,J195+K195)) ->  | N195: =IF(G195="Всього:",SUM($N$4:N194),IF($E$5="UAH","",L195)) -> 
I196: =IF($G196="Всього:",SUM($I$4:I195),IF(AND(DAY($C$4)>=15,H196=1),K196+L196,$C$32)) ->  | J196: =IF($G196="Всього:",SUM($J$4:J195),IF(I196-SUM(K196:L196)<0,0,I196-SUM(K196:L196))) ->  | K196: =IF(G196="Всього:",SUM($K$5:K195),IF(F196<>F195,(F196*O195/36000*(G196-CONCATENATE(DAY($C$4),".",MONTH(G195),".",YEAR(G195)))+(F195*O195/36000*(CONCATENATE(DAY($C$4),".",MONTH(G195),".",YEAR(G195))-G195))),F196*O195/36000*(G196-G195))) ->  | L196: =IF(G196="Всього:",SUM($L$5:L195),$E$4) ->  | M196: =IF(G196="Всього:",SUM($M$5:M195),IF($E$5="UAH",J196+L196+K196,J196+K196)) ->  | N196: =IF(G196="Всього:",SUM($N$4:N195),IF($E$5="UAH","",L196)) -> 
I197: =IF($G197="Всього:",SUM($I$4:I196),IF(AND(DAY($C$4)>=15,H197=1),K197+L197,$C$32)) ->  | J197: =IF($G197="Всього:",SUM($J$4:J196),IF(I197-SUM(K197:L197)<0,0,I197-SUM(K197:L197))) ->  | K197: =IF(G197="Всього:",SUM($K$5:K196),IF(F197<>F196,(F197*O196/36000*(G197-CONCATENATE(DAY($C$4),".",MONTH(G196),".",YEAR(G196)))+(F196*O196/36000*(CONCATENATE(DAY($C$4),".",MONTH(G196),".",YEAR(G196))-G196))),F197*O196/36000*(G197-G196))) ->  | L197: =IF(G197="Всього:",SUM($L$5:L196),$E$4) ->  | M197: =IF(G197="Всього:",SUM($M$5:M196),IF($E$5="UAH",J197+L197+K197,J197+K197)) ->  | N197: =IF(G197="Всього:",SUM($N$4:N196),IF($E$5="UAH","",L197)) ->  | O197: =O196-J197 -> 
F198: =IF(G198="Всього:","",IF(AND(G198>$B$9,G198<=$B$10),$C$16,IF(AND(G198>$B$9,G198<=$B$11),$D$16,IF(AND(G198>$B$10,G198<=$B$14),$E$16,$B$16)))) ->  | H198: =IF(H197>$E$8,"",H197+1) ->  | I198: =IF($G198="Всього:",SUM($I$4:I197),IF(AND(DAY($C$4)>=15,H198=1),K198+L198,$C$32)) ->  | J198: =IF($G198="Всього:",SUM($J$4:J197),IF(I198-SUM(K198:L198)<0,0,I198-SUM(K198:L198))) ->  | K198: =IF(G198="Всього:",SUM($K$5:K197),IF(F198<>F197,(F198*O197/36000*(G198-CONCATENATE(DAY($C$4),".",MONTH(G197),".",YEAR(G197)))+(F197*O197/36000*(CONCATENATE(DAY($C$4),".",MONTH(G197),".",YEAR(G197))-G197))),F198*O197/36000*(G198-G197))) ->  | L198: =IF(G198="Всього:",SUM($L$5:L197),$E$4) ->  | M198: =IF(G198="Всього:",SUM($M$5:M197),IF($E$5="UAH",J198+L198+K198,J198+K198)) ->  | N198: =IF(G198="Всього:",SUM($N$4:N197),IF($E$5="UAH","",L198)) -> 
G199: =IF(H198=$E$8,"Всього:",IF($E$3+1=H199,$B$14,DATE(YEAR(G198),MONTH(G198)+1,IF($B$7<>"",DAY(IF($B$7>DAY(EOMONTH(G198,1)),EOMONTH(G198,1),$B$7)),DAY(1))))) ->  | I199: =IF($G199="Всього:",SUM($I$4:I198),IF(AND(DAY($C$4)>=15,H199=1),K199+L199,$C$32)) ->  | J199: =IF($G199="Всього:",SUM($J$4:J198),IF(I199-SUM(K199:L199)<0,0,I199-SUM(K199:L199))) ->  | K199: =IF(G199="Всього:",SUM($K$5:K198),IF(F199<>F198,(F199*O198/36000*(G199-CONCATENATE(DAY($C$4),".",MONTH(G198),".",YEAR(G198)))+(F198*O198/36000*(CONCATENATE(DAY($C$4),".",MONTH(G198),".",YEAR(G198))-G198))),F199*O198/36000*(G199-G198))) ->  | L199: =IF(G199="Всього:",SUM($L$5:L198),$E$4) ->  | M199: =IF(G199="Всього:",SUM($M$5:M198),IF($E$5="UAH",J199+L199+K199,J199+K199)) ->  | N199: =IF(G199="Всього:",SUM($N$4:N198),IF($E$5="UAH","",L199)) -> 
I200: =IF($G200="Всього:",SUM($I$4:I199),IF(AND(DAY($C$4)>=15,H200=1),K200+L200,$C$32)) ->  | J200: =IF($G200="Всього:",SUM($J$4:J199),IF(I200-SUM(K200:L200)<0,0,I200-SUM(K200:L200))) ->  | K200: =IF(G200="Всього:",SUM($K$5:K199),IF(F200<>F199,(F200*O199/36000*(G200-CONCATENATE(DAY($C$4),".",MONTH(G199),".",YEAR(G199)))+(F199*O199/36000*(CONCATENATE(DAY($C$4),".",MONTH(G199),".",YEAR(G199))-G199))),F200*O199/36000*(G200-G199))) ->  | L200: =IF(G200="Всього:",SUM($L$5:L199),$E$4) ->  | M200: =IF(G200="Всього:",SUM($M$5:M199),IF($E$5="UAH",J200+L200+K200,J200+K200)) ->  | N200: =IF(G200="Всього:",SUM($N$4:N199),IF($E$5="UAH","",L200)) -> 
... 48 more rows

Sheet Ануїтетна_графік_Авто
A1: Сума ануїтету | B1: =((E1*POWER(1+(E2/12),E3)*(E2/12)))/(POWER(1+(E2/12),E3)-1) -> 932666.6667 | C1: =PMT(E2/12,E3,-E1) -> 932666.6667 | D1: Сума кредиту | E1: ='Калькулятор '!N2 -> 800000 | H1: Дата формування: | J1: =TODAY() -> 2025-06-16 | O1: АВТОКРЕДИТ
A2: Процентний платіж | B2: =E1*(E2/12) -> 932666.6667 | C2: =IPMT(E2/12,1,E3,-(E1)) -> 932666.6667 | D2: Ставка кредиту | E2: ='Калькулятор '!E14 -> 13.99 | F2: Відсоткові ставки на різні періоди | G2: Дата сплати | H2: Графік погашення кредиту | S2: 12 | W2: Загальна вартість кредиту, грн | Y2: =IF(E3=S2,J17,IF(E3=S3,J29,IF(E3=S4,J41,IF(E3=S5,J53,0))))+Y3+IF(E3=S6,J65,IF(E3=S7,J77,IF(E3=S8,J89,0))) -> 1279621.642 | AB2: =R3+Y7+Y6+Y4 -> 497888.3091 | AC2: =IF(E3=S2,AVERAGE(O4:O15),IF(E3=S3,AVERAGE(O4:O27),IF(E3=S4,AVERAGE(O4:O39),IF(E3=S5,AVERAGE(O4:O51),IF(E3=S6,AVERAGE(O4:O63),0))))) -> 445753.4032
A3: Платіж по основній сумі | B3: =B1-B2 -> 0 | C3: =PPMT(E2/12,1,E3,-E1) -> 7.239771339e-11 | D3: Строк кредиту | E3: ='Калькулятор '!E12 -> 48 | H3: № платежу | I3: Розмір ануїтету | J3: Погашення суми кредиту | K3: Сплата відсотків | L3: Сплата щомісячної комісії | M3: Всього платежів | O3: Залишок заборгованості | R3: =IF(E3=S2,Y7,IF(E3=S3,Y7+R17,IF(E3=S4,Y7+(SUM(R17:R29)),IF(E3=S5,Y7+(SUM(R17:R41)),IF(E3=S6,Y7+(SUM(R17:R53)),IF(E3=S7,Y7+(SUM(R17:R65)),IF(E3=S8,Y7+(SUM(R17:R77)),0))))))) -> 185257.2 | S3: 24 | W3: Загальні витрати за кредитом, грн | Y3: =SUM(Y4:Y8)+Y12-Y7+R3 -> 479621.6425 | AB3: =IF('Калькулятор '!V23<20,1,IF(AC3=Y10,0,1)) -> 0 | AC3: 0.3215722024
A4: Дата розрахунку | C4: =TODAY() -> 45824 | D4: Комісія за управління | E4: ='Платоспроможність боржника'!H4/100*E1 -> 0 | F4: % | H4: 0 | I4: =IF($E$5="EUR","Євро",IF($E$5="USD","дол. США","грн.")) -> грн. | J4: =IF($E$5="EUR","Євро",IF($E$5="USD","дол. США","грн.")) -> грн. | K4: =IF($E$5="EUR","Євро",IF($E$5="USD","дол. США","грн.")) -> грн. | L4: грн. | M4: =IF($E$5="EUR","Євро",IF($E$5="USD","дол. США","грн.")) -> грн. | N4: грн. | O4: =E1 -> 800000 | P4: =C4 -> 45824 | Q4: =IFERROR(-E1+(Y6+Y7+Y5+Y8+Y12),"") -> -707146.6667 | S4: 36 | W4: Відсотки | Y4: =IF(E3=S2,K17,IF(E3=S3,K29,IF(E3=S4,K41,IF(E3=S5,K53,0))))+IF(E3=S6,K65,IF(E3=S7,K77,IF(E3=S8,K89,0))) -> 253111.1091
A5: Періодичність сплати (міс.) | B5: 1 | C5: 1 | D5: Валюта | E5: UAH | F5: =IF(G5="Всього:","",IF(AND(G5>$B$9,G5<=$B$10),$C$16,IF(AND(G5>$B$9,G5<=$B$11),$D$16,IF(AND(G5>$B$10,G5<=$B$14),$E$16,$B$16)))) -> 13.99 | G5: =IF(AND(DAY(C4)<=15,$B$7>DAY(C4)),DATE(YEAR(C4),MONTH(C4),IF($B$7<>"",DAY(IF($B$7>DAY(EOMONTH(C4,0)),EOMONTH(C4,0),$B$7)),DAY(1))),DATE(YEAR(C4),MONTH(C4)+1,IF($B$7<>"",DAY(IF($B$7>DAY(EOMONTH(C4,1)),EOMONTH(C4,1),$B$7)),DAY(1)))) -> 45854 | H5: =IF(H4>$E$8,"",H4+1) -> 1 | I5: =IF($G5="Всього:",SUM($I$4:I4),MAX($C$32,K5)) -> 21940 | J5: =IF($G5="Всього:",SUM($J$4:J4),IF(I5-SUM(K5:L5)<0,0,I5-SUM(K5:L5))) -> 12613.33333 | K5: =$E$1*F5*(G5-$C$4)/36000 -> 9326.666667 | L5: =$E$4 -> 0 | M5: =IF($E$5="UAH",J5+L5+K5,J5+K5) -> 21940 | N5: =IF($E$5="UAH","",L5) ->  | O5: =O4-J5 -> 787386.6667 | P5: =G5 -> 45854 | Q5: =IF(R5="",I5,IFERROR(I5+R5,0)) -> 21940 | S5: 48 | W5: Нотаріальні послуги (одноразово) | Y5: =Калькулятор!N40 -> 0
A6: Сума ануїтету (грн.) | C6: =IF(E5="EUR",C1*E7,IF(E5="USD",C1*E6,C1)) -> 932666.6667 | F6: =IF(G6="Всього:","",IF(AND(G6>$B$9,G6<=$B$10),$C$16,IF(AND(G6>$B$9,G6<=$B$11),$D$16,IF(AND(G6>$B$10,G6<=$B$14),$E$16,$B$16)))) -> 13.99 | G6: =IF(H5=$E$3,"Всього:",IF($E$3=H6,$B$14,DATE(YEAR(G5),MONTH(G5)+1,IF($B$7<>"",DAY(IF($B$7>DAY(EOMONTH(G5,1)),EOMONTH(G5,1),$B$7)),DAY(1))))) -> 45885 | H6: =IF(H5>$E$8,"",H5+1) -> 2 | I6: =IF($G6="Всього:",SUM($I$4:I5),MAX($C$32,K6)) -> 21940 | J6: =IF($G6="Всього:",SUM($J$4:J5),IF(I6-SUM(K6:L6)<0,0,I6-SUM(K6:L6))) -> 12454.39657 | K6: =IF(G6="Всього:",SUM($K$5:K5),F6*O5/36000*(G6-G5)) -> 9485.60343 | L6: =IF(G6="Всього:",SUM($L$5:L5),$E$4) -> 0 | M6: =IF(G6="Всього:",SUM($M$5:M5),IF($E$5="UAH",J6+L6+K6,J6+K6)) -> 21940 | N6: =IF(G6="Всього:",SUM($N$4:N5),IF($E$5="UAH","",L6)) ->  | O6: 774932.2701 | P6: 45885 | Q6: =IF(R7="",I6,IFERROR(I6+R7,0)) -> 21940 | S6: 60 | W6: Комісія за видачу кредиту (грн) | Y6: =Z6*E1 -> 7920 | Z6: =Калькулятор!G9 -> 0.0099
A7: День оплати | B7: =DAY(C4) -> 16 | F7: 13.99 | G7: =IF(H6=$E$3,"Всього:",IF($E$3=H7,$B$14,DATE(YEAR(G6),MONTH(G6)+1,IF($B$7<>"",DAY(IF($B$7>DAY(EOMONTH(G6,1)),EOMONTH(G6,1),$B$7)),DAY(1))))) -> 45916 | H7: 3 | I7: =IF($G7="Всього:",SUM($I$4:I6),MAX($C$32,K7)) -> 21940 | J7: =IF($G7="Всього:",SUM($J$4:J6),IF(I7-SUM(K7:L7)<0,0,I7-SUM(K7:L7))) -> 12604.43399 | K7: =IF(G7="Всього:",SUM($K$5:K6),F7*O6/36000*(G7-G6)) -> 9335.566006 | L7: =IF(G7="Всього:",SUM($L$5:L6),$E$4) -> 0 | M7: =IF(G7="Всього:",SUM($M$5:M6),IF($E$5="UAH",J7+L7+K7,J7+K7)) -> 21940 | N7: =IF(G7="Всього:",SUM($N$4:N6),IF($E$5="UAH","",L7)) ->  | O7: 762327.8361 | P7: 45916 | Q7: 21940 | S7: 72 | W7: Страхування КАСКО, щорічно (грн) | Y7: =Z7*AA7 -> 51600 | Z7: =Калькулятор!G15 -> 0.0516 | AA7: ='Калькулятор '!E4 -> 1000000
A8: Дата початку дії ставки 1 | B8: =C4 -> 45824 | D8: Строк кредиту після 15 числа | E8: =E3 -> 48 | F8: 13.99 | G8: 45946 | H8: 4 | I8: =IF($G8="Всього:",SUM($I$4:I7),MAX($C$32,K8)) -> 21940 | J8: =IF($G8="Всього:",SUM($J$4:J7),IF(I8-SUM(K8:L8)<0,0,I8-SUM(K8:L8))) -> 13052.52798 | K8: =IF(G8="Всього:",SUM($K$5:K7),F8*O7/36000*(G8-G7)) -> 8887.472023 | L8: =IF(G8="Всього:",SUM($L$5:L7),$E$4) -> 0 | M8: =IF(G8="Всього:",SUM($M$5:M7),IF($E$5="UAH",J8+L8+K8,J8+K8)) -> 21940 | N8: =IF(G8="Всього:",SUM($N$4:N7),IF($E$5="UAH","",L8)) ->  | O8: 749275.3081 | P8: 45946 | Q8: 21940 | S8: 84 | W8: Пенсійний фонд | Y8: =IF('Калькулятор '!E5="Ні",'Калькулятор (реал. ставка)'!C18,0) -> 33333.33333 | Z8: 250 | AA8: 3028
A9: Дата початку дії ставки 2 | B9: =IF('Платоспроможність боржника'!H7="",B14,EDATE($C$4,'Платоспроможність боржника'!$H$7)) -> 47284 | F9: 13.99 | G9: 45977 | H9: 5 | I9: =IF($G9="Всього:",SUM($I$4:I8),MAX($C$32,K9)) -> 21940 | J9: =IF($G9="Всього:",SUM($J$4:J8),IF(I9-SUM(K9:L9)<0,0,I9-SUM(K9:L9))) -> 12913.52199 | K9: =IF(G9="Всього:",SUM($K$5:K8),F9*O8/36000*(G9-G8)) -> 9026.478011 | L9: =IF(G9="Всього:",SUM($L$5:L8),$E$4) -> 0 | M9: =IF(G9="Всього:",SUM($M$5:M8),IF($E$5="UAH",J9+L9+K9,J9+K9)) -> 21940 | N9: =IF(G9="Всього:",SUM($N$4:N8),IF($E$5="UAH","",L9)) ->  | O9: 736361.7861 | P9: 45977 | Q9: 21940 | W9: Без ПДВ | Y9: =Калькулятор!N46 -> 33333.33333
A10: Дата початку дії ставки 3 | B10: =IF('Платоспроможність боржника'!I7="",B14,EDATE($C$4,'Платоспроможність боржника'!$H$7+'Платоспроможність боржника'!$I$7)) -> 47284 | F10: 13.99 | G10: 46007 | H10: 6 | I10: =IF($G10="Всього:",SUM($I$4:I9),MAX($C$32,K10)) -> 21940 | J10: =IF($G10="Всього:",SUM($J$4:J9),IF(I10-SUM(K10:L10)<0,0,I10-SUM(K10:L10))) -> 13355.24884 | K10: =IF(G10="Всього:",SUM($K$5:K9),F10*O9/36000*(G10-G9)) -> 8584.751157 | L10: =IF(G10="Всього:",SUM($L$5:L9),$E$4) -> 0 | M10: =IF(G10="Всього:",SUM($M$5:M9),IF($E$5="UAH",J10+L10+K10,J10+K10)) -> 21940 | N10: =IF(G10="Всього:",SUM($N$4:N9),IF($E$5="UAH","",L10)) ->  | O10: 723006.5373 | P10: 46007 | Q10: 21940 | W10: Реальна ставка | Y10: =IF(E3=S2,XIRR($Q$4:$Q$16,$P$4:$P$16),IF(E3=S3,XIRR($Q$4:$Q$28,$P$4:$P$28),IF(E3=S4,XIRR($Q$4:$Q$40,$P$4:$P$40),IF(E3=S5,XIRR($Q$4:$Q$52,$P$4:$P$52),IF(E3=S6,XIRR($Q$4:$Q$64,$P$4:$P$64),IF(E3=S7,XIRR($Q$4:$Q$76,$P$4:$P$76),IF(E3=S8,XIRR($Q$4:$Q$88,$P$4:$P$88)))))))) -> 0.3215722024
A11: Дата початку дії ставки 4 | B11: =IF('Платоспроможність боржника'!J7="",B14,EDATE($C$4,'Платоспроможність боржника'!$H$7+'Платоспроможність боржника'!$I$7+'Платоспроможність боржника'!$J$7)) -> 47284 | F11: 13.99 | G11: 46038 | H11: 7 | I11: =IF($G11="Всього:",SUM($I$4:I10),MAX($C$32,K11)) -> 21940 | J11: =IF($G11="Всього:",SUM($J$4:J10),IF(I11-SUM(K11:L11)<0,0,I11-SUM(K11:L11))) -> 13229.98041 | K11: =IF(G11="Всього:",SUM($K$5:K10),F11*O10/36000*(G11-G10)) -> 8710.019588 | L11: =IF(G11="Всього:",SUM($L$5:L10),$E$4) -> 0 | M11: =IF(G11="Всього:",SUM($M$5:M10),IF($E$5="UAH",J11+L11+K11,J11+K11)) -> 21940 | N11: =IF(G11="Всього:",SUM($N$4:N10),IF($E$5="UAH","",L11)) ->  | O11: 709776.5569 | P11: 46038 | Q11: 21940 | W11: Ефективна ставка | Y11: =AB2/AC2/E3*12 -> 0.2792397689
F12: 13.99 | G12: 46069 | H12: 8 | I12: =IF($G12="Всього:",SUM($I$4:I11),MAX($C$32,K12)) -> 21940 | J12: =IF($G12="Всього:",SUM($J$4:J11),IF(I12-SUM(K12:L12)<0,0,I12-SUM(K12:L12))) -> 13389.36125 | K12: =IF(G12="Всього:",SUM($K$5:K11),F12*O11/36000*(G12-G11)) -> 8550.638749 | L12: =IF(G12="Всього:",SUM($L$5:L11),$E$4) -> 0 | M12: =IF(G12="Всього:",SUM($M$5:M11),IF($E$5="UAH",J12+L12+K12,J12+K12)) -> 21940 | N12: =IF(G12="Всього:",SUM($N$4:N11),IF($E$5="UAH","",L12)) ->  | O12: 696387.1956 | P12: 46069 | Q12: 21940 | W12: Інші витрати | Y12: =Калькулятор!N43+Калькулятор!N37 -> 0
F13: 13.99 | G13: 46097 | H13: 9 | I13: =IF($G13="Всього:",SUM($I$4:I12),MAX($C$32,K13)) -> 21940 | J13: =IF($G13="Всього:",SUM($J$4:J12),IF(I13-SUM(K13:L13)<0,0,I13-SUM(K13:L13))) -> 14362.53355 | K13: =IF(G13="Всього:",SUM($K$5:K12),F13*O12/36000*(G13-G12)) -> 7577.466452 | L13: =IF(G13="Всього:",SUM($L$5:L12),$E$4) -> 0 | M13: =IF(G13="Всього:",SUM($M$5:M12),IF($E$5="UAH",J13+L13+K13,J13+K13)) -> 21940 | N13: =IF(G13="Всього:",SUM($N$4:N12),IF($E$5="UAH","",L13)) ->  | O13: 682024.6621 | P13: 46097 | Q13: 21940
A14: Дата погашення кредиту | B14: =EDATE($C$4,$E$3)-1 -> 47284 | F14: 13.99 | G14: 46128 | H14: 10 | I14: =IF($G14="Всього:",SUM($I$4:I13),MAX($C$32,K14)) -> 21940 | J14: =IF($G14="Всього:",SUM($J$4:J13),IF(I14-SUM(K14:L14)<0,0,I14-SUM(K14:L14))) -> 13723.68679 | K14: =IF(G14="Всього:",SUM($K$5:K13),F14*O13/36000*(G14-G13)) -> 8216.313214 | L14: =IF(G14="Всього:",SUM($L$5:L13),$E$4) -> 0 | M14: =IF(G14="Всього:",SUM($M$5:M13),IF($E$5="UAH",J14+L14+K14,J14+K14)) -> 21940 | N14: =IF(G14="Всього:",SUM($N$4:N13),IF($E$5="UAH","",L14)) ->  | O14: 668300.9753 | P14: 46128 | Q14: 21940 | T14: 315373.34 | U14: =T14+Q4 -> -391773.3267 | X14: 2500000
F15: 13.99 | G15: 46158 | H15: 11 | I15: =IF($G15="Всього:",SUM($I$4:I14),MAX($C$32,K15)) -> 21940 | J15: =IF($G15="Всього:",SUM($J$4:J14),IF(I15-SUM(K15:L15)<0,0,I15-SUM(K15:L15))) -> 14148.72446 | K15: =IF(G15="Всього:",SUM($K$5:K14),F15*O14/36000*(G15-G14)) -> 7791.275537 | L15: =IF(G15="Всього:",SUM($L$5:L14),$E$4) -> 0 | M15: =IF(G15="Всього:",SUM($M$5:M14),IF($E$5="UAH",J15+L15+K15,J15+K15)) -> 21940 | N15: =IF(G15="Всього:",SUM($N$4:N14),IF($E$5="UAH","",L15)) ->  | O15: 654152.2508 | P15: 46158 | Q15: 21940 | U15: =400000-Y8-W13-Y6-Y5 -> 358746.6667 | Y15: 12 | Z15: 24 | AA15: 36 | AB15: 48 | AC15: 60
A16: % ставки | B16: =IF(AND('Платоспроможність боржника'!H8="Змінна",'Платоспроможність боржника'!$H$5<=24),'Платоспроможність боржника'!H6+0.5,IF(AND('Платоспроможність боржника'!H8="Змінна",'Платоспроможність боржника'!$H$5>24,'Платоспроможність боржника'!$H$5<=60),'Платоспроможність боржника'!H6+1,IF(AND('Платоспроможність боржника'!H8="Змінна",'Платоспроможність боржника'!$H$5>60),'Платоспроможність боржника'!H6+2.5,'Платоспроможність боржника'!H6))) -> 13.99 | C16: =IF(AND('Платоспроможність боржника'!I8="Змінна",'Платоспроможність боржника'!$H$5<=24),'Платоспроможність боржника'!I6+0.5,IF(AND('Платоспроможність боржника'!I8="Змінна",'Платоспроможність боржника'!$H$5>24,'Платоспроможність боржника'!$H$5<=60),'Платоспроможність боржника'!I6+1,IF(AND('Платоспроможність боржника'!I8="Змінна",'Платоспроможність боржника'!$H$5>60),'Платоспроможність боржника'!I6+2.5,'Платоспроможність боржника'!I6))) -> 0 | D16: =IF(AND('Платоспроможність боржника'!J8="Змінна",'Платоспроможність боржника'!$H$5<=24),'Платоспроможність боржника'!J6+0.5,IF(AND('Платоспроможність боржника'!J8="Змінна",'Платоспроможність боржника'!$H$5>24,'Платоспроможність боржника'!$H$5<=60),'Платоспроможність боржника'!J6+1,IF(AND('Платоспроможність боржника'!J8="Змінна",'Платоспроможність боржника'!$H$5>60),'Платоспроможність боржника'!J6+2.5,'Платоспроможність боржника'!J6))) -> 0 | E16: =IF(AND('Платоспроможність боржника'!K8="Змінна",'Платоспроможність боржника'!$H$5<=24),'Платоспроможність боржника'!K6+0.5,IF(AND('Платоспроможність боржника'!K8="Змінна",'Платоспроможність боржника'!$H$5>24,'Платоспроможність боржника'!$H$5<=60),'Платоспроможність боржника'!K6+1,IF(AND('Платоспроможність боржника'!K8="Змінна",'Платоспроможність боржника'!$H$5>60),'Платоспроможність боржника'!K6+2.5,'Платоспроможність боржника'!K6))) -> 0 | F16: 13.99 | G16: 46189 | H16: 12 | I16: =IF($G16="Всього:",SUM($I$4:I15),MAX($C$32,K16)) -> 21940 | J16: =IF($G16="Всього:",SUM($J$4:J15),IF(I16-SUM(K16:L16)<0,0,I16-SUM(K16:L16))) -> 14059.46418 | K16: =IF(G16="Всього:",SUM($K$5:K15),F16*O15/36000*(G16-G15)) -> 7880.535824 | L16: =IF(G16="Всього:",SUM($L$5:L15),$E$4) -> 0 | M16: =IF(G16="Всього:",SUM($M$5:M15),IF($E$5="UAH",J16+L16+K16,J16+K16)) -> 21940 | N16: =IF(G16="Всього:",SUM($N$4:N15),IF($E$5="UAH","",L16)) ->  | O16: 640092.7867 | P16: 46189 | Q16: 71260 | X16: 0.3 | Y16: 0.5031669796 | Z16: 0.4180285633 | AA16: 0.3818414748 | AB16: 0.3642736971 | AC16: 0.3423467338
F17: 13.99 | G17: 46219 | H17: 13 | I17: =IF($G17="Всього:",SUM($I$4:I16),MAX($C$32,K17)) -> 21940 | J17: =IF($G17="Всього:",SUM($J$4:J16),IF(I17-SUM(K17:L17)<0,0,I17-SUM(K17:L17))) -> 14477.58493 | K17: =IF(G17="Всього:",SUM($K$5:K16),F17*O16/36000*(G17-G16)) -> 7462.415071 | L17: =IF(G17="Всього:",SUM($L$5:L16),$E$4) -> 0 | M17: =IF(G17="Всього:",SUM($M$5:M16),IF($E$5="UAH",J17+L17+K17,J17+K17)) -> 21940 | N17: =IF(G17="Всього:",SUM($N$4:N16),IF($E$5="UAH","",L17)) ->  | O17: 625615.2017 | P17: 46219 | Q17: 21940 | R17: =IF(E8>H17,$AA$7*0.9*5.48%,"") -> 49320 | X17: 0.4 | Y17: 0.5865282595 | Z17: 0.4759069264 | AA17: 0.4290104568 | AB17: 0.4052130997 | AC17: 0.3788110673
A18: Калькулятор | B18: 0 | C18: *одне з полів має мати 1 | F18: 13.99 | G18: 46250 | H18: 14 | I18: =IF($G18="Всього:",SUM($I$4:I17),MAX($C$32,K18)) -> 21940 | J18: =IF($G18="Всього:",SUM($J$4:J17),IF(I18-SUM(K18:L18)<0,0,I18-SUM(K18:L18))) -> 14403.24842 | K18: =IF(G18="Всього:",SUM($K$5:K17),F18*O17/36000*(G18-G17)) -> 7536.751579 | L18: =IF(G18="Всього:",SUM($L$5:L17),$E$4) -> 0 | M18: =IF(G18="Всього:",SUM($M$5:M17),IF($E$5="UAH",J18+L18+K18,J18+K18)) -> 21940 | N18: =IF(G18="Всього:",SUM($N$4:N17),IF($E$5="UAH","",L18)) ->  | O18: 611211.9533 | P18: 46250 | Q18: 21940 | X18: 0.5 | Y18: 0.6802572668 | Z18: 0.5324063838 | AA18: 0.4705192268 | AB18: 0.4450954378 | AC18: 0.4193122327 | AF18: 12 | AG18: 24 | AH18: 36 | AI18: 48 | AJ18: 60
A19: Калькулятор (реал. ставка) | B19: 0 | F19: 13.99 | G19: 46281 | H19: 15 | I19: =IF($G19="Всього:",SUM($I$4:I18),MAX($C$32,K19)) -> 21940 | J19: =IF($G19="Всього:",SUM($J$4:J18),IF(I19-SUM(K19:L19)<0,0,I19-SUM(K19:L19))) -> 14576.76355 | K19: =IF(G19="Всього:",SUM($K$5:K18),F19*O18/36000*(G19-G18)) -> 7363.236445 | L19: =IF(G19="Всього:",SUM($L$5:L18),$E$4) -> 0 | M19: =IF(G19="Всього:",SUM($M$5:M18),IF($E$5="UAH",J19+L19+K19,J19+K19)) -> 21940 | N19: =IF(G19="Всього:",SUM($N$4:N18),IF($E$5="UAH","",L19)) ->  | O19: 596635.1898 | P19: 46281 | Q19: 21940 | X19: 0.6 | Y19: 0.9065295815 | Z19: 0.6798347771 | AA19: 0.5872953832 | AB19: 0.5455350459 | AC19: 0.5085553467 | AE19: 0.3 | AF19: =Y16-Y23 -> 0.07890256643 | AG19: =Z16-Z23 -> 0.4180285633 | AH19: 0.3818414748 | AI19: 0.3642736971 | AJ19: 0.3423467338
F20: 13.99 | G20: 46311 | H20: 16 | I20: =IF($G20="Всього:",SUM($I$4:I19),MAX($C$32,K20)) -> 21940 | J20: =IF($G20="Всього:",SUM($J$4:J19),IF(I20-SUM(K20:L20)<0,0,I20-SUM(K20:L20))) -> 14984.22808 | K20: =IF(G20="Всього:",SUM($K$5:K19),F20*O19/36000*(G20-G19)) -> 6955.771921 | L20: =IF(G20="Всього:",SUM($L$5:L19),$E$4) -> 0 | M20: =IF(G20="Всього:",SUM($M$5:M19),IF($E$5="UAH",J20+L20+K20,J20+K20)) -> 21940 | N20: =IF(G20="Всього:",SUM($N$4:N19),IF($E$5="UAH","",L20)) ->  | O20: 581650.9617 | P20: 46311 | Q20: 21940 | S20: 1000000 | T20: 0.6 | U20: 1.313465726 | X20: 0.7 | Y20: 1.416257536 | Z20: 0.9882460475 | AA20: 0.8241547465 | AB20: 0.7464819551 | AC20: 0.6860473454 | AE20: 0.4 | AF20: =Y17-Y24 -> 0.5865282595 | AG20: 0.4759069264 | AH20: 0.4290104568 | AI20: 0.4052130997 | AJ20: 0.3788110673
F21: 13.99 | G21: 46342 | H21: 17 | I21: =IF($G21="Всього:",SUM($I$4:I20),MAX($C$32,K21)) -> 21940 | J21: =IF($G21="Всього:",SUM($J$4:J20),IF(I21-SUM(K21:L21)<0,0,I21-SUM(K21:L21))) -> 14932.88318 | K21: =IF(G21="Всього:",SUM($K$5:K20),F21*O20/36000*(G21-G20)) -> 7007.116821 | L21: =IF(G21="Всього:",SUM($L$5:L20),$E$4) -> 0 | M21: =IF(G21="Всього:",SUM($M$5:M20),IF($E$5="UAH",J21+L21+K21,J21+K21)) -> 21940 | N21: =IF(G21="Всього:",SUM($N$4:N20),IF($E$5="UAH","",L21)) ->  | O21: 566718.0785 | P21: 46342 | Q21: 21940 | S21: 1000000 | T21: 0.7 | U21: 2.08956964 | X21: 100000 | AE21: 0.5 | AF21: 0.6802572668 | AG21: 0.5324063838 | AH21: 0.4705192268 | AI21: 0.4450954378 | AJ21: 0.4193122327
F22: 13.99 | G22: 46372 | H22: 18 | I22: =IF($G22="Всього:",SUM($I$4:I21),MAX($C$32,K22)) -> 21940 | J22: =IF($G22="Всього:",SUM($J$4:J21),IF(I22-SUM(K22:L22)<0,0,I22-SUM(K22:L22))) -> 15333.01173 | K22: =IF(G22="Всього:",SUM($K$5:K21),F22*O21/36000*(G22-G21)) -> 6606.988265 | L22: =IF(G22="Всього:",SUM($L$5:L21),$E$4) -> 0 | M22: =IF(G22="Всього:",SUM($M$5:M21),IF($E$5="UAH",J22+L22+K22,J22+K22)) -> 21940 | N22: =IF(G22="Всього:",SUM($N$4:N21),IF($E$5="UAH","",L22)) ->  | O22: 551385.0668 | P22: 46372 | Q22: 21940 | S22: 800000 | T22: 0.6 | U22: 1.197980654 | Y22: 12 | Z22: 24 | AA22: 36 | AB22: 48 | AC22: 60 | AE22: 0.6 | AF22: 0.9065295815 | AG22: 0.6798347771 | AH22: 0.5872953832 | AI22: 0.5455350459 | AJ22: 0.5085553467
F23: 13.99 | G23: 46403 | H23: 19 | I23: =IF($G23="Всього:",SUM($I$4:I22),MAX($C$32,K23)) -> 21940 | J23: =IF($G23="Всього:",SUM($J$4:J22),IF(I23-SUM(K23:L23)<0,0,I23-SUM(K23:L23))) -> 15297.49473 | K23: =IF(G23="Всього:",SUM($K$5:K22),F23*O22/36000*(G23-G22)) -> 6642.505267 | L23: =IF(G23="Всього:",SUM($L$5:L22),$E$4) -> 0 | M23: =IF(G23="Всього:",SUM($M$5:M22),IF($E$5="UAH",J23+L23+K23,J23+K23)) -> 21940 | N23: =IF(G23="Всього:",SUM($N$4:N22),IF($E$5="UAH","",L23)) ->  | O23: 536087.572 | P23: 46403 | Q23: 21940 | S23: 800000 | T23: 0.7 | U23: 1.811824667 | X23: 0.3 | Y23: 0.4242644131 | AE23: 0.7 | AF23: 0.372535181 | AG23: 0.9882460475 | AH23: 0.8241547465 | AI23: 0.7464819551 | AJ23: 0.6860473454
F24: 13.99 | G24: 46434 | H24: 20 | I24: =IF($G24="Всього:",SUM($I$4:I23),MAX($C$32,K24)) -> 21940 | J24: =IF($G24="Всього:",SUM($J$4:J23),IF(I24-SUM(K24:L24)<0,0,I24-SUM(K24:L24))) -> 15481.7828 | K24: =IF(G24="Всього:",SUM($K$5:K23),F24*O23/36000*(G24-G23)) -> 6458.217198 | L24: =IF(G24="Всього:",SUM($L$5:L23),$E$4) -> 0 | M24: =IF(G24="Всього:",SUM($M$5:M23),IF($E$5="UAH",J24+L24+K24,J24+K24)) -> 21940 | N24: =IF(G24="Всього:",SUM($N$4:N23),IF($E$5="UAH","",L24)) ->  | O24: 520605.7892 | P24: 46434 | Q24: 21940 | X24: 0.4
F25: 13.99 | G25: 46462 | H25: 21 | I25: =IF($G25="Всього:",SUM($I$4:I24),MAX($C$32,K25)) -> 21940 | J25: =IF($G25="Всього:",SUM($J$4:J24),IF(I25-SUM(K25:L25)<0,0,I25-SUM(K25:L25))) -> 16275.23056 | K25: =IF(G25="Всього:",SUM($K$5:K24),F25*O24/36000*(G25-G24)) -> 5664.769438 | L25: =IF(G25="Всього:",SUM($L$5:L24),$E$4) -> 0 | M25: =IF(G25="Всього:",SUM($M$5:M24),IF($E$5="UAH",J25+L25+K25,J25+K25)) -> 21940 | N25: =IF(G25="Всього:",SUM($N$4:N24),IF($E$5="UAH","",L25)) ->  | O25: 504330.5587 | P25: 46462 | Q25: 21940 | X25: 0.5
F26: 13.99 | G26: 46493 | H26: 22 | I26: =IF($G26="Всього:",SUM($I$4:I25),MAX($C$32,K26)) -> 21940 | J26: =IF($G26="Всього:",SUM($J$4:J25),IF(I26-SUM(K26:L26)<0,0,I26-SUM(K26:L26))) -> 15864.35778 | K26: =IF(G26="Всього:",SUM($K$5:K25),F26*O25/36000*(G26-G25)) -> 6075.642222 | L26: =IF(G26="Всього:",SUM($L$5:L25),$E$4) -> 0 | M26: =IF(G26="Всього:",SUM($M$5:M25),IF($E$5="UAH",J26+L26+K26,J26+K26)) -> 21940 | N26: =IF(G26="Всього:",SUM($N$4:N25),IF($E$5="UAH","",L26)) ->  | O26: 488466.2009 | P26: 46493 | Q26: 21940 | X26: 0.6
F27: 13.99 | G27: 46523 | H27: 23 | I27: =IF($G27="Всього:",SUM($I$4:I26),MAX($C$32,K27)) -> 21940 | J27: =IF($G27="Всього:",SUM($J$4:J26),IF(I27-SUM(K27:L27)<0,0,I27-SUM(K27:L27))) -> 16245.29821 | K27: =IF(G27="Всього:",SUM($K$5:K26),F27*O26/36000*(G27-G26)) -> 5694.701792 | L27: =IF(G27="Всього:",SUM($L$5:L26),$E$4) -> 0 | M27: =IF(G27="Всього:",SUM($M$5:M26),IF($E$5="UAH",J27+L27+K27,J27+K27)) -> 21940 | N27: =IF(G27="Всього:",SUM($N$4:N26),IF($E$5="UAH","",L27)) ->  | O27: 472220.9027 | P27: 46523 | Q27: 21940 | X27: 0.7 | Y27: 1.043722355
F28: 13.99 | G28: 46554 | H28: 24 | I28: =IF($G28="Всього:",SUM($I$4:I27),MAX($C$32,K28)) -> 21940 | J28: =IF($G28="Всього:",SUM($J$4:J27),IF(I28-SUM(K28:L28)<0,0,I28-SUM(K28:L28))) -> 16251.18102 | K28: =IF(G28="Всього:",SUM($K$5:K27),F28*O27/36000*(G28-G27)) -> 5688.81898 | L28: =IF(G28="Всього:",SUM($L$5:L27),$E$4) -> 0 | M28: =IF(G28="Всього:",SUM($M$5:M27),IF($E$5="UAH",J28+L28+K28,J28+K28)) -> 21940 | N28: =IF(G28="Всього:",SUM($N$4:N27),IF($E$5="UAH","",L28)) ->  | O28: 455969.7217 | P28: 46554 | Q28: 66328 | Y28: 0.6383406103
F29: 13.99 | G29: 46584 | H29: 25 | I29: =IF($G29="Всього:",SUM($I$4:I28),MAX($C$32,K29)) -> 21940 | J29: =IF($G29="Всього:",SUM($J$4:J28),IF(I29-SUM(K29:L29)<0,0,I29-SUM(K29:L29))) -> 16624.153 | K29: =IF(G29="Всього:",SUM($K$5:K28),F29*O28/36000*(G29-G28)) -> 5315.847005 | L29: =IF(G29="Всього:",SUM($L$5:L28),$E$4) -> 0 | M29: =IF(G29="Всього:",SUM($M$5:M28),IF($E$5="UAH",J29+L29+K29,J29+K29)) -> 21940 | N29: =IF(G29="Всього:",SUM($N$4:N28),IF($E$5="UAH","",L29)) ->  | O29: 439345.5687 | P29: 46584 | Q29: 21940 | R29: =IF(E8>H28,$AA$7*0.9*0.9*5.48%,"") -> 44388
F30: 13.99 | G30: 46615 | H30: 26 | I30: =IF($G30="Всього:",SUM($I$4:I29),MAX($C$32,K30)) -> 21940 | J30: =IF($G30="Всього:",SUM($J$4:J29),IF(I30-SUM(K30:L30)<0,0,I30-SUM(K30:L30))) -> 16647.22834 | K30: =IF(G30="Всього:",SUM($K$5:K29),F30*O29/36000*(G30-G29)) -> 5292.771658 | L30: =IF(G30="Всього:",SUM($L$5:L29),$E$4) -> 0 | M30: =IF(G30="Всього:",SUM($M$5:M29),IF($E$5="UAH",J30+L30+K30,J30+K30)) -> 21940 | N30: =IF(G30="Всього:",SUM($N$4:N29),IF($E$5="UAH","",L30)) ->  | O30: 422698.3403 | P30: 46615 | Q30: 21940
F31: 13.99 | G31: 46646 | H31: 27 | I31: =IF($G31="Всього:",SUM($I$4:I30),MAX($C$32,K31)) -> 21940 | J31: =IF($G31="Всього:",SUM($J$4:J30),IF(I31-SUM(K31:L31)<0,0,I31-SUM(K31:L31))) -> 16847.77658 | K31: =IF(G31="Всього:",SUM($K$5:K30),F31*O30/36000*(G31-G30)) -> 5092.223423 | L31: =IF(G31="Всього:",SUM($L$5:L30),$E$4) -> 0 | M31: =IF(G31="Всього:",SUM($M$5:M30),IF($E$5="UAH",J31+L31+K31,J31+K31)) -> 21940 | N31: =IF(G31="Всього:",SUM($N$4:N30),IF($E$5="UAH","",L31)) ->  | O31: 405850.5637 | P31: 46646 | Q31: 21940
A32: min | B32: 21939.86109 | C32: 21940 | D32: Ануїтет | F32: 13.99 | G32: 46676 | H32: 28 | I32: =IF($G32="Всього:",SUM($I$4:I31),MAX($C$32,K32)) -> 21940 | J32: =IF($G32="Всього:",SUM($J$4:J31),IF(I32-SUM(K32:L32)<0,0,I32-SUM(K32:L32))) -> 17208.45884 | K32: =IF(G32="Всього:",SUM($K$5:K31),F32*O31/36000*(G32-G31)) -> 4731.541156 | L32: =IF(G32="Всього:",SUM($L$5:L31),$E$4) -> 0 | M32: =IF(G32="Всього:",SUM($M$5:M31),IF($E$5="UAH",J32+L32+K32,J32+K32)) -> 21940 | N32: =IF(G32="Всього:",SUM($N$4:N31),IF($E$5="UAH","",L32)) ->  | O32: 388642.1049 | P32: 46676 | Q32: 21940
A33: max | B33: 21939.86137 | C33: 21940 | D33: Максимальна сума | F33: 13.99 | G33: 46707 | H33: 29 | I33: =IF($G33="Всього:",SUM($I$4:I32),MAX($C$32,K33)) -> 21940 | J33: =IF($G33="Всього:",SUM($J$4:J32),IF(I33-SUM(K33:L33)<0,0,I33-SUM(K33:L33))) -> 17258.05015 | K33: =IF(G33="Всього:",SUM($K$5:K32),F33*O32/36000*(G33-G32)) -> 4681.949846 | L33: =IF(G33="Всього:",SUM($L$5:L32),$E$4) -> 0 | M33: =IF(G33="Всього:",SUM($M$5:M32),IF($E$5="UAH",J33+L33+K33,J33+K33)) -> 21940 | N33: =IF(G33="Всього:",SUM($N$4:N32),IF($E$5="UAH","",L33)) ->  | O33: 371384.0547 | P33: 46707 | Q33: 21940
A34: Останній платіж | B34: 21931.10912 | F34: 13.99 | G34: 46737 | H34: 30 | I34: =IF($G34="Всього:",SUM($I$4:I33),MAX($C$32,K34)) -> 21940 | J34: =IF($G34="Всього:",SUM($J$4:J33),IF(I34-SUM(K34:L34)<0,0,I34-SUM(K34:L34))) -> 17610.2809 | K34: =IF(G34="Всього:",SUM($K$5:K33),F34*O33/36000*(G34-G33)) -> 4329.719105 | L34: =IF(G34="Всього:",SUM($L$5:L33),$E$4) -> 0 | M34: =IF(G34="Всього:",SUM($M$5:M33),IF($E$5="UAH",J34+L34+K34,J34+K34)) -> 21940 | N34: =IF(G34="Всього:",SUM($N$4:N33),IF($E$5="UAH","",L34)) ->  | O34: 353773.7738 | P34: 46737 | Q34: 21940
F35: 13.99 | G35: 46768 | H35: 31 | I35: =IF($G35="Всього:",SUM($I$4:I34),MAX($C$32,K35)) -> 21940 | J35: =IF($G35="Всього:",SUM($J$4:J34),IF(I35-SUM(K35:L35)<0,0,I35-SUM(K35:L35))) -> 17678.107 | K35: =IF(G35="Всього:",SUM($K$5:K34),F35*O34/36000*(G35-G34)) -> 4261.892999 | L35: =IF(G35="Всього:",SUM($L$5:L34),$E$4) -> 0 | M35: =IF(G35="Всього:",SUM($M$5:M34),IF($E$5="UAH",J35+L35+K35,J35+K35)) -> 21940 | N35: =IF(G35="Всього:",SUM($N$4:N34),IF($E$5="UAH","",L35)) ->  | O35: 336095.6668 | P35: 46768 | Q35: 21940
F36: 13.99 | G36: 46799 | H36: 32 | I36: =IF($G36="Всього:",SUM($I$4:I35),MAX($C$32,K36)) -> 21940 | J36: =IF($G36="Всього:",SUM($J$4:J35),IF(I36-SUM(K36:L36)<0,0,I36-SUM(K36:L36))) -> 17891.07417 | K36: =IF(G36="Всього:",SUM($K$5:K35),F36*O35/36000*(G36-G35)) -> 4048.925826 | L36: =IF(G36="Всього:",SUM($L$5:L35),$E$4) -> 0 | M36: =IF(G36="Всього:",SUM($M$5:M35),IF($E$5="UAH",J36+L36+K36,J36+K36)) -> 21940 | N36: =IF(G36="Всього:",SUM($N$4:N35),IF($E$5="UAH","",L36)) ->  | O36: 318204.5927 | P36: 46799 | Q36: 21940
F37: 13.99 | G37: 46828 | H37: 33 | I37: =IF($G37="Всього:",SUM($I$4:I36),MAX($C$32,K37)) -> 21940 | J37: =IF($G37="Всього:",SUM($J$4:J36),IF(I37-SUM(K37:L37)<0,0,I37-SUM(K37:L37))) -> 18353.92263 | K37: =IF(G37="Всього:",SUM($K$5:K36),F37*O36/36000*(G37-G36)) -> 3586.077369 | L37: =IF(G37="Всього:",SUM($L$5:L36),$E$4) -> 0 | M37: =IF(G37="Всього:",SUM($M$5:M36),IF($E$5="UAH",J37+L37+K37,J37+K37)) -> 21940 | N37: =IF(G37="Всього:",SUM($N$4:N36),IF($E$5="UAH","",L37)) ->  | O37: 299850.67 | P37: 46828 | Q37: 21940
F38: 13.99 | G38: 46859 | H38: 34 | I38: =IF($G38="Всього:",SUM($I$4:I37),MAX($C$32,K38)) -> 21940 | J38: =IF($G38="Всього:",SUM($J$4:J37),IF(I38-SUM(K38:L38)<0,0,I38-SUM(K38:L38))) -> 18327.71564 | K38: =IF(G38="Всього:",SUM($K$5:K37),F38*O37/36000*(G38-G37)) -> 3612.284364 | L38: =IF(G38="Всього:",SUM($L$5:L37),$E$4) -> 0 | M38: =IF(G38="Всього:",SUM($M$5:M37),IF($E$5="UAH",J38+L38+K38,J38+K38)) -> 21940 | N38: =IF(G38="Всього:",SUM($N$4:N37),IF($E$5="UAH","",L38)) ->  | O38: 281522.9544 | P38: 46859 | Q38: 21940
F39: 13.99 | G39: 46889 | H39: 35 | I39: =IF($G39="Всього:",SUM($I$4:I38),MAX($C$32,K39)) -> 21940 | J39: =IF($G39="Всього:",SUM($J$4:J38),IF(I39-SUM(K39:L39)<0,0,I39-SUM(K39:L39))) -> 18657.91156 | K39: =IF(G39="Всього:",SUM($K$5:K38),F39*O38/36000*(G39-G38)) -> 3282.088443 | L39: =IF(G39="Всього:",SUM($L$5:L38),$E$4) -> 0 | M39: =IF(G39="Всього:",SUM($M$5:M38),IF($E$5="UAH",J39+L39+K39,J39+K39)) -> 21940 | N39: =IF(G39="Всього:",SUM($N$4:N38),IF($E$5="UAH","",L39)) ->  | O39: 262865.0428 | P39: 46889 | Q39: 21940
F40: 13.99 | G40: 46920 | H40: 36 | I40: =IF($G40="Всього:",SUM($I$4:I39),MAX($C$32,K40)) -> 21940 | J40: =IF($G40="Всього:",SUM($J$4:J39),IF(I40-SUM(K40:L40)<0,0,I40-SUM(K40:L40))) -> 18773.27943 | K40: =IF(G40="Всього:",SUM($K$5:K39),F40*O39/36000*(G40-G39)) -> 3166.720568 | L40: =IF(G40="Всього:",SUM($L$5:L39),$E$4) -> 0 | M40: =IF(G40="Всього:",SUM($M$5:M39),IF($E$5="UAH",J40+L40+K40,J40+K40)) -> 21940 | N40: =IF(G40="Всього:",SUM($N$4:N39),IF($E$5="UAH","",L40)) ->  | O40: 244091.7634 | P40: 46920 | Q40: 61889.2
F41: 13.99 | G41: 46950 | H41: 37 | I41: =IF($G41="Всього:",SUM($I$4:I40),MAX($C$32,K41)) -> 21940 | J41: =IF($G41="Всього:",SUM($J$4:J40),IF(I41-SUM(K41:L41)<0,0,I41-SUM(K41:L41))) -> 19094.29686 | K41: =IF(G41="Всього:",SUM($K$5:K40),F41*O40/36000*(G41-G40)) -> 2845.703142 | L41: =IF(G41="Всього:",SUM($L$5:L40),$E$4) -> 0 | M41: =IF(G41="Всього:",SUM($M$5:M40),IF($E$5="UAH",J41+L41+K41,J41+K41)) -> 21940 | N41: =IF(G41="Всього:",SUM($N$4:N40),IF($E$5="UAH","",L41)) ->  | O41: 224997.4666 | P41: 46950 | Q41: 21940 | R41: =IF(E8>H41,$AA$7*0.9*0.9*0.9*5.48%,"") -> 39949.2
F42: 13.99 | G42: 46981 | H42: 38 | I42: =IF($G42="Всього:",SUM($I$4:I41),MAX($C$32,K42)) -> 21940 | J42: =IF($G42="Всього:",SUM($J$4:J41),IF(I42-SUM(K42:L42)<0,0,I42-SUM(K42:L42))) -> 19229.46802 | K42: =IF(G42="Всього:",SUM($K$5:K41),F42*O41/36000*(G42-G41)) -> 2710.53198 | L42: =IF(G42="Всього:",SUM($L$5:L41),$E$4) -> 0 | M42: =IF(G42="Всього:",SUM($M$5:M41),IF($E$5="UAH",J42+L42+K42,J42+K42)) -> 21940 | N42: =IF(G42="Всього:",SUM($N$4:N41),IF($E$5="UAH","",L42)) ->  | O42: 205767.9985 | P42: 46981 | Q42: 21940
F43: 13.99 | G43: 47012 | H43: 39 | I43: =IF($G43="Всього:",SUM($I$4:I42),MAX($C$32,K43)) -> 21940 | J43: =IF($G43="Всього:",SUM($J$4:J42),IF(I43-SUM(K43:L43)<0,0,I43-SUM(K43:L43))) -> 19461.12435 | K43: =IF(G43="Всього:",SUM($K$5:K42),F43*O42/36000*(G43-G42)) -> 2478.875647 | L43: =IF(G43="Всього:",SUM($L$5:L42),$E$4) -> 0 | M43: =IF(G43="Всього:",SUM($M$5:M42),IF($E$5="UAH",J43+L43+K43,J43+K43)) -> 21940 | N43: =IF(G43="Всього:",SUM($N$4:N42),IF($E$5="UAH","",L43)) ->  | O43: 186306.8742 | P43: 47012 | Q43: 21940
F44: 13.99 | G44: 47042 | H44: 40 | I44: =IF($G44="Всього:",SUM($I$4:I43),MAX($C$32,K44)) -> 21940 | J44: =IF($G44="Всього:",SUM($J$4:J43),IF(I44-SUM(K44:L44)<0,0,I44-SUM(K44:L44))) -> 19767.97236 | K44: =IF(G44="Всього:",SUM($K$5:K43),F44*O43/36000*(G44-G43)) -> 2172.027642 | L44: =IF(G44="Всього:",SUM($L$5:L43),$E$4) -> 0 | M44: =IF(G44="Всього:",SUM($M$5:M43),IF($E$5="UAH",J44+L44+K44,J44+K44)) -> 21940 | N44: =IF(G44="Всього:",SUM($N$4:N43),IF($E$5="UAH","",L44)) ->  | O44: 166538.9018 | P44: 47042 | Q44: 21940
F45: 13.99 | G45: 47073 | H45: 41 | I45: =IF($G45="Всього:",SUM($I$4:I44),MAX($C$32,K45)) -> 21940 | J45: =IF($G45="Всього:",SUM($J$4:J44),IF(I45-SUM(K45:L45)<0,0,I45-SUM(K45:L45))) -> 19933.7151 | K45: =IF(G45="Всього:",SUM($K$5:K44),F45*O44/36000*(G45-G44)) -> 2006.284898 | L45: =IF(G45="Всього:",SUM($L$5:L44),$E$4) -> 0 | M45: =IF(G45="Всього:",SUM($M$5:M44),IF($E$5="UAH",J45+L45+K45,J45+K45)) -> 21940 | N45: =IF(G45="Всього:",SUM($N$4:N44),IF($E$5="UAH","",L45)) ->  | O45: 146605.1867 | P45: 47073 | Q45: 21940
F46: 13.99 | G46: 47103 | H46: 42 | I46: =IF($G46="Всього:",SUM($I$4:I45),MAX($C$32,K46)) -> 21940 | J46: =IF($G46="Всього:",SUM($J$4:J45),IF(I46-SUM(K46:L46)<0,0,I46-SUM(K46:L46))) -> 20230.82786 | K46: =IF(G46="Всього:",SUM($K$5:K45),F46*O45/36000*(G46-G45)) -> 1709.172135 | L46: =IF(G46="Всього:",SUM($L$5:L45),$E$4) -> 0 | M46: =IF(G46="Всього:",SUM($M$5:M45),IF($E$5="UAH",J46+L46+K46,J46+K46)) -> 21940 | N46: =IF(G46="Всього:",SUM($N$4:N45),IF($E$5="UAH","",L46)) ->  | O46: 126374.3589 | P46: 47103 | Q46: 21940
F47: 13.99 | G47: 47134 | H47: 43 | I47: =IF($G47="Всього:",SUM($I$4:I46),MAX($C$32,K47)) -> 21940 | J47: =IF($G47="Всього:",SUM($J$4:J46),IF(I47-SUM(K47:L47)<0,0,I47-SUM(K47:L47))) -> 20417.57512 | K47: =IF(G47="Всього:",SUM($K$5:K46),F47*O46/36000*(G47-G46)) -> 1522.42488 | L47: =IF(G47="Всього:",SUM($L$5:L46),$E$4) -> 0 | M47: =IF(G47="Всього:",SUM($M$5:M46),IF($E$5="UAH",J47+L47+K47,J47+K47)) -> 21940 | N47: =IF(G47="Всього:",SUM($N$4:N46),IF($E$5="UAH","",L47)) ->  | O47: 105956.7837 | P47: 47134 | Q47: 21940
F48: 13.99 | G48: 47165 | H48: 44 | I48: =IF($G48="Всього:",SUM($I$4:I47),MAX($C$32,K48)) -> 21940 | J48: =IF($G48="Всього:",SUM($J$4:J47),IF(I48-SUM(K48:L48)<0,0,I48-SUM(K48:L48))) -> 20663.54451 | K48: =IF(G48="Всього:",SUM($K$5:K47),F48*O47/36000*(G48-G47)) -> 1276.455487 | L48: =IF(G48="Всього:",SUM($L$5:L47),$E$4) -> 0 | M48: =IF(G48="Всього:",SUM($M$5:M47),IF($E$5="UAH",J48+L48+K48,J48+K48)) -> 21940 | N48: =IF(G48="Всього:",SUM($N$4:N47),IF($E$5="UAH","",L48)) ->  | O48: 85293.23923 | P48: 47165 | Q48: 21940
F49: 13.99 | G49: 47193 | H49: 45 | I49: =IF($G49="Всього:",SUM($I$4:I48),MAX($C$32,K49)) -> 21940 | J49: =IF($G49="Всього:",SUM($J$4:J48),IF(I49-SUM(K49:L49)<0,0,I49-SUM(K49:L49))) -> 21011.91479 | K49: =IF(G49="Всього:",SUM($K$5:K48),F49*O48/36000*(G49-G48)) -> 928.085213 | L49: =IF(G49="Всього:",SUM($L$5:L48),$E$4) -> 0 | M49: =IF(G49="Всього:",SUM($M$5:M48),IF($E$5="UAH",J49+L49+K49,J49+K49)) -> 21940 | N49: =IF(G49="Всього:",SUM($N$4:N48),IF($E$5="UAH","",L49)) ->  | O49: 64281.32444 | P49: 47193 | Q49: 21940
F50: 13.99 | G50: 47224 | H50: 46 | I50: =IF($G50="Всього:",SUM($I$4:I49),MAX($C$32,K50)) -> 21940 | J50: =IF($G50="Всього:",SUM($J$4:J49),IF(I50-SUM(K50:L50)<0,0,I50-SUM(K50:L50))) -> 21165.60646 | K50: =IF(G50="Всього:",SUM($K$5:K49),F50*O49/36000*(G50-G49)) -> 774.3935443 | L50: =IF(G50="Всього:",SUM($L$5:L49),$E$4) -> 0 | M50: =IF(G50="Всього:",SUM($M$5:M49),IF($E$5="UAH",J50+L50+K50,J50+K50)) -> 21940 | N50: =IF(G50="Всього:",SUM($N$4:N49),IF($E$5="UAH","",L50)) ->  | O50: 43115.71798 | P50: 47224 | Q50: 21940
F51: 13.99 | G51: 47254 | H51: 47 | I51: =IF($G51="Всього:",SUM($I$4:I50),MAX($C$32,K51)) -> 21940 | J51: =IF($G51="Всього:",SUM($J$4:J50),IF(I51-SUM(K51:L51)<0,0,I51-SUM(K51:L51))) -> 21437.34259 | K51: =IF(G51="Всього:",SUM($K$5:K50),F51*O50/36000*(G51-G50)) -> 502.6574121 | L51: =IF(G51="Всього:",SUM($L$5:L50),$E$4) -> 0 | M51: =IF(G51="Всього:",SUM($M$5:M50),IF($E$5="UAH",J51+L51+K51,J51+K51)) -> 21940 | N51: =IF(G51="Всього:",SUM($N$4:N50),IF($E$5="UAH","",L51)) ->  | O51: 21678.37539 | P51: 47254 | Q51: 21940
F52: 13.99 | G52: 47284 | H52: 48 | I52: 21931.10912 | J52: =IF($G52="Всього:",SUM($J$4:J51),IF(I52-SUM(K52:L52)<0,0,I52-SUM(K52:L52))) -> 21678.37539 | K52: =IF(G52="Всього:",SUM($K$5:K51),F52*O51/36000*(G52-G51)) -> 252.7337265 | L52: =IF(G52="Всього:",SUM($L$5:L51),$E$4) -> 0 | M52: =IF(G52="Всього:",SUM($M$5:M51),IF($E$5="UAH",J52+L52+K52,J52+K52)) -> 21931.10912 | N52: =IF(G52="Всього:",SUM($N$4:N51),IF($E$5="UAH","",L52)) ->  | O52: 0 | P52: 47284 | Q52: 21931.10912
G53: Всього: | H53: 49 | I53: =IF($G53="Всього:",SUM($I$4:I52),MAX($C$32,K53)) -> 1053111.109 | J53: =IF($G53="Всього:",SUM($J$4:J52),IF(I53-SUM(K53:L53)<0,0,I53-SUM(K53:L53))) -> 800000 | K53: =IF(G53="Всього:",SUM($K$5:K52),F53*O52/36000*(G53-G52)) -> 253111.1091 | L53: =IF(G53="Всього:",SUM($L$5:L52),$E$4) -> 0 | M53: =IF(G53="Всього:",SUM($M$5:M52),IF($E$5="UAH",J53+L53+K53,J53+K53)) -> 1053111.109 | N53: =IF(G53="Всього:",SUM($N$4:N52),IF($E$5="UAH","",L53)) -> 0 | O53: -800000 | P53: Всього: | Q53: 1053111.109 | R53: =IF(E8>H53,$AA$7*0.9*0.9*0.9*0.9*5.48%,"") -> 
I54: =IF($G54="Всього:",SUM($I$4:I53),MAX($C$32,K54)) ->  | J54: =IF($G54="Всього:",SUM($J$4:J53),IF(I54-SUM(K54:L54)<0,0,I54-SUM(K54:L54))) ->  | K54: =IF(G54="Всього:",SUM($K$5:K53),F54*O53/36000*(G54-G53)) ->  | L54: =IF(G54="Всього:",SUM($L$5:L53),$E$4) ->  | M54: =IF(G54="Всього:",SUM($M$5:M53),IF($E$5="UAH",J54+L54+K54,J54+K54)) ->  | N54: =IF(G54="Всього:",SUM($N$4:N53),IF($E$5="UAH","",L54)) -> 
I55: =IF($G55="Всього:",SUM($I$4:I54),MAX($C$32,K55)) ->  | J55: =IF($G55="Всього:",SUM($J$4:J54),IF(I55-SUM(K55:L55)<0,0,I55-SUM(K55:L55))) ->  | K55: =IF(G55="Всього:",SUM($K$5:K54),F55*O54/36000*(G55-G54)) ->  | L55: =IF(G55="Всього:",SUM($L$5:L54),$E$4) ->  | M55: =IF(G55="Всього:",SUM($M$5:M54),IF($E$5="UAH",J55+L55+K55,J55+K55)) ->  | N55: =IF(G55="Всього:",SUM($N$4:N54),IF($E$5="UAH","",L55)) -> 
I56: =IF($G56="Всього:",SUM($I$4:I55),MAX($C$32,K56)) ->  | J56: =IF($G56="Всього:",SUM($J$4:J55),IF(I56-SUM(K56:L56)<0,0,I56-SUM(K56:L56))) ->  | K56: =IF(G56="Всього:",SUM($K$5:K55),F56*O55/36000*(G56-G55)) ->  | L56: =IF(G56="Всього:",SUM($L$5:L55),$E$4) ->  | M56: =IF(G56="Всього:",SUM($M$5:M55),IF($E$5="UAH",J56+L56+K56,J56+K56)) ->  | N56: =IF(G56="Всього:",SUM($N$4:N55),IF($E$5="UAH","",L56)) -> 
I57: =IF($G57="Всього:",SUM($I$4:I56),MAX($C$32,K57)) ->  | J57: =IF($G57="Всього:",SUM($J$4:J56),IF(I57-SUM(K57:L57)<0,0,I57-SUM(K57:L57))) ->  | K57: =IF(G57="Всього:",SUM($K$5:K56),F57*O56/36000*(G57-G56)) ->  | L57: =IF(G57="Всього:",SUM($L$5:L56),$E$4) ->  | M57: =IF(G57="Всього:",SUM($M$5:M56),IF($E$5="UAH",J57+L57+K57,J57+K57)) ->  | N57: =IF(G57="Всього:",SUM($N$4:N56),IF($E$5="UAH","",L57)) -> 
I58: =IF($G58="Всього:",SUM($I$4:I57),MAX($C$32,K58)) ->  | J58: =IF($G58="Всього:",SUM($J$4:J57),IF(I58-SUM(K58:L58)<0,0,I58-SUM(K58:L58))) ->  | K58: =IF(G58="Всього:",SUM($K$5:K57),F58*O57/36000*(G58-G57)) ->  | L58: =IF(G58="Всього:",SUM($L$5:L57),$E$4) ->  | M58: =IF(G58="Всього:",SUM($M$5:M57),IF($E$5="UAH",J58+L58+K58,J58+K58)) ->  | N58: =IF(G58="Всього:",SUM($N$4:N57),IF($E$5="UAH","",L58)) -> 
I59: =IF($G59="Всього:",SUM($I$4:I58),MAX($C$32,K59)) ->  | J59: =IF($G59="Всього:",SUM($J$4:J58),IF(I59-SUM(K59:L59)<0,0,I59-SUM(K59:L59))) ->  | K59: =IF(G59="Всього:",SUM($K$5:K58),F59*O58/36000*(G59-G58)) ->  | L59: =IF(G59="Всього:",SUM($L$5:L58),$E$4) ->  | M59: =IF(G59="Всього:",SUM($M$5:M58),IF($E$5="UAH",J59+L59+K59,J59+K59)) ->  | N59: =IF(G59="Всього:",SUM($N$4:N58),IF($E$5="UAH","",L59)) -> 
I60: =IF($G60="Всього:",SUM($I$4:I59),MAX($C$32,K60)) ->  | J60: =IF($G60="Всього:",SUM($J$4:J59),IF(I60-SUM(K60:L60)<0,0,I60-SUM(K60:L60))) ->  | K60: =IF(G60="Всього:",SUM($K$5:K59),F60*O59/36000*(G60-G59)) ->  | L60: =IF(G60="Всього:",SUM($L$5:L59),$E$4) ->  | M60: =IF(G60="Всього:",SUM($M$5:M59),IF($E$5="UAH",J60+L60+K60,J60+K60)) ->  | N60: =IF(G60="Всього:",SUM($N$4:N59),IF($E$5="UAH","",L60)) -> 
I61: =IF($G61="Всього:",SUM($I$4:I60),MAX($C$32,K61)) ->  | J61: =IF($G61="Всього:",SUM($J$4:J60),IF(I61-SUM(K61:L61)<0,0,I61-SUM(K61:L61))) ->  | K61: =IF(G61="Всього:",SUM($K$5:K60),F61*O60/36000*(G61-G60)) ->  | L61: =IF(G61="Всього:",SUM($L$5:L60),$E$4) ->  | M61: =IF(G61="Всього:",SUM($M$5:M60),IF($E$5="UAH",J61+L61+K61,J61+K61)) ->  | N61: =IF(G61="Всього:",SUM($N$4:N60),IF($E$5="UAH","",L61)) -> 
I62: =IF($G62="Всього:",SUM($I$4:I61),MAX($C$32,K62)) ->  | J62: =IF($G62="Всього:",SUM($J$4:J61),IF(I62-SUM(K62:L62)<0,0,I62-SUM(K62:L62))) ->  | K62: =IF(G62="Всього:",SUM($K$5:K61),F62*O61/36000*(G62-G61)) ->  | L62: =IF(G62="Всього:",SUM($L$5:L61),$E$4) ->  | M62: =IF(G62="Всього:",SUM($M$5:M61),IF($E$5="UAH",J62+L62+K62,J62+K62)) ->  | N62: =IF(G62="Всього:",SUM($N$4:N61),IF($E$5="UAH","",L62)) -> 
I63: =IF($G63="Всього:",SUM($I$4:I62),MAX($C$32,K63)) ->  | J63: =IF($G63="Всього:",SUM($J$4:J62),IF(I63-SUM(K63:L63)<0,0,I63-SUM(K63:L63))) ->  | K63: =IF(G63="Всього:",SUM($K$5:K62),F63*O62/36000*(G63-G62)) ->  | L63: =IF(G63="Всього:",SUM($L$5:L62),$E$4) ->  | M63: =IF(G63="Всього:",SUM($M$5:M62),IF($E$5="UAH",J63+L63+K63,J63+K63)) ->  | N63: =IF(G63="Всього:",SUM($N$4:N62),IF($E$5="UAH","",L63)) -> 
I64: =IF($G64="Всього:",SUM($I$4:I63),MAX($C$32,K64)) ->  | J64: =IF($G64="Всього:",SUM($J$4:J63),IF(I64-SUM(K64:L64)<0,0,I64-SUM(K64:L64))) ->  | K64: =IF(G64="Всього:",SUM($K$5:K63),F64*O63/36000*(G64-G63)) ->  | L64: =IF(G64="Всього:",SUM($L$5:L63),$E$4) ->  | M64: =IF(G64="Всього:",SUM($M$5:M63),IF($E$5="UAH",J64+L64+K64,J64+K64)) ->  | N64: =IF(G64="Всього:",SUM($N$4:N63),IF($E$5="UAH","",L64)) -> 
I65: =IF($G65="Всього:",SUM($I$4:I64),MAX($C$32,K65)) ->  | J65: =IF($G65="Всього:",SUM($J$4:J64),IF(I65-SUM(K65:L65)<0,0,I65-SUM(K65:L65))) ->  | K65: =IF(G65="Всього:",SUM($K$5:K64),F65*O64/36000*(G65-G64)) ->  | L65: =IF(G65="Всього:",SUM($L$5:L64),$E$4) ->  | M65: =IF(G65="Всього:",SUM($M$5:M64),IF($E$5="UAH",J65+L65+K65,J65+K65)) ->  | N65: =IF(G65="Всього:",SUM($N$4:N64),IF($E$5="UAH","",L65)) ->  | R65: =IF(E8>H65,$AA$7*0.9*0.9*0.9*0.9*0.9*5.48%,"") -> 
I66: =IF($G66="Всього:",SUM($I$4:I65),MAX($C$32,K66)) ->  | J66: =IF($G66="Всього:",SUM($J$4:J65),IF(I66-SUM(K66:L66)<0,0,I66-SUM(K66:L66))) ->  | K66: =IF(G66="Всього:",SUM($K$5:K65),F66*O65/36000*(G66-G65)) ->  | L66: =IF(G66="Всього:",SUM($L$5:L65),$E$4) ->  | M66: =IF(G66="Всього:",SUM($M$5:M65),IF($E$5="UAH",J66+L66+K66,J66+K66)) ->  | N66: =IF(G66="Всього:",SUM($N$4:N65),IF($E$5="UAH","",L66)) -> 
I67: =IF($G67="Всього:",SUM($I$4:I66),MAX($C$32,K67)) ->  | J67: =IF($G67="Всього:",SUM($J$4:J66),IF(I67-SUM(K67:L67)<0,0,I67-SUM(K67:L67))) ->  | K67: =IF(G67="Всього:",SUM($K$5:K66),F67*O66/36000*(G67-G66)) ->  | L67: =IF(G67="Всього:",SUM($L$5:L66),$E$4) ->  | M67: =IF(G67="Всього:",SUM($M$5:M66),IF($E$5="UAH",J67+L67+K67,J67+K67)) ->  | N67: =IF(G67="Всього:",SUM($N$4:N66),IF($E$5="UAH","",L67)) -> 
I68: =IF($G68="Всього:",SUM($I$4:I67),MAX($C$32,K68)) ->  | J68: =IF($G68="Всього:",SUM($J$4:J67),IF(I68-SUM(K68:L68)<0,0,I68-SUM(K68:L68))) ->  | K68: =IF(G68="Всього:",SUM($K$5:K67),F68*O67/36000*(G68-G67)) ->  | L68: =IF(G68="Всього:",SUM($L$5:L67),$E$4) ->  | M68: =IF(G68="Всього:",SUM($M$5:M67),IF($E$5="UAH",J68+L68+K68,J68+K68)) ->  | N68: =IF(G68="Всього:",SUM($N$4:N67),IF($E$5="UAH","",L68)) -> 
I69: =IF($G69="Всього:",SUM($I$4:I68),MAX($C$32,K69)) ->  | J69: =IF($G69="Всього:",SUM($J$4:J68),IF(I69-SUM(K69:L69)<0,0,I69-SUM(K69:L69))) ->  | K69: =IF(G69="Всього:",SUM($K$5:K68),F69*O68/36000*(G69-G68)) ->  | L69: =IF(G69="Всього:",SUM($L$5:L68),$E$4) ->  | M69: =IF(G69="Всього:",SUM($M$5:M68),IF($E$5="UAH",J69+L69+K69,J69+K69)) ->  | N69: =IF(G69="Всього:",SUM($N$4:N68),IF($E$5="UAH","",L69)) ->  | O69: =O68-J69 ->  | P69: =G69 -> 
F70: =IF(G70="Всього:","",IF(AND(G70>$B$9,G70<=$B$10),$C$16,IF(AND(G70>$B$9,G70<=$B$11),$D$16,IF(AND(G70>$B$10,G70<=$B$14),$E$16,$B$16)))) ->  | H70: =IF(H69>$E$8,"",H69+1) ->  | I70: =IF($G70="Всього:",SUM($I$4:I69),MAX($C$32,K70)) ->  | J70: =IF($G70="Всього:",SUM($J$4:J69),IF(I70-SUM(K70:L70)<0,0,I70-SUM(K70:L70))) ->  | K70: =IF(G70="Всього:",SUM($K$5:K69),F70*O69/36000*(G70-G69)) ->  | L70: =IF(G70="Всього:",SUM($L$5:L69),$E$4) ->  | M70: =IF(G70="Всього:",SUM($M$5:M69),IF($E$5="UAH",J70+L70+K70,J70+K70)) ->  | N70: =IF(G70="Всього:",SUM($N$4:N69),IF($E$5="UAH","",L70)) ->  | Q70: =IF(R71="",I70,IFERROR(I70+R71,0)) -> 
G71: =IF(H70=$E$3,"Всього:",IF($E$3=H71,$B$14,DATE(YEAR(G70),MONTH(G70)+1,IF($B$7<>"",DAY(IF($B$7>DAY(EOMONTH(G70,1)),EOMONTH(G70,1),$B$7)),DAY(1))))) ->  | I71: =IF($G71="Всього:",SUM($I$4:I70),MAX($C$32,K71)) ->  | J71: =IF($G71="Всього:",SUM($J$4:J70),IF(I71-SUM(K71:L71)<0,0,I71-SUM(K71:L71))) ->  | K71: =IF(G71="Всього:",SUM($K$5:K70),F71*O70/36000*(G71-G70)) ->  | L71: =IF(G71="Всього:",SUM($L$5:L70),$E$4) ->  | M71: =IF(G71="Всього:",SUM($M$5:M70),IF($E$5="UAH",J71+L71+K71,J71+K71)) ->  | N71: =IF(G71="Всього:",SUM($N$4:N70),IF($E$5="UAH","",L71)) -> 
I72: =IF($G72="Всього:",SUM($I$4:I71),MAX($C$32,K72)) ->  | J72: =IF($G72="Всього:",SUM($J$4:J71),IF(I72-SUM(K72:L72)<0,0,I72-SUM(K72:L72))) ->  | K72: =IF(G72="Всього:",SUM($K$5:K71),F72*O71/36000*(G72-G71)) ->  | L72: =IF(G72="Всього:",SUM($L$5:L71),$E$4) ->  | M72: =IF(G72="Всього:",SUM($M$5:M71),IF($E$5="UAH",J72+L72+K72,J72+K72)) ->  | N72: =IF(G72="Всього:",SUM($N$4:N71),IF($E$5="UAH","",L72)) -> 
I73: =IF($G73="Всього:",SUM($I$4:I72),MAX($C$32,K73)) ->  | J73: =IF($G73="Всього:",SUM($J$4:J72),IF(I73-SUM(K73:L73)<0,0,I73-SUM(K73:L73))) ->  | K73: =IF(G73="Всього:",SUM($K$5:K72),F73*O72/36000*(G73-G72)) ->  | L73: =IF(G73="Всього:",SUM($L$5:L72),$E$4) ->  | M73: =IF(G73="Всього:",SUM($M$5:M72),IF($E$5="UAH",J73+L73+K73,J73+K73)) ->  | N73: =IF(G73="Всього:",SUM($N$4:N72),IF($E$5="UAH","",L73)) -> 
I74: =IF($G74="Всього:",SUM($I$4:I73),MAX($C$32,K74)) ->  | J74: =IF($G74="Всього:",SUM($J$4:J73),IF(I74-SUM(K74:L74)<0,0,I74-SUM(K74:L74))) ->  | K74: =IF(G74="Всього:",SUM($K$5:K73),F74*O73/36000*(G74-G73)) ->  | L74: =IF(G74="Всього:",SUM($L$5:L73),$E$4) ->  | M74: =IF(G74="Всього:",SUM($M$5:M73),IF($E$5="UAH",J74+L74+K74,J74+K74)) ->  | N74: =IF(G74="Всього:",SUM($N$4:N73),IF($E$5="UAH","",L74)) -> 
I75: =IF($G75="Всього:",SUM($I$4:I74),MAX($C$32,K75)) ->  | J75: =IF($G75="Всього:",SUM($J$4:J74),IF(I75-SUM(K75:L75)<0,0,I75-SUM(K75:L75))) ->  | K75: =IF(G75="Всього:",SUM($K$5:K74),F75*O74/36000*(G75-G74)) ->  | L75: =IF(G75="Всього:",SUM($L$5:L74),$E$4) ->  | M75: =IF(G75="Всього:",SUM($M$5:M74),IF($E$5="UAH",J75+L75+K75,J75+K75)) ->  | N75: =IF(G75="Всього:",SUM($N$4:N74),IF($E$5="UAH","",L75)) -> 
I76: =IF($G76="Всього:",SUM($I$4:I75),MAX($C$32,K76)) ->  | J76: =IF($G76="Всього:",SUM($J$4:J75),IF(I76-SUM(K76:L76)<0,0,I76-SUM(K76:L76))) ->  | K76: =IF(G76="Всього:",SUM($K$5:K75),F76*O75/36000*(G76-G75)) ->  | L76: =IF(G76="Всього:",SUM($L$5:L75),$E$4) ->  | M76: =IF(G76="Всього:",SUM($M$5:M75),IF($E$5="UAH",J76+L76+K76,J76+K76)) ->  | N76: =IF(G76="Всього:",SUM($N$4:N75),IF($E$5="UAH","",L76)) -> 
I77: =IF($G77="Всього:",SUM($I$4:I76),MAX($C$32,K77)) ->  | J77: =IF($G77="Всього:",SUM($J$4:J76),IF(I77-SUM(K77:L77)<0,0,I77-SUM(K77:L77))) ->  | K77: =IF(G77="Всього:",SUM($K$5:K76),F77*O76/36000*(G77-G76)) ->  | L77: =IF(G77="Всього:",SUM($L$5:L76),$E$4) ->  | M77: =IF(G77="Всього:",SUM($M$5:M76),IF($E$5="UAH",J77+L77+K77,J77+K77)) ->  | N77: =IF(G77="Всього:",SUM($N$4:N76),IF($E$5="UAH","",L77)) ->  | R77: =IF(E8>H77,$AA$7*0.9*0.9*0.9*0.9*0.9*0.9*5.48%,"") -> 
I78: =IF($G78="Всього:",SUM($I$4:I77),MAX($C$32,K78)) ->  | J78: =IF($G78="Всього:",SUM($J$4:J77),IF(I78-SUM(K78:L78)<0,0,I78-SUM(K78:L78))) ->  | K78: =IF(G78="Всього:",SUM($K$5:K77),F78*O77/36000*(G78-G77)) ->  | L78: =IF(G78="Всього:",SUM($L$5:L77),$E$4) ->  | M78: =IF(G78="Всього:",SUM($M$5:M77),IF($E$5="UAH",J78+L78+K78,J78+K78)) ->  | N78: =IF(G78="Всього:",SUM($N$4:N77),IF($E$5="UAH","",L78)) -> 
I79: =IF($G79="Всього:",SUM($I$4:I78),MAX($C$32,K79)) ->  | J79: =IF($G79="Всього:",SUM($J$4:J78),IF(I79-SUM(K79:L79)<0,0,I79-SUM(K79:L79))) ->  | K79: =IF(G79="Всього:",SUM($K$5:K78),F79*O78/36000*(G79-G78)) ->  | L79: =IF(G79="Всього:",SUM($L$5:L78),$E$4) ->  | M79: =IF(G79="Всього:",SUM($M$5:M78),IF($E$5="UAH",J79+L79+K79,J79+K79)) ->  | N79: =IF(G79="Всього:",SUM($N$4:N78),IF($E$5="UAH","",L79)) -> 
I80: =IF($G80="Всього:",SUM($I$4:I79),MAX($C$32,K80)) ->  | J80: =IF($G80="Всього:",SUM($J$4:J79),IF(I80-SUM(K80:L80)<0,0,I80-SUM(K80:L80))) ->  | K80: =IF(G80="Всього:",SUM($K$5:K79),F80*O79/36000*(G80-G79)) ->  | L80: =IF(G80="Всього:",SUM($L$5:L79),$E$4) ->  | M80: =IF(G80="Всього:",SUM($M$5:M79),IF($E$5="UAH",J80+L80+K80,J80+K80)) ->  | N80: =IF(G80="Всього:",SUM($N$4:N79),IF($E$5="UAH","",L80)) -> 
I81: =IF($G81="Всього:",SUM($I$4:I80),MAX($C$32,K81)) ->  | J81: =IF($G81="Всього:",SUM($J$4:J80),IF(I81-SUM(K81:L81)<0,0,I81-SUM(K81:L81))) ->  | K81: =IF(G81="Всього:",SUM($K$5:K80),F81*O80/36000*(G81-G80)) ->  | L81: =IF(G81="Всього:",SUM($L$5:L80),$E$4) ->  | M81: =IF(G81="Всього:",SUM($M$5:M80),IF($E$5="UAH",J81+L81+K81,J81+K81)) ->  | N81: =IF(G81="Всього:",SUM($N$4:N80),IF($E$5="UAH","",L81)) -> 
I82: =IF($G82="Всього:",SUM($I$4:I81),MAX($C$32,K82)) ->  | J82: =IF($G82="Всього:",SUM($J$4:J81),IF(I82-SUM(K82:L82)<0,0,I82-SUM(K82:L82))) ->  | K82: =IF(G82="Всього:",SUM($K$5:K81),F82*O81/36000*(G82-G81)) ->  | L82: =IF(G82="Всього:",SUM($L$5:L81),$E$4) ->  | M82: =IF(G82="Всього:",SUM($M$5:M81),IF($E$5="UAH",J82+L82+K82,J82+K82)) ->  | N82: =IF(G82="Всього:",SUM($N$4:N81),IF($E$5="UAH","",L82)) -> 
I83: =IF($G83="Всього:",SUM($I$4:I82),MAX($C$32,K83)) ->  | J83: =IF($G83="Всього:",SUM($J$4:J82),IF(I83-SUM(K83:L83)<0,0,I83-SUM(K83:L83))) ->  | K83: =IF(G83="Всього:",SUM($K$5:K82),F83*O82/36000*(G83-G82)) ->  | L83: =IF(G83="Всього:",SUM($L$5:L82),$E$4) ->  | M83: =IF(G83="Всього:",SUM($M$5:M82),IF($E$5="UAH",J83+L83+K83,J83+K83)) ->  | N83: =IF(G83="Всього:",SUM($N$4:N82),IF($E$5="UAH","",L83)) -> 
I84: =IF($G84="Всього:",SUM($I$4:I83),MAX($C$32,K84)) ->  | J84: =IF($G84="Всього:",SUM($J$4:J83),IF(I84-SUM(K84:L84)<0,0,I84-SUM(K84:L84))) ->  | K84: =IF(G84="Всього:",SUM($K$5:K83),F84*O83/36000*(G84-G83)) ->  | L84: =IF(G84="Всього:",SUM($L$5:L83),$E$4) ->  | M84: =IF(G84="Всього:",SUM($M$5:M83),IF($E$5="UAH",J84+L84+K84,J84+K84)) ->  | N84: =IF(G84="Всього:",SUM($N$4:N83),IF($E$5="UAH","",L84)) -> 
I85: =IF($G85="Всього:",SUM($I$4:I84),MAX($C$32,K85)) ->  | J85: =IF($G85="Всього:",SUM($J$4:J84),IF(I85-SUM(K85:L85)<0,0,I85-SUM(K85:L85))) ->  | K85: =IF(G85="Всього:",SUM($K$5:K84),F85*O84/36000*(G85-G84)) ->  | L85: =IF(G85="Всього:",SUM($L$5:L84),$E$4) ->  | M85: =IF(G85="Всього:",SUM($M$5:M84),IF($E$5="UAH",J85+L85+K85,J85+K85)) ->  | N85: =IF(G85="Всього:",SUM($N$4:N84),IF($E$5="UAH","",L85)) -> 
I86: =IF($G86="Всього:",SUM($I$4:I85),MAX($C$32,K86)) ->  | J86: =IF($G86="Всього:",SUM($J$4:J85),IF(I86-SUM(K86:L86)<0,0,I86-SUM(K86:L86))) ->  | K86: =IF(G86="Всього:",SUM($K$5:K85),F86*O85/36000*(G86-G85)) ->  | L86: =IF(G86="Всього:",SUM($L$5:L85),$E$4) ->  | M86: =IF(G86="Всього:",SUM($M$5:M85),IF($E$5="UAH",J86+L86+K86,J86+K86)) ->  | N86: =IF(G86="Всього:",SUM($N$4:N85),IF($E$5="UAH","",L86)) -> 
I87: =IF($G87="Всього:",SUM($I$4:I86),MAX($C$32,K87)) ->  | J87: =IF($G87="Всього:",SUM($J$4:J86),IF(I87-SUM(K87:L87)<0,0,I87-SUM(K87:L87))) ->  | K87: =IF(G87="Всього:",SUM($K$5:K86),F87*O86/36000*(G87-G86)) ->  | L87: =IF(G87="Всього:",SUM($L$5:L86),$E$4) ->  | M87: =IF(G87="Всього:",SUM($M$5:M86),IF($E$5="UAH",J87+L87+K87,J87+K87)) ->  | N87: =IF(G87="Всього:",SUM($N$4:N86),IF($E$5="UAH","",L87)) -> 
I88: =IF($G88="Всього:",SUM($I$4:I87),MAX($C$32,K88)) ->  | J88: =IF($G88="Всього:",SUM($J$4:J87),IF(I88-SUM(K88:L88)<0,0,I88-SUM(K88:L88))) ->  | K88: =IF(G88="Всього:",SUM($K$5:K87),F88*O87/36000*(G88-G87)) ->  | L88: =IF(G88="Всього:",SUM($L$5:L87),$E$4) ->  | M88: =IF(G88="Всього:",SUM($M$5:M87),IF($E$5="UAH",J88+L88+K88,J88+K88)) ->  | N88: =IF(G88="Всього:",SUM($N$4:N87),IF($E$5="UAH","",L88)) -> 
I89: =IF($G89="Всього:",SUM($I$4:I88),MAX($C$32,K89)) ->  | J89: =IF($G89="Всього:",SUM($J$4:J88),IF(I89-SUM(K89:L89)<0,0,I89-SUM(K89:L89))) ->  | K89: =IF(G89="Всього:",SUM($K$5:K88),F89*O88/36000*(G89-G88)) ->  | L89: =IF(G89="Всього:",SUM($L$5:L88),$E$4) ->  | M89: =IF(G89="Всього:",SUM($M$5:M88),IF($E$5="UAH",J89+L89+K89,J89+K89)) ->  | N89: =IF(G89="Всього:",SUM($N$4:N88),IF($E$5="UAH","",L89)) -> 
I90: =IF($G90="Всього:",SUM($I$4:I89),MAX($C$32,K90)) ->  | J90: =IF($G90="Всього:",SUM($J$4:J89),IF(I90-SUM(K90:L90)<0,0,I90-SUM(K90:L90))) ->  | K90: =IF(G90="Всього:",SUM($K$5:K89),F90*O89/36000*(G90-G89)) ->  | L90: =IF(G90="Всього:",SUM($L$5:L89),$E$4) ->  | M90: =IF(G90="Всього:",SUM($M$5:M89),IF($E$5="UAH",J90+L90+K90,J90+K90)) ->  | N90: =IF(G90="Всього:",SUM($N$4:N89),IF($E$5="UAH","",L90)) -> 
I91: =IF($G91="Всього:",SUM($I$4:I90),MAX($C$32,K91)) ->  | J91: =IF($G91="Всього:",SUM($J$4:J90),IF(I91-SUM(K91:L91)<0,0,I91-SUM(K91:L91))) ->  | K91: =IF(G91="Всього:",SUM($K$5:K90),F91*O90/36000*(G91-G90)) ->  | L91: =IF(G91="Всього:",SUM($L$5:L90),$E$4) ->  | M91: =IF(G91="Всього:",SUM($M$5:M90),IF($E$5="UAH",J91+L91+K91,J91+K91)) ->  | N91: =IF(G91="Всього:",SUM($N$4:N90),IF($E$5="UAH","",L91)) -> 
I92: =IF($G92="Всього:",SUM($I$4:I91),MAX($C$32,K92)) ->  | J92: =IF($G92="Всього:",SUM($J$4:J91),IF(I92-SUM(K92:L92)<0,0,I92-SUM(K92:L92))) ->  | K92: =IF(G92="Всього:",SUM($K$5:K91),F92*O91/36000*(G92-G91)) ->  | L92: =IF(G92="Всього:",SUM($L$5:L91),$E$4) ->  | M92: =IF(G92="Всього:",SUM($M$5:M91),IF($E$5="UAH",J92+L92+K92,J92+K92)) ->  | N92: =IF(G92="Всього:",SUM($N$4:N91),IF($E$5="UAH","",L92)) -> 
I93: =IF($G93="Всього:",SUM($I$4:I92),MAX($C$32,K93)) ->  | J93: =IF($G93="Всього:",SUM($J$4:J92),IF(I93-SUM(K93:L93)<0,0,I93-SUM(K93:L93))) ->  | K93: =IF(G93="Всього:",SUM($K$5:K92),F93*O92/36000*(G93-G92)) ->  | L93: =IF(G93="Всього:",SUM($L$5:L92),$E$4) ->  | M93: =IF(G93="Всього:",SUM($M$5:M92),IF($E$5="UAH",J93+L93+K93,J93+K93)) ->  | N93: =IF(G93="Всього:",SUM($N$4:N92),IF($E$5="UAH","",L93)) -> 
I94: =IF($G94="Всього:",SUM($I$4:I93),MAX($C$32,K94)) ->  | J94: =IF($G94="Всього:",SUM($J$4:J93),IF(I94-SUM(K94:L94)<0,0,I94-SUM(K94:L94))) ->  | K94: =IF(G94="Всього:",SUM($K$5:K93),F94*O93/36000*(G94-G93)) ->  | L94: =IF(G94="Всього:",SUM($L$5:L93),$E$4) ->  | M94: =IF(G94="Всього:",SUM($M$5:M93),IF($E$5="UAH",J94+L94+K94,J94+K94)) ->  | N94: =IF(G94="Всього:",SUM($N$4:N93),IF($E$5="UAH","",L94)) -> 
I95: =IF($G95="Всього:",SUM($I$4:I94),MAX($C$32,K95)) ->  | J95: =IF($G95="Всього:",SUM($J$4:J94),IF(I95-SUM(K95:L95)<0,0,I95-SUM(K95:L95))) ->  | K95: =IF(G95="Всього:",SUM($K$5:K94),F95*O94/36000*(G95-G94)) ->  | L95: =IF(G95="Всього:",SUM($L$5:L94),$E$4) ->  | M95: =IF(G95="Всього:",SUM($M$5:M94),IF($E$5="UAH",J95+L95+K95,J95+K95)) ->  | N95: =IF(G95="Всього:",SUM($N$4:N94),IF($E$5="UAH","",L95)) -> 
I96: =IF($G96="Всього:",SUM($I$4:I95),MAX($C$32,K96)) ->  | J96: =IF($G96="Всього:",SUM($J$4:J95),IF(I96-SUM(K96:L96)<0,0,I96-SUM(K96:L96))) ->  | K96: =IF(G96="Всього:",SUM($K$5:K95),F96*O95/36000*(G96-G95)) ->  | L96: =IF(G96="Всього:",SUM($L$5:L95),$E$4) ->  | M96: =IF(G96="Всього:",SUM($M$5:M95),IF($E$5="UAH",J96+L96+K96,J96+K96)) ->  | N96: =IF(G96="Всього:",SUM($N$4:N95),IF($E$5="UAH","",L96)) -> 
I97: =IF($G97="Всього:",SUM($I$4:I96),MAX($C$32,K97)) ->  | J97: =IF($G97="Всього:",SUM($J$4:J96),IF(I97-SUM(K97:L97)<0,0,I97-SUM(K97:L97))) ->  | K97: =IF(G97="Всього:",SUM($K$5:K96),F97*O96/36000*(G97-G96)) ->  | L97: =IF(G97="Всього:",SUM($L$5:L96),$E$4) ->  | M97: =IF(G97="Всього:",SUM($M$5:M96),IF($E$5="UAH",J97+L97+K97,J97+K97)) ->  | N97: =IF(G97="Всього:",SUM($N$4:N96),IF($E$5="UAH","",L97)) -> 
I98: =IF($G98="Всього:",SUM($I$4:I97),MAX($C$32,K98)) ->  | J98: =IF($G98="Всього:",SUM($J$4:J97),IF(I98-SUM(K98:L98)<0,0,I98-SUM(K98:L98))) ->  | K98: =IF(G98="Всього:",SUM($K$5:K97),F98*O97/36000*(G98-G97)) ->  | L98: =IF(G98="Всього:",SUM($L$5:L97),$E$4) ->  | M98: =IF(G98="Всього:",SUM($M$5:M97),IF($E$5="UAH",J98+L98+K98,J98+K98)) ->  | N98: =IF(G98="Всього:",SUM($N$4:N97),IF($E$5="UAH","",L98)) -> 
I99: =IF($G99="Всього:",SUM($I$4:I98),MAX($C$32,K99)) ->  | J99: =IF($G99="Всього:",SUM($J$4:J98),IF(I99-SUM(K99:L99)<0,0,I99-SUM(K99:L99))) ->  | K99: =IF(G99="Всього:",SUM($K$5:K98),F99*O98/36000*(G99-G98)) ->  | L99: =IF(G99="Всього:",SUM($L$5:L98),$E$4) ->  | M99: =IF(G99="Всього:",SUM($M$5:M98),IF($E$5="UAH",J99+L99+K99,J99+K99)) ->  | N99: =IF(G99="Всього:",SUM($N$4:N98),IF($E$5="UAH","",L99)) -> 
I100: =IF($G100="Всього:",SUM($I$4:I99),MAX($C$32,K100)) ->  | J100: =IF($G100="Всього:",SUM($J$4:J99),IF(I100-SUM(K100:L100)<0,0,I100-SUM(K100:L100))) ->  | K100: =IF(G100="Всього:",SUM($K$5:K99),F100*O99/36000*(G100-G99)) ->  | L100: =IF(G100="Всього:",SUM($L$5:L99),$E$4) ->  | M100: =IF(G100="Всього:",SUM($M$5:M99),IF($E$5="UAH",J100+L100+K100,J100+K100)) ->  | N100: =IF(G100="Всього:",SUM($N$4:N99),IF($E$5="UAH","",L100)) -> 
I101: =IF($G101="Всього:",SUM($I$4:I100),MAX($C$32,K101)) ->  | J101: =IF($G101="Всього:",SUM($J$4:J100),IF(I101-SUM(K101:L101)<0,0,I101-SUM(K101:L101))) ->  | K101: =IF(G101="Всього:",SUM($K$5:K100),F101*O100/36000*(G101-G100)) ->  | L101: =IF(G101="Всього:",SUM($L$5:L100),$E$4) ->  | M101: =IF(G101="Всього:",SUM($M$5:M100),IF($E$5="UAH",J101+L101+K101,J101+K101)) ->  | N101: =IF(G101="Всього:",SUM($N$4:N100),IF($E$5="UAH","",L101)) -> 
I102: =IF($G102="Всього:",SUM($I$4:I101),MAX($C$32,K102)) ->  | J102: =IF($G102="Всього:",SUM($J$4:J101),IF(I102-SUM(K102:L102)<0,0,I102-SUM(K102:L102))) ->  | K102: =IF(G102="Всього:",SUM($K$5:K101),F102*O101/36000*(G102-G101)) ->  | L102: =IF(G102="Всього:",SUM($L$5:L101),$E$4) ->  | M102: =IF(G102="Всього:",SUM($M$5:M101),IF($E$5="UAH",J102+L102+K102,J102+K102)) ->  | N102: =IF(G102="Всього:",SUM($N$4:N101),IF($E$5="UAH","",L102)) -> 
I103: =IF($G103="Всього:",SUM($I$4:I102),MAX($C$32,K103)) ->  | J103: =IF($G103="Всього:",SUM($J$4:J102),IF(I103-SUM(K103:L103)<0,0,I103-SUM(K103:L103))) ->  | K103: =IF(G103="Всього:",SUM($K$5:K102),F103*O102/36000*(G103-G102)) ->  | L103: =IF(G103="Всього:",SUM($L$5:L102),$E$4) ->  | M103: =IF(G103="Всього:",SUM($M$5:M102),IF($E$5="UAH",J103+L103+K103,J103+K103)) ->  | N103: =IF(G103="Всього:",SUM($N$4:N102),IF($E$5="UAH","",L103)) -> 
I104: =IF($G104="Всього:",SUM($I$4:I103),MAX($C$32,K104)) ->  | J104: =IF($G104="Всього:",SUM($J$4:J103),IF(I104-SUM(K104:L104)<0,0,I104-SUM(K104:L104))) ->  | K104: =IF(G104="Всього:",SUM($K$5:K103),F104*O103/36000*(G104-G103)) ->  | L104: =IF(G104="Всього:",SUM($L$5:L103),$E$4) ->  | M104: =IF(G104="Всього:",SUM($M$5:M103),IF($E$5="UAH",J104+L104+K104,J104+K104)) ->  | N104: =IF(G104="Всього:",SUM($N$4:N103),IF($E$5="UAH","",L104)) -> 
I105: =IF($G105="Всього:",SUM($I$4:I104),MAX($C$32,K105)) ->  | J105: =IF($G105="Всього:",SUM($J$4:J104),IF(I105-SUM(K105:L105)<0,0,I105-SUM(K105:L105))) ->  | K105: =IF(G105="Всього:",SUM($K$5:K104),F105*O104/36000*(G105-G104)) ->  | L105: =IF(G105="Всього:",SUM($L$5:L104),$E$4) ->  | M105: =IF(G105="Всього:",SUM($M$5:M104),IF($E$5="UAH",J105+L105+K105,J105+K105)) ->  | N105: =IF(G105="Всього:",SUM($N$4:N104),IF($E$5="UAH","",L105)) -> 
I106: =IF($G106="Всього:",SUM($I$4:I105),MAX($C$32,K106)) ->  | J106: =IF($G106="Всього:",SUM($J$4:J105),IF(I106-SUM(K106:L106)<0,0,I106-SUM(K106:L106))) ->  | K106: =IF(G106="Всього:",SUM($K$5:K105),F106*O105/36000*(G106-G105)) ->  | L106: =IF(G106="Всього:",SUM($L$5:L105),$E$4) ->  | M106: =IF(G106="Всього:",SUM($M$5:M105),IF($E$5="UAH",J106+L106+K106,J106+K106)) ->  | N106: =IF(G106="Всього:",SUM($N$4:N105),IF($E$5="UAH","",L106)) -> 
I107: =IF($G107="Всього:",SUM($I$4:I106),MAX($C$32,K107)) ->  | J107: =IF($G107="Всього:",SUM($J$4:J106),IF(I107-SUM(K107:L107)<0,0,I107-SUM(K107:L107))) ->  | K107: =IF(G107="Всього:",SUM($K$5:K106),F107*O106/36000*(G107-G106)) ->  | L107: =IF(G107="Всього:",SUM($L$5:L106),$E$4) ->  | M107: =IF(G107="Всього:",SUM($M$5:M106),IF($E$5="UAH",J107+L107+K107,J107+K107)) ->  | N107: =IF(G107="Всього:",SUM($N$4:N106),IF($E$5="UAH","",L107)) -> 
I108: =IF($G108="Всього:",SUM($I$4:I107),MAX($C$32,K108)) ->  | J108: =IF($G108="Всього:",SUM($J$4:J107),IF(I108-SUM(K108:L108)<0,0,I108-SUM(K108:L108))) ->  | K108: =IF(G108="Всього:",SUM($K$5:K107),F108*O107/36000*(G108-G107)) ->  | L108: =IF(G108="Всього:",SUM($L$5:L107),$E$4) ->  | M108: =IF(G108="Всього:",SUM($M$5:M107),IF($E$5="UAH",J108+L108+K108,J108+K108)) ->  | N108: =IF(G108="Всього:",SUM($N$4:N107),IF($E$5="UAH","",L108)) -> 
I109: =IF($G109="Всього:",SUM($I$4:I108),MAX($C$32,K109)) ->  | J109: =IF($G109="Всього:",SUM($J$4:J108),IF(I109-SUM(K109:L109)<0,0,I109-SUM(K109:L109))) ->  | K109: =IF(G109="Всього:",SUM($K$5:K108),F109*O108/36000*(G109-G108)) ->  | L109: =IF(G109="Всього:",SUM($L$5:L108),$E$4) ->  | M109: =IF(G109="Всього:",SUM($M$5:M108),IF($E$5="UAH",J109+L109+K109,J109+K109)) ->  | N109: =IF(G109="Всього:",SUM($N$4:N108),IF($E$5="UAH","",L109)) -> 
I110: =IF($G110="Всього:",SUM($I$4:I109),MAX($C$32,K110)) ->  | J110: =IF($G110="Всього:",SUM($J$4:J109),IF(I110-SUM(K110:L110)<0,0,I110-SUM(K110:L110))) ->  | K110: =IF(G110="Всього:",SUM($K$5:K109),F110*O109/36000*(G110-G109)) ->  | L110: =IF(G110="Всього:",SUM($L$5:L109),$E$4) ->  | M110: =IF(G110="Всього:",SUM($M$5:M109),IF($E$5="UAH",J110+L110+K110,J110+K110)) ->  | N110: =IF(G110="Всього:",SUM($N$4:N109),IF($E$5="UAH","",L110)) -> 
I111: =IF($G111="Всього:",SUM($I$4:I110),MAX($C$32,K111)) ->  | J111: =IF($G111="Всього:",SUM($J$4:J110),IF(I111-SUM(K111:L111)<0,0,I111-SUM(K111:L111))) ->  | K111: =IF(G111="Всього:",SUM($K$5:K110),F111*O110/36000*(G111-G110)) ->  | L111: =IF(G111="Всього:",SUM($L$5:L110),$E$4) ->  | M111: =IF(G111="Всього:",SUM($M$5:M110),IF($E$5="UAH",J111+L111+K111,J111+K111)) ->  | N111: =IF(G111="Всього:",SUM($N$4:N110),IF($E$5="UAH","",L111)) -> 
I112: =IF($G112="Всього:",SUM($I$4:I111),MAX($C$32,K112)) ->  | J112: =IF($G112="Всього:",SUM($J$4:J111),IF(I112-SUM(K112:L112)<0,0,I112-SUM(K112:L112))) ->  | K112: =IF(G112="Всього:",SUM($K$5:K111),F112*O111/36000*(G112-G111)) ->  | L112: =IF(G112="Всього:",SUM($L$5:L111),$E$4) ->  | M112: =IF(G112="Всього:",SUM($M$5:M111),IF($E$5="UAH",J112+L112+K112,J112+K112)) ->  | N112: =IF(G112="Всього:",SUM($N$4:N111),IF($E$5="UAH","",L112)) -> 
I113: =IF($G113="Всього:",SUM($I$4:I112),MAX($C$32,K113)) ->  | J113: =IF($G113="Всього:",SUM($J$4:J112),IF(I113-SUM(K113:L113)<0,0,I113-SUM(K113:L113))) ->  | K113: =IF(G113="Всього:",SUM($K$5:K112),F113*O112/36000*(G113-G112)) ->  | L113: =IF(G113="Всього:",SUM($L$5:L112),$E$4) ->  | M113: =IF(G113="Всього:",SUM($M$5:M112),IF($E$5="UAH",J113+L113+K113,J113+K113)) ->  | N113: =IF(G113="Всього:",SUM($N$4:N112),IF($E$5="UAH","",L113)) -> 
I114: =IF($G114="Всього:",SUM($I$4:I113),MAX($C$32,K114)) ->  | J114: =IF($G114="Всього:",SUM($J$4:J113),IF(I114-SUM(K114:L114)<0,0,I114-SUM(K114:L114))) ->  | K114: =IF(G114="Всього:",SUM($K$5:K113),F114*O113/36000*(G114-G113)) ->  | L114: =IF(G114="Всього:",SUM($L$5:L113),$E$4) ->  | M114: =IF(G114="Всього:",SUM($M$5:M113),IF($E$5="UAH",J114+L114+K114,J114+K114)) ->  | N114: =IF(G114="Всього:",SUM($N$4:N113),IF($E$5="UAH","",L114)) -> 
I115: =IF($G115="Всього:",SUM($I$4:I114),MAX($C$32,K115)) ->  | J115: =IF($G115="Всього:",SUM($J$4:J114),IF(I115-SUM(K115:L115)<0,0,I115-SUM(K115:L115))) ->  | K115: =IF(G115="Всього:",SUM($K$5:K114),F115*O114/36000*(G115-G114)) ->  | L115: =IF(G115="Всього:",SUM($L$5:L114),$E$4) ->  | M115: =IF(G115="Всього:",SUM($M$5:M114),IF($E$5="UAH",J115+L115+K115,J115+K115)) ->  | N115: =IF(G115="Всього:",SUM($N$4:N114),IF($E$5="UAH","",L115)) -> 
I116: =IF($G116="Всього:",SUM($I$4:I115),MAX($C$32,K116)) ->  | J116: =IF($G116="Всього:",SUM($J$4:J115),IF(I116-SUM(K116:L116)<0,0,I116-SUM(K116:L116))) ->  | K116: =IF(G116="Всього:",SUM($K$5:K115),F116*O115/36000*(G116-G115)) ->  | L116: =IF(G116="Всього:",SUM($L$5:L115),$E$4) ->  | M116: =IF(G116="Всього:",SUM($M$5:M115),IF($E$5="UAH",J116+L116+K116,J116+K116)) ->  | N116: =IF(G116="Всього:",SUM($N$4:N115),IF($E$5="UAH","",L116)) -> 
I117: =IF($G117="Всього:",SUM($I$4:I116),MAX($C$32,K117)) ->  | J117: =IF($G117="Всього:",SUM($J$4:J116),IF(I117-SUM(K117:L117)<0,0,I117-SUM(K117:L117))) ->  | K117: =IF(G117="Всього:",SUM($K$5:K116),F117*O116/36000*(G117-G116)) ->  | L117: =IF(G117="Всього:",SUM($L$5:L116),$E$4) ->  | M117: =IF(G117="Всього:",SUM($M$5:M116),IF($E$5="UAH",J117+L117+K117,J117+K117)) ->  | N117: =IF(G117="Всього:",SUM($N$4:N116),IF($E$5="UAH","",L117)) -> 
I118: =IF($G118="Всього:",SUM($I$4:I117),MAX($C$32,K118)) ->  | J118: =IF($G118="Всього:",SUM($J$4:J117),IF(I118-SUM(K118:L118)<0,0,I118-SUM(K118:L118))) ->  | K118: =IF(G118="Всього:",SUM($K$5:K117),F118*O117/36000*(G118-G117)) ->  | L118: =IF(G118="Всього:",SUM($L$5:L117),$E$4) ->  | M118: =IF(G118="Всього:",SUM($M$5:M117),IF($E$5="UAH",J118+L118+K118,J118+K118)) ->  | N118: =IF(G118="Всього:",SUM($N$4:N117),IF($E$5="UAH","",L118)) -> 
I119: =IF($G119="Всього:",SUM($I$4:I118),MAX($C$32,K119)) ->  | J119: =IF($G119="Всього:",SUM($J$4:J118),IF(I119-SUM(K119:L119)<0,0,I119-SUM(K119:L119))) ->  | K119: =IF(G119="Всього:",SUM($K$5:K118),F119*O118/36000*(G119-G118)) ->  | L119: =IF(G119="Всього:",SUM($L$5:L118),$E$4) ->  | M119: =IF(G119="Всього:",SUM($M$5:M118),IF($E$5="UAH",J119+L119+K119,J119+K119)) ->  | N119: =IF(G119="Всього:",SUM($N$4:N118),IF($E$5="UAH","",L119)) -> 
I120: =IF($G120="Всього:",SUM($I$4:I119),MAX($C$32,K120)) ->  | J120: =IF($G120="Всього:",SUM($J$4:J119),IF(I120-SUM(K120:L120)<0,0,I120-SUM(K120:L120))) ->  | K120: =IF(G120="Всього:",SUM($K$5:K119),F120*O119/36000*(G120-G119)) ->  | L120: =IF(G120="Всього:",SUM($L$5:L119),$E$4) ->  | M120: =IF(G120="Всього:",SUM($M$5:M119),IF($E$5="UAH",J120+L120+K120,J120+K120)) ->  | N120: =IF(G120="Всього:",SUM($N$4:N119),IF($E$5="UAH","",L120)) -> 
I121: =IF($G121="Всього:",SUM($I$4:I120),MAX($C$32,K121)) ->  | J121: =IF($G121="Всього:",SUM($J$4:J120),IF(I121-SUM(K121:L121)<0,0,I121-SUM(K121:L121))) ->  | K121: =IF(G121="Всього:",SUM($K$5:K120),F121*O120/36000*(G121-G120)) ->  | L121: =IF(G121="Всього:",SUM($L$5:L120),$E$4) ->  | M121: =IF(G121="Всього:",SUM($M$5:M120),IF($E$5="UAH",J121+L121+K121,J121+K121)) ->  | N121: =IF(G121="Всього:",SUM($N$4:N120),IF($E$5="UAH","",L121)) -> 
I122: =IF($G122="Всього:",SUM($I$4:I121),MAX($C$32,K122)) ->  | J122: =IF($G122="Всього:",SUM($J$4:J121),IF(I122-SUM(K122:L122)<0,0,I122-SUM(K122:L122))) ->  | K122: =IF(G122="Всього:",SUM($K$5:K121),F122*O121/36000*(G122-G121)) ->  | L122: =IF(G122="Всього:",SUM($L$5:L121),$E$4) ->  | M122: =IF(G122="Всього:",SUM($M$5:M121),IF($E$5="UAH",J122+L122+K122,J122+K122)) ->  | N122: =IF(G122="Всього:",SUM($N$4:N121),IF($E$5="UAH","",L122)) -> 
I123: =IF($G123="Всього:",SUM($I$4:I122),MAX($C$32,K123)) ->  | J123: =IF($G123="Всього:",SUM($J$4:J122),IF(I123-SUM(K123:L123)<0,0,I123-SUM(K123:L123))) ->  | K123: =IF(G123="Всього:",SUM($K$5:K122),F123*O122/36000*(G123-G122)) ->  | L123: =IF(G123="Всього:",SUM($L$5:L122),$E$4) ->  | M123: =IF(G123="Всього:",SUM($M$5:M122),IF($E$5="UAH",J123+L123+K123,J123+K123)) ->  | N123: =IF(G123="Всього:",SUM($N$4:N122),IF($E$5="UAH","",L123)) -> 
I124: =IF($G124="Всього:",SUM($I$4:I123),MAX($C$32,K124)) ->  | J124: =IF($G124="Всього:",SUM($J$4:J123),IF(I124-SUM(K124:L124)<0,0,I124-SUM(K124:L124))) ->  | K124: =IF(G124="Всього:",SUM($K$5:K123),F124*O123/36000*(G124-G123)) ->  | L124: =IF(G124="Всього:",SUM($L$5:L123),$E$4) ->  | M124: =IF(G124="Всього:",SUM($M$5:M123),IF($E$5="UAH",J124+L124+K124,J124+K124)) ->  | N124: =IF(G124="Всього:",SUM($N$4:N123),IF($E$5="UAH","",L124)) -> 
I125: =IF($G125="Всього:",SUM($I$4:I124),MAX($C$32,K125)) ->  | J125: =IF($G125="Всього:",SUM($J$4:J124),IF(I125-SUM(K125:L125)<0,0,I125-SUM(K125:L125))) ->  | K125: =IF(G125="Всього:",SUM($K$5:K124),F125*O124/36000*(G125-G124)) ->  | L125: =IF(G125="Всього:",SUM($L$5:L124),$E$4) ->  | M125: =IF(G125="Всього:",SUM($M$5:M124),IF($E$5="UAH",J125+L125+K125,J125+K125)) ->  | N125: =IF(G125="Всього:",SUM($N$4:N124),IF($E$5="UAH","",L125)) -> 
I126: =IF($G126="Всього:",SUM($I$4:I125),MAX($C$32,K126)) ->  | J126: =IF($G126="Всього:",SUM($J$4:J125),IF(I126-SUM(K126:L126)<0,0,I126-SUM(K126:L126))) ->  | K126: =IF(G126="Всього:",SUM($K$5:K125),F126*O125/36000*(G126-G125)) ->  | L126: =IF(G126="Всього:",SUM($L$5:L125),$E$4) ->  | M126: =IF(G126="Всього:",SUM($M$5:M125),IF($E$5="UAH",J126+L126+K126,J126+K126)) ->  | N126: =IF(G126="Всього:",SUM($N$4:N125),IF($E$5="UAH","",L126)) -> 
I127: =IF($G127="Всього:",SUM($I$4:I126),MAX($C$32,K127)) ->  | J127: =IF($G127="Всього:",SUM($J$4:J126),IF(I127-SUM(K127:L127)<0,0,I127-SUM(K127:L127))) ->  | K127: =IF(G127="Всього:",SUM($K$5:K126),F127*O126/36000*(G127-G126)) ->  | L127: =IF(G127="Всього:",SUM($L$5:L126),$E$4) ->  | M127: =IF(G127="Всього:",SUM($M$5:M126),IF($E$5="UAH",J127+L127+K127,J127+K127)) ->  | N127: =IF(G127="Всього:",SUM($N$4:N126),IF($E$5="UAH","",L127)) -> 
I128: =IF($G128="Всього:",SUM($I$4:I127),MAX($C$32,K128)) ->  | J128: =IF($G128="Всього:",SUM($J$4:J127),IF(I128-SUM(K128:L128)<0,0,I128-SUM(K128:L128))) ->  | K128: =IF(G128="Всього:",SUM($K$5:K127),F128*O127/36000*(G128-G127)) ->  | L128: =IF(G128="Всього:",SUM($L$5:L127),$E$4) ->  | M128: =IF(G128="Всього:",SUM($M$5:M127),IF($E$5="UAH",J128+L128+K128,J128+K128)) ->  | N128: =IF(G128="Всього:",SUM($N$4:N127),IF($E$5="UAH","",L128)) -> 
I129: =IF($G129="Всього:",SUM($I$4:I128),MAX($C$32,K129)) ->  | J129: =IF($G129="Всього:",SUM($J$4:J128),IF(I129-SUM(K129:L129)<0,0,I129-SUM(K129:L129))) ->  | K129: =IF(G129="Всього:",SUM($K$5:K128),F129*O128/36000*(G129-G128)) ->  | L129: =IF(G129="Всього:",SUM($L$5:L128),$E$4) ->  | M129: =IF(G129="Всього:",SUM($M$5:M128),IF($E$5="UAH",J129+L129+K129,J129+K129)) ->  | N129: =IF(G129="Всього:",SUM($N$4:N128),IF($E$5="UAH","",L129)) -> 
I130: =IF($G130="Всього:",SUM($I$4:I129),MAX($C$32,K130)) ->  | J130: =IF($G130="Всього:",SUM($J$4:J129),IF(I130-SUM(K130:L130)<0,0,I130-SUM(K130:L130))) ->  | K130: =IF(G130="Всього:",SUM($K$5:K129),F130*O129/36000*(G130-G129)) ->  | L130: =IF(G130="Всього:",SUM($L$5:L129),$E$4) ->  | M130: =IF(G130="Всього:",SUM($M$5:M129),IF($E$5="UAH",J130+L130+K130,J130+K130)) ->  | N130: =IF(G130="Всього:",SUM($N$4:N129),IF($E$5="UAH","",L130)) -> 
I131: =IF($G131="Всього:",SUM($I$4:I130),MAX($C$32,K131)) ->  | J131: =IF($G131="Всього:",SUM($J$4:J130),IF(I131-SUM(K131:L131)<0,0,I131-SUM(K131:L131))) ->  | K131: =IF(G131="Всього:",SUM($K$5:K130),F131*O130/36000*(G131-G130)) ->  | L131: =IF(G131="Всього:",SUM($L$5:L130),$E$4) ->  | M131: =IF(G131="Всього:",SUM($M$5:M130),IF($E$5="UAH",J131+L131+K131,J131+K131)) ->  | N131: =IF(G131="Всього:",SUM($N$4:N130),IF($E$5="UAH","",L131)) -> 
I132: =IF($G132="Всього:",SUM($I$4:I131),MAX($C$32,K132)) ->  | J132: =IF($G132="Всього:",SUM($J$4:J131),IF(I132-SUM(K132:L132)<0,0,I132-SUM(K132:L132))) ->  | K132: =IF(G132="Всього:",SUM($K$5:K131),F132*O131/36000*(G132-G131)) ->  | L132: =IF(G132="Всього:",SUM($L$5:L131),$E$4) ->  | M132: =IF(G132="Всього:",SUM($M$5:M131),IF($E$5="UAH",J132+L132+K132,J132+K132)) ->  | N132: =IF(G132="Всього:",SUM($N$4:N131),IF($E$5="UAH","",L132)) -> 
I133: =IF($G133="Всього:",SUM($I$4:I132),MAX($C$32,K133)) ->  | J133: =IF($G133="Всього:",SUM($J$4:J132),IF(I133-SUM(K133:L133)<0,0,I133-SUM(K133:L133))) ->  | K133: =IF(G133="Всього:",SUM($K$5:K132),F133*O132/36000*(G133-G132)) ->  | L133: =IF(G133="Всього:",SUM($L$5:L132),$E$4) ->  | M133: =IF(G133="Всього:",SUM($M$5:M132),IF($E$5="UAH",J133+L133+K133,J133+K133)) ->  | N133: =IF(G133="Всього:",SUM($N$4:N132),IF($E$5="UAH","",L133)) ->  | O133: =O132-J133 ->  | P133: =G133 -> 
F134: =IF(G134="Всього:","",IF(AND(G134>$B$9,G134<=$B$10),$C$16,IF(AND(G134>$B$9,G134<=$B$11),$D$16,IF(AND(G134>$B$10,G134<=$B$14),$E$16,$B$16)))) ->  | H134: =IF(H133>$E$8,"",H133+1) ->  | I134: =IF($G134="Всього:",SUM($I$4:I133),MAX($C$32,K134)) ->  | J134: =IF($G134="Всього:",SUM($J$4:J133),IF(I134-SUM(K134:L134)<0,0,I134-SUM(K134:L134))) ->  | K134: =IF(G134="Всього:",SUM($K$5:K133),F134*O133/36000*(G134-G133)) ->  | L134: =IF(G134="Всього:",SUM($L$5:L133),$E$4) ->  | M134: =IF(G134="Всього:",SUM($M$5:M133),IF($E$5="UAH",J134+L134+K134,J134+K134)) ->  | N134: =IF(G134="Всього:",SUM($N$4:N133),IF($E$5="UAH","",L134)) ->  | Q134: =IF(R135="",I134,IFERROR(I134+R135,0)) -> 
G135: =IF(H134=$E$3,"Всього:",IF($E$3=H135,$B$14,DATE(YEAR(G134),MONTH(G134)+1,IF($B$7<>"",DAY(IF($B$7>DAY(EOMONTH(G134,1)),EOMONTH(G134,1),$B$7)),DAY(1))))) ->  | I135: =IF($G135="Всього:",SUM($I$4:I134),MAX($C$32,K135)) ->  | J135: =IF($G135="Всього:",SUM($J$4:J134),IF(I135-SUM(K135:L135)<0,0,I135-SUM(K135:L135))) ->  | K135: =IF(G135="Всього:",SUM($K$5:K134),F135*O134/36000*(G135-G134)) ->  | L135: =IF(G135="Всього:",SUM($L$5:L134),$E$4) ->  | M135: =IF(G135="Всього:",SUM($M$5:M134),IF($E$5="UAH",J135+L135+K135,J135+K135)) ->  | N135: =IF(G135="Всього:",SUM($N$4:N134),IF($E$5="UAH","",L135)) -> 
I136: =IF($G136="Всього:",SUM($I$4:I135),MAX($C$32,K136)) ->  | J136: =IF($G136="Всього:",SUM($J$4:J135),IF(I136-SUM(K136:L136)<0,0,I136-SUM(K136:L136))) ->  | K136: =IF(G136="Всього:",SUM($K$5:K135),F136*O135/36000*(G136-G135)) ->  | L136: =IF(G136="Всього:",SUM($L$5:L135),$E$4) ->  | M136: =IF(G136="Всього:",SUM($M$5:M135),IF($E$5="UAH",J136+L136+K136,J136+K136)) ->  | N136: =IF(G136="Всього:",SUM($N$4:N135),IF($E$5="UAH","",L136)) -> 
I137: =IF($G137="Всього:",SUM($I$4:I136),MAX($C$32,K137)) ->  | J137: =IF($G137="Всього:",SUM($J$4:J136),IF(I137-SUM(K137:L137)<0,0,I137-SUM(K137:L137))) ->  | K137: =IF(G137="Всього:",SUM($K$5:K136),F137*O136/36000*(G137-G136)) ->  | L137: =IF(G137="Всього:",SUM($L$5:L136),$E$4) ->  | M137: =IF(G137="Всього:",SUM($M$5:M136),IF($E$5="UAH",J137+L137+K137,J137+K137)) ->  | N137: =IF(G137="Всього:",SUM($N$4:N136),IF($E$5="UAH","",L137)) -> 
I138: =IF($G138="Всього:",SUM($I$4:I137),MAX($C$32,K138)) ->  | J138: =IF($G138="Всього:",SUM($J$4:J137),IF(I138-SUM(K138:L138)<0,0,I138-SUM(K138:L138))) ->  | K138: =IF(G138="Всього:",SUM($K$5:K137),F138*O137/36000*(G138-G137)) ->  | L138: =IF(G138="Всього:",SUM($L$5:L137),$E$4) ->  | M138: =IF(G138="Всього:",SUM($M$5:M137),IF($E$5="UAH",J138+L138+K138,J138+K138)) ->  | N138: =IF(G138="Всього:",SUM($N$4:N137),IF($E$5="UAH","",L138)) -> 
I139: =IF($G139="Всього:",SUM($I$4:I138),MAX($C$32,K139)) ->  | J139: =IF($G139="Всього:",SUM($J$4:J138),IF(I139-SUM(K139:L139)<0,0,I139-SUM(K139:L139))) ->  | K139: =IF(G139="Всього:",SUM($K$5:K138),F139*O138/36000*(G139-G138)) ->  | L139: =IF(G139="Всього:",SUM($L$5:L138),$E$4) ->  | M139: =IF(G139="Всього:",SUM($M$5:M138),IF($E$5="UAH",J139+L139+K139,J139+K139)) ->  | N139: =IF(G139="Всього:",SUM($N$4:N138),IF($E$5="UAH","",L139)) -> 
I140: =IF($G140="Всього:",SUM($I$4:I139),MAX($C$32,K140)) ->  | J140: =IF($G140="Всього:",SUM($J$4:J139),IF(I140-SUM(K140:L140)<0,0,I140-SUM(K140:L140))) ->  | K140: =IF(G140="Всього:",SUM($K$5:K139),F140*O139/36000*(G140-G139)) ->  | L140: =IF(G140="Всього:",SUM($L$5:L139),$E$4) ->  | M140: =IF(G140="Всього:",SUM($M$5:M139),IF($E$5="UAH",J140+L140+K140,J140+K140)) ->  | N140: =IF(G140="Всього:",SUM($N$4:N139),IF($E$5="UAH","",L140)) -> 
I141: =IF($G141="Всього:",SUM($I$4:I140),MAX($C$32,K141)) ->  | J141: =IF($G141="Всього:",SUM($J$4:J140),IF(I141-SUM(K141:L141)<0,0,I141-SUM(K141:L141))) ->  | K141: =IF(G141="Всього:",SUM($K$5:K140),F141*O140/36000*(G141-G140)) ->  | L141: =IF(G141="Всього:",SUM($L$5:L140),$E$4) ->  | M141: =IF(G141="Всього:",SUM($M$5:M140),IF($E$5="UAH",J141+L141+K141,J141+K141)) ->  | N141: =IF(G141="Всього:",SUM($N$4:N140),IF($E$5="UAH","",L141)) -> 
I142: =IF($G142="Всього:",SUM($I$4:I141),MAX($C$32,K142)) ->  | J142: =IF($G142="Всього:",SUM($J$4:J141),IF(I142-SUM(K142:L142)<0,0,I142-SUM(K142:L142))) ->  | K142: =IF(G142="Всього:",SUM($K$5:K141),F142*O141/36000*(G142-G141)) ->  | L142: =IF(G142="Всього:",SUM($L$5:L141),$E$4) ->  | M142: =IF(G142="Всього:",SUM($M$5:M141),IF($E$5="UAH",J142+L142+K142,J142+K142)) ->  | N142: =IF(G142="Всього:",SUM($N$4:N141),IF($E$5="UAH","",L142)) -> 
I143: =IF($G143="Всього:",SUM($I$4:I142),MAX($C$32,K143)) ->  | J143: =IF($G143="Всього:",SUM($J$4:J142),IF(I143-SUM(K143:L143)<0,0,I143-SUM(K143:L143))) ->  | K143: =IF(G143="Всього:",SUM($K$5:K142),F143*O142/36000*(G143-G142)) ->  | L143: =IF(G143="Всього:",SUM($L$5:L142),$E$4) ->  | M143: =IF(G143="Всього:",SUM($M$5:M142),IF($E$5="UAH",J143+L143+K143,J143+K143)) ->  | N143: =IF(G143="Всього:",SUM($N$4:N142),IF($E$5="UAH","",L143)) -> 
I144: =IF($G144="Всього:",SUM($I$4:I143),MAX($C$32,K144)) ->  | J144: =IF($G144="Всього:",SUM($J$4:J143),IF(I144-SUM(K144:L144)<0,0,I144-SUM(K144:L144))) ->  | K144: =IF(G144="Всього:",SUM($K$5:K143),F144*O143/36000*(G144-G143)) ->  | L144: =IF(G144="Всього:",SUM($L$5:L143),$E$4) ->  | M144: =IF(G144="Всього:",SUM($M$5:M143),IF($E$5="UAH",J144+L144+K144,J144+K144)) ->  | N144: =IF(G144="Всього:",SUM($N$4:N143),IF($E$5="UAH","",L144)) -> 
I145: =IF($G145="Всього:",SUM($I$4:I144),MAX($C$32,K145)) ->  | J145: =IF($G145="Всього:",SUM($J$4:J144),IF(I145-SUM(K145:L145)<0,0,I145-SUM(K145:L145))) ->  | K145: =IF(G145="Всього:",SUM($K$5:K144),F145*O144/36000*(G145-G144)) ->  | L145: =IF(G145="Всього:",SUM($L$5:L144),$E$4) ->  | M145: =IF(G145="Всього:",SUM($M$5:M144),IF($E$5="UAH",J145+L145+K145,J145+K145)) ->  | N145: =IF(G145="Всього:",SUM($N$4:N144),IF($E$5="UAH","",L145)) -> 
I146: =IF($G146="Всього:",SUM($I$4:I145),MAX($C$32,K146)) ->  | J146: =IF($G146="Всього:",SUM($J$4:J145),IF(I146-SUM(K146:L146)<0,0,I146-SUM(K146:L146))) ->  | K146: =IF(G146="Всього:",SUM($K$5:K145),F146*O145/36000*(G146-G145)) ->  | L146: =IF(G146="Всього:",SUM($L$5:L145),$E$4) ->  | M146: =IF(G146="Всього:",SUM($M$5:M145),IF($E$5="UAH",J146+L146+K146,J146+K146)) ->  | N146: =IF(G146="Всього:",SUM($N$4:N145),IF($E$5="UAH","",L146)) -> 
I147: =IF($G147="Всього:",SUM($I$4:I146),MAX($C$32,K147)) ->  | J147: =IF($G147="Всього:",SUM($J$4:J146),IF(I147-SUM(K147:L147)<0,0,I147-SUM(K147:L147))) ->  | K147: =IF(G147="Всього:",SUM($K$5:K146),F147*O146/36000*(G147-G146)) ->  | L147: =IF(G147="Всього:",SUM($L$5:L146),$E$4) ->  | M147: =IF(G147="Всього:",SUM($M$5:M146),IF($E$5="UAH",J147+L147+K147,J147+K147)) ->  | N147: =IF(G147="Всього:",SUM($N$4:N146),IF($E$5="UAH","",L147)) -> 
I148: =IF($G148="Всього:",SUM($I$4:I147),MAX($C$32,K148)) ->  | J148: =IF($G148="Всього:",SUM($J$4:J147),IF(I148-SUM(K148:L148)<0,0,I148-SUM(K148:L148))) ->  | K148: =IF(G148="Всього:",SUM($K$5:K147),F148*O147/36000*(G148-G147)) ->  | L148: =IF(G148="Всього:",SUM($L$5:L147),$E$4) ->  | M148: =IF(G148="Всього:",SUM($M$5:M147),IF($E$5="UAH",J148+L148+K148,J148+K148)) ->  | N148: =IF(G148="Всього:",SUM($N$4:N147),IF($E$5="UAH","",L148)) -> 
I149: =IF($G149="Всього:",SUM($I$4:I148),MAX($C$32,K149)) ->  | J149: =IF($G149="Всього:",SUM($J$4:J148),IF(I149-SUM(K149:L149)<0,0,I149-SUM(K149:L149))) ->  | K149: =IF(G149="Всього:",SUM($K$5:K148),F149*O148/36000*(G149-G148)) ->  | L149: =IF(G149="Всього:",SUM($L$5:L148),$E$4) ->  | M149: =IF(G149="Всього:",SUM($M$5:M148),IF($E$5="UAH",J149+L149+K149,J149+K149)) ->  | N149: =IF(G149="Всього:",SUM($N$4:N148),IF($E$5="UAH","",L149)) -> 
I150: =IF($G150="Всього:",SUM($I$4:I149),MAX($C$32,K150)) ->  | J150: =IF($G150="Всього:",SUM($J$4:J149),IF(I150-SUM(K150:L150)<0,0,I150-SUM(K150:L150))) ->  | K150: =IF(G150="Всього:",SUM($K$5:K149),F150*O149/36000*(G150-G149)) ->  | L150: =IF(G150="Всього:",SUM($L$5:L149),$E$4) ->  | M150: =IF(G150="Всього:",SUM($M$5:M149),IF($E$5="UAH",J150+L150+K150,J150+K150)) ->  | N150: =IF(G150="Всього:",SUM($N$4:N149),IF($E$5="UAH","",L150)) -> 
I151: =IF($G151="Всього:",SUM($I$4:I150),MAX($C$32,K151)) ->  | J151: =IF($G151="Всього:",SUM($J$4:J150),IF(I151-SUM(K151:L151)<0,0,I151-SUM(K151:L151))) ->  | K151: =IF(G151="Всього:",SUM($K$5:K150),F151*O150/36000*(G151-G150)) ->  | L151: =IF(G151="Всього:",SUM($L$5:L150),$E$4) ->  | M151: =IF(G151="Всього:",SUM($M$5:M150),IF($E$5="UAH",J151+L151+K151,J151+K151)) ->  | N151: =IF(G151="Всього:",SUM($N$4:N150),IF($E$5="UAH","",L151)) -> 
I152: =IF($G152="Всього:",SUM($I$4:I151),MAX($C$32,K152)) ->  | J152: =IF($G152="Всього:",SUM($J$4:J151),IF(I152-SUM(K152:L152)<0,0,I152-SUM(K152:L152))) ->  | K152: =IF(G152="Всього:",SUM($K$5:K151),F152*O151/36000*(G152-G151)) ->  | L152: =IF(G152="Всього:",SUM($L$5:L151),$E$4) ->  | M152: =IF(G152="Всього:",SUM($M$5:M151),IF($E$5="UAH",J152+L152+K152,J152+K152)) ->  | N152: =IF(G152="Всього:",SUM($N$4:N151),IF($E$5="UAH","",L152)) -> 
I153: =IF($G153="Всього:",SUM($I$4:I152),MAX($C$32,K153)) ->  | J153: =IF($G153="Всього:",SUM($J$4:J152),IF(I153-SUM(K153:L153)<0,0,I153-SUM(K153:L153))) ->  | K153: =IF(G153="Всього:",SUM($K$5:K152),F153*O152/36000*(G153-G152)) ->  | L153: =IF(G153="Всього:",SUM($L$5:L152),$E$4) ->  | M153: =IF(G153="Всього:",SUM($M$5:M152),IF($E$5="UAH",J153+L153+K153,J153+K153)) ->  | N153: =IF(G153="Всього:",SUM($N$4:N152),IF($E$5="UAH","",L153)) -> 
I154: =IF($G154="Всього:",SUM($I$4:I153),MAX($C$32,K154)) ->  | J154: =IF($G154="Всього:",SUM($J$4:J153),IF(I154-SUM(K154:L154)<0,0,I154-SUM(K154:L154))) ->  | K154: =IF(G154="Всього:",SUM($K$5:K153),F154*O153/36000*(G154-G153)) ->  | L154: =IF(G154="Всього:",SUM($L$5:L153),$E$4) ->  | M154: =IF(G154="Всього:",SUM($M$5:M153),IF($E$5="UAH",J154+L154+K154,J154+K154)) ->  | N154: =IF(G154="Всього:",SUM($N$4:N153),IF($E$5="UAH","",L154)) -> 
I155: =IF($G155="Всього:",SUM($I$4:I154),MAX($C$32,K155)) ->  | J155: =IF($G155="Всього:",SUM($J$4:J154),IF(I155-SUM(K155:L155)<0,0,I155-SUM(K155:L155))) ->  | K155: =IF(G155="Всього:",SUM($K$5:K154),F155*O154/36000*(G155-G154)) ->  | L155: =IF(G155="Всього:",SUM($L$5:L154),$E$4) ->  | M155: =IF(G155="Всього:",SUM($M$5:M154),IF($E$5="UAH",J155+L155+K155,J155+K155)) ->  | N155: =IF(G155="Всього:",SUM($N$4:N154),IF($E$5="UAH","",L155)) -> 
I156: =IF($G156="Всього:",SUM($I$4:I155),MAX($C$32,K156)) ->  | J156: =IF($G156="Всього:",SUM($J$4:J155),IF(I156-SUM(K156:L156)<0,0,I156-SUM(K156:L156))) ->  | K156: =IF(G156="Всього:",SUM($K$5:K155),F156*O155/36000*(G156-G155)) ->  | L156: =IF(G156="Всього:",SUM($L$5:L155),$E$4) ->  | M156: =IF(G156="Всього:",SUM($M$5:M155),IF($E$5="UAH",J156+L156+K156,J156+K156)) ->  | N156: =IF(G156="Всього:",SUM($N$4:N155),IF($E$5="UAH","",L156)) -> 
I157: =IF($G157="Всього:",SUM($I$4:I156),MAX($C$32,K157)) ->  | J157: =IF($G157="Всього:",SUM($J$4:J156),IF(I157-SUM(K157:L157)<0,0,I157-SUM(K157:L157))) ->  | K157: =IF(G157="Всього:",SUM($K$5:K156),F157*O156/36000*(G157-G156)) ->  | L157: =IF(G157="Всього:",SUM($L$5:L156),$E$4) ->  | M157: =IF(G157="Всього:",SUM($M$5:M156),IF($E$5="UAH",J157+L157+K157,J157+K157)) ->  | N157: =IF(G157="Всього:",SUM($N$4:N156),IF($E$5="UAH","",L157)) -> 
I158: =IF($G158="Всього:",SUM($I$4:I157),MAX($C$32,K158)) ->  | J158: =IF($G158="Всього:",SUM($J$4:J157),IF(I158-SUM(K158:L158)<0,0,I158-SUM(K158:L158))) ->  | K158: =IF(G158="Всього:",SUM($K$5:K157),F158*O157/36000*(G158-G157)) ->  | L158: =IF(G158="Всього:",SUM($L$5:L157),$E$4) ->  | M158: =IF(G158="Всього:",SUM($M$5:M157),IF($E$5="UAH",J158+L158+K158,J158+K158)) ->  | N158: =IF(G158="Всього:",SUM($N$4:N157),IF($E$5="UAH","",L158)) -> 
I159: =IF($G159="Всього:",SUM($I$4:I158),MAX($C$32,K159)) ->  | J159: =IF($G159="Всього:",SUM($J$4:J158),IF(I159-SUM(K159:L159)<0,0,I159-SUM(K159:L159))) ->  | K159: =IF(G159="Всього:",SUM($K$5:K158),F159*O158/36000*(G159-G158)) ->  | L159: =IF(G159="Всього:",SUM($L$5:L158),$E$4) ->  | M159: =IF(G159="Всього:",SUM($M$5:M158),IF($E$5="UAH",J159+L159+K159,J159+K159)) ->  | N159: =IF(G159="Всього:",SUM($N$4:N158),IF($E$5="UAH","",L159)) -> 
I160: =IF($G160="Всього:",SUM($I$4:I159),MAX($C$32,K160)) ->  | J160: =IF($G160="Всього:",SUM($J$4:J159),IF(I160-SUM(K160:L160)<0,0,I160-SUM(K160:L160))) ->  | K160: =IF(G160="Всього:",SUM($K$5:K159),F160*O159/36000*(G160-G159)) ->  | L160: =IF(G160="Всього:",SUM($L$5:L159),$E$4) ->  | M160: =IF(G160="Всього:",SUM($M$5:M159),IF($E$5="UAH",J160+L160+K160,J160+K160)) ->  | N160: =IF(G160="Всього:",SUM($N$4:N159),IF($E$5="UAH","",L160)) ->  | Q160: =IF(R161="",I160,IFERROR(I160+R161,0)) -> 
I161: =IF($G161="Всього:",SUM($I$4:I160),MAX($C$32,K161)) ->  | J161: =IF($G161="Всього:",SUM($J$4:J160),IF(I161-SUM(K161:L161)<0,0,I161-SUM(K161:L161))) ->  | K161: =IF(G161="Всього:",SUM($K$5:K160),F161*O160/36000*(G161-G160)) ->  | L161: =IF(G161="Всього:",SUM($L$5:L160),$E$4) ->  | M161: =IF(G161="Всього:",SUM($M$5:M160),IF($E$5="UAH",J161+L161+K161,J161+K161)) ->  | N161: =IF(G161="Всього:",SUM($N$4:N160),IF($E$5="UAH","",L161)) -> 
I162: =IF($G162="Всього:",SUM($I$4:I161),MAX($C$32,K162)) ->  | J162: =IF($G162="Всього:",SUM($J$4:J161),IF(I162-SUM(K162:L162)<0,0,I162-SUM(K162:L162))) ->  | K162: =IF(G162="Всього:",SUM($K$5:K161),F162*O161/36000*(G162-G161)) ->  | L162: =IF(G162="Всього:",SUM($L$5:L161),$E$4) ->  | M162: =IF(G162="Всього:",SUM($M$5:M161),IF($E$5="UAH",J162+L162+K162,J162+K162)) ->  | N162: =IF(G162="Всього:",SUM($N$4:N161),IF($E$5="UAH","",L162)) -> 
I163: =IF($G163="Всього:",SUM($I$4:I162),MAX($C$32,K163)) ->  | J163: =IF($G163="Всього:",SUM($J$4:J162),IF(I163-SUM(K163:L163)<0,0,I163-SUM(K163:L163))) ->  | K163: =IF(G163="Всього:",SUM($K$5:K162),F163*O162/36000*(G163-G162)) ->  | L163: =IF(G163="Всього:",SUM($L$5:L162),$E$4) ->  | M163: =IF(G163="Всього:",SUM($M$5:M162),IF($E$5="UAH",J163+L163+K163,J163+K163)) ->  | N163: =IF(G163="Всього:",SUM($N$4:N162),IF($E$5="UAH","",L163)) -> 
I164: =IF($G164="Всього:",SUM($I$4:I163),MAX($C$32,K164)) ->  | J164: =IF($G164="Всього:",SUM($J$4:J163),IF(I164-SUM(K164:L164)<0,0,I164-SUM(K164:L164))) ->  | K164: =IF(G164="Всього:",SUM($K$5:K163),F164*O163/36000*(G164-G163)) ->  | L164: =IF(G164="Всього:",SUM($L$5:L163),$E$4) ->  | M164: =IF(G164="Всього:",SUM($M$5:M163),IF($E$5="UAH",J164+L164+K164,J164+K164)) ->  | N164: =IF(G164="Всього:",SUM($N$4:N163),IF($E$5="UAH","",L164)) -> 
I165: =IF($G165="Всього:",SUM($I$4:I164),MAX($C$32,K165)) ->  | J165: =IF($G165="Всього:",SUM($J$4:J164),IF(I165-SUM(K165:L165)<0,0,I165-SUM(K165:L165))) ->  | K165: =IF(G165="Всього:",SUM($K$5:K164),F165*O164/36000*(G165-G164)) ->  | L165: =IF(G165="Всього:",SUM($L$5:L164),$E$4) ->  | M165: =IF(G165="Всього:",SUM($M$5:M164),IF($E$5="UAH",J165+L165+K165,J165+K165)) ->  | N165: =IF(G165="Всього:",SUM($N$4:N164),IF($E$5="UAH","",L165)) -> 
I166: =IF($G166="Всього:",SUM($I$4:I165),MAX($C$32,K166)) ->  | J166: =IF($G166="Всього:",SUM($J$4:J165),IF(I166-SUM(K166:L166)<0,0,I166-SUM(K166:L166))) ->  | K166: =IF(G166="Всього:",SUM($K$5:K165),F166*O165/36000*(G166-G165)) ->  | L166: =IF(G166="Всього:",SUM($L$5:L165),$E$4) ->  | M166: =IF(G166="Всього:",SUM($M$5:M165),IF($E$5="UAH",J166+L166+K166,J166+K166)) ->  | N166: =IF(G166="Всього:",SUM($N$4:N165),IF($E$5="UAH","",L166)) -> 
I167: =IF($G167="Всього:",SUM($I$4:I166),MAX($C$32,K167)) ->  | J167: =IF($G167="Всього:",SUM($J$4:J166),IF(I167-SUM(K167:L167)<0,0,I167-SUM(K167:L167))) ->  | K167: =IF(G167="Всього:",SUM($K$5:K166),F167*O166/36000*(G167-G166)) ->  | L167: =IF(G167="Всього:",SUM($L$5:L166),$E$4) ->  | M167: =IF(G167="Всього:",SUM($M$5:M166),IF($E$5="UAH",J167+L167+K167,J167+K167)) ->  | N167: =IF(G167="Всього:",SUM($N$4:N166),IF($E$5="UAH","",L167)) -> 
I168: =IF($G168="Всього:",SUM($I$4:I167),MAX($C$32,K168)) ->  | J168: =IF($G168="Всього:",SUM($J$4:J167),IF(I168-SUM(K168:L168)<0,0,I168-SUM(K168:L168))) ->  | K168: =IF(G168="Всього:",SUM($K$5:K167),F168*O167/36000*(G168-G167)) ->  | L168: =IF(G168="Всього:",SUM($L$5:L167),$E$4) ->  | M168: =IF(G168="Всього:",SUM($M$5:M167),IF($E$5="UAH",J168+L168+K168,J168+K168)) ->  | N168: =IF(G168="Всього:",SUM($N$4:N167),IF($E$5="UAH","",L168)) -> 
I169: =IF($G169="Всього:",SUM($I$4:I168),MAX($C$32,K169)) ->  | J169: =IF($G169="Всього:",SUM($J$4:J168),IF(I169-SUM(K169:L169)<0,0,I169-SUM(K169:L169))) ->  | K169: =IF(G169="Всього:",SUM($K$5:K168),F169*O168/36000*(G169-G168)) ->  | L169: =IF(G169="Всього:",SUM($L$5:L168),$E$4) ->  | M169: =IF(G169="Всього:",SUM($M$5:M168),IF($E$5="UAH",J169+L169+K169,J169+K169)) ->  | N169: =IF(G169="Всього:",SUM($N$4:N168),IF($E$5="UAH","",L169)) -> 
I170: =IF($G170="Всього:",SUM($I$4:I169),MAX($C$32,K170)) ->  | J170: =IF($G170="Всього:",SUM($J$4:J169),IF(I170-SUM(K170:L170)<0,0,I170-SUM(K170:L170))) ->  | K170: =IF(G170="Всього:",SUM($K$5:K169),F170*O169/36000*(G170-G169)) ->  | L170: =IF(G170="Всього:",SUM($L$5:L169),$E$4) ->  | M170: =IF(G170="Всього:",SUM($M$5:M169),IF($E$5="UAH",J170+L170+K170,J170+K170)) ->  | N170: =IF(G170="Всього:",SUM($N$4:N169),IF($E$5="UAH","",L170)) -> 
I171: =IF($G171="Всього:",SUM($I$4:I170),MAX($C$32,K171)) ->  | J171: =IF($G171="Всього:",SUM($J$4:J170),IF(I171-SUM(K171:L171)<0,0,I171-SUM(K171:L171))) ->  | K171: =IF(G171="Всього:",SUM($K$5:K170),F171*O170/36000*(G171-G170)) ->  | L171: =IF(G171="Всього:",SUM($L$5:L170),$E$4) ->  | M171: =IF(G171="Всього:",SUM($M$5:M170),IF($E$5="UAH",J171+L171+K171,J171+K171)) ->  | N171: =IF(G171="Всього:",SUM($N$4:N170),IF($E$5="UAH","",L171)) -> 
I172: =IF($G172="Всього:",SUM($I$4:I171),MAX($C$32,K172)) ->  | J172: =IF($G172="Всього:",SUM($J$4:J171),IF(I172-SUM(K172:L172)<0,0,I172-SUM(K172:L172))) ->  | K172: =IF(G172="Всього:",SUM($K$5:K171),F172*O171/36000*(G172-G171)) ->  | L172: =IF(G172="Всього:",SUM($L$5:L171),$E$4) ->  | M172: =IF(G172="Всього:",SUM($M$5:M171),IF($E$5="UAH",J172+L172+K172,J172+K172)) ->  | N172: =IF(G172="Всього:",SUM($N$4:N171),IF($E$5="UAH","",L172)) -> 
I173: =IF($G173="Всього:",SUM($I$4:I172),MAX($C$32,K173)) ->  | J173: =IF($G173="Всього:",SUM($J$4:J172),IF(I173-SUM(K173:L173)<0,0,I173-SUM(K173:L173))) ->  | K173: =IF(G173="Всього:",SUM($K$5:K172),F173*O172/36000*(G173-G172)) ->  | L173: =IF(G173="Всього:",SUM($L$5:L172),$E$4) ->  | M173: =IF(G173="Всього:",SUM($M$5:M172),IF($E$5="UAH",J173+L173+K173,J173+K173)) ->  | N173: =IF(G173="Всього:",SUM($N$4:N172),IF($E$5="UAH","",L173)) -> 
I174: =IF($G174="Всього:",SUM($I$4:I173),MAX($C$32,K174)) ->  | J174: =IF($G174="Всього:",SUM($J$4:J173),IF(I174-SUM(K174:L174)<0,0,I174-SUM(K174:L174))) ->  | K174: =IF(G174="Всього:",SUM($K$5:K173),F174*O173/36000*(G174-G173)) ->  | L174: =IF(G174="Всього:",SUM($L$5:L173),$E$4) ->  | M174: =IF(G174="Всього:",SUM($M$5:M173),IF($E$5="UAH",J174+L174+K174,J174+K174)) ->  | N174: =IF(G174="Всього:",SUM($N$4:N173),IF($E$5="UAH","",L174)) -> 
I175: =IF($G175="Всього:",SUM($I$4:I174),MAX($C$32,K175)) ->  | J175: =IF($G175="Всього:",SUM($J$4:J174),IF(I175-SUM(K175:L175)<0,0,I175-SUM(K175:L175))) ->  | K175: =IF(G175="Всього:",SUM($K$5:K174),F175*O174/36000*(G175-G174)) ->  | L175: =IF(G175="Всього:",SUM($L$5:L174),$E$4) ->  | M175: =IF(G175="Всього:",SUM($M$5:M174),IF($E$5="UAH",J175+L175+K175,J175+K175)) ->  | N175: =IF(G175="Всього:",SUM($N$4:N174),IF($E$5="UAH","",L175)) -> 
I176: =IF($G176="Всього:",SUM($I$4:I175),MAX($C$32,K176)) ->  | J176: =IF($G176="Всього:",SUM($J$4:J175),IF(I176-SUM(K176:L176)<0,0,I176-SUM(K176:L176))) ->  | K176: =IF(G176="Всього:",SUM($K$5:K175),F176*O175/36000*(G176-G175)) ->  | L176: =IF(G176="Всього:",SUM($L$5:L175),$E$4) ->  | M176: =IF(G176="Всього:",SUM($M$5:M175),IF($E$5="UAH",J176+L176+K176,J176+K176)) ->  | N176: =IF(G176="Всього:",SUM($N$4:N175),IF($E$5="UAH","",L176)) -> 
I177: =IF($G177="Всього:",SUM($I$4:I176),MAX($C$32,K177)) ->  | J177: =IF($G177="Всього:",SUM($J$4:J176),IF(I177-SUM(K177:L177)<0,0,I177-SUM(K177:L177))) ->  | K177: =IF(G177="Всього:",SUM($K$5:K176),F177*O176/36000*(G177-G176)) ->  | L177: =IF(G177="Всього:",SUM($L$5:L176),$E$4) ->  | M177: =IF(G177="Всього:",SUM($M$5:M176),IF($E$5="UAH",J177+L177+K177,J177+K177)) ->  | N177: =IF(G177="Всього:",SUM($N$4:N176),IF($E$5="UAH","",L177)) -> 
I178: =IF($G178="Всього:",SUM($I$4:I177),MAX($C$32,K178)) ->  | J178: =IF($G178="Всього:",SUM($J$4:J177),IF(I178-SUM(K178:L178)<0,0,I178-SUM(K178:L178))) ->  | K178: =IF(G178="Всього:",SUM($K$5:K177),F178*O177/36000*(G178-G177)) ->  | L178: =IF(G178="Всього:",SUM($L$5:L177),$E$4) ->  | M178: =IF(G178="Всього:",SUM($M$5:M177),IF($E$5="UAH",J178+L178+K178,J178+K178)) ->  | N178: =IF(G178="Всього:",SUM($N$4:N177),IF($E$5="UAH","",L178)) -> 
I179: =IF($G179="Всього:",SUM($I$4:I178),MAX($C$32,K179)) ->  | J179: =IF($G179="Всього:",SUM($J$4:J178),IF(I179-SUM(K179:L179)<0,0,I179-SUM(K179:L179))) ->  | K179: =IF(G179="Всього:",SUM($K$5:K178),F179*O178/36000*(G179-G178)) ->  | L179: =IF(G179="Всього:",SUM($L$5:L178),$E$4) ->  | M179: =IF(G179="Всього:",SUM($M$5:M178),IF($E$5="UAH",J179+L179+K179,J179+K179)) ->  | N179: =IF(G179="Всього:",SUM($N$4:N178),IF($E$5="UAH","",L179)) -> 
I180: =IF($G180="Всього:",SUM($I$4:I179),MAX($C$32,K180)) ->  | J180: =IF($G180="Всього:",SUM($J$4:J179),IF(I180-SUM(K180:L180)<0,0,I180-SUM(K180:L180))) ->  | K180: =IF(G180="Всього:",SUM($K$5:K179),F180*O179/36000*(G180-G179)) ->  | L180: =IF(G180="Всього:",SUM($L$5:L179),$E$4) ->  | M180: =IF(G180="Всього:",SUM($M$5:M179),IF($E$5="UAH",J180+L180+K180,J180+K180)) ->  | N180: =IF(G180="Всього:",SUM($N$4:N179),IF($E$5="UAH","",L180)) -> 
I181: =IF($G181="Всього:",SUM($I$4:I180),MAX($C$32,K181)) ->  | J181: =IF($G181="Всього:",SUM($J$4:J180),IF(I181-SUM(K181:L181)<0,0,I181-SUM(K181:L181))) ->  | K181: =IF(G181="Всього:",SUM($K$5:K180),F181*O180/36000*(G181-G180)) ->  | L181: =IF(G181="Всього:",SUM($L$5:L180),$E$4) ->  | M181: =IF(G181="Всього:",SUM($M$5:M180),IF($E$5="UAH",J181+L181+K181,J181+K181)) ->  | N181: =IF(G181="Всього:",SUM($N$4:N180),IF($E$5="UAH","",L181)) -> 
I182: =IF($G182="Всього:",SUM($I$4:I181),MAX($C$32,K182)) ->  | J182: =IF($G182="Всього:",SUM($J$4:J181),IF(I182-SUM(K182:L182)<0,0,I182-SUM(K182:L182))) ->  | K182: =IF(G182="Всього:",SUM($K$5:K181),F182*O181/36000*(G182-G181)) ->  | L182: =IF(G182="Всього:",SUM($L$5:L181),$E$4) ->  | M182: =IF(G182="Всього:",SUM($M$5:M181),IF($E$5="UAH",J182+L182+K182,J182+K182)) ->  | N182: =IF(G182="Всього:",SUM($N$4:N181),IF($E$5="UAH","",L182)) -> 
I183: =IF($G183="Всього:",SUM($I$4:I182),MAX($C$32,K183)) ->  | J183: =IF($G183="Всього:",SUM($J$4:J182),IF(I183-SUM(K183:L183)<0,0,I183-SUM(K183:L183))) ->  | K183: =IF(G183="Всього:",SUM($K$5:K182),F183*O182/36000*(G183-G182)) ->  | L183: =IF(G183="Всього:",SUM($L$5:L182),$E$4) ->  | M183: =IF(G183="Всього:",SUM($M$5:M182),IF($E$5="UAH",J183+L183+K183,J183+K183)) ->  | N183: =IF(G183="Всього:",SUM($N$4:N182),IF($E$5="UAH","",L183)) -> 
I184: =IF($G184="Всього:",SUM($I$4:I183),MAX($C$32,K184)) ->  | J184: =IF($G184="Всього:",SUM($J$4:J183),IF(I184-SUM(K184:L184)<0,0,I184-SUM(K184:L184))) ->  | K184: =IF(G184="Всього:",SUM($K$5:K183),F184*O183/36000*(G184-G183)) ->  | L184: =IF(G184="Всього:",SUM($L$5:L183),$E$4) ->  | M184: =IF(G184="Всього:",SUM($M$5:M183),IF($E$5="UAH",J184+L184+K184,J184+K184)) ->  | N184: =IF(G184="Всього:",SUM($N$4:N183),IF($E$5="UAH","",L184)) -> 
I185: =IF($G185="Всього:",SUM($I$4:I184),MAX($C$32,K185)) ->  | J185: =IF($G185="Всього:",SUM($J$4:J184),IF(I185-SUM(K185:L185)<0,0,I185-SUM(K185:L185))) ->  | K185: =IF(G185="Всього:",SUM($K$5:K184),F185*O184/36000*(G185-G184)) ->  | L185: =IF(G185="Всього:",SUM($L$5:L184),$E$4) ->  | M185: =IF(G185="Всього:",SUM($M$5:M184),IF($E$5="UAH",J185+L185+K185,J185+K185)) ->  | N185: =IF(G185="Всього:",SUM($N$4:N184),IF($E$5="UAH","",L185)) -> 
I186: =IF($G186="Всього:",SUM($I$4:I185),MAX($C$32,K186)) ->  | J186: =IF($G186="Всього:",SUM($J$4:J185),IF(I186-SUM(K186:L186)<0,0,I186-SUM(K186:L186))) ->  | K186: =IF(G186="Всього:",SUM($K$5:K185),F186*O185/36000*(G186-G185)) ->  | L186: =IF(G186="Всього:",SUM($L$5:L185),$E$4) ->  | M186: =IF(G186="Всього:",SUM($M$5:M185),IF($E$5="UAH",J186+L186+K186,J186+K186)) ->  | N186: =IF(G186="Всього:",SUM($N$4:N185),IF($E$5="UAH","",L186)) -> 
I187: =IF($G187="Всього:",SUM($I$4:I186),MAX($C$32,K187)) ->  | J187: =IF($G187="Всього:",SUM($J$4:J186),IF(I187-SUM(K187:L187)<0,0,I187-SUM(K187:L187))) ->  | K187: =IF(G187="Всього:",SUM($K$5:K186),F187*O186/36000*(G187-G186)) ->  | L187: =IF(G187="Всього:",SUM($L$5:L186),$E$4) ->  | M187: =IF(G187="Всього:",SUM($M$5:M186),IF($E$5="UAH",J187+L187+K187,J187+K187)) ->  | N187: =IF(G187="Всього:",SUM($N$4:N186),IF($E$5="UAH","",L187)) -> 
I188: =IF($G188="Всього:",SUM($I$4:I187),MAX($C$32,K188)) ->  | J188: =IF($G188="Всього:",SUM($J$4:J187),IF(I188-SUM(K188:L188)<0,0,I188-SUM(K188:L188))) ->  | K188: =IF(G188="Всього:",SUM($K$5:K187),F188*O187/36000*(G188-G187)) ->  | L188: =IF(G188="Всього:",SUM($L$5:L187),$E$4) ->  | M188: =IF(G188="Всього:",SUM($M$5:M187),IF($E$5="UAH",J188+L188+K188,J188+K188)) ->  | N188: =IF(G188="Всього:",SUM($N$4:N187),IF($E$5="UAH","",L188)) -> 
I189: =IF($G189="Всього:",SUM($I$4:I188),MAX($C$32,K189)) ->  | J189: =IF($G189="Всього:",SUM($J$4:J188),IF(I189-SUM(K189:L189)<0,0,I189-SUM(K189:L189))) ->  | K189: =IF(G189="Всього:",SUM($K$5:K188),F189*O188/36000*(G189-G188)) ->  | L189: =IF(G189="Всього:",SUM($L$5:L188),$E$4) ->  | M189: =IF(G189="Всього:",SUM($M$5:M188),IF($E$5="UAH",J189+L189+K189,J189+K189)) ->  | N189: =IF(G189="Всього:",SUM($N$4:N188),IF($E$5="UAH","",L189)) -> 
I190: =IF($G190="Всього:",SUM($I$4:I189),MAX($C$32,K190)) ->  | J190: =IF($G190="Всього:",SUM($J$4:J189),IF(I190-SUM(K190:L190)<0,0,I190-SUM(K190:L190))) ->  | K190: =IF(G190="Всього:",SUM($K$5:K189),F190*O189/36000*(G190-G189)) ->  | L190: =IF(G190="Всього:",SUM($L$5:L189),$E$4) ->  | M190: =IF(G190="Всього:",SUM($M$5:M189),IF($E$5="UAH",J190+L190+K190,J190+K190)) ->  | N190: =IF(G190="Всього:",SUM($N$4:N189),IF($E$5="UAH","",L190)) -> 
I191: =IF($G191="Всього:",SUM($I$4:I190),MAX($C$32,K191)) ->  | J191: =IF($G191="Всього:",SUM($J$4:J190),IF(I191-SUM(K191:L191)<0,0,I191-SUM(K191:L191))) ->  | K191: =IF(G191="Всього:",SUM($K$5:K190),F191*O190/36000*(G191-G190)) ->  | L191: =IF(G191="Всього:",SUM($L$5:L190),$E$4) ->  | M191: =IF(G191="Всього:",SUM($M$5:M190),IF($E$5="UAH",J191+L191+K191,J191+K191)) ->  | N191: =IF(G191="Всього:",SUM($N$4:N190),IF($E$5="UAH","",L191)) -> 
I192: =IF($G192="Всього:",SUM($I$4:I191),MAX($C$32,K192)) ->  | J192: =IF($G192="Всього:",SUM($J$4:J191),IF(I192-SUM(K192:L192)<0,0,I192-SUM(K192:L192))) ->  | K192: =IF(G192="Всього:",SUM($K$5:K191),F192*O191/36000*(G192-G191)) ->  | L192: =IF(G192="Всього:",SUM($L$5:L191),$E$4) ->  | M192: =IF(G192="Всього:",SUM($M$5:M191),IF($E$5="UAH",J192+L192+K192,J192+K192)) ->  | N192: =IF(G192="Всього:",SUM($N$4:N191),IF($E$5="UAH","",L192)) -> 
I193: =IF($G193="Всього:",SUM($I$4:I192),MAX($C$32,K193)) ->  | J193: =IF($G193="Всього:",SUM($J$4:J192),IF(I193-SUM(K193:L193)<0,0,I193-SUM(K193:L193))) ->  | K193: =IF(G193="Всього:",SUM($K$5:K192),F193*O192/36000*(G193-G192)) ->  | L193: =IF(G193="Всього:",SUM($L$5:L192),$E$4) ->  | M193: =IF(G193="Всього:",SUM($M$5:M192),IF($E$5="UAH",J193+L193+K193,J193+K193)) ->  | N193: =IF(G193="Всього:",SUM($N$4:N192),IF($E$5="UAH","",L193)) -> 
I194: =IF($G194="Всього:",SUM($I$4:I193),MAX($C$32,K194)) ->  | J194: =IF($G194="Всього:",SUM($J$4:J193),IF(I194-SUM(K194:L194)<0,0,I194-SUM(K194:L194))) ->  | K194: =IF(G194="Всього:",SUM($K$5:K193),F194*O193/36000*(G194-G193)) ->  | L194: =IF(G194="Всього:",SUM($L$5:L193),$E$4) ->  | M194: =IF(G194="Всього:",SUM($M$5:M193),IF($E$5="UAH",J194+L194+K194,J194+K194)) ->  | N194: =IF(G194="Всього:",SUM($N$4:N193),IF($E$5="UAH","",L194)) -> 
I195: =IF($G195="Всього:",SUM($I$4:I194),MAX($C$32,K195)) ->  | J195: =IF($G195="Всього:",SUM($J$4:J194),IF(I195-SUM(K195:L195)<0,0,I195-SUM(K195:L195))) ->  | K195: =IF(G195="Всього:",SUM($K$5:K194),F195*O194/36000*(G195-G194)) ->  | L195: =IF(G195="Всього:",SUM($L$5:L194),$E$4) ->  | M195: =IF(G195="Всього:",SUM($M$5:M194),IF($E$5="UAH",J195+L195+K195,J195+K195)) ->  | N195: =IF(G195="Всього:",SUM($N$4:N194),IF($E$5="UAH","",L195)) -> 
I196: =IF($G196="Всього:",SUM($I$4:I195),MAX($C$32,K196)) ->  | J196: =IF($G196="Всього:",SUM($J$4:J195),IF(I196-SUM(K196:L196)<0,0,I196-SUM(K196:L196))) ->  | K196: =IF(G196="Всього:",SUM($K$5:K195),F196*O195/36000*(G196-G195)) ->  | L196: =IF(G196="Всього:",SUM($L$5:L195),$E$4) ->  | M196: =IF(G196="Всього:",SUM($M$5:M195),IF($E$5="UAH",J196+L196+K196,J196+K196)) ->  | N196: =IF(G196="Всього:",SUM($N$4:N195),IF($E$5="UAH","",L196)) -> 
I197: =IF($G197="Всього:",SUM($I$4:I196),MAX($C$32,K197)) ->  | J197: =IF($G197="Всього:",SUM($J$4:J196),IF(I197-SUM(K197:L197)<0,0,I197-SUM(K197:L197))) ->  | K197: =IF(G197="Всього:",SUM($K$5:K196),F197*O196/36000*(G197-G196)) ->  | L197: =IF(G197="Всього:",SUM($L$5:L196),$E$4) ->  | M197: =IF(G197="Всього:",SUM($M$5:M196),IF($E$5="UAH",J197+L197+K197,J197+K197)) ->  | N197: =IF(G197="Всього:",SUM($N$4:N196),IF($E$5="UAH","",L197)) ->  | O197: =O196-J197 ->  | P197: =G197 -> 
F198: =IF(G198="Всього:","",IF(AND(G198>$B$9,G198<=$B$10),$C$16,IF(AND(G198>$B$9,G198<=$B$11),$D$16,IF(AND(G198>$B$10,G198<=$B$14),$E$16,$B$16)))) ->  | H198: =IF(H197>$E$8,"",H197+1) ->  | I198: =IF($G198="Всього:",SUM($I$4:I197),MAX($C$32,K198)) ->  | J198: =IF($G198="Всього:",SUM($J$4:J197),IF(I198-SUM(K198:L198)<0,0,I198-SUM(K198:L198))) ->  | K198: =IF(G198="Всього:",SUM($K$5:K197),F198*O197/36000*(G198-G197)) ->  | L198: =IF(G198="Всього:",SUM($L$5:L197),$E$4) ->  | M198: =IF(G198="Всього:",SUM($M$5:M197),IF($E$5="UAH",J198+L198+K198,J198+K198)) ->  | N198: =IF(G198="Всього:",SUM($N$4:N197),IF($E$5="UAH","",L198)) ->  | Q198: =IF(R199="",I198,IFERROR(I198+R199,0)) -> 
G199: =IF(H198=$E$3,"Всього:",IF($E$3=H199,$B$14,DATE(YEAR(G198),MONTH(G198)+1,IF($B$7<>"",DAY(IF($B$7>DAY(EOMONTH(G198,1)),EOMONTH(G198,1),$B$7)),DAY(1))))) ->  | I199: =IF($G199="Всього:",SUM($I$4:I198),MAX($C$32,K199)) ->  | J199: =IF($G199="Всього:",SUM($J$4:J198),IF(I199-SUM(K199:L199)<0,0,I199-SUM(K199:L199))) ->  | K199: =IF(G199="Всього:",SUM($K$5:K198),F199*O198/36000*(G199-G198)) ->  | L199: =IF(G199="Всього:",SUM($L$5:L198),$E$4) ->  | M199: =IF(G199="Всього:",SUM($M$5:M198),IF($E$5="UAH",J199+L199+K199,J199+K199)) ->  | N199: =IF(G199="Всього:",SUM($N$4:N198),IF($E$5="UAH","",L199)) -> 
I200: =IF($G200="Всього:",SUM($I$4:I199),MAX($C$32,K200)) ->  | J200: =IF($G200="Всього:",SUM($J$4:J199),IF(I200-SUM(K200:L200)<0,0,I200-SUM(K200:L200))) ->  | K200: =IF(G200="Всього:",SUM($K$5:K199),F200*O199/36000*(G200-G199)) ->  | L200: =IF(G200="Всього:",SUM($L$5:L199),$E$4) ->  | M200: =IF(G200="Всього:",SUM($M$5:M199),IF($E$5="UAH",J200+L200+K200,J200+K200)) ->  | N200: =IF(G200="Всього:",SUM($N$4:N199),IF($E$5="UAH","",L200)) -> 
... 48 more rows

Sheet Калькулятор
R1: Термін | AC1: Ануїтет | AL1: Класика
B2: Продукт | E2: Автостарт NEW | L2: Сума кредиту | N2: =IF(V23<20,"Не достатня сума авансу",IF(X4=3,0,$E$4-IF($X$4=1,$F$6,IF($X$4=2,$E$4/100*$F$8,0)))) -> 800000 | R2: 12 | U2: Ануїтетна | W2: =IF(AND(V3=1,W3=1),2,0) -> 2 | AC2: ГРАФІК ПОГАШЕННЯ КРЕДИТУ | AL2: ГРАФІК ПОГАШЕННЯ КРЕДИТУ | AW2: =IF(E12=R8,N6+AW16+AW28+AW40+AW52+AW64+AW76,IF(E12=R7,N6+AW16+AW28+AW40+AW52+AW64,IF(E12=R6,N6+AW16+AW28+AW40+AW52,IF(E12=R5,N6+AW16+AW28+AW40,IF(E12=R4,N6+AW16+AW28,IF(E12=R3,N6+AW16,IF(E12=R2,N6))))))) -> 185745 | AX2: =IF(E12=R8,#REF!+AX16+AX28+AX40+AX52+AX64+AX76,IF(E12=R7,#REF!+AX16+AX28+AX40+AX52+AX64,IF(E12=R6,#REF!+AX16+AX28+AX40+AX52,IF(E12=R5,#REF!+AX16+AX28+AX40,IF(E12=R4,#REF!+AX16+AX28,IF(E12=R3,#REF!+AX16,IF(E12=R2,#REF!))))))) -> 
R3: 24 | T3: FALSE | U3: Формат для авансу Продукту | V3: =IF(E2="",0,1) -> 1 | W3: =IF(E4="",0,1) -> 1 | X3: =IF(AND(F6=0,F8=0),0,IF(AND(F6>0,F8=""),1,IF(AND(F6=0,F8>0),2,3))) -> 2 | AB3: Місяць | AC3: № платежу | AE3: Розмір щомісячних внесків з повернення кредиту, грн. | AF3: Щомісячна плата за кредитне обслуговування, грн. | AG3: Розмір щомісячних процентних внесків, грн. | AI3: Загальна сума внесків до повернення в місяць, грн. | AK3: Місяць | AL3: № платежу | AN3: Розмір щомісячних внесків з повернення кредиту, грн. | AO3: Щомісячна плата за кредитне обслуговування, грн. | AP3: Розмір щомісячних процентних внесків, грн. | AR3: Загальна сума внесків до повернення в місяць, грн. | AT3: Залишок заборгованості | AU3: =-N2+N6+#REF!+N12+N4+#REF! -> 
B4: Вартість автомобіля (грн) | E4: 1000000 | L4: Комісія за видачу кредиту (грн) | N4: =Ануїтетна_графік_Авто!Y6 -> 7920 | R4: 36 | U4: =IF(T3="Сума авансового платежу перевищує вартість авто",1,IF(T3="Сума авансового платежу дорівнює вартості авто",1,IF(T3="Сума авансового платежу недостатня",1,0))) -> 0 | V4: =IF(F6="",0,1) -> 0 | W4: =IF(F8="",0,1) -> 1 | X4: =IF(AND(V4=1,W4=0),1,IF(AND(W4=1,V4=0),2,IF(AND(V4=1,W4=1),3,IF(AND(V4=0,W4=0),4)))) -> 2 | AB4: =DATE(YEAR($V$19),MONTH($V$19)+1,DAY(1)-1) -> 2025-06-30 | AC4: 1 | AE4: =IF($U$2=$X$17,PPMT($E$14/1200,AC4,$E$12,-$N$2)) -> 12530.50169 | AG4: =IF($AE$4=0,$N$2*($E$14/100)*(AB4-$V$19+1)/360,IPMT($E$14/1200,AC4,$E$12,-$N$2)) -> 9326.666667 | AI4: =AG4+AE4 -> 21857.16836 | AK4: =DATE(YEAR($V$19),MONTH($V$19)+1,DAY(1)-1) -> 2025-06-30 | AL4: 1 | AN4: =IF($V$20>15,0,$N$2/$E$12) -> 0 | AP4: =IF(AN4=0,$N$2*($E$14/100)*(AK4-$V$19+1)/360,$N$2*$E$14/100*31/360) -> 4663.333333 | AR4: =AP4 -> 4663.333333 | AU4: =AI4 -> 21857.16836
B5: Електромобіль | E5: Ні | R5: 48 | AB5: =IF(AC5="","",DATE(YEAR(AB4),MONTH(AB4)+2,DAY(1)-1)) -> 2025-07-31 | AC5: 2 | AE5: =IF($AE$4=0,PPMT($E$14/1200,AC4,$E$12,-$N$2),PPMT($E$14/1200,AC5,$E$12,-$N$2)) -> 12676.58646 | AG5: =IF($AE$4=0,IPMT($E$14/1200,AC4,$E$12,-$N$2),IPMT($E$14/1200,AC5,$E$12,-$N$2)) -> 9180.581901 | AI5: =AG5+AE5 -> 21857.16836 | AK5: =IF(AL5="","",DATE(YEAR(AK4),MONTH(AK4)+2,DAY(1)-1)) -> 2025-07-31 | AL5: 2 | AN5: =$N$2/$E$12 -> 16666.66667 | AP5: =AT5*$E$14/100*(AK5-AK4)/360 -> 9637.555556 | AR5: =AN5+AP5 -> 26304.22222 | AT5: =$N$2-AN4 -> 800000 | AU5: =AI5 -> 21857.16836
B6: Аванс | E6: Грн. | L6: Страхування КАСКО перший рік (грн) | N6: =Ануїтетна_графік_Авто!Y7 -> 51600 | R6: 60 | AB6: 2025-08-31 | AC6: 3 | AE6: 12824.37433 | AG6: 9032.794031 | AI6: =AG6+AE6 -> 21857.16836 | AK6: 2025-08-31 | AL6: 3 | AN6: 16666.66667 | AP6: 9436.773148 | AR6: 26103.43981 | AT6: =AT5-AN5 -> 783333.3333 | AU6: 21857.16836
E7: Або | R7: 72 | AB7: 2025-09-30 | AC7: 4 | AE7: 12973.88516 | AG7: 8883.2832 | AI7: 21857.16836 | AK7: 2025-09-30 | AL7: 4 | AN7: 16666.66667 | AP7: 8938.055556 | AR7: 25604.72222 | AT7: 766666.6667 | AU7: 21857.16836
E8: % | F8: 20 | L8: Страхування КАСКО (сума за всі наступні роки) (грн) | N8: =Ануїтетна_графік_Авто!R3-Ануїтетна_графік_Авто!Y7 -> 133657.2 | R8: 84 | AB8: 2025-10-31 | AC8: 5 | AE8: 13125.13904 | AG8: 8732.029322 | AI8: 21857.16836 | AK8: 2025-10-31 | AL8: 5 | AN8: 16666.66667 | AP8: 9035.208333 | AR8: 25701.875 | AT8: 750000 | AU8: 21857.16836
AB9: 2025-11-30 | AC9: 6 | AE9: 13278.15628 | AG9: 8579.012076 | AI9: 21857.16836 | AK9: 2025-11-30 | AL9: 6 | AN9: 16666.66667 | AP9: 8549.444444 | AR9: 25216.11111 | AT9: 733333.3333 | AU9: 21857.16836
B10: Відображення авансу | E10: =IF(X4=1,F6/E4,IF(X4=2,E4/100*F8,"")) -> 200000 | L10: Сума процентів за користування кредитом (грн) | N10: =Ануїтетна_графік_Авто!Y4 -> 253111.1091 | AB10: 2025-12-31 | AC10: 7 | AE10: 13432.95745 | AG10: 8424.210904 | AI10: 21857.16836 | AK10: 2025-12-31 | AL10: 7 | AN10: 16666.66667 | AP10: 8633.643519 | AR10: 25300.31019 | AT10: 716666.6667 | AU10: 21857.16836
R11: Варіанти НВ | AB11: 2026-01-31 | AC11: 8 | AE11: 13589.56335 | AG11: 8267.605009 | AI11: 21857.16836 | AK11: 2026-01-31 | AL11: 8 | AN11: 16666.66667 | AP11: 8432.861111 | AR11: 25099.52778 | AT11: 700000 | AU11: 21857.16836
B12: Термін кредитування (міс) | E12: 48 | R12: 0 | AB12: 2026-02-28 | AC12: 9 | AE12: 13747.99501 | AG12: 8109.173349 | AI12: 21857.16836 | AK12: 2026-02-28 | AL12: 9 | AN12: 16666.66667 | AP12: 7435.425926 | AR12: 24102.09259 | AT12: 683333.3333 | AU12: 21857.16836
L13: Пенсійний фонд (грн) | N13: =Ануїтетна_графік_Авто!Y8 -> 33333.33333 | O13: =N15-N19 -> 800000 | R13: =IF(R12=0,0%,5.99%) -> 0 | AB13: 2026-03-31 | AC13: 10 | AE13: 13908.27372 | AG13: 7948.894641 | AI13: 21857.16836 | AK13: 2026-03-31 | AL13: 10 | AN13: 16666.66667 | AP13: 8031.296296 | AR13: 24697.96296 | AT13: 666666.6667 | AU13: 21857.16836
B14: Відсоткова ставка річна (%) | E14: =IF(R33=0,"",R33) -> 13.99 | R14: Сума кредиту | X14: Так | AB14: 2026-04-30 | AC14: 11 | AE14: 14070.42101 | AG14: 7786.74735 | AI14: 21857.16836 | AK14: 2026-04-30 | AL14: 11 | AN14: 16666.66667 | AP14: 7577.916667 | AR14: 24244.58333 | AT14: 650000 | AU14: 21857.16836
L15: Загальна вартість кредиту для клієнта (грн) | N15: =Ануїтетна_графік_Авто!Y2 -> 1279621.642 | Q15: без комісії за видачу | R15: =$E$4-IF($X$4=1,$F$6,IF($X$4=2,$E$4/100*$F$8,0))+$N$6 -> 851600 | X15: Ні | AB15: 2026-05-31 | AC15: 12 | AE15: 14234.45867 | AG15: 7622.709691 | AI15: 21857.16836 | AK15: 2026-05-31 | AL15: 12 | AN15: 16666.66667 | AP15: 7629.731481 | AR15: 24296.39815 | AT15: 633333.3333 | AU15: 21857.16836
B16: Суму платежу за розрахунковий період (місяць) (грн) | E16: =Ануїтетна_графік_Авто!C32 -> 21940 | Q16: вартість-аванс | R16: =$E$4-IF($X$4=1,$F$6,IF($X$4=2,$E$4/100*$F$8)) -> 800000 | AB16: 2026-06-30 | AC16: 13 | AE16: 14400.40873 | AG16: 7456.759627 | AI16: 21857.16836 | AK16: 2026-06-30 | AL16: 13 | AN16: 16666.66667 | AP16: 7189.305556 | AR16: 23855.97222 | AT16: 616666.6667 | AU16: =AI16+AW16+AX16 ->  | AW16: =IF($E$12>$R$2,$E$4*0.9*5.5%,"") -> 49500 | AX16: =IF(#REF!=0,0,IF($E$12>$R$2,(AE90-SUM(AE4:AE15))*0.0299,"")) -> 
X17: Ануїтетна | AB17: 2026-07-31 | AC17: 14 | AE17: 14568.2935 | AG17: 7288.874862 | AI17: 21857.16836 | AK17: 2026-07-31 | AL17: 14 | AN17: 16666.66667 | AP17: 7228.166667 | AR17: 23894.83333 | AT17: 600000 | AU17: 21857.16836
X18: =IF(OR(#REF!=S28,#REF!=S31),"Класична","") ->  | AB18: 2026-08-31 | AC18: 15 | AE18: 14738.13552 | AG18: 7119.032841 | AI18: 21857.16836 | AK18: 2026-08-31 | AL18: 15 | AN18: 16666.66667 | AP18: 7027.384259 | AR18: 23694.05093 | AT18: 583333.3333 | AU18: 21857.16836
B19: Реальна річна процентна ставка, відсотків річних | E19: =Ануїтетна_графік_Авто!Y10 -> 0.3215722024 | L19: Загальні витрати за кредитом (грн) | N19: =Ануїтетна_графік_Авто!Y3 -> 479621.6425 | R19: сума дод. страхування | U19: Дата | V19: =TODAY() -> 45824 | X19: 1 | Y19: 31 | AB19: 2026-09-30 | AC19: 16 | AE19: 14909.95761 | AG19: 6947.210744 | AI19: 21857.16836 | AK19: 2026-09-30 | AL19: 16 | AN19: 16666.66667 | AP19: 6606.388889 | AR19: 23273.05556 | AT19: 566666.6667 | AU19: 21857.16836
R20: =IF(#REF!="Так",ROUND((E4-F8+N6)*#REF!/100,2),IF(#REF!="Ні",ROUND((E4-F8)*#REF!/100,2),0)) ->  | U20: Число | V20: =DAY(V19) -> 16 | X20: 2 | Y20: 28 | AB20: 2026-10-31 | AC20: 17 | AE20: 15083.78287 | AG20: 6773.385488 | AI20: 21857.16836 | AK20: 2026-10-31 | AL20: 17 | AN20: 16666.66667 | AP20: 6625.819444 | AR20: 23292.48611 | AT20: 550000 | AU20: 21857.16836
U21: Місяць | V21: =MONTH(V19) -> 6 | X21: 3 | Y21: 31 | AB21: 2026-11-30 | AC21: 18 | AE21: 15259.63464 | AG21: 6597.533719 | AI21: 21857.16836 | AK21: 2026-11-30 | AL21: 18 | AN21: 16666.66667 | AP21: 6217.777778 | AR21: 22884.44444 | AT21: 533333.3333 | AU21: 21857.16836
U22: Максимальна сума кредиту | V22: 1200000 | X22: 4 | Y22: 30 | AB22: =IF(AC22="","",DATE(YEAR(AB21),MONTH(AB21)+2,DAY(1)-1)) -> 2026-12-31 | AC22: 19 | AE22: 15437.53655 | AG22: 6419.631812 | AI22: 21857.16836 | AK22: 2026-12-31 | AL22: 19 | AN22: 16666.66667 | AP22: 6224.25463 | AR22: 22890.9213 | AT22: 516666.6667 | AU22: 21857.16836
U23: %,Участь власними коштами | V23: =IF(X4=1,F6/E4*100,IF(X4=2,F8,0)) -> 20 | X23: 5 | Y23: 31 | AB23: 2027-01-31 | AC23: 20 | AE23: 15617.51249 | AG23: 6239.655865 | AI23: 21857.16836 | AK23: 2027-01-31 | AL23: 20 | AN23: 16666.66667 | AP23: 6023.472222 | AR23: 22690.13889 | AT23: 500000 | AU23: 21857.16836
Q24: =TODAY() -> 45824 | R24: Дата | S24: ПМ | AB24: 2027-02-28 | AC24: 21 | AE24: 15799.58666 | AG24: 6057.581699 | AI24: 21857.16836 | AK24: 2027-02-28 | AL24: 21 | AN24: 16666.66667 | AP24: 5259.203704 | AR24: 21925.87037 | AT24: 483333.3333 | AU24: 21857.16836
Q25: =IF(Q24<R26,S25,IF(Q24<R27,S26,S27)) -> 2270 | R25: 43831 | S25: 2102 | X25: 6 | Y25: 30 | AB25: 2027-03-31 | AC25: 22 | AE25: 15983.78351 | AG25: 5873.384851 | AI25: 21857.16836 | AK25: 2027-03-31 | AL25: 22 | AN25: 16666.66667 | AP25: 5621.907407 | AR25: 22288.57407 | AT25: 466666.6667 | AU25: 21857.16836
R26: 44013 | S26: 2197 | X26: 7 | Y26: 31 | AB26: 2027-04-30 | AC26: =AC25+1 -> 23 | AE26: 16170.12778 | AG26: 5687.040575 | AI26: 21857.16836 | AK26: 2027-04-30 | AL26: 23 | AN26: 16666.66667 | AP26: 5246.25 | AR26: 21912.91667 | AT26: 450000 | AU26: 21857.16836
R27: 44166 | S27: 2270 | X27: 8 | Y27: 31 | AB27: 2027-05-31 | AC27: =AC26+1 -> 24 | AE27: 16358.64452 | AG27: 5498.523835 | AI27: 21857.16836 | AK27: 2027-05-31 | AL27: 24 | AN27: 16666.66667 | AP27: 5220.342593 | AR27: 21887.00926 | AT27: 433333.3333 | AU27: 21857.16836
X28: 9 | Y28: 30 | AB28: 2027-06-30 | AC28: =AC27+1 -> 25 | AE28: 16549.35905 | AG28: 5307.809305 | AI28: 21857.16836 | AK28: 2027-06-30 | AL28: 25 | AN28: 16666.66667 | AP28: 4857.638889 | AR28: 21524.30556 | AT28: 416666.6667 | AU28: =AI28+AW28+AX28 ->  | AW28: =IF($E$12>$R$3,$E$4*0.9*0.9*5.5%,"") -> 44550 | AX28: =IF(#REF!=0,0,IF($E$12>$R$3,(AE90-SUM(AE4:AE27))*0.0299,"")) -> 
X29: 10 | Y29: 31 | AB29: 2027-07-31 | AC29: 26 | AE29: 16742.297 | AG29: 5114.87136 | AI29: 21857.16836 | AK29: 2027-07-31 | AL29: 26 | AN29: 16666.66667 | AP29: 4818.777778 | AR29: 21485.44444 | AT29: 400000 | AU29: 21857.16836
X30: 11 | Y30: 30 | AB30: 2027-08-31 | AC30: 27 | AE30: 16937.48428 | AG30: 4919.684081 | AI30: 21857.16836 | AK30: 2027-08-31 | AL30: 27 | AN30: 16666.66667 | AP30: 4617.99537 | AR30: 21284.66204 | AT30: 383333.3333 | AU30: 21857.16836
X31: 12 | Y31: 31 | AB31: 2027-09-30 | AC31: 28 | AE31: 17134.94712 | AG31: 4722.221244 | AI31: 21857.16836 | AK31: 2027-09-30 | AL31: 28 | AN31: 16666.66667 | AP31: 4274.722222 | AR31: 20941.38889 | AT31: 366666.6667 | AU31: 21857.16836
Q32: так | R32: Ставка | S32: Комісія | T32: Каско | U32: Витрати оцінювача | AB32: 2027-10-31 | AC32: 29 | AE32: 17334.71204 | AG32: 4522.456318 | AI32: 21857.16836 | AK32: 2027-10-31 | AL32: 29 | AN32: 16666.66667 | AP32: 4216.430556 | AR32: 20883.09722 | AT32: 350000 | AU32: 21857.16836
Q33: ні | R33: =Калькулятор!N6 -> 13.99 | S33: =Калькулятор!G9 -> 0.0099 | T33: 0.0712 | U33: 750 | AB33: 2027-11-30 | AC33: 30 | AE33: 17536.80589 | AG33: 4320.362467 | AI33: 21857.16836 | AK33: 2027-11-30 | AL33: 30 | AN33: 16666.66667 | AP33: 3886.111111 | AR33: 20552.77778 | AT33: 333333.3333 | AU33: 21857.16836
AB34: 2027-12-31 | AC34: 31 | AE34: 17741.25582 | AG34: 4115.912539 | AI34: 21857.16836 | AK34: 2027-12-31 | AL34: 31 | AN34: 16666.66667 | AP34: 3814.865741 | AR34: 20481.53241 | AT34: 316666.6667 | AU34: 21857.16836
AB35: 2028-01-31 | AC35: 32 | AE35: 17948.08929 | AG35: 3909.079064 | AI35: 21857.16836 | AK35: 2028-01-31 | AL35: 32 | AN35: 16666.66667 | AP35: 3614.083333 | AR35: 20280.75 | AT35: 300000 | AU35: 21857.16836
AB36: 2028-02-29 | AC36: 33 | AE36: 18157.3341 | AG36: 3699.834257 | AI36: 21857.16836 | AK36: 2028-02-29 | AL36: 33 | AN36: 16666.66667 | AP36: 3193.087963 | AR36: 19859.75463 | AT36: 283333.3333 | AU36: 21857.16836
AB37: 2028-03-31 | AC37: 34 | AE37: 18369.01836 | AG37: 3488.150003 | AI37: 21857.16836 | AK37: 2028-03-31 | AL37: 34 | AN37: 16666.66667 | AP37: 3212.518519 | AR37: 19879.18519 | AT37: 266666.6667 | AU37: 21857.16836
AB38: 2028-04-30 | AC38: 35 | AE38: 18583.17049 | AG38: 3273.997864 | AI38: 21857.16836 | AK38: 2028-04-30 | AL38: 35 | AN38: 16666.66667 | AP38: 2914.583333 | AR38: 19581.25 | AT38: 250000 | AU38: 21857.16836
AB39: 2028-05-31 | AC39: 36 | AE39: 18799.81929 | AG39: 3057.349068 | AI39: 21857.16836 | AK39: 2028-05-31 | AL39: 36 | AN39: 16666.66667 | AP39: 2810.953704 | AR39: 19477.62037 | AT39: 233333.3333 | AU39: 21857.16836
K40: Нотаріальні послуги: | AB40: 2028-06-30 | AC40: 37 | AE40: 19018.99385 | AG40: 2838.174508 | AI40: 21857.16836 | AK40: 2028-06-30 | AL40: 37 | AN40: 16666.66667 | AP40: 2525.972222 | AR40: 19192.63889 | AT40: 216666.6667 | AU40: =AI40+AW40+AX40 ->  | AW40: =IF($E$12>$R$4,$E$4*0.9*0.9*0.9*5.5%,"") -> 40095 | AX40: =IF(#REF!=0,0,IF($E$12>$R$4,(AE90-SUM(AE4:AE39))*0.0299,"")) -> 
AB41: 2028-07-31 | AC41: 38 | AE41: 19240.72362 | AG41: 2616.444739 | AI41: 21857.16836 | AK41: 2028-07-31 | AL41: 38 | AN41: 16666.66667 | AP41: 2409.388889 | AR41: 19076.05556 | AT41: 200000 | AU41: 21857.16836
AB42: 2028-08-31 | AC42: 39 | AE42: 19465.03839 | AG42: 2392.129969 | AI42: 21857.16836 | AK42: 2028-08-31 | AL42: 39 | AN42: 16666.66667 | AP42: 2208.606481 | AR42: 18875.27315 | AT42: 183333.3333 | AU42: 21857.16836
AB43: =IF(AC43="","",DATE(YEAR(AB42),MONTH(AB42)+2,DAY(1)-1)) -> 2028-09-30 | AC43: =AC42+1 -> 40 | AE43: 19691.9683 | AG43: 2165.200063 | AI43: 21857.16836 | AK43: 2028-09-30 | AL43: 40 | AN43: 16666.66667 | AP43: 1943.055556 | AR43: 18609.72222 | AT43: 166666.6667 | AU43: 21857.16836
AB44: 2028-10-31 | AC44: 41 | AE44: 19921.54383 | AG44: 1935.624533 | AI44: 21857.16836 | AK44: 2028-10-31 | AL44: 41 | AN44: 16666.66667 | AP44: 1807.041667 | AR44: 18473.70833 | AT44: 150000 | AU44: 21857.16836
AB45: 2028-11-30 | AC45: 42 | AE45: 20153.79582 | AG45: 1703.372534 | AI45: 21857.16836 | AK45: 2028-11-30 | AL45: 42 | AN45: 16666.66667 | AP45: 1554.444444 | AR45: 18221.11111 | AT45: 133333.3333 | AU45: 21857.16836
AB46: 2028-12-31 | AC46: 43 | AE46: 20388.75549 | AG46: 1468.412865 | AI46: 21857.16836 | AK46: 2028-12-31 | AL46: 43 | AN46: 16666.66667 | AP46: 1405.476852 | AR46: 18072.14352 | AT46: 116666.6667 | AU46: 21857.16836
AB47: 2029-01-31 | AC47: 44 | AE47: 20626.4544 | AG47: 1230.713957 | AI47: 21857.16836 | AK47: 2029-01-31 | AL47: 44 | AN47: 16666.66667 | AP47: 1204.694444 | AR47: 17871.36111 | AT47: 100000 | AU47: 21857.16836
AB48: 2029-02-28 | AC48: 45 | AE48: 20866.92448 | AG48: 990.2438759 | AI48: 21857.16836 | AK48: 2029-02-28 | AL48: 45 | AN48: 16666.66667 | AP48: 906.7592593 | AR48: 17573.42593 | AT48: 83333.33333 | AU48: 21857.16836
AB49: 2029-03-31 | AC49: 46 | AE49: 21110.19804 | AG49: 746.9703147 | AI49: 21857.16836 | AK49: 2029-03-31 | AL49: 46 | AN49: 16666.66667 | AP49: 803.1296296 | AR49: 17469.7963 | AT49: 66666.66667 | AU49: 21857.16836
AB50: 2029-04-30 | AC50: 47 | AE50: 21356.30777 | AG50: 500.8605891 | AI50: 21857.16836 | AK50: 2029-04-30 | AL50: 47 | AN50: 16666.66667 | AP50: 582.9166667 | AR50: 17249.58333 | AT50: 50000 | AU50: 21857.16836
K51: ВСЬОГО ВИТРАТ | AB51: 2029-05-31 | AC51: 48 | AE51: 21605.28672 | AG51: 251.8816344 | AI51: 21857.16836 | AK51: 2029-05-31 | AL51: 48 | AN51: 16666.66667 | AP51: 401.5648148 | AR51: 17068.23148 | AT51: 33333.33333 | AU51: 21857.16836
AB52: 2029-06-30 | AC52: 49 | AK52: 2029-06-30 | AL52: 49 | AN52: 16666.66667 | AP52: 194.3055556 | AR52: 16860.97222 | AT52: 16666.66667 | AU52: =AI52+AW52+AX52 ->  | AW52: =IF($E$12>$R$5,$E$4*0.9*0.9*0.9*0.9*5.5%,"") ->  | AX52: =IF(#REF!=0,0,IF($E$12>$R$5,(AE90-SUM(AE4:AE51))*0.0299,"")) -> 
AB53: 2029-07-31 | AC53: 50 | AK53: 2029-07-31 | AL53: 50 | AN53: 16666.66667 | AP53: 4.294999801e-12 | AR53: 16666.66667 | AT53: 3.565219231e-10
AB54: 2029-08-31 | AC54: 51 | AK54: 2029-08-31 | AL54: 51 | AN54: 16666.66667 | AP54: -200.7824074 | AR54: 16465.88426 | AT54: -16666.66667
AB55: 2029-09-30 | AC55: 52 | AK55: 2029-09-30 | AL55: 52 | AN55: 16666.66667 | AP55: -388.6111111 | AR55: 16278.05556 | AT55: -33333.33333
AB56: 2029-10-31 | AC56: 53 | AK56: 2029-10-31 | AL56: 53 | AN56: 16666.66667 | AP56: -602.3472222 | AR56: 16064.31944 | AT56: -50000
AB57: 2029-11-30 | AC57: 54 | AK57: 2029-11-30 | AL57: 54 | AN57: 16666.66667 | AP57: -777.2222222 | AR57: 15889.44444 | AT57: -66666.66667
AB58: 2029-12-31 | AC58: 55 | AK58: 2029-12-31 | AL58: 55 | AN58: 16666.66667 | AP58: -1003.912037 | AR58: 15662.75463 | AT58: -83333.33333
AB59: 2030-01-31 | AC59: 56 | AK59: 2030-01-31 | AL59: 56 | AN59: 16666.66667 | AP59: -1204.694444 | AR59: 15461.97222 | AT59: -100000
AB60: 2030-02-28 | AC60: 57 | AK60: 2030-02-28 | AL60: 57 | AN60: 16666.66667 | AP60: -1269.462963 | AR60: 15397.2037 | AT60: -116666.6667
AB61: 2030-03-31 | AC61: 58 | AK61: 2030-03-31 | AL61: 58 | AN61: 16666.66667 | AP61: -1606.259259 | AR61: 15060.40741 | AT61: -133333.3333
AB62: 2030-04-30 | AC62: 59 | AK62: 2030-04-30 | AL62: 59 | AN62: 16666.66667 | AP62: -1748.75 | AR62: 14917.91667 | AT62: -150000
AB63: 2030-05-31 | AC63: 60 | AK63: 2030-05-31 | AL63: 60 | AN63: 16666.66667 | AP63: -2007.824074 | AR63: 14658.84259 | AT63: -166666.6667
AB64: 2030-06-30 | AC64: 61 | AK64: 2030-06-30 | AL64: 61 | AN64: 16666.66667 | AP64: -2137.361111 | AR64: 14529.30556 | AT64: -183333.3333 | AU64: =AI64+AW64+AX64 ->  | AW64: =IF($E$12>$R$6,$E$4*0.9*0.9*0.9*0.9*0.9*5.5%,"") ->  | AX64: =IF(#REF!=0,0,IF($E$12>$R$6,(AE90-SUM(AE4:AE63))*0.0299,"")) -> 
AB65: 2030-07-31 | AC65: 62 | AK65: 2030-07-31 | AL65: 62 | AN65: 16666.66667 | AP65: -2409.388889 | AR65: 14257.27778 | AT65: -200000
AB66: 2030-08-31 | AC66: 63 | AK66: 2030-08-31 | AL66: 63 | AN66: 16666.66667 | AP66: -2610.171296 | AR66: 14056.49537 | AT66: -216666.6667
AB67: 2030-09-30 | AC67: 64 | AK67: 2030-09-30 | AL67: 64 | AN67: 16666.66667 | AP67: -2720.277778 | AR67: 13946.38889 | AT67: -233333.3333
AB68: 2030-10-31 | AC68: 65 | AK68: 2030-10-31 | AL68: 65 | AN68: 16666.66667 | AP68: -3011.736111 | AR68: 13654.93056 | AT68: -250000
AB69: =IF(AC69="","",DATE(YEAR(AB68),MONTH(AB68)+2,DAY(1)-1)) -> 2030-11-30 | AC69: 66 | AE69: =IF($AE$4=0,PPMT($E$14/1200,AC68,$E$12,-$N$2),PPMT($E$14/1200,AC69,$E$12,-$N$2)) ->  | AG69: =IF($AE$4=0,IPMT($E$14/1200,AC68,$E$12,-$N$2),IPMT($E$14/1200,AC69,$E$12,-$N$2)) ->  | AK69: =IF(AL69="","",DATE(YEAR(AK68),MONTH(AK68)+2,DAY(1)-1)) -> 2030-11-30 | AL69: 66 | AN69: =$N$2/$E$12 -> 16666.66667 | AP69: =AT69*$E$14/100*(AK69-AK68)/360 -> -3108.888889 | AR69: =AN69+AP69 -> 13557.77778 | AT69: -266666.6667 | AU69: =AI69 -> 
AB70: 2030-12-31 | AC70: 67 | AI70: =AG70+AE70 ->  | AK70: 2030-12-31 | AL70: 67 | AN70: 16666.66667 | AP70: -3413.300926 | AR70: 13253.36574 | AT70: =AT69-AN69 -> -283333.3333
AB71: 2031-01-31 | AC71: 68 | AK71: 2031-01-31 | AL71: 68 | AN71: 16666.66667 | AP71: -3614.083333 | AR71: 13052.58333 | AT71: -300000
AB72: 2031-02-28 | AC72: 69 | AK72: 2031-02-28 | AL72: 69 | AN72: 16666.66667 | AP72: -3445.685185 | AR72: 13220.98148 | AT72: -316666.6667
AB73: 2031-03-31 | AC73: 70 | AK73: 2031-03-31 | AL73: 70 | AN73: 16666.66667 | AP73: -4015.648148 | AR73: 12651.01852 | AT73: -333333.3333
AB74: 2031-04-30 | AC74: 71 | AK74: 2031-04-30 | AL74: 71 | AN74: 16666.66667 | AP74: -4080.416667 | AR74: 12586.25 | AT74: -350000
AB75: 2031-05-31 | AC75: 72 | AK75: 2031-05-31 | AL75: 72 | AN75: 16666.66667 | AP75: -4417.212963 | AR75: 12249.4537 | AT75: -366666.6667
AB76: 2031-06-30 | AC76: 73 | AK76: 2031-06-30 | AL76: 73 | AN76: 16666.66667 | AP76: -4469.027778 | AR76: 12197.63889 | AT76: -383333.3333 | AU76: =AI76+AW76+AX76 ->  | AW76: =IF($E$12>$R$7,$E$4*0.9*0.9*0.9*0.9*0.9*0.9*5.5%,"") ->  | AX76: =IF(#REF!=0,0,IF($E$12>$R$7,(AE90-SUM(AE4:AE75))*0.0299,"")) -> 
AB77: 2031-07-31 | AC77: 74 | AK77: 2031-07-31 | AL77: 74 | AN77: 16666.66667 | AP77: -4818.777778 | AR77: 11847.88889 | AT77: -400000
AB78: 2031-08-31 | AC78: 75 | AK78: 2031-08-31 | AL78: 75 | AN78: 16666.66667 | AP78: -5019.560185 | AR78: 11647.10648 | AT78: -416666.6667
AB79: 2031-09-30 | AC79: =AC78+1 -> 76 | AK79: 2031-09-30 | AL79: 76 | AN79: 16666.66667 | AP79: -5051.944444 | AR79: 11614.72222 | AT79: -433333.3333
AB80: 2031-10-31 | AC80: =AC79+1 -> 77 | AK80: 2031-10-31 | AL80: 77 | AN80: 16666.66667 | AP80: -5421.125 | AR80: 11245.54167 | AT80: -450000
AB81: 2031-11-30 | AC81: 78 | AK81: 2031-11-30 | AL81: 78 | AN81: 16666.66667 | AP81: -5440.555556 | AR81: 11226.11111 | AT81: -466666.6667
AB82: 2031-12-31 | AC82: 79 | AK82: 2031-12-31 | AL82: 79 | AN82: 16666.66667 | AP82: -5822.689815 | AR82: 10843.97685 | AT82: -483333.3333
AB83: 2032-01-31 | AC83: 80 | AK83: 2032-01-31 | AL83: 80 | AN83: 16666.66667 | AP83: -6023.472222 | AR83: 10643.19444 | AT83: -500000
AB84: 2032-02-29 | AC84: 81 | AK84: 2032-02-29 | AL84: 81 | AN84: 16666.66667 | AP84: -5822.689815 | AR84: 10843.97685 | AT84: -516666.6667
AB85: 2032-03-31 | AC85: 82 | AK85: 2032-03-31 | AL85: 82 | AN85: 16666.66667 | AP85: -6425.037037 | AR85: 10241.62963 | AT85: -533333.3333
AB86: 2032-04-30 | AC86: 83 | AK86: 2032-04-30 | AL86: 83 | AN86: 16666.66667 | AP86: -6412.083333 | AR86: 10254.58333 | AT86: -550000
AB87: 2032-05-31 | AC87: =AC86+1 -> 84 | AK87: 2032-05-31 | AL87: 84 | AN87: 16666.66667 | AP87: -6826.601852 | AR87: 9840.064815 | AT87: -566666.6667
AB88: 2032-06-30 | AC88: 85 | AK88: 2032-06-30 | AL88: 85 | AN88: 16666.66667 | AP88: -6800.694444 | AR88: 9865.972222 | AT88: -583333.3333
AB89: 2032-07-31 | AC89: =AC88+1 -> 86 | AI89: =AG89+AE89 ->  | AK89: 2032-07-31 | AL89: 86 | AN89: 16666.66667 | AP89: -7228.166667 | AR89: 9438.5 | AT89: -600000
AB90: 2032-08-31 | AC90: Всього | AE90: =IF($E$12=$R$2,SUM(AE4:AF15),IF($E$12=$R$3,SUM(AE4:AF27),IF($E$12=$R$4,SUM(AE4:AF39),IF($E$12=$R$5,SUM(AE4:AF51),IF($E$12=$R$6,SUM(AE4:AF63),IF($E$12=$R$7,SUM(AE4:AF75),IF($E$12=$R$8,SUM(AE4:AF87)))))))) -> 800000 | AG90: =IF($E$12=$R$2,SUM(AG4:AH15),IF($E$12=$R$3,SUM(AG4:AH27),IF($E$12=$R$4,SUM(AG4:AH39),IF($E$12=$R$5,SUM(AG4:AH51),IF($E$12=$R$6,SUM(AG4:AH63),IF($E$12=$R$7,SUM(AG4:AH75),IF($E$12=$R$8,SUM(AG4:AH87)))))))) -> 249144.0812 | AI90: =IF($E$12=$R$2,SUM(AI4:AJ15),IF($E$12=$R$3,SUM(AI4:AJ27),IF($E$12=$R$4,SUM(AI4:AJ39),IF($E$12=$R$5,SUM(AI4:AJ51),IF($E$12=$R$6,SUM(AI4:AJ63),IF($E$12=$R$7,SUM(AI4:AJ75),IF($E$12=$R$8,SUM(AI4:AJ87)))))))) -> 1049144.081 | AL90: Всього | AN90: =SUM(AN4:AN89) -> 1416666.667 | AP90: =SUM(AP4:AQ88) -> 112522.3472 | AR90: =SUM(AR4:AS89) -> 1521960.847 | AU90: 1049144.081

Sheet Калькулятор (hidden)
Q1: Термін | AB1: Ануїтет | AK1: Класика
B2: Кредитний продукт | G2: Автостарт NEW | I2: Схема погашення | N2: Ануїтетна | Q2: 12 | AB2: ГРАФІК ПОГАШЕННЯ КРЕДИТУ | AK2: ГРАФІК ПОГАШЕННЯ КРЕДИТУ
Q3: 24 | AA3: Місяць | AB3: № платежу | AD3: Розмір щомісячних внесків з повернення кредиту, грн. | AE3: Щомісячна плата за кредитне обслуговування, грн. | AF3: Розмір щомісячних процентних внесків, грн. | AH3: Загальна сума внесків до повернення в місяць, грн. | AJ3: Місяць | AK3: № платежу | AM3: Розмір щомісячних внесків з повернення кредиту, грн. | AN3: Щомісячна плата за кредитне обслуговування, грн. | AO3: Розмір щомісячних процентних внесків, грн. | AQ3: Загальна сума внесків до повернення в місяць, грн. | AS3: Залишок заборгованості
B4: Вартість автомобіля (грн) | G4: ='Калькулятор '!E4 -> 1000000 | I4: Чи достатня вартість авансового платежу? | N4: =IF($G$4>0,$P$40,"Ні") ->  | Q4: 36 | S4: =IF($G$6=0,1,IF($G$4*$G$6=$G$7,2,3)) -> 3 | T4: =IF(G2="Сума авансового платежу перевищує вартість авто",1,IF(G2="Сума авансового платежу дорівнює вартості авто",1,IF(G2="Сума авансового платежу недостатня",1,0))) -> 0 | AA4: =Ануїтетна_графік_Авто!G5 -> 45854 | AB4: 1 | AD4: =Ануїтетна_графік_Авто!J5 -> 12613.33333 | AF4: =Ануїтетна_графік_Авто!K5 -> 9326.666667 | AH4: =Ануїтетна_графік_Авто!M5 -> 21940 | AJ4: =Ануїтетна_графік_Авто!G5 -> 45854 | AK4: 1 | AM4: =Ануїтетна_графік_Авто!J5 -> 12613.33333 | AO4: =Ануїтетна_графік_Авто!K5 -> 9326.666667 | AQ4: =Ануїтетна_графік_Авто!M5 -> 21940
Q5: 48 | AA5: =Ануїтетна_графік_Авто!G6 -> 45885 | AB5: 2 | AD5: =Ануїтетна_графік_Авто!J6 -> 12454.39657 | AF5: =Ануїтетна_графік_Авто!K6 -> 9485.60343 | AH5: =Ануїтетна_графік_Авто!M6 -> 21940 | AJ5: =IF(AK5="","",DATE(YEAR(AJ4),MONTH(AJ4)+2,DAY(1)-1)) -> 45900 | AK5: 2 | AM5: =Ануїтетна_графік_Авто!J6 -> 12454.39657 | AO5: =Ануїтетна_графік_Авто!K6 -> 9485.60343 | AQ5: =Ануїтетна_графік_Авто!M6 -> 21940 | AS5: =$G$19-AM4 -> 687386.6667
B6: Аванс (вказується в грн. "10000" або % "20%") | G6: 300000 | I6: Відсоткова ставка річна (%) | N6: =Q40 -> 13.99 | Q6: 60 | AA6: =Ануїтетна_графік_Авто!G7 -> 45916 | AB6: 3 | AD6: =Ануїтетна_графік_Авто!J7 -> 12604.43399 | AF6: =Ануїтетна_графік_Авто!K7 -> 9335.566006 | AH6: =Ануїтетна_графік_Авто!M7 -> 21940 | AJ6: 45930 | AK6: 3 | AM6: =Ануїтетна_графік_Авто!J7 -> 12604.43399 | AO6: =Ануїтетна_графік_Авто!K7 -> 9335.566006 | AQ6: =Ануїтетна_графік_Авто!M7 -> 21940 | AS6: =AS5-AM5 -> 674932.2701
B7: Відображення авансу (сума або % ) | G7: =IF(G6="","",IF(G6<100,G4*G6,G6/G4)) -> 0.3 | AA7: =Ануїтетна_графік_Авто!G8 -> 45946 | AB7: 4 | AD7: =Ануїтетна_графік_Авто!J8 -> 13052.52798 | AF7: =Ануїтетна_графік_Авто!K8 -> 8887.472023 | AH7: =Ануїтетна_графік_Авто!M8 -> 21940 | AJ7: 45961 | AK7: 4 | AM7: =Ануїтетна_графік_Авто!J8 -> 13052.52798 | AO7: =Ануїтетна_графік_Авто!K8 -> 8887.472023 | AQ7: =Ануїтетна_графік_Авто!M8 -> 21940 | AS7: 662327.8361
I8: Термін кредитування (міс) | N8: ='Калькулятор '!E12 -> 48 | AA8: =Ануїтетна_графік_Авто!G9 -> 45977 | AB8: 5 | AD8: =Ануїтетна_графік_Авто!J9 -> 12913.52199 | AF8: =Ануїтетна_графік_Авто!K9 -> 9026.478011 | AH8: =Ануїтетна_графік_Авто!M9 -> 21940 | AJ8: 45991 | AK8: 5 | AM8: =Ануїтетна_графік_Авто!J9 -> 12913.52199 | AO8: =Ануїтетна_графік_Авто!K9 -> 9026.478011 | AQ8: =Ануїтетна_графік_Авто!M9 -> 21940 | AS8: 649275.3081
B9: Комісія за видачу кредиту (%) | G9: 0.0099 | AA9: =Ануїтетна_графік_Авто!G10 -> 46007 | AB9: 6 | AD9: =Ануїтетна_графік_Авто!J10 -> 13355.24884 | AF9: =Ануїтетна_графік_Авто!K10 -> 8584.751157 | AH9: =Ануїтетна_графік_Авто!M10 -> 21940 | AJ9: 46022 | AK9: 6 | AM9: =Ануїтетна_графік_Авто!J10 -> 13355.24884 | AO9: =Ануїтетна_графік_Авто!K10 -> 8584.751157 | AQ9: =Ануїтетна_графік_Авто!M10 -> 21940 | AS9: 636361.7861
G10: =IF(Q15="",0,ROUND(Q15*G9,2)) -> 6930 | AA10: =Ануїтетна_графік_Авто!G11 -> 46038 | AB10: 7 | AD10: =Ануїтетна_графік_Авто!J11 -> 13229.98041 | AF10: =Ануїтетна_графік_Авто!K11 -> 8710.019588 | AH10: =Ануїтетна_графік_Авто!M11 -> 21940 | AJ10: 46053 | AK10: 7 | AM10: =Ануїтетна_графік_Авто!J11 -> 13229.98041 | AO10: =Ануїтетна_графік_Авто!K11 -> 8710.019588 | AQ10: =Ануїтетна_графік_Авто!M11 -> 21940 | AS10: 623006.5373
Q11: Варіанти НВ | AA11: =Ануїтетна_графік_Авто!G12 -> 46069 | AB11: 8 | AD11: =Ануїтетна_графік_Авто!J12 -> 13389.36125 | AF11: =Ануїтетна_графік_Авто!K12 -> 8550.638749 | AH11: =Ануїтетна_графік_Авто!M12 -> 21940 | AJ11: 46081 | AK11: 8 | AM11: =Ануїтетна_графік_Авто!J12 -> 13389.36125 | AO11: =Ануїтетна_графік_Авто!K12 -> 8550.638749 | AQ11: =Ануїтетна_графік_Авто!M12 -> 21940 | AS11: 609776.5569
B12: Страхування НВ (%) | H12: 0 | I12: Страхування НВ (грн) | N12: =ROUND(Q16*G12,2)+(G12*IF(G16="Так",N15,0)) -> 0 | Q12: =IF(OR(Q2=N8,Q3=N8),2.99%,0%) -> 0 | AA12: =Ануїтетна_графік_Авто!G13 -> 46097 | AB12: 9 | AD12: =Ануїтетна_графік_Авто!J13 -> 14362.53355 | AF12: =Ануїтетна_графік_Авто!K13 -> 7577.466452 | AH12: =Ануїтетна_графік_Авто!M13 -> 21940 | AJ12: 46112 | AK12: 9 | AM12: =Ануїтетна_графік_Авто!J13 -> 14362.53355 | AO12: =Ануїтетна_графік_Авто!K13 -> 7577.466452 | AQ12: =Ануїтетна_графік_Авто!M13 -> 21940 | AS12: 596387.1956
B13: Чи додати страхування НВ до суми кредиту? | Q13: =IF(Q12=0,0%,5.99%) -> 0 | AA13: =Ануїтетна_графік_Авто!G14 -> 46128 | AB13: 10 | AD13: =Ануїтетна_графік_Авто!J14 -> 13723.68679 | AF13: =Ануїтетна_графік_Авто!K14 -> 8216.313214 | AH13: =Ануїтетна_графік_Авто!M14 -> 21940 | AJ13: 46142 | AK13: 10 | AM13: =Ануїтетна_графік_Авто!J14 -> 13723.68679 | AO13: =Ануїтетна_графік_Авто!K14 -> 8216.313214 | AQ13: =Ануїтетна_графік_Авто!M14 -> 21940 | AS13: 582024.6621
Q14: Сума кредиту | W14: Так | AA14: =Ануїтетна_графік_Авто!G15 -> 46158 | AB14: 11 | AD14: =Ануїтетна_графік_Авто!J15 -> 14148.72446 | AF14: =Ануїтетна_графік_Авто!K15 -> 7791.275537 | AH14: =Ануїтетна_графік_Авто!M15 -> 21940 | AJ14: 46173 | AK14: 11 | AM14: =Ануїтетна_графік_Авто!J15 -> 14148.72446 | AO14: =Ануїтетна_графік_Авто!K15 -> 7791.275537 | AQ14: =Ануїтетна_графік_Авто!M15 -> 21940 | AS14: 568300.9753
B15: Страхування КАСКО (%) | G15: 0.0516 | I15: Страхування КАСКО (грн) | N15: =ROUND(G4*G15,2) -> 51600 | P15: без комісії за видачу | Q15: =$G$4-IF($S$4=1,0,IF($S$4=3,$G$6,IF($S$4=2,$G$4*$G$6)))+IF($G$13="Так",$N$12,0)+IF($G$16="Так",$N$15,0) -> 700000 | W15: Ні | AA15: =Ануїтетна_графік_Авто!G16 -> 46189 | AB15: 12 | AD15: =Ануїтетна_графік_Авто!J16 -> 14059.46418 | AF15: =Ануїтетна_графік_Авто!K16 -> 7880.535824 | AH15: =Ануїтетна_графік_Авто!M16 -> 21940 | AJ15: 46203 | AK15: 12 | AM15: =Ануїтетна_графік_Авто!J16 -> 14059.46418 | AO15: =Ануїтетна_графік_Авто!K16 -> 7880.535824 | AQ15: =Ануїтетна_графік_Авто!M16 -> 21940 | AS15: 554152.2508
P16: вартість-аванс | Q16: =$G$4-IF($S$4=3,$G$6,IF($S$4=2,$G$4*$G$6)) -> 700000 | AA16: =Ануїтетна_графік_Авто!G17 -> 46219 | AB16: 13 | AD16: =Ануїтетна_графік_Авто!J17 -> 14477.58493 | AF16: =Ануїтетна_графік_Авто!K17 -> 7462.415071 | AH16: =Ануїтетна_графік_Авто!M17 -> 21940 | AJ16: 46234 | AK16: 13 | AM16: =Ануїтетна_графік_Авто!J17 -> 14477.58493 | AO16: =Ануїтетна_графік_Авто!K17 -> 7462.415071 | AQ16: =Ануїтетна_графік_Авто!M17 -> 21940 | AS16: 540092.7867
W17: Ануїтетна | AA17: =Ануїтетна_графік_Авто!G18 -> 46250 | AB17: 14 | AD17: =Ануїтетна_графік_Авто!J18 -> 14403.24842 | AF17: =Ануїтетна_графік_Авто!K18 -> 7536.751579 | AH17: =Ануїтетна_графік_Авто!M18 -> 21940 | AJ17: 46265 | AK17: 14 | AM17: =Ануїтетна_графік_Авто!J18 -> 14403.24842 | AO17: =Ануїтетна_графік_Авто!K18 -> 7536.751579 | AQ17: =Ануїтетна_графік_Авто!M18 -> 21940 | AS17: 525615.2017
W18: =IF(OR(G2=R28,G2=R31),"Класична","") ->  | AA18: =Ануїтетна_графік_Авто!G19 -> 46281 | AB18: 15 | AD18: =Ануїтетна_графік_Авто!J19 -> 14576.76355 | AF18: =Ануїтетна_графік_Авто!K19 -> 7363.236445 | AH18: =Ануїтетна_графік_Авто!M19 -> 21940 | AJ18: 46295 | AK18: 15 | AM18: =Ануїтетна_графік_Авто!J19 -> 14576.76355 | AO18: =Ануїтетна_графік_Авто!K19 -> 7363.236445 | AQ18: =Ануїтетна_графік_Авто!M19 -> 21940 | AS18: 511211.9533
B19: Сума кредиту | G19: =G4-IF(S4=1,0,IF(S4=2,G4*G6,IF(S4=3,G6)))+IF(N10="Так",G10,0) -> 700000 | Q19: сума дод. страхування | T19: Дата | U19: =TODAY() -> 45824 | W19: 1 | X19: 31 | AA19: =Ануїтетна_графік_Авто!G20 -> 46311 | AB19: 16 | AD19: =Ануїтетна_графік_Авто!J20 -> 14984.22808 | AF19: =Ануїтетна_графік_Авто!K20 -> 6955.771921 | AH19: =Ануїтетна_графік_Авто!M20 -> 21940 | AJ19: 46326 | AK19: 16 | AM19: =Ануїтетна_графік_Авто!J20 -> 14984.22808 | AO19: =Ануїтетна_графік_Авто!K20 -> 6955.771921 | AQ19: =Ануїтетна_графік_Авто!M20 -> 21940 | AS19: 496635.1898
Q20: =IF($G$13="Так",ROUND((G4-G6+N15)*G12/100,2),IF($G$16="Ні",ROUND((G4-G6)*G12/100,2),0)) -> 0 | T20: Число | U20: =DAY(U19) -> 16 | W20: 2 | X20: 28 | AA20: =Ануїтетна_графік_Авто!G21 -> 46342 | AB20: 17 | AD20: =Ануїтетна_графік_Авто!J21 -> 14932.88318 | AF20: =Ануїтетна_графік_Авто!K21 -> 7007.116821 | AH20: =Ануїтетна_графік_Авто!M21 -> 21940 | AJ20: 46356 | AK20: 17 | AM20: =Ануїтетна_графік_Авто!J21 -> 14932.88318 | AO20: =Ануїтетна_графік_Авто!K21 -> 7007.116821 | AQ20: =Ануїтетна_графік_Авто!M21 -> 21940 | AS20: 481650.9617
B21: *Дана сума є орієнтовною і може відрізнятися від суми щомісячного платежу в кредитному договорі. | T21: Місяць | U21: =MONTH(U19) -> 6 | W21: 3 | X21: 31 | AA21: =Ануїтетна_графік_Авто!G22 -> 46372 | AB21: 18 | AD21: =Ануїтетна_графік_Авто!J22 -> 15333.01173 | AF21: =Ануїтетна_графік_Авто!K22 -> 6606.988265 | AH21: =Ануїтетна_графік_Авто!M22 -> 21940 | AJ21: 46387 | AK21: 18 | AM21: =Ануїтетна_графік_Авто!J22 -> 15333.01173 | AO21: =Ануїтетна_графік_Авто!K22 -> 6606.988265 | AQ21: =Ануїтетна_графік_Авто!M22 -> 21940 | AS21: 466718.0785
B22: ГРАФІК ПОГАШЕННЯ КРЕДИТУ | T22: Максимальна сума кредиту | U22: 1200000 | W22: 4 | X22: 30 | AA22: =Ануїтетна_графік_Авто!G23 -> 46403 | AB22: 19 | AD22: =Ануїтетна_графік_Авто!J23 -> 15297.49473 | AF22: =Ануїтетна_графік_Авто!K23 -> 6642.505267 | AH22: =Ануїтетна_графік_Авто!M23 -> 21940 | AJ22: 46418 | AK22: 19 | AM22: =Ануїтетна_графік_Авто!J23 -> 15297.49473 | AO22: =Ануїтетна_графік_Авто!K23 -> 6642.505267 | AQ22: =Ануїтетна_графік_Авто!M23 -> 21940 | AS22: 451385.0668
B23: Місяць | D23: Розмір щомісячних внесків з повернення кредиту, грн. | E23: Щомісячна плата за кредитне обслуговування, грн. | F23: Розмір щомісячних процентних внесків, грн. | H23: Загальна сума внесків до повернення в місяць, грн.* | T23: %,Участь власними коштами | U23: ='Калькулятор '!V23 -> 20 | W23: 5 | X23: 31 | AA23: =Ануїтетна_графік_Авто!G24 -> 46434 | AB23: 20 | AD23: =Ануїтетна_графік_Авто!J24 -> 15481.7828 | AF23: =Ануїтетна_графік_Авто!K24 -> 6458.217198 | AH23: =Ануїтетна_графік_Авто!M24 -> 21940 | AJ23: 46446 | AK23: 20 | AM23: =Ануїтетна_графік_Авто!J24 -> 15481.7828 | AO23: =Ануїтетна_графік_Авто!K24 -> 6458.217198 | AQ23: =Ануїтетна_графік_Авто!M24 -> 21940 | AS23: 436087.572
P24: =TODAY() -> 45824 | Q24: Дата | R24: ПМ | AA24: =Ануїтетна_графік_Авто!G25 -> 46462 | AB24: 21 | AD24: =Ануїтетна_графік_Авто!J25 -> 16275.23056 | AF24: =Ануїтетна_графік_Авто!K25 -> 5664.769438 | AH24: =Ануїтетна_графік_Авто!M25 -> 21940 | AJ24: 46477 | AK24: 21 | AM24: =Ануїтетна_графік_Авто!J25 -> 16275.23056 | AO24: =Ануїтетна_графік_Авто!K25 -> 5664.769438 | AQ24: =Ануїтетна_графік_Авто!M25 -> 21940 | AS24: 420605.7892
B25: 1 | D25: 15820.91667 | F25: 7830.083333 | H25: 23651 | K25: Авансовий внесок за авто: | N25: =IF($S$4=3,$G$6,IF($S$4=2,$G$4*$G$6,IF($S$4=1,0))) -> 300000 | P25: =IF(P24<Q26,R25,IF(P24<Q27,R26,R27)) -> 2589 | Q25: 44562 | R25: 2589 | W25: 6 | X25: 30 | AA25: =Ануїтетна_графік_Авто!G26 -> 46493 | AB25: 22 | AD25: =Ануїтетна_графік_Авто!J26 -> 15864.35778 | AF25: =Ануїтетна_графік_Авто!K26 -> 6075.642222 | AH25: =Ануїтетна_графік_Авто!M26 -> 21940 | AJ25: 46507 | AK25: 22 | AM25: =Ануїтетна_графік_Авто!J26 -> 15864.35778 | AO25: =Ануїтетна_графік_Авто!K26 -> 6075.642222 | AQ25: =Ануїтетна_графік_Авто!M26 -> 21940 | AS25: 404330.5587
B26: 2 | D26: 16244.76142 | F26: 7406.238577 | H26: 23651 | Q26: 44562 | R26: 2589 | W26: 7 | X26: 31 | AA26: =Ануїтетна_графік_Авто!G27 -> 46523 | AB26: =AB25+1 -> 23 | AD26: =Ануїтетна_графік_Авто!J27 -> 16245.29821 | AF26: =Ануїтетна_графік_Авто!K27 -> 5694.701792 | AH26: =Ануїтетна_графік_Авто!M27 -> 21940 | AJ26: 46538 | AK26: 23 | AM26: =Ануїтетна_графік_Авто!J27 -> 16245.29821 | AO26: =Ануїтетна_графік_Авто!K27 -> 5694.701792 | AQ26: =Ануїтетна_графік_Авто!M27 -> 21940 | AS26: 388466.2009
B27: 3 | D27: 16179.598 | F27: 7471.402003 | H27: 23651 | Q27: 44562 | R27: 2589 | W27: 8 | X27: 31 | AA27: =Ануїтетна_графік_Авто!G28 -> 46554 | AB27: =AB26+1 -> 24 | AD27: =Ануїтетна_графік_Авто!J28 -> 16251.18102 | AF27: =Ануїтетна_графік_Авто!K28 -> 5688.81898 | AH27: =Ануїтетна_графік_Авто!M28 -> 21940 | AJ27: 46568 | AK27: 24 | AM27: =Ануїтетна_графік_Авто!J28 -> 16251.18102 | AO27: =Ануїтетна_графік_Авто!K28 -> 5688.81898 | AQ27: =Ануїтетна_графік_Авто!M28 -> 21940 | AS27: 372220.9027
B28: 4 | D28: 16360.58028 | F28: 7290.419716 | H28: 23651 | K28: Одноразова комісія банку: | N28: =G10 -> 6930 | W28: 9 | X28: 30 | AA28: =Ануїтетна_графік_Авто!G29 -> 46584 | AB28: =AB27+1 -> 25 | AD28: =Ануїтетна_графік_Авто!J29 -> 16624.153 | AF28: =Ануїтетна_графік_Авто!K29 -> 5315.847005 | AH28: =Ануїтетна_графік_Авто!M29 -> 21940 | AJ28: 46599 | AK28: 25 | AM28: =Ануїтетна_графік_Авто!J29 -> 16624.153 | AO28: =Ануїтетна_графік_Авто!K29 -> 5315.847005 | AQ28: =Ануїтетна_графік_Авто!M29 -> 21940 | AS28: 355969.7217
B29: 5 | D29: 16772.8584 | F29: 6878.141605 | H29: 23651 | W29: 10 | X29: 31 | AA29: =Ануїтетна_графік_Авто!G30 -> 46615 | AB29: 26 | AD29: =Ануїтетна_графік_Авто!J30 -> 16647.22834 | AF29: =Ануїтетна_графік_Авто!K30 -> 5292.771658 | AH29: =Ануїтетна_графік_Авто!M30 -> 21940 | AJ29: 46630 | AK29: 26 | AM29: =Ануїтетна_графік_Авто!J30 -> 16647.22834 | AO29: =Ануїтетна_графік_Авто!K30 -> 5292.771658 | AQ29: =Ануїтетна_графік_Авто!M30 -> 21940 | AS29: 339345.5687
B30: 6 | D30: 16731.20541 | F30: 6919.794593 | H30: 23651 | W30: 11 | X30: 30 | AA30: =Ануїтетна_графік_Авто!G31 -> 46646 | AB30: 27 | AD30: =Ануїтетна_графік_Авто!J31 -> 16847.77658 | AF30: =Ануїтетна_графік_Авто!K31 -> 5092.223423 | AH30: =Ануїтетна_графік_Авто!M31 -> 21940 | AJ30: 46660 | AK30: 27 | AM30: =Ануїтетна_графік_Авто!J31 -> 16847.77658 | AO30: =Ануїтетна_графік_Авто!K31 -> 5092.223423 | AQ30: =Ануїтетна_графік_Авто!M31 -> 21940 | AS30: 322698.3403
B31: 7 | D31: 17135.53989 | F31: 6515.460114 | H31: 23651 | K31: КАСКО: | N31: =N15 -> 51600 | W31: 12 | X31: 31 | AA31: =Ануїтетна_графік_Авто!G32 -> 46676 | AB31: 28 | AD31: =Ануїтетна_графік_Авто!J32 -> 17208.45884 | AF31: =Ануїтетна_графік_Авто!K32 -> 4731.541156 | AH31: =Ануїтетна_графік_Авто!M32 -> 21940 | AJ31: 46691 | AK31: 28 | AM31: =Ануїтетна_графік_Авто!J32 -> 17208.45884 | AO31: =Ануїтетна_графік_Авто!K32 -> 4731.541156 | AQ31: =Ануїтетна_графік_Авто!M32 -> 21940 | AS31: 305850.5637
B32: 8 | D32: 17110.03318 | F32: 6540.966825 | H32: 23651 | P32: так | AA32: =Ануїтетна_графік_Авто!G33 -> 46707 | AB32: 29 | AD32: =Ануїтетна_графік_Авто!J33 -> 17258.05015 | AF32: =Ануїтетна_графік_Авто!K33 -> 4681.949846 | AH32: =Ануїтетна_графік_Авто!M33 -> 21940 | AJ32: 46721 | AK32: 29 | AM32: =Ануїтетна_графік_Авто!J33 -> 17258.05015 | AO32: =Ануїтетна_графік_Авто!K33 -> 4681.949846 | AQ32: =Ануїтетна_графік_Авто!M33 -> 21940 | AS32: 288642.1049
B33: 9 | D33: 17301.42315 | F33: 6349.576845 | H33: 23651 | P33: ні | AA33: =Ануїтетна_графік_Авто!G34 -> 46737 | AB33: 30 | AD33: =Ануїтетна_графік_Авто!J34 -> 17610.2809 | AF33: =Ануїтетна_графік_Авто!K34 -> 4329.719105 | AH33: =Ануїтетна_графік_Авто!M34 -> 21940 | AJ33: 46752 | AK33: 30 | AM33: =Ануїтетна_графік_Авто!J34 -> 17610.2809 | AO33: =Ануїтетна_графік_Авто!K34 -> 4329.719105 | AQ33: =Ануїтетна_графік_Авто!M34 -> 21940 | AS33: 271384.0547
B34: 10 | D34: 18090.70038 | F34: 5560.299621 | H34: 23651 | K34: Страхування НВ | N34: =IF(N12=0,0,IF(G13="Ні",N12,IF(G13="Так","НВ включено у суму кредиту",0))) -> 0 | AA34: =Ануїтетна_графік_Авто!G35 -> 46768 | AB34: 31 | AD34: =Ануїтетна_графік_Авто!J35 -> 17678.107 | AF34: =Ануїтетна_графік_Авто!K35 -> 4261.892999 | AH34: =Ануїтетна_графік_Авто!M35 -> 21940 | AJ34: 46783 | AK34: 31 | AM34: =Ануїтетна_графік_Авто!J35 -> 17678.107 | AO34: =Ануїтетна_графік_Авто!K35 -> 4261.892999 | AQ34: =Ануїтетна_графік_Авто!M35 -> 21940 | AS34: 253773.7738
B35: 11 | D35: 17697.31355 | F35: 5953.68645 | H35: 23651 | AA35: =Ануїтетна_графік_Авто!G36 -> 46799 | AB35: 32 | AD35: =Ануїтетна_графік_Авто!J36 -> 17891.07417 | AF35: =Ануїтетна_графік_Авто!K36 -> 4048.925826 | AH35: =Ануїтетна_графік_Авто!M36 -> 21940 | AJ35: 46812 | AK35: 32 | AM35: =Ануїтетна_графік_Авто!J36 -> 17891.07417 | AO35: =Ануїтетна_графік_Авто!K36 -> 4048.925826 | AQ35: =Ануїтетна_графік_Авто!M36 -> 21940 | AS35: 236095.6668
B36: 12 | D36: 18080.94137 | F36: 5570.058629 | H36: 23651 | AA36: =Ануїтетна_графік_Авто!G37 -> 46828 | AB36: 33 | AD36: =Ануїтетна_графік_Авто!J37 -> 18353.92263 | AF36: =Ануїтетна_графік_Авто!K37 -> 3586.077369 | AH36: =Ануїтетна_графік_Авто!M37 -> 21940 | AJ36: 46843 | AK36: 33 | AM36: =Ануїтетна_графік_Авто!J37 -> 18353.92263 | AO36: =Ануїтетна_графік_Авто!K37 -> 3586.077369 | AQ36: =Ануїтетна_графік_Авто!M37 -> 21940 | AS36: 218204.5927
B37: 13 | D37: 18097.52315 | F37: 5553.476854 | H37: 23651 | K37: Цивілка: | N37: 0 | AA37: =Ануїтетна_графік_Авто!G38 -> 46859 | AB37: 34 | AD37: =Ануїтетна_графік_Авто!J38 -> 18327.71564 | AF37: =Ануїтетна_графік_Авто!K38 -> 3612.284364 | AH37: =Ануїтетна_графік_Авто!M38 -> 21940 | AJ37: 46873 | AK37: 34 | AM37: =Ануїтетна_графік_Авто!J38 -> 18327.71564 | AO37: =Ануїтетна_графік_Авто!K38 -> 3612.284364 | AQ37: =Ануїтетна_графік_Авто!M38 -> 21940 | AS37: 199850.67
B38: 14 | D38: 18472.57325 | F38: 5178.426751 | H38: 23651 | AA38: =Ануїтетна_графік_Авто!G39 -> 46889 | AB38: 35 | AD38: =Ануїтетна_графік_Авто!J39 -> 18657.91156 | AF38: =Ануїтетна_графік_Авто!K39 -> 3282.088443 | AH38: =Ануїтетна_графік_Авто!M39 -> 21940 | AJ38: 46904 | AK38: 35 | AM38: =Ануїтетна_графік_Авто!J39 -> 18657.91156 | AO38: =Ануїтетна_графік_Авто!K39 -> 3282.088443 | AQ38: =Ануїтетна_графік_Авто!M39 -> 21940 | AS38: 181522.9544
B39: 15 | D39: 18506.59015 | F39: 5144.40985 | H39: 23651 | S39: Без ПДВ | T39: =G4/6*5 -> 833333.3333 | AA39: =Ануїтетна_графік_Авто!G40 -> 46920 | AB39: 36 | AD39: =Ануїтетна_графік_Авто!J40 -> 18773.27943 | AF39: =Ануїтетна_графік_Авто!K40 -> 3166.720568 | AH39: =Ануїтетна_графік_Авто!M40 -> 21940 | AJ39: 46934 | AK39: 36 | AM39: =Ануїтетна_графік_Авто!J40 -> 18773.27943 | AO39: =Ануїтетна_графік_Авто!K40 -> 3166.720568 | AQ39: =Ануїтетна_графік_Авто!M40 -> 21940 | AS39: 162865.0428
B40: 16 | D40: 18713.60178 | F40: 4937.398217 | H40: 23651 | K40: Нотаріальні послуги: | P40: =CONCATENATE(P42,P43,P44,P45,P46) ->  | Q40: =SUM(Q42:Q46) -> 13.99 | Z40: =SUM(Z42:Z46) -> 0 | AA40: =Ануїтетна_графік_Авто!G41 -> 46950 | AB40: 37 | AD40: =Ануїтетна_графік_Авто!J41 -> 19094.29686 | AF40: =Ануїтетна_графік_Авто!K41 -> 2845.703142 | AH40: =Ануїтетна_графік_Авто!M41 -> 21940 | AJ40: 46965 | AK40: 37 | AM40: =Ануїтетна_графік_Авто!J41 -> 19094.29686 | AO40: =Ануїтетна_графік_Авто!K41 -> 2845.703142 | AQ40: =Ануїтетна_графік_Авто!M41 -> 21940 | AS40: 144091.7634
B41: 17 | D41: 19075.44743 | F41: 4575.552568 | H41: 23651 | P41: Авансовий платіж | Q41: Ставка | R41: Продукти: | S41: 12 | T41: 24 | U41: 36 | V41: 48 | W41: 60 | X41: 72 | Y41: 84 | Z41: міс. | AA41: =Ануїтетна_графік_Авто!G42 -> 46981 | AB41: 38 | AD41: =Ануїтетна_графік_Авто!J42 -> 19229.46802 | AF41: =Ануїтетна_графік_Авто!K42 -> 2710.53198 | AH41: =Ануїтетна_графік_Авто!M42 -> 21940 | AJ41: 46996 | AK41: 38 | AM41: =Ануїтетна_графік_Авто!J42 -> 19229.46802 | AO41: =Ануїтетна_графік_Авто!K42 -> 2710.53198 | AQ41: =Ануїтетна_графік_Авто!M42 -> 21940 | AS41: 124997.4666
B42: 18 | D42: 19136.30379 | F42: 4514.696211 | H42: 23651 | P42: =IF($G$2=R42,IF(AND($G$2=R42,$U$23<20),"Авансовий платіж має бути не менше 20%",IF(AND($G$2=R42,$U$23>29.999),"Авансовий платіж має бути менше 30%","Авансовий платіж достатній")),"") ->  | Q42: =IF(AND(U23<50,$N$8=$S$41),S42, IF(AND(U23<50,$N$8=$T$41),T42, IF(AND(U23<50,$N$8=$U$41),U42, IF(AND(U23<50,$N$8=$V$41),V42, IF(AND(U23<50,$N$8=$W$41),W42, IF(AND(U23<50,$N$8=$X$41),X42, IF(AND(U23<50,$N$8=$Y$41),Y42,0))))))) -> 13.99 | R42: 30-50 | S42: 9.99 | T42: 11.99 | U42: 12.99 | V42: 13.99 | W42: 13.99 | X42: 13.99 | Y42: 13.99 | Z42: =IF(AND($G$2=R42,OR($N$8=$S$41,$N$8=$T$41,$N$8=$U$41)),0.0299, IF(AND($G$2=R42,OR($N$8=$X$41,$N$8=$W$41,$N$8=$V$41,$N$8=$Y$41)),0,0)) -> 0 | AA42: =Ануїтетна_графік_Авто!G43 -> 47012 | AB42: 39 | AD42: =Ануїтетна_графік_Авто!J43 -> 19461.12435 | AF42: =Ануїтетна_графік_Авто!K43 -> 2478.875647 | AH42: =Ануїтетна_графік_Авто!M43 -> 21940 | AJ42: 47026 | AK42: 39 | AM42: =Ануїтетна_графік_Авто!J43 -> 19461.12435 | AO42: =Ануїтетна_графік_Авто!K43 -> 2478.875647 | AQ42: =Ануїтетна_графік_Авто!M43 -> 21940 | AS42: 105767.9985
B43: 19 | D43: 19489.08964 | F43: 4161.910361 | H43: 23651 | K43: Реєстрація автомобіля: | P43: =IF($G$2=R43,IF(AND($G$2=R43,$U$23<30),"Авансовий платіж має бути не менше 30%",IF(AND($G$2=R43,$U$23>39.999),"Авансовий платіж має бути менше 40%","Авансовий платіж достатній")),"") ->  | Q43: =IF(AND(U23>=50,$N$8=$S$41),S43, IF(AND(U23>=50,$N$8=$T$41),T43, IF(AND(U23>=50,$N$8=$U$41),U43, IF(AND(U23>=50,$N$8=$V$41),V43, IF(AND(U23>=50,$N$8=$W$41),W43, IF(AND(U23>=50,$N$8=$X$41),X43, IF(AND(U23>=50,$N$8=$Y$41),Y43,0))))))) -> 0 | R43: 50> | S43: 7.99 | T43: 9.99 | U43: 10.99 | V43: 12.49 | W43: 12.99 | X43: 12.99 | Y43: 12.99 | Z43: =IF(AND($G$2=R43,OR($N$8=$S$41,$N$8=$T$41,$N$8=$U$41)),0.0299, IF(AND($G$2=R43,OR($N$8=$X$41,$N$8=$W$41,$N$8=$V$41,$N$8=$Y$41)),0,0)) -> 0 | AA43: =Ануїтетна_графік_Авто!G44 -> 47042 | AB43: =AB42+1 -> 40 | AD43: =Ануїтетна_графік_Авто!J44 -> 19767.97236 | AF43: =Ануїтетна_графік_Авто!K44 -> 2172.027642 | AH43: =Ануїтетна_графік_Авто!M44 -> 21940 | AJ43: 47057 | AK43: 40 | AM43: =Ануїтетна_графік_Авто!J44 -> 19767.97236 | AO43: =Ануїтетна_графік_Авто!K44 -> 2172.027642 | AQ43: =Ануїтетна_графік_Авто!M44 -> 21940 | AS43: 86306.87418
B44: 20 | D44: 19568.361 | F44: 4082.638998 | H44: 23651 | AA44: =Ануїтетна_графік_Авто!G45 -> 47073 | AB44: 41 | AD44: =Ануїтетна_графік_Авто!J45 -> 19933.7151 | AF44: =Ануїтетна_графік_Авто!K45 -> 2006.284898 | AH44: =Ануїтетна_графік_Авто!M45 -> 21940 | AJ44: 47087 | AK44: 41 | AM44: =Ануїтетна_графік_Авто!J45 -> 19933.7151 | AO44: =Ануїтетна_графік_Авто!K45 -> 2006.284898 | AQ44: =Ануїтетна_графік_Авто!M45 -> 21940 | AS44: 66538.90182
B45: 21 | D45: 19787.24943 | F45: 3863.750573 | H45: 23651 | AA45: =Ануїтетна_графік_Авто!G46 -> 47103 | AB45: 42 | AD45: =Ануїтетна_графік_Авто!J46 -> 20230.82786 | AF45: =Ануїтетна_графік_Авто!K46 -> 1709.172135 | AH45: =Ануїтетна_графік_Авто!M46 -> 21940 | AJ45: 47118 | AK45: 42 | AM45: =Ануїтетна_графік_Авто!J46 -> 20230.82786 | AO45: =Ануїтетна_графік_Авто!K46 -> 1709.172135 | AQ45: =Ануїтетна_графік_Авто!M46 -> 21940 | AS45: 46605.18672
B46: 22 | D46: 20361.07795 | F46: 3289.92205 | H46: 23651 | K46: Пенсійний фонд: | N46: ='Калькулятор (реал. ставка)'!C18 -> 33333.33333 | AA46: =Ануїтетна_графік_Авто!G47 -> 47134 | AB46: 43 | AD46: =Ануїтетна_графік_Авто!J47 -> 20417.57512 | AF46: =Ануїтетна_графік_Авто!K47 -> 1522.42488 | AH46: =Ануїтетна_графік_Авто!M47 -> 21940 | AJ46: 47149 | AK46: 43 | AM46: =Ануїтетна_графік_Авто!J47 -> 20417.57512 | AO46: =Ануїтетна_графік_Авто!K47 -> 1522.42488 | AQ46: =Ануїтетна_графік_Авто!M47 -> 21940 | AS46: 26374.35886
B47: 23 | D47: 20236.34193 | F47: 3414.658074 | H47: 23651 | AA47: =Ануїтетна_графік_Авто!G48 -> 47165 | AB47: 44 | AD47: =Ануїтетна_графік_Авто!J48 -> 20663.54451 | AF47: =Ануїтетна_графік_Авто!K48 -> 1276.455487 | AH47: =Ануїтетна_графік_Авто!M48 -> 21940 | AJ47: 47177 | AK47: 44 | AM47: =Ануїтетна_графік_Авто!J48 -> 20663.54451 | AO47: =Ануїтетна_графік_Авто!K48 -> 1276.455487 | AQ47: =Ануїтетна_графік_Авто!M48 -> 21940 | AS47: 5956.783738
B48: 24 | D48: 20565.55059 | F48: 3085.449412 | H48: 23651 | AA48: =Ануїтетна_графік_Авто!G49 -> 47193 | AB48: 45 | AD48: =Ануїтетна_графік_Авто!J49 -> 21011.91479 | AF48: =Ануїтетна_графік_Авто!K49 -> 928.085213 | AH48: =Ануїтетна_графік_Авто!M49 -> 21940 | AJ48: 47208 | AK48: 45 | AM48: =Ануїтетна_графік_Авто!J49 -> 21011.91479 | AO48: =Ануїтетна_графік_Авто!K49 -> 928.085213 | AQ48: =Ануїтетна_графік_Авто!M49 -> 21940 | AS48: -14706.76077
B49: 25 | D49: 20692.7451 | F49: 2958.254905 | H49: 23651 | K49: ВСЬОГО ВИТРАТ | N49: =N25+N37+N40+N43+N46+IF(N31=N15,N31,0)+IF(N34=N12,N34,0)+IF(N28=G10,N28,0) -> 391863.3333 | AA49: =Ануїтетна_графік_Авто!G50 -> 47224 | AB49: 46 | AD49: =Ануїтетна_графік_Авто!J50 -> 21165.60646 | AF49: =Ануїтетна_графік_Авто!K50 -> 774.3935443 | AH49: =Ануїтетна_графік_Авто!M50 -> 21940 | AJ49: 47238 | AK49: 46 | AM49: =Ануїтетна_графік_Авто!J50 -> 21165.60646 | AO49: =Ануїтетна_графік_Авто!K50 -> 774.3935443 | AQ49: =Ануїтетна_графік_Авто!M50 -> 21940 | AS49: -35718.67556
B50: 26 | D50: 21012.17164 | F50: 2638.828362 | H50: 23651 | AA50: =Ануїтетна_графік_Авто!G51 -> 47254 | AB50: 47 | AD50: =Ануїтетна_графік_Авто!J51 -> 21437.34259 | AF50: =Ануїтетна_графік_Авто!K51 -> 502.6574121 | AH50: =Ануїтетна_графік_Авто!M51 -> 21940 | AJ50: 47269 | AK50: 47 | AM50: =Ануїтетна_графік_Авто!J51 -> 21437.34259 | AO50: =Ануїтетна_графік_Авто!K51 -> 502.6574121 | AQ50: =Ануїтетна_графік_Авто!M51 -> 21940 | AS50: -56884.28202
B51: 27 | D51: 21159.24934 | F51: 2491.750657 | H51: 23651 | AA51: =Ануїтетна_графік_Авто!G52 -> 47284 | AB51: 48 | AD51: =Ануїтетна_графік_Авто!J52 -> 21678.37539 | AF51: =Ануїтетна_графік_Авто!K52 -> 252.7337265 | AH51: =Ануїтетна_графік_Авто!M52 -> 21931.10912 | AJ51: 47299 | AK51: 48 | AM51: =Ануїтетна_графік_Авто!J52 -> 21678.37539 | AO51: =Ануїтетна_графік_Авто!K52 -> 252.7337265 | AQ51: =Ануїтетна_графік_Авто!M52 -> 21931.10912 | AS51: -78321.62461
B52: 28 | D52: 21395.93318 | F52: 2255.066821 | H52: 23651 | AA52: =Ануїтетна_графік_Авто!G53 -> Всього: | AB52: 49 | AD52: =Ануїтетна_графік_Авто!J53 -> 800000 | AF52: =Ануїтетна_графік_Авто!K53 -> 253111.1091 | AH52: =Ануїтетна_графік_Авто!M53 -> 1053111.109 | AJ52: 47330 | AK52: 49 | AM52: =Ануїтетна_графік_Авто!J53 -> 800000 | AO52: =Ануїтетна_графік_Авто!K53 -> 253111.1091 | AQ52: =Ануїтетна_графік_Авто!M53 -> 1053111.109 | AS52: -100000
B53: 29 | D53: 21700.28825 | F53: 1950.711753 | H53: 23651 | AA53: =Ануїтетна_графік_Авто!G54 ->  | AB53: 50 | AD53: =Ануїтетна_графік_Авто!J54 ->  | AF53: =Ануїтетна_графік_Авто!K54 ->  | AH53: =Ануїтетна_графік_Авто!M54 ->  | AJ53: 47361 | AK53: 50 | AM53: =Ануїтетна_графік_Авто!J54 ->  | AO53: =Ануїтетна_графік_Авто!K54 ->  | AQ53: =Ануїтетна_графік_Авто!M54 ->  | AS53: -900000
B54: 30 | D54: 21878.00033 | F54: 1772.99967 | H54: 23651 | AA54: =Ануїтетна_графік_Авто!G55 ->  | AB54: 51 | AD54: =Ануїтетна_графік_Авто!J55 ->  | AF54: =Ануїтетна_графік_Авто!K55 ->  | AH54: =Ануїтетна_графік_Авто!M55 ->  | AJ54: 47391 | AK54: 51 | AM54: =Ануїтетна_графік_Авто!J55 ->  | AO54: =Ануїтетна_графік_Авто!K55 ->  | AQ54: =Ануїтетна_графік_Авто!M55 -> 
B55: 31 | D55: 22172.02322 | F55: 1478.976779 | H55: 23651 | AA55: =Ануїтетна_графік_Авто!G56 ->  | AB55: 52 | AD55: =Ануїтетна_графік_Авто!J56 ->  | AF55: =Ануїтетна_графік_Авто!K56 ->  | AH55: =Ануїтетна_графік_Авто!M56 ->  | AJ55: 47422 | AK55: 52 | AM55: =Ануїтетна_графік_Авто!J56 ->  | AO55: =Ануїтетна_графік_Авто!K56 ->  | AQ55: =Ануїтетна_графік_Авто!M56 -> 
B56: 32 | D56: 22370.73655 | F56: 1280.263449 | H56: 23651 | AA56: =Ануїтетна_графік_Авто!G57 ->  | AB56: 53 | AD56: =Ануїтетна_графік_Авто!J57 ->  | AF56: =Ануїтетна_графік_Авто!K57 ->  | AH56: =Ануїтетна_графік_Авто!M57 ->  | AJ56: 47452 | AK56: 53 | AM56: =Ануїтетна_графік_Авто!J57 ->  | AO56: =Ануїтетна_графік_Авто!K57 ->  | AQ56: =Ануїтетна_графік_Авто!M57 -> 
B57: 33 | D57: 22620.97188 | F57: 1030.028118 | H57: 23651 | AA57: =Ануїтетна_графік_Авто!G58 ->  | AB57: 54 | AD57: =Ануїтетна_графік_Авто!J58 ->  | AF57: =Ануїтетна_графік_Авто!K58 ->  | AH57: =Ануїтетна_графік_Авто!M58 ->  | AJ57: 47483 | AK57: 54 | AM57: =Ануїтетна_графік_Авто!J58 ->  | AO57: =Ануїтетна_графік_Авто!K58 ->  | AQ57: =Ануїтетна_графік_Авто!M58 -> 
B58: 34 | D58: 22924.13493 | F58: 726.8650711 | H58: 23651 | AA58: =Ануїтетна_графік_Авто!G59 ->  | AB58: 55 | AD58: =Ануїтетна_графік_Авто!J59 ->  | AF58: =Ануїтетна_графік_Авто!K59 ->  | AH58: =Ануїтетна_графік_Авто!M59 ->  | AJ58: 47514 | AK58: 55 | AM58: =Ануїтетна_графік_Авто!J59 ->  | AO58: =Ануїтетна_графік_Авто!K59 ->  | AQ58: =Ануїтетна_графік_Авто!M59 -> 
